Workbook

Sheet QUADRO
A1: Quadro delle combinazioni possibili per gli anni di programmazione 2018-2025 nelle Marche
A2: Alimentazione / tipologia | C2: diesel | F2: ibrido | I2: metano | L2: elettrico | O2: idrogeno | R2: TEMPO
A3: fondo | B3: annualità fondo | C3: urbano | D3: extraurb | E3: Infrastr. | F3: urbano | G3: extraurb | H3: Infrastr. | I3: urbano | J3: extraurb | K3: Infrastr. | L3: urbano | M3: extraurb | N3: Infrastr. | O3: urbano | P3: extraurb | Q3: Infrastr. | R3: autobus | S3: Infrastr.
A4: DM 81/2020 - PSNMS | B4: 2018 | C4: x | D4: x | E4: x | F4: x | G4: x | H4: x | I4: x | J4: x | K4: x | L4: x | M4: x | N4: x | O4: x | P4: x | Q4: x | R4: x | S4: x
B5: 2019 | C5: 0.8 | D5: 0.8 | E5: x | F5: 0.8 | G5: 0.8 | H5: x | I5: 0.8 | J5: 0.8 | K5: 0.8 | L5: 0.8 | M5: x | N5: x | O5: 0.8 | P5: 0.8 | Q5: x | R5: ammessi dal 17/04/19 | S5: ammessi dal 17/04/19
B6: 2020 | C6: 0.8 | D6: 0.8 | E6: x | F6: 0.8 | G6: 0.8 | H6: x | I6: 0.8 | J6: 0.8 | K6: 0.8 | L6: 0.8 | M6: x | N6: x | O6: 0.8 | P6: 0.8 | Q6: x
B7: 2021 | C7: x | D7: 80% montagna | E7: x | F7: x | G7: 80% montagna | H7: x | I7: 0.8 | J7: 0.8 | K7: 0.8 | L7: 0.8 | M7: x | N7: x | O7: 0.8 | P7: 0.8 | Q7: x
B8: 2022 | C8: x | D8: 80% montagna | E8: x | F8: x | G8: 80% montagna | H8: x | I8: 0.8 | J8: 0.8 | K8: x | L8: 0.8 | M8: x | N8: x | O8: 0.8 | P8: 0.8 | Q8: x
B9: 2023 | C9: x | D9: 80% montagna | E9: x | F9: x | G9: 80% montagna | H9: x | I9: 0.8 | J9: 0.8 | K9: x | L9: 0.8 | M9: x | N9: x | O9: 0.8 | P9: 0.8 | Q9: x | R9: risorse 2019-2023 fine entro 2025 | S9: risorse 2019-2023 fine entro 2027
B10: 2024 | C10: x | D10: x | E10: x | F10: x | G10: x | H10: x | I10: 0.8 | J10: 0.8 | K10: 0.8 | L10: 0.8 | M10: x | N10: x | O10: 0.8 | P10: 0.8 | Q10: x
B11: 2025 | C11: x | D11: x | E11: x | F11: x | G11: x | H11: x | I11: 0.8 | J11: 0.8 | K11: 0.8 | L11: 0.8 | M11: x | N11: x | O11: 0.8 | P11: 0.8 | Q11: x
B12: 2026-2033 | C12: x | D12: x | E12: x | F12: x | G12: x | H12: x | I12: 0.8 | J12: 0.8 | K12: 0.8 | L12: 0.8 | M12: x | N12: x | O12: 0.8 | P12: 0.8 | Q12: x
A13: DM 315/2021 - fondo compl. PNRR | B13: 2018 | C13: x | D13: x | E13: x | F13: x | G13: x | H13: x | I13: x | J13: x | K13: x | L13: x | M13: x | N13: x | O13: x | P13: x | Q13: x
B14: 2019 | C14: x | D14: x | E14: x | F14: x | G14: x | H14: x | I14: x | J14: x | K14: x | L14: x | M14: x | N14: x | O14: x | P14: x | Q14: x
B15: 2020 | C15: x | D15: x | E15: x | F15: x | G15: x | H15: x | I15: x | J15: x | K15: x | L15: x | M15: x | N15: x | O15: x | P15: x | Q15: x
B16: 2021 | C16: x | D16: x | E16: x | F16: x | G16: x | H16: x | I16: x | J16: x | K16: x | L16: x | M16: x | N16: x | O16: x | P16: x | Q16: x | R16: ammessi dal 06/05/21 | S16: ammessi dal 06/05/21
B17: 2022 | C17: x | D17: x | E17: x | F17: x | G17: x | H17: x | I17: x | J17: 0.8 | K17: 0.8 | L17: x | M17: 0.8 | N17: 0.8 | O17: x | P17: 0.8 | Q17: 0.8 | R17: ordini entro 31/12/22 | S17: ordini entro 31/12/22
B18: 2023 | C18: x | D18: x | E18: x | F18: x | G18: x | H18: x | I18: x | J18: 0.8 | K18: 0.8 | L18: x | M18: 0.8 | N18: 0.8 | O18: x | P18: 0.8 | Q18: 0.8
B19: 2024 | C19: x | D19: x | E19: x | F19: x | G19: x | H19: x | I19: x | J19: 0.8 | K19: 0.8 | L19: x | M19: 0.8 | N19: 0.8 | O19: x | P19: 0.8 | Q19: 0.8 | R19: 50% investimenti 31/12/24
B20: 2025 | C20: x | D20: x | E20: x | F20: x | G20: x | H20: x | I20: x | J20: 0.8 | K20: x | L20: x | M20: 0.8 | N20: x | O20: x | P20: 0.8 | Q20: x
B21: 2026 | C21: x | D21: x | E21: x | F21: x | G21: x | H21: x | I21: x | J21: 0.8 | K21: x | L21: x | M21: 0.8 | N21: x | O21: x | P21: 0.8 | Q21: x | R21: tot entro 31/12/26 | S21: tot entro 31/12/26
A22: DM 223/2020 - MIT | B22: 2018 | C22: 0.8 | D22: 0.8 | E22: x | F22: 0.8 | G22: 0.8 | H22: x | I22: 0.8 | J22: 0.8 | K22: x | L22: 0.8 | M22: 0.8 | N22: x | O22: 0.8 | P22: 0.8 | Q22: x | R22: ammessi dal 01/01/18 | S22: x
B23: 2019 | C23: 0.8 | D23: 0.8 | E23: x | F23: 0.8 | G23: 0.8 | H23: x | I23: 0.8 | J23: 0.8 | K23: x | L23: 0.8 | M23: 0.8 | N23: x | O23: 0.8 | P23: 0.8 | Q23: x | S23: x
B24: 2020 | C24: 0.8 | D24: 0.8 | E24: x | F24: 0.8 | G24: 0.8 | H24: x | I24: 0.8 | J24: 0.8 | K24: x | L24: 0.8 | M24: 0.8 | N24: x | O24: 0.8 | P24: 0.8 | Q24: x | S24: x
B25: 2021 | C25: 0.8 | D25: 0.8 | E25: x | F25: 0.8 | G25: 0.8 | H25: x | I25: 0.8 | J25: 0.8 | K25: x | L25: 0.8 | M25: 0.8 | N25: x | O25: 0.8 | P25: 0.8 | Q25: x | S25: x
B26: 2022 | C26: 0.8 | D26: 0.8 | E26: x | F26: 0.8 | G26: 0.8 | H26: x | I26: 0.8 | J26: 0.8 | K26: x | L26: 0.8 | M26: 0.8 | N26: x | O26: 0.8 | P26: 0.8 | Q26: x | R26: ordini fino al 21 entro 28/02/22, 31/10/22 per triennio 22-24 | S26: x
B27: 2023 | C27: 0.8 | D27: 0.8 | E27: x | F27: 0.8 | G27: 0.8 | H27: x | I27: 0.8 | J27: 0.8 | K27: x | L27: 0.8 | M27: 0.8 | N27: x | O27: 0.8 | P27: 0.8 | Q27: x | S27: x
B28: 2024 | C28: 0.8 | D28: 0.8 | E28: x | F28: 0.8 | G28: 0.8 | H28: x | I28: 0.8 | J28: 0.8 | K28: x | L28: 0.8 | M28: 0.8 | N28: x | O28: 0.8 | P28: 0.8 | Q28: x | S28: x
B29: 2025 | C29: 0.8 | D29: 0.8 | E29: x | F29: 0.8 | G29: 0.8 | H29: x | I29: 0.8 | J29: 0.8 | K29: x | L29: 0.8 | M29: 0.8 | N29: x | O29: 0.8 | P29: 0.8 | Q29: x | R29: ordini fino al 31/10/25 per triennio 25-27, ecc. | S29: x
B30: 2026-2033 | C30: 0.8 | D30: 0.8 | E30: x | F30: 0.8 | G30: 0.8 | H30: x | I30: 0.8 | J30: 0.8 | K30: x | L30: 0.8 | M30: 0.8 | N30: x | O30: 0.8 | P30: 0.8 | Q30: x | S30: x
A31: Legenda:
A32: x | B32: investimento non riconosciuto ammissibile al contributo
A33: x% | B33: intensità massima del cofinanziamento pubblico
A34: 80% montagna | B34: ammesso nei territori non raggiunti dalla rete di distribuzione del metano, utile allo scopo, e per autobus che svolgono servizio di TPL in comuni montani
A35: 0.8 | B35: intensità del cofinanziamento (può arrivare al 100% in caso di condivisione più aziende) rispetto alle risorse programmate (per un tot pari al 50% del budget del primo triennio)

Sheet DM 223_2018
A1: Piano investimenti di bacino - D.G.R. 647 del 30 maggio 2022 - REGIONE MARCHE - Assessorato trasporti e reti regionali di trasporto. | U1: CRONOPROGRAMMA DEGLI INVESTIMENTI
A3: Ambito territoriale | B3: FM | F3: celle a fondo bianco da compilare obbligatoriamente direttamente o con menu a tendina | I3: Data compilazione | V3: Legenda:
A4: Fonte di finanziamento | B4: DM 223/2020 - MIT | F4: celle a fondo arancio compilate automaticamente | I4: Referente compilaz. | V4: 1 | W4: Espletamento gara
A5: Annualità | B5: 2018 | F5: Valori economici al netto dell'IVA | I5: Telefono di contatto | V5: 2 | W5: Stipula contratto
A6: K2 | B6: =B4&"_"&B5&"_"&B3 -> DM 223/2020 - MIT_2018_FM
A7: Contributo max assegnabile | B7: =VLOOKUP($B$6,'Assegnazione fondi'!$D$2:$G$208,3,FALSE) -> 268073.2431 | D7: Contributo tot. assegnato | F7: =+S43 -> 0 | I7: e-mail | V7: 3 | W7: Completamento fornitura
A8: % contribuzione sul costo d'acquisto | B8: =VLOOKUP($B$6,'Assegnazione fondi'!$D$2:$G$201,4,FALSE) -> 0.8 | D8: N. mezzi tot. da acquisire | F8: =B41+C41 -> 0
A9: Residuo annualità precedenti | B9: 0
A10: =+IF(B4="DM 81/2020 - PSNMS", "Importo da utilizzare per infrastrutture (di cui del contributo max)","Contributo max assegnabile per eventuali infrastrutture (di cui del contributo max)") -> Contributo max assegnabile per eventuali infrastrutture (di cui del contributo max) | B10: =VLOOKUP($B$6,'Assegnazione fondi'!$D$2:$G$208,2,FALSE) -> 0 | D10: Residuo sull'anno | F10: =+TOTIMP-F7 -> 268073.2431
A12: DATI RIEPILOGATIVI SUGLI AUTOBUS DA ACQUISIRE | B12: Per complet. organico n. | C12: Per rinnovo parco n. | D12: Compilare un foglio per ogni fondo di finanziamento, per ogni annualità | U12: Indicare il cronoprogramma delle attività per ogni mezzo secondo le tre tipologie in legenda
B13: =B41 -> 0 | C13: =C41 -> 0 | U13: Anno | V13: 2018 | AH13: 2019 | AT13: 2020 | BF13: 2021 | BR13: 2022 | CD13: 2023 | CP13: 2024 | DB13: 2025 | DN13: 2026
A14: Azienda beneficiaria | B14: Completamento organico (1=si;0=no) | C14: Sostituzione mezzo (1=si;0=no) | D14: Targa mezzo da sostituire | E14: Impiego (URBANO / EXTRAURBANO) | F14: Data prima immatricolazione mezzo sostituito | G14: DGR tetti di spesa | H14: Tipologia nuovo mezzo (selezionare dall'elenco) | I14: Rastrelliera per biciclette (1=si;0=no) | J14: Metano LNG (1=si;0=no) | K14: Mezzo Myld hybrid (1=si;0=no) | L14: Costo preventivato unitario [€] | M14: CIG e note particolari | N14: DATA STIPULA CONTRATTO entro 31/10/2022 | O14: Investimento sul cratere sisma 2016 (1=si;0=no) | P14: intervento liquidato (1=si;0=no) | Q14: Alimentaz. | R14: Spesa max ammissibile unitaria | S14: Contributo unitario | U14: Id / Mese | V14: 1 | W14: 2 | X14: 3 | Y14: 4 | Z14: 5 | AA14: 6 | AB14: 7 | AC14: 8 | AD14: 9 | AE14: 10 | AF14: 11 | AG14: 12 | AH14: 1 | AI14: 2 | AJ14: 3 | AK14: 4 | AL14: 5 | AM14: 6 | AN14: 7 | AO14: 8 | AP14: 9 | AQ14: 10 | AR14: 11 | AS14: 12 | AT14: 1 | AU14: 2 | AV14: 3 | AW14: 4 | AX14: 5 | AY14: 6 | AZ14: 7 | BA14: 8 | BB14: 9 | BC14: 10 | BD14: 11 | BE14: 12 | BF14: 1 | BG14: 2 | BH14: 3 | BI14: 4 | BJ14: 5 | BK14: 6 | BL14: 7 | BM14: 8 | BN14: 9 | BO14: 10 | BP14: 11 | BQ14: 12 | BR14: 1 | BS14: 2 | BT14: 3 | BU14: 4 | BV14: 5 | BW14: 6 | BX14: 7 | BY14: 8 | BZ14: 9 | CA14: 10 | CB14: 11 | CC14: 12 | CD14: 1 | CE14: 2 | CF14: 3 | CG14: 4 | CH14: 5 | CI14: 6 | CJ14: 7 | CK14: 8 | CL14: 9 | CM14: 10 | CN14: 11 | CO14: 12 | CP14: 1 | CQ14: 2 | CR14: 3 | CS14: 4 | CT14: 5 | CU14: 6 | CV14: 7 | CW14: 8 | CX14: 9 | CY14: 10 | CZ14: 11 | DA14: 12 | DB14: 1 | DC14: 2 | DD14: 3 | DE14: 4 | DF14: 5 | DG14: 6 | DH14: 7 | DI14: 8 | DJ14: 9 | DK14: 10 | DL14: 11 | DM14: 12 | DN14: 1 | DO14: 2 | DP14: 3 | DQ14: 4 | DR14: 5 | DS14: 6 | DT14: 7 | DU14: 8 | DV14: 9 | DW14: 10 | DX14: 11 | DY14: 12
M15: =IF(L15<>0,"COMPILARE","") ->  | Q15: =IFERROR(VLOOKUP(H15,TettiDGR300!$J$2:$L74,3,FALSE), "") ->  | R15: =IF(H15="",0,IF(AND(G15="DGR300_2023",J15=1,K15=1),VLOOKUP(H15,TettiDGR300!$J$2:$N$74,5,FALSE),IF(AND(G15="DGR300_2023",J15=1),VLOOKUP(H15,TettiDGR300!$J$2:$N$74,4,FALSE),IF(AND(G15="DGR300_2023",K15=1),VLOOKUP(H15,TettiDGR300!$J$2:$N$74,5,FALSE),IF(G15="DGR300_2023",VLOOKUP(H15,TettiDGR300!$J$2:$N$74,2,FALSE),IF(AND(G15="DGR1233_2021",J15=1,K15=1),VLOOKUP(H15,TettiDGR1233!$J$2:$N$74,5,FALSE),IF(AND(G15="DGR1233_2021",J15=1),VLOOKUP(H15,TettiDGR1233!$J$2:$N$74,4,FALSE),IF(AND(G15="DGR1233_2021",K15=1),VLOOKUP(H15,TettiDGR1233!$J$2:$N$74,5,FALSE),VLOOKUP(H15,TettiDGR1233!$J$2:$N$74,2,FALSE))))))))) -> 0 | S15: =IF(L15<R15,L15*PERCCONTRIB,R15*PERCCONTRIB) -> 0 | U15: 1
Q16: =IFERROR(VLOOKUP(H16,TettiDGR300!$J$2:$L75,3,FALSE), "") ->  | R16: =IF(H16="",0,IF(AND(G16="DGR300_2023",J16=1,K16=1),VLOOKUP(H16,TettiDGR300!$J$2:$N$74,5,FALSE),IF(AND(G16="DGR300_2023",J16=1),VLOOKUP(H16,TettiDGR300!$J$2:$N$74,4,FALSE),IF(AND(G16="DGR300_2023",K16=1),VLOOKUP(H16,TettiDGR300!$J$2:$N$74,5,FALSE),IF(G16="DGR300_2023",VLOOKUP(H16,TettiDGR300!$J$2:$N$74,2,FALSE),IF(AND(G16="DGR1233_2021",J16=1,K16=1),VLOOKUP(H16,TettiDGR1233!$J$2:$N$74,5,FALSE),IF(AND(G16="DGR1233_2021",J16=1),VLOOKUP(H16,TettiDGR1233!$J$2:$N$74,4,FALSE),IF(AND(G16="DGR1233_2021",K16=1),VLOOKUP(H16,TettiDGR1233!$J$2:$N$74,5,FALSE),VLOOKUP(H16,TettiDGR1233!$J$2:$N$74,2,FALSE))))))))) -> 0 | S16: 0 | U16: 2
Q17: =IFERROR(VLOOKUP(H17,TettiDGR300!$J$2:$L76,3,FALSE), "") ->  | R17: =IF(H17="",0,IF(AND(G17="DGR300_2023",J17=1,K17=1),VLOOKUP(H17,TettiDGR300!$J$2:$N$74,5,FALSE),IF(AND(G17="DGR300_2023",J17=1),VLOOKUP(H17,TettiDGR300!$J$2:$N$74,4,FALSE),IF(AND(G17="DGR300_2023",K17=1),VLOOKUP(H17,TettiDGR300!$J$2:$N$74,5,FALSE),IF(G17="DGR300_2023",VLOOKUP(H17,TettiDGR300!$J$2:$N$74,2,FALSE),IF(AND(G17="DGR1233_2021",J17=1,K17=1),VLOOKUP(H17,TettiDGR1233!$J$2:$N$74,5,FALSE),IF(AND(G17="DGR1233_2021",J17=1),VLOOKUP(H17,TettiDGR1233!$J$2:$N$74,4,FALSE),IF(AND(G17="DGR1233_2021",K17=1),VLOOKUP(H17,TettiDGR1233!$J$2:$N$74,5,FALSE),VLOOKUP(H17,TettiDGR1233!$J$2:$N$74,2,FALSE))))))))) -> 0 | S17: 0 | U17: 3
Q18: =IFERROR(VLOOKUP(H18,TettiDGR300!$J$2:$L77,3,FALSE), "") ->  | R18: =IF(H18="",0,IF(AND(G18="DGR300_2023",J18=1,K18=1),VLOOKUP(H18,TettiDGR300!$J$2:$N$74,5,FALSE),IF(AND(G18="DGR300_2023",J18=1),VLOOKUP(H18,TettiDGR300!$J$2:$N$74,4,FALSE),IF(AND(G18="DGR300_2023",K18=1),VLOOKUP(H18,TettiDGR300!$J$2:$N$74,5,FALSE),IF(G18="DGR300_2023",VLOOKUP(H18,TettiDGR300!$J$2:$N$74,2,FALSE),IF(AND(G18="DGR1233_2021",J18=1,K18=1),VLOOKUP(H18,TettiDGR1233!$J$2:$N$74,5,FALSE),IF(AND(G18="DGR1233_2021",J18=1),VLOOKUP(H18,TettiDGR1233!$J$2:$N$74,4,FALSE),IF(AND(G18="DGR1233_2021",K18=1),VLOOKUP(H18,TettiDGR1233!$J$2:$N$74,5,FALSE),VLOOKUP(H18,TettiDGR1233!$J$2:$N$74,2,FALSE))))))))) -> 0 | S18: 0 | U18: 4
Q19: =IFERROR(VLOOKUP(H19,TettiDGR300!$J$2:$L78,3,FALSE), "") ->  | R19: =IF(H19="",0,IF(AND(G19="DGR300_2023",J19=1,K19=1),VLOOKUP(H19,TettiDGR300!$J$2:$N$74,5,FALSE),IF(AND(G19="DGR300_2023",J19=1),VLOOKUP(H19,TettiDGR300!$J$2:$N$74,4,FALSE),IF(AND(G19="DGR300_2023",K19=1),VLOOKUP(H19,TettiDGR300!$J$2:$N$74,5,FALSE),IF(G19="DGR300_2023",VLOOKUP(H19,TettiDGR300!$J$2:$N$74,2,FALSE),IF(AND(G19="DGR1233_2021",J19=1,K19=1),VLOOKUP(H19,TettiDGR1233!$J$2:$N$74,5,FALSE),IF(AND(G19="DGR1233_2021",J19=1),VLOOKUP(H19,TettiDGR1233!$J$2:$N$74,4,FALSE),IF(AND(G19="DGR1233_2021",K19=1),VLOOKUP(H19,TettiDGR1233!$J$2:$N$74,5,FALSE),VLOOKUP(H19,TettiDGR1233!$J$2:$N$74,2,FALSE))))))))) -> 0 | S19: 0 | U19: 5
Q20: =IFERROR(VLOOKUP(H20,TettiDGR300!$J$2:$L79,3,FALSE), "") ->  | R20: =IF(H20="",0,IF(AND(G20="DGR300_2023",J20=1,K20=1),VLOOKUP(H20,TettiDGR300!$J$2:$N$74,5,FALSE),IF(AND(G20="DGR300_2023",J20=1),VLOOKUP(H20,TettiDGR300!$J$2:$N$74,4,FALSE),IF(AND(G20="DGR300_2023",K20=1),VLOOKUP(H20,TettiDGR300!$J$2:$N$74,5,FALSE),IF(G20="DGR300_2023",VLOOKUP(H20,TettiDGR300!$J$2:$N$74,2,FALSE),IF(AND(G20="DGR1233_2021",J20=1,K20=1),VLOOKUP(H20,TettiDGR1233!$J$2:$N$74,5,FALSE),IF(AND(G20="DGR1233_2021",J20=1),VLOOKUP(H20,TettiDGR1233!$J$2:$N$74,4,FALSE),IF(AND(G20="DGR1233_2021",K20=1),VLOOKUP(H20,TettiDGR1233!$J$2:$N$74,5,FALSE),VLOOKUP(H20,TettiDGR1233!$J$2:$N$74,2,FALSE))))))))) -> 0 | S20: 0 | U20: 6
Q21: =IFERROR(VLOOKUP(H21,TettiDGR300!$J$2:$L80,3,FALSE), "") ->  | R21: =IF(H21="",0,IF(AND(G21="DGR300_2023",J21=1,K21=1),VLOOKUP(H21,TettiDGR300!$J$2:$N$74,5,FALSE),IF(AND(G21="DGR300_2023",J21=1),VLOOKUP(H21,TettiDGR300!$J$2:$N$74,4,FALSE),IF(AND(G21="DGR300_2023",K21=1),VLOOKUP(H21,TettiDGR300!$J$2:$N$74,5,FALSE),IF(G21="DGR300_2023",VLOOKUP(H21,TettiDGR300!$J$2:$N$74,2,FALSE),IF(AND(G21="DGR1233_2021",J21=1,K21=1),VLOOKUP(H21,TettiDGR1233!$J$2:$N$74,5,FALSE),IF(AND(G21="DGR1233_2021",J21=1),VLOOKUP(H21,TettiDGR1233!$J$2:$N$74,4,FALSE),IF(AND(G21="DGR1233_2021",K21=1),VLOOKUP(H21,TettiDGR1233!$J$2:$N$74,5,FALSE),VLOOKUP(H21,TettiDGR1233!$J$2:$N$74,2,FALSE))))))))) -> 0 | S21: 0 | U21: 7
Q22: =IFERROR(VLOOKUP(H22,TettiDGR300!$J$2:$L81,3,FALSE), "") ->  | R22: =IF(H22="",0,IF(AND(G22="DGR300_2023",J22=1,K22=1),VLOOKUP(H22,TettiDGR300!$J$2:$N$74,5,FALSE),IF(AND(G22="DGR300_2023",J22=1),VLOOKUP(H22,TettiDGR300!$J$2:$N$74,4,FALSE),IF(AND(G22="DGR300_2023",K22=1),VLOOKUP(H22,TettiDGR300!$J$2:$N$74,5,FALSE),IF(G22="DGR300_2023",VLOOKUP(H22,TettiDGR300!$J$2:$N$74,2,FALSE),IF(AND(G22="DGR1233_2021",J22=1,K22=1),VLOOKUP(H22,TettiDGR1233!$J$2:$N$74,5,FALSE),IF(AND(G22="DGR1233_2021",J22=1),VLOOKUP(H22,TettiDGR1233!$J$2:$N$74,4,FALSE),IF(AND(G22="DGR1233_2021",K22=1),VLOOKUP(H22,TettiDGR1233!$J$2:$N$74,5,FALSE),VLOOKUP(H22,TettiDGR1233!$J$2:$N$74,2,FALSE))))))))) -> 0 | S22: 0 | U22: 8
Q23: =IFERROR(VLOOKUP(H23,TettiDGR300!$J$2:$L82,3,FALSE), "") ->  | R23: =IF(H23="",0,IF(AND(G23="DGR300_2023",J23=1,K23=1),VLOOKUP(H23,TettiDGR300!$J$2:$N$74,5,FALSE),IF(AND(G23="DGR300_2023",J23=1),VLOOKUP(H23,TettiDGR300!$J$2:$N$74,4,FALSE),IF(AND(G23="DGR300_2023",K23=1),VLOOKUP(H23,TettiDGR300!$J$2:$N$74,5,FALSE),IF(G23="DGR300_2023",VLOOKUP(H23,TettiDGR300!$J$2:$N$74,2,FALSE),IF(AND(G23="DGR1233_2021",J23=1,K23=1),VLOOKUP(H23,TettiDGR1233!$J$2:$N$74,5,FALSE),IF(AND(G23="DGR1233_2021",J23=1),VLOOKUP(H23,TettiDGR1233!$J$2:$N$74,4,FALSE),IF(AND(G23="DGR1233_2021",K23=1),VLOOKUP(H23,TettiDGR1233!$J$2:$N$74,5,FALSE),VLOOKUP(H23,TettiDGR1233!$J$2:$N$74,2,FALSE))))))))) -> 0 | S23: 0 | U23: 9
Q24: =IFERROR(VLOOKUP(H24,TettiDGR300!$J$2:$L83,3,FALSE), "") ->  | R24: =IF(H24="",0,IF(AND(G24="DGR300_2023",J24=1,K24=1),VLOOKUP(H24,TettiDGR300!$J$2:$N$74,5,FALSE),IF(AND(G24="DGR300_2023",J24=1),VLOOKUP(H24,TettiDGR300!$J$2:$N$74,4,FALSE),IF(AND(G24="DGR300_2023",K24=1),VLOOKUP(H24,TettiDGR300!$J$2:$N$74,5,FALSE),IF(G24="DGR300_2023",VLOOKUP(H24,TettiDGR300!$J$2:$N$74,2,FALSE),IF(AND(G24="DGR1233_2021",J24=1,K24=1),VLOOKUP(H24,TettiDGR1233!$J$2:$N$74,5,FALSE),IF(AND(G24="DGR1233_2021",J24=1),VLOOKUP(H24,TettiDGR1233!$J$2:$N$74,4,FALSE),IF(AND(G24="DGR1233_2021",K24=1),VLOOKUP(H24,TettiDGR1233!$J$2:$N$74,5,FALSE),VLOOKUP(H24,TettiDGR1233!$J$2:$N$74,2,FALSE))))))))) -> 0 | S24: 0 | U24: 10
Q25: =IFERROR(VLOOKUP(H25,TettiDGR300!$J$2:$L84,3,FALSE), "") ->  | R25: =IF(H25="",0,IF(AND(G25="DGR300_2023",J25=1,K25=1),VLOOKUP(H25,TettiDGR300!$J$2:$N$74,5,FALSE),IF(AND(G25="DGR300_2023",J25=1),VLOOKUP(H25,TettiDGR300!$J$2:$N$74,4,FALSE),IF(AND(G25="DGR300_2023",K25=1),VLOOKUP(H25,TettiDGR300!$J$2:$N$74,5,FALSE),IF(G25="DGR300_2023",VLOOKUP(H25,TettiDGR300!$J$2:$N$74,2,FALSE),IF(AND(G25="DGR1233_2021",J25=1,K25=1),VLOOKUP(H25,TettiDGR1233!$J$2:$N$74,5,FALSE),IF(AND(G25="DGR1233_2021",J25=1),VLOOKUP(H25,TettiDGR1233!$J$2:$N$74,4,FALSE),IF(AND(G25="DGR1233_2021",K25=1),VLOOKUP(H25,TettiDGR1233!$J$2:$N$74,5,FALSE),VLOOKUP(H25,TettiDGR1233!$J$2:$N$74,2,FALSE))))))))) -> 0 | S25: 0 | U25: 11
Q26: =IFERROR(VLOOKUP(H26,TettiDGR300!$J$2:$L85,3,FALSE), "") ->  | R26: =IF(H26="",0,IF(AND(G26="DGR300_2023",J26=1,K26=1),VLOOKUP(H26,TettiDGR300!$J$2:$N$74,5,FALSE),IF(AND(G26="DGR300_2023",J26=1),VLOOKUP(H26,TettiDGR300!$J$2:$N$74,4,FALSE),IF(AND(G26="DGR300_2023",K26=1),VLOOKUP(H26,TettiDGR300!$J$2:$N$74,5,FALSE),IF(G26="DGR300_2023",VLOOKUP(H26,TettiDGR300!$J$2:$N$74,2,FALSE),IF(AND(G26="DGR1233_2021",J26=1,K26=1),VLOOKUP(H26,TettiDGR1233!$J$2:$N$74,5,FALSE),IF(AND(G26="DGR1233_2021",J26=1),VLOOKUP(H26,TettiDGR1233!$J$2:$N$74,4,FALSE),IF(AND(G26="DGR1233_2021",K26=1),VLOOKUP(H26,TettiDGR1233!$J$2:$N$74,5,FALSE),VLOOKUP(H26,TettiDGR1233!$J$2:$N$74,2,FALSE))))))))) -> 0 | S26: 0 | U26: 12
Q27: =IFERROR(VLOOKUP(H27,TettiDGR300!$J$2:$L86,3,FALSE), "") ->  | R27: =IF(H27="",0,IF(AND(G27="DGR300_2023",J27=1,K27=1),VLOOKUP(H27,TettiDGR300!$J$2:$N$74,5,FALSE),IF(AND(G27="DGR300_2023",J27=1),VLOOKUP(H27,TettiDGR300!$J$2:$N$74,4,FALSE),IF(AND(G27="DGR300_2023",K27=1),VLOOKUP(H27,TettiDGR300!$J$2:$N$74,5,FALSE),IF(G27="DGR300_2023",VLOOKUP(H27,TettiDGR300!$J$2:$N$74,2,FALSE),IF(AND(G27="DGR1233_2021",J27=1,K27=1),VLOOKUP(H27,TettiDGR1233!$J$2:$N$74,5,FALSE),IF(AND(G27="DGR1233_2021",J27=1),VLOOKUP(H27,TettiDGR1233!$J$2:$N$74,4,FALSE),IF(AND(G27="DGR1233_2021",K27=1),VLOOKUP(H27,TettiDGR1233!$J$2:$N$74,5,FALSE),VLOOKUP(H27,TettiDGR1233!$J$2:$N$74,2,FALSE))))))))) -> 0 | S27: 0 | U27: 13
Q28: =IFERROR(VLOOKUP(H28,TettiDGR300!$J$2:$L87,3,FALSE), "") ->  | R28: =IF(H28="",0,IF(AND(G28="DGR300_2023",J28=1,K28=1),VLOOKUP(H28,TettiDGR300!$J$2:$N$74,5,FALSE),IF(AND(G28="DGR300_2023",J28=1),VLOOKUP(H28,TettiDGR300!$J$2:$N$74,4,FALSE),IF(AND(G28="DGR300_2023",K28=1),VLOOKUP(H28,TettiDGR300!$J$2:$N$74,5,FALSE),IF(G28="DGR300_2023",VLOOKUP(H28,TettiDGR300!$J$2:$N$74,2,FALSE),IF(AND(G28="DGR1233_2021",J28=1,K28=1),VLOOKUP(H28,TettiDGR1233!$J$2:$N$74,5,FALSE),IF(AND(G28="DGR1233_2021",J28=1),VLOOKUP(H28,TettiDGR1233!$J$2:$N$74,4,FALSE),IF(AND(G28="DGR1233_2021",K28=1),VLOOKUP(H28,TettiDGR1233!$J$2:$N$74,5,FALSE),VLOOKUP(H28,TettiDGR1233!$J$2:$N$74,2,FALSE))))))))) -> 0 | S28: 0 | U28: 14
Q29: =IFERROR(VLOOKUP(H29,TettiDGR300!$J$2:$L88,3,FALSE), "") ->  | R29: =IF(H29="",0,IF(AND(G29="DGR300_2023",J29=1,K29=1),VLOOKUP(H29,TettiDGR300!$J$2:$N$74,5,FALSE),IF(AND(G29="DGR300_2023",J29=1),VLOOKUP(H29,TettiDGR300!$J$2:$N$74,4,FALSE),IF(AND(G29="DGR300_2023",K29=1),VLOOKUP(H29,TettiDGR300!$J$2:$N$74,5,FALSE),IF(G29="DGR300_2023",VLOOKUP(H29,TettiDGR300!$J$2:$N$74,2,FALSE),IF(AND(G29="DGR1233_2021",J29=1,K29=1),VLOOKUP(H29,TettiDGR1233!$J$2:$N$74,5,FALSE),IF(AND(G29="DGR1233_2021",J29=1),VLOOKUP(H29,TettiDGR1233!$J$2:$N$74,4,FALSE),IF(AND(G29="DGR1233_2021",K29=1),VLOOKUP(H29,TettiDGR1233!$J$2:$N$74,5,FALSE),VLOOKUP(H29,TettiDGR1233!$J$2:$N$74,2,FALSE))))))))) -> 0 | S29: 0 | U29: 15
A30: DATI RIEPILOGATIVI PER LE INFRASTRUTTURE DI RIFORNIMENTO/RICARICA Azienda beneficiaria | B30: Id intervento (inserire il codice indentif. già inserito nella scheda dedicata) | C30: Nuova realizzazione (0) - Ristrutturazione e/o ampliamento (1) | D30: Comune | E30: Località | F30: Investimento già parzialmente finanziato da altra misura pubblica | G30: - | H30: Tipologia intervento | I30: N. colonnine ricarica bus per sito | J30: Utilizzo infrastruttura da più operatori (1=si;0=no) | K30: Intervento allocato su più annualità (1=si;0=no) | L30: Importo complessivo dell'intervento [€] | M30: CIG e note particolari | N30: DATA STIPULA CONTRATTO | O30: Investimento sul cratere sisma 2016 (1=si;0=no) | P30: intervento liquidato (1=si;0=no) | Q30: Alimentaz. | R30: Costo allocato sull'anno in esame [€] | S30: Quota contributo sull'anno [€] | U30: Indicare il cronoprogramma delle attività per ogni intervento secondo le tre tipologie in legenda
B31: =IF(OR($B$4="DM 223/2020 - MIT",$B$4="FSC (D.Cipe 98/2017)"),"XXXX","") -> XXXX | L31: =IF(OR($B$4="DM 223/2020 - MIT",$B$4="FSC (D.Cipe 98/2017)"),"XXXX","") -> XXXX | M31: =IF(OR($B$4="DM 223/2020 - MIT",$B$4="FSC (D.Cipe 98/2017)"),"Il fondo prescelto non ammette infrastrutture","") -> Il fondo prescelto non ammette infrastrutture | Q31: =IFERROR(VLOOKUP(H31,Infrastrutture!$A$2:$B$9,2,FALSE), "") ->  | S31: =IF(L31<R31,"ERRORE",R31*PERCCONTRIB) -> 0 | U31: 20
B32: XXXX | L32: XXXX | M32: =IF(OR($B$4="DM 223/2020 - MIT",$B$4="FSC (D.Cipe 98/2017)"),"Il fondo prescelto non ammette infrastrutture","") -> Il fondo prescelto non ammette infrastrutture | Q32: =IFERROR(VLOOKUP(H32,Infrastrutture!$A$2:$B$9,2,FALSE), "") ->  | S32: 0 | U32: 21
B33: XXXX | L33: XXXX | M33: Il fondo prescelto non ammette infrastrutture | Q33: =IFERROR(VLOOKUP(H33,Infrastrutture!$A$2:$B$9,2,FALSE), "") ->  | S33: 0 | U33: 22
B34: XXXX | L34: XXXX | M34: Il fondo prescelto non ammette infrastrutture | Q34: =IFERROR(VLOOKUP(H34,Infrastrutture!$A$2:$B$9,2,FALSE), "") ->  | S34: 0 | U34: 23
B35: XXXX | L35: XXXX | M35: Il fondo prescelto non ammette infrastrutture | Q35: =IFERROR(VLOOKUP(H35,Infrastrutture!$A$2:$B$9,2,FALSE), "") ->  | S35: 0 | U35: 24
B36: XXXX | L36: XXXX | M36: Il fondo prescelto non ammette infrastrutture | Q36: =IFERROR(VLOOKUP(H36,Infrastrutture!$A$2:$B$9,2,FALSE), "") ->  | S36: 0 | U36: 25
B37: XXXX | L37: XXXX | M37: Il fondo prescelto non ammette infrastrutture | Q37: =IFERROR(VLOOKUP(H37,Infrastrutture!$A$2:$B$9,2,FALSE), "") ->  | S37: 0 | U37: 26
B38: XXXX | L38: XXXX | M38: Il fondo prescelto non ammette infrastrutture | Q38: =IFERROR(VLOOKUP(H38,Infrastrutture!$A$2:$B$9,2,FALSE), "") ->  | S38: 0 | U38: 27
B39: XXXX | L39: XXXX | M39: Il fondo prescelto non ammette infrastrutture | Q39: =IFERROR(VLOOKUP(H39,Infrastrutture!$A$2:$B$9,2,FALSE), "") ->  | S39: 0 | U39: 28
B40: XXXX | L40: XXXX | M40: Il fondo prescelto non ammette infrastrutture | Q40: =IFERROR(VLOOKUP(H40,Infrastrutture!$A$2:$B$9,2,FALSE), "") ->  | S40: 0 | U40: 29
A41: TOTALI AUTOBUS | B41: =SUM(B15:B29) -> 0 | C41: =SUM(C15:C29) -> 0 | O41: =+SUM(O15:O29) -> 0 | R41: =SUM(R15:R29) -> 0 | S41: =SUM(S15:S29) -> 0
A42: TOTALI INFRASTRUTTURE | O42: =+SUM(O31:O40) -> 0 | R42: =+SUM(R31:R40) -> 0 | S42: =+SUM(S31:S40) -> 0
A43: TOTALI GENERALE | R43: =+R41+R42 -> 0 | S43: =+SUM(S32:S41) -> 0

Sheet DM 223_2019
A1: Piano investimenti di bacino - D.G.R. 647 del 30 maggio 2022 - REGIONE MARCHE - Assessorato trasporti e reti regionali di trasporto. | U1: CRONOPROGRAMMA DEGLI INVESTIMENTI
A3: Ambito territoriale | B3: FM | F3: celle a fondo bianco da compilare obbligatoriamente direttamente o con menu a tendina | I3: Data compilazione | V3: Legenda:
A4: Fonte di finanziamento | B4: DM 223/2020 - MIT | F4: celle a fondo arancio compilate automaticamente | I4: Referente compilaz. | V4: 1 | W4: Espletamento gara
A5: Annualità | B5: 2019 | F5: Valori economici al netto dell'IVA | I5: Telefono di contatto | V5: 2 | W5: Stipula contratto
A6: K2 | B6: =B4&"_"&B5&"_"&B3 -> DM 223/2020 - MIT_2019_FM
A7: Contributo max assegnabile | B7: =VLOOKUP($B$6,'Assegnazione fondi'!$D$2:$G$208,3,FALSE) -> 215183.1168 | D7: Contributo tot. assegnato | F7: =+S43 -> 0 | I7: e-mail | V7: 3 | W7: Completamento fornitura
A8: % contribuzione sul costo d'acquisto | B8: =VLOOKUP($B$6,'Assegnazione fondi'!$D$2:$G$201,4,FALSE) -> 0.8 | D8: N. mezzi tot. da acquisire | F8: =B41+C41 -> 0
A9: Residuo annualità precedenti | B9: ='DM 223_2018'!F10 -> 268073.2431
A10: =+IF(B4="DM 81/2020 - PSNMS", "Importo da utilizzare per infrastrutture (di cui del contributo max)","Contributo max assegnabile per eventuali infrastrutture (di cui del contributo max)") -> Contributo max assegnabile per eventuali infrastrutture (di cui del contributo max) | B10: =VLOOKUP($B$6,'Assegnazione fondi'!$D$2:$G$208,2,FALSE) -> 0 | D10: Residuo sull'anno | F10: =+TOTIMP-F7+B9 -> 483256.3599
A12: DATI RIEPILOGATIVI SUGLI AUTOBUS DA ACQUISIRE | B12: Per complet. organico n. | C12: Per rinnovo parco n. | D12: Compilare un foglio per ogni fondo di finanziamento, per ogni annualità | U12: Indicare il cronoprogramma delle attività per ogni mezzo secondo le tre tipologie in legenda
B13: =B41 -> 0 | C13: =C41 -> 0 | U13: Anno | V13: 2018 | AH13: 2019 | AT13: 2020 | BF13: 2021 | BR13: 2022 | CD13: 2023 | CP13: 2024 | DB13: 2025 | DN13: 2026
A14: Azienda beneficiaria | B14: Completamento organico (1=si;0=no) | C14: Sostituzione mezzo (1=si;0=no) | D14: Targa mezzo da sostituire | E14: Impiego (URBANO / EXTRAURBANO) | F14: Data prima immatricolazione mezzo sostituito | G14: DGR tetti di spesa | H14: Tipologia nuovo mezzo (selezionare dall'elenco) | I14: Rastrelliera per biciclette (1=si;0=no) | J14: Metano LNG (1=si;0=no) | K14: Mezzo Myld hybrid (1=si;0=no) | L14: Costo preventivato unitario [€] | M14: CIG e note particolari | N14: DATA STIPULA CONTRATTO entro 31/10/2022 | O14: Investimento sul cratere sisma 2016 (1=si;0=no) | P14: intervento liquidato (1=si;0=no) | Q14: Alimentaz. | R14: Spesa max ammissibile unitaria | S14: Contributo unitario | U14: Id / Mese | V14: 1 | W14: 2 | X14: 3 | Y14: 4 | Z14: 5 | AA14: 6 | AB14: 7 | AC14: 8 | AD14: 9 | AE14: 10 | AF14: 11 | AG14: 12 | AH14: 1 | AI14: 2 | AJ14: 3 | AK14: 4 | AL14: 5 | AM14: 6 | AN14: 7 | AO14: 8 | AP14: 9 | AQ14: 10 | AR14: 11 | AS14: 12 | AT14: 1 | AU14: 2 | AV14: 3 | AW14: 4 | AX14: 5 | AY14: 6 | AZ14: 7 | BA14: 8 | BB14: 9 | BC14: 10 | BD14: 11 | BE14: 12 | BF14: 1 | BG14: 2 | BH14: 3 | BI14: 4 | BJ14: 5 | BK14: 6 | BL14: 7 | BM14: 8 | BN14: 9 | BO14: 10 | BP14: 11 | BQ14: 12 | BR14: 1 | BS14: 2 | BT14: 3 | BU14: 4 | BV14: 5 | BW14: 6 | BX14: 7 | BY14: 8 | BZ14: 9 | CA14: 10 | CB14: 11 | CC14: 12 | CD14: 1 | CE14: 2 | CF14: 3 | CG14: 4 | CH14: 5 | CI14: 6 | CJ14: 7 | CK14: 8 | CL14: 9 | CM14: 10 | CN14: 11 | CO14: 12 | CP14: 1 | CQ14: 2 | CR14: 3 | CS14: 4 | CT14: 5 | CU14: 6 | CV14: 7 | CW14: 8 | CX14: 9 | CY14: 10 | CZ14: 11 | DA14: 12 | DB14: 1 | DC14: 2 | DD14: 3 | DE14: 4 | DF14: 5 | DG14: 6 | DH14: 7 | DI14: 8 | DJ14: 9 | DK14: 10 | DL14: 11 | DM14: 12 | DN14: 1 | DO14: 2 | DP14: 3 | DQ14: 4 | DR14: 5 | DS14: 6 | DT14: 7 | DU14: 8 | DV14: 9 | DW14: 10 | DX14: 11 | DY14: 12
M15: =IF(L15<>0,"COMPILARE","") ->  | Q15: =IFERROR(VLOOKUP(H15,TettiDGR300!$J$2:$L74,3,FALSE), "") ->  | R15: =IF(H15="",0,IF(AND(G15="DGR300_2023",J15=1,K15=1),VLOOKUP(H15,TettiDGR300!$J$2:$N$74,5,FALSE),IF(AND(G15="DGR300_2023",J15=1),VLOOKUP(H15,TettiDGR300!$J$2:$N$74,4,FALSE),IF(AND(G15="DGR300_2023",K15=1),VLOOKUP(H15,TettiDGR300!$J$2:$N$74,5,FALSE),IF(G15="DGR300_2023",VLOOKUP(H15,TettiDGR300!$J$2:$N$74,2,FALSE),IF(AND(G15="DGR1233_2021",J15=1,K15=1),VLOOKUP(H15,TettiDGR1233!$J$2:$N$74,5,FALSE),IF(AND(G15="DGR1233_2021",J15=1),VLOOKUP(H15,TettiDGR1233!$J$2:$N$74,4,FALSE),IF(AND(G15="DGR1233_2021",K15=1),VLOOKUP(H15,TettiDGR1233!$J$2:$N$74,5,FALSE),VLOOKUP(H15,TettiDGR1233!$J$2:$N$74,2,FALSE))))))))) -> 0 | S15: =IF(L15<R15,L15*PERCCONTRIB,R15*PERCCONTRIB) -> 0 | U15: 1
Q16: =IFERROR(VLOOKUP(H16,TettiDGR300!$J$2:$L75,3,FALSE), "") ->  | R16: =IF(H16="",0,IF(AND(G16="DGR300_2023",J16=1,K16=1),VLOOKUP(H16,TettiDGR300!$J$2:$N$74,5,FALSE),IF(AND(G16="DGR300_2023",J16=1),VLOOKUP(H16,TettiDGR300!$J$2:$N$74,4,FALSE),IF(AND(G16="DGR300_2023",K16=1),VLOOKUP(H16,TettiDGR300!$J$2:$N$74,5,FALSE),IF(G16="DGR300_2023",VLOOKUP(H16,TettiDGR300!$J$2:$N$74,2,FALSE),IF(AND(G16="DGR1233_2021",J16=1,K16=1),VLOOKUP(H16,TettiDGR1233!$J$2:$N$74,5,FALSE),IF(AND(G16="DGR1233_2021",J16=1),VLOOKUP(H16,TettiDGR1233!$J$2:$N$74,4,FALSE),IF(AND(G16="DGR1233_2021",K16=1),VLOOKUP(H16,TettiDGR1233!$J$2:$N$74,5,FALSE),VLOOKUP(H16,TettiDGR1233!$J$2:$N$74,2,FALSE))))))))) -> 0 | S16: 0 | U16: 2
Q17: =IFERROR(VLOOKUP(H17,TettiDGR300!$J$2:$L76,3,FALSE), "") ->  | R17: =IF(H17="",0,IF(AND(G17="DGR300_2023",J17=1,K17=1),VLOOKUP(H17,TettiDGR300!$J$2:$N$74,5,FALSE),IF(AND(G17="DGR300_2023",J17=1),VLOOKUP(H17,TettiDGR300!$J$2:$N$74,4,FALSE),IF(AND(G17="DGR300_2023",K17=1),VLOOKUP(H17,TettiDGR300!$J$2:$N$74,5,FALSE),IF(G17="DGR300_2023",VLOOKUP(H17,TettiDGR300!$J$2:$N$74,2,FALSE),IF(AND(G17="DGR1233_2021",J17=1,K17=1),VLOOKUP(H17,TettiDGR1233!$J$2:$N$74,5,FALSE),IF(AND(G17="DGR1233_2021",J17=1),VLOOKUP(H17,TettiDGR1233!$J$2:$N$74,4,FALSE),IF(AND(G17="DGR1233_2021",K17=1),VLOOKUP(H17,TettiDGR1233!$J$2:$N$74,5,FALSE),VLOOKUP(H17,TettiDGR1233!$J$2:$N$74,2,FALSE))))))))) -> 0 | S17: =IF(L17<R17,L17*PERCCONTRIB,R17*PERCCONTRIB) -> 0 | U17: 3
Q18: =IFERROR(VLOOKUP(H18,TettiDGR300!$J$2:$L77,3,FALSE), "") ->  | R18: =IF(H18="",0,IF(AND(G18="DGR300_2023",J18=1,K18=1),VLOOKUP(H18,TettiDGR300!$J$2:$N$74,5,FALSE),IF(AND(G18="DGR300_2023",J18=1),VLOOKUP(H18,TettiDGR300!$J$2:$N$74,4,FALSE),IF(AND(G18="DGR300_2023",K18=1),VLOOKUP(H18,TettiDGR300!$J$2:$N$74,5,FALSE),IF(G18="DGR300_2023",VLOOKUP(H18,TettiDGR300!$J$2:$N$74,2,FALSE),IF(AND(G18="DGR1233_2021",J18=1,K18=1),VLOOKUP(H18,TettiDGR1233!$J$2:$N$74,5,FALSE),IF(AND(G18="DGR1233_2021",J18=1),VLOOKUP(H18,TettiDGR1233!$J$2:$N$74,4,FALSE),IF(AND(G18="DGR1233_2021",K18=1),VLOOKUP(H18,TettiDGR1233!$J$2:$N$74,5,FALSE),VLOOKUP(H18,TettiDGR1233!$J$2:$N$74,2,FALSE))))))))) -> 0 | S18: 0 | U18: 4
Q19: =IFERROR(VLOOKUP(H19,TettiDGR300!$J$2:$L78,3,FALSE), "") ->  | R19: =IF(H19="",0,IF(AND(G19="DGR300_2023",J19=1,K19=1),VLOOKUP(H19,TettiDGR300!$J$2:$N$74,5,FALSE),IF(AND(G19="DGR300_2023",J19=1),VLOOKUP(H19,TettiDGR300!$J$2:$N$74,4,FALSE),IF(AND(G19="DGR300_2023",K19=1),VLOOKUP(H19,TettiDGR300!$J$2:$N$74,5,FALSE),IF(G19="DGR300_2023",VLOOKUP(H19,TettiDGR300!$J$2:$N$74,2,FALSE),IF(AND(G19="DGR1233_2021",J19=1,K19=1),VLOOKUP(H19,TettiDGR1233!$J$2:$N$74,5,FALSE),IF(AND(G19="DGR1233_2021",J19=1),VLOOKUP(H19,TettiDGR1233!$J$2:$N$74,4,FALSE),IF(AND(G19="DGR1233_2021",K19=1),VLOOKUP(H19,TettiDGR1233!$J$2:$N$74,5,FALSE),VLOOKUP(H19,TettiDGR1233!$J$2:$N$74,2,FALSE))))))))) -> 0 | S19: 0 | U19: 5
Q20: =IFERROR(VLOOKUP(H20,TettiDGR300!$J$2:$L79,3,FALSE), "") ->  | R20: =IF(H20="",0,IF(AND(G20="DGR300_2023",J20=1,K20=1),VLOOKUP(H20,TettiDGR300!$J$2:$N$74,5,FALSE),IF(AND(G20="DGR300_2023",J20=1),VLOOKUP(H20,TettiDGR300!$J$2:$N$74,4,FALSE),IF(AND(G20="DGR300_2023",K20=1),VLOOKUP(H20,TettiDGR300!$J$2:$N$74,5,FALSE),IF(G20="DGR300_2023",VLOOKUP(H20,TettiDGR300!$J$2:$N$74,2,FALSE),IF(AND(G20="DGR1233_2021",J20=1,K20=1),VLOOKUP(H20,TettiDGR1233!$J$2:$N$74,5,FALSE),IF(AND(G20="DGR1233_2021",J20=1),VLOOKUP(H20,TettiDGR1233!$J$2:$N$74,4,FALSE),IF(AND(G20="DGR1233_2021",K20=1),VLOOKUP(H20,TettiDGR1233!$J$2:$N$74,5,FALSE),VLOOKUP(H20,TettiDGR1233!$J$2:$N$74,2,FALSE))))))))) -> 0 | S20: 0 | U20: 6
Q21: =IFERROR(VLOOKUP(H21,TettiDGR300!$J$2:$L80,3,FALSE), "") ->  | R21: =IF(H21="",0,IF(AND(G21="DGR300_2023",J21=1,K21=1),VLOOKUP(H21,TettiDGR300!$J$2:$N$74,5,FALSE),IF(AND(G21="DGR300_2023",J21=1),VLOOKUP(H21,TettiDGR300!$J$2:$N$74,4,FALSE),IF(AND(G21="DGR300_2023",K21=1),VLOOKUP(H21,TettiDGR300!$J$2:$N$74,5,FALSE),IF(G21="DGR300_2023",VLOOKUP(H21,TettiDGR300!$J$2:$N$74,2,FALSE),IF(AND(G21="DGR1233_2021",J21=1,K21=1),VLOOKUP(H21,TettiDGR1233!$J$2:$N$74,5,FALSE),IF(AND(G21="DGR1233_2021",J21=1),VLOOKUP(H21,TettiDGR1233!$J$2:$N$74,4,FALSE),IF(AND(G21="DGR1233_2021",K21=1),VLOOKUP(H21,TettiDGR1233!$J$2:$N$74,5,FALSE),VLOOKUP(H21,TettiDGR1233!$J$2:$N$74,2,FALSE))))))))) -> 0 | S21: 0 | U21: 7
Q22: =IFERROR(VLOOKUP(H22,TettiDGR300!$J$2:$L81,3,FALSE), "") ->  | R22: =IF(H22="",0,IF(AND(G22="DGR300_2023",J22=1,K22=1),VLOOKUP(H22,TettiDGR300!$J$2:$N$74,5,FALSE),IF(AND(G22="DGR300_2023",J22=1),VLOOKUP(H22,TettiDGR300!$J$2:$N$74,4,FALSE),IF(AND(G22="DGR300_2023",K22=1),VLOOKUP(H22,TettiDGR300!$J$2:$N$74,5,FALSE),IF(G22="DGR300_2023",VLOOKUP(H22,TettiDGR300!$J$2:$N$74,2,FALSE),IF(AND(G22="DGR1233_2021",J22=1,K22=1),VLOOKUP(H22,TettiDGR1233!$J$2:$N$74,5,FALSE),IF(AND(G22="DGR1233_2021",J22=1),VLOOKUP(H22,TettiDGR1233!$J$2:$N$74,4,FALSE),IF(AND(G22="DGR1233_2021",K22=1),VLOOKUP(H22,TettiDGR1233!$J$2:$N$74,5,FALSE),VLOOKUP(H22,TettiDGR1233!$J$2:$N$74,2,FALSE))))))))) -> 0 | S22: 0 | U22: 8
Q23: =IFERROR(VLOOKUP(H23,TettiDGR300!$J$2:$L82,3,FALSE), "") ->  | R23: =IF(H23="",0,IF(AND(G23="DGR300_2023",J23=1,K23=1),VLOOKUP(H23,TettiDGR300!$J$2:$N$74,5,FALSE),IF(AND(G23="DGR300_2023",J23=1),VLOOKUP(H23,TettiDGR300!$J$2:$N$74,4,FALSE),IF(AND(G23="DGR300_2023",K23=1),VLOOKUP(H23,TettiDGR300!$J$2:$N$74,5,FALSE),IF(G23="DGR300_2023",VLOOKUP(H23,TettiDGR300!$J$2:$N$74,2,FALSE),IF(AND(G23="DGR1233_2021",J23=1,K23=1),VLOOKUP(H23,TettiDGR1233!$J$2:$N$74,5,FALSE),IF(AND(G23="DGR1233_2021",J23=1),VLOOKUP(H23,TettiDGR1233!$J$2:$N$74,4,FALSE),IF(AND(G23="DGR1233_2021",K23=1),VLOOKUP(H23,TettiDGR1233!$J$2:$N$74,5,FALSE),VLOOKUP(H23,TettiDGR1233!$J$2:$N$74,2,FALSE))))))))) -> 0 | S23: 0 | U23: 9
Q24: =IFERROR(VLOOKUP(H24,TettiDGR300!$J$2:$L83,3,FALSE), "") ->  | R24: =IF(H24="",0,IF(AND(G24="DGR300_2023",J24=1,K24=1),VLOOKUP(H24,TettiDGR300!$J$2:$N$74,5,FALSE),IF(AND(G24="DGR300_2023",J24=1),VLOOKUP(H24,TettiDGR300!$J$2:$N$74,4,FALSE),IF(AND(G24="DGR300_2023",K24=1),VLOOKUP(H24,TettiDGR300!$J$2:$N$74,5,FALSE),IF(G24="DGR300_2023",VLOOKUP(H24,TettiDGR300!$J$2:$N$74,2,FALSE),IF(AND(G24="DGR1233_2021",J24=1,K24=1),VLOOKUP(H24,TettiDGR1233!$J$2:$N$74,5,FALSE),IF(AND(G24="DGR1233_2021",J24=1),VLOOKUP(H24,TettiDGR1233!$J$2:$N$74,4,FALSE),IF(AND(G24="DGR1233_2021",K24=1),VLOOKUP(H24,TettiDGR1233!$J$2:$N$74,5,FALSE),VLOOKUP(H24,TettiDGR1233!$J$2:$N$74,2,FALSE))))))))) -> 0 | S24: 0 | U24: 10
Q25: =IFERROR(VLOOKUP(H25,TettiDGR300!$J$2:$L84,3,FALSE), "") ->  | R25: =IF(H25="",0,IF(AND(G25="DGR300_2023",J25=1,K25=1),VLOOKUP(H25,TettiDGR300!$J$2:$N$74,5,FALSE),IF(AND(G25="DGR300_2023",J25=1),VLOOKUP(H25,TettiDGR300!$J$2:$N$74,4,FALSE),IF(AND(G25="DGR300_2023",K25=1),VLOOKUP(H25,TettiDGR300!$J$2:$N$74,5,FALSE),IF(G25="DGR300_2023",VLOOKUP(H25,TettiDGR300!$J$2:$N$74,2,FALSE),IF(AND(G25="DGR1233_2021",J25=1,K25=1),VLOOKUP(H25,TettiDGR1233!$J$2:$N$74,5,FALSE),IF(AND(G25="DGR1233_2021",J25=1),VLOOKUP(H25,TettiDGR1233!$J$2:$N$74,4,FALSE),IF(AND(G25="DGR1233_2021",K25=1),VLOOKUP(H25,TettiDGR1233!$J$2:$N$74,5,FALSE),VLOOKUP(H25,TettiDGR1233!$J$2:$N$74,2,FALSE))))))))) -> 0 | S25: 0 | U25: 11
Q26: =IFERROR(VLOOKUP(H26,TettiDGR300!$J$2:$L85,3,FALSE), "") ->  | R26: =IF(H26="",0,IF(AND(G26="DGR300_2023",J26=1,K26=1),VLOOKUP(H26,TettiDGR300!$J$2:$N$74,5,FALSE),IF(AND(G26="DGR300_2023",J26=1),VLOOKUP(H26,TettiDGR300!$J$2:$N$74,4,FALSE),IF(AND(G26="DGR300_2023",K26=1),VLOOKUP(H26,TettiDGR300!$J$2:$N$74,5,FALSE),IF(G26="DGR300_2023",VLOOKUP(H26,TettiDGR300!$J$2:$N$74,2,FALSE),IF(AND(G26="DGR1233_2021",J26=1,K26=1),VLOOKUP(H26,TettiDGR1233!$J$2:$N$74,5,FALSE),IF(AND(G26="DGR1233_2021",J26=1),VLOOKUP(H26,TettiDGR1233!$J$2:$N$74,4,FALSE),IF(AND(G26="DGR1233_2021",K26=1),VLOOKUP(H26,TettiDGR1233!$J$2:$N$74,5,FALSE),VLOOKUP(H26,TettiDGR1233!$J$2:$N$74,2,FALSE))))))))) -> 0 | S26: 0 | U26: 12
Q27: =IFERROR(VLOOKUP(H27,TettiDGR300!$J$2:$L86,3,FALSE), "") ->  | R27: =IF(H27="",0,IF(AND(G27="DGR300_2023",J27=1,K27=1),VLOOKUP(H27,TettiDGR300!$J$2:$N$74,5,FALSE),IF(AND(G27="DGR300_2023",J27=1),VLOOKUP(H27,TettiDGR300!$J$2:$N$74,4,FALSE),IF(AND(G27="DGR300_2023",K27=1),VLOOKUP(H27,TettiDGR300!$J$2:$N$74,5,FALSE),IF(G27="DGR300_2023",VLOOKUP(H27,TettiDGR300!$J$2:$N$74,2,FALSE),IF(AND(G27="DGR1233_2021",J27=1,K27=1),VLOOKUP(H27,TettiDGR1233!$J$2:$N$74,5,FALSE),IF(AND(G27="DGR1233_2021",J27=1),VLOOKUP(H27,TettiDGR1233!$J$2:$N$74,4,FALSE),IF(AND(G27="DGR1233_2021",K27=1),VLOOKUP(H27,TettiDGR1233!$J$2:$N$74,5,FALSE),VLOOKUP(H27,TettiDGR1233!$J$2:$N$74,2,FALSE))))))))) -> 0 | S27: 0 | U27: 13
Q28: =IFERROR(VLOOKUP(H28,TettiDGR300!$J$2:$L87,3,FALSE), "") ->  | R28: =IF(H28="",0,IF(AND(G28="DGR300_2023",J28=1,K28=1),VLOOKUP(H28,TettiDGR300!$J$2:$N$74,5,FALSE),IF(AND(G28="DGR300_2023",J28=1),VLOOKUP(H28,TettiDGR300!$J$2:$N$74,4,FALSE),IF(AND(G28="DGR300_2023",K28=1),VLOOKUP(H28,TettiDGR300!$J$2:$N$74,5,FALSE),IF(G28="DGR300_2023",VLOOKUP(H28,TettiDGR300!$J$2:$N$74,2,FALSE),IF(AND(G28="DGR1233_2021",J28=1,K28=1),VLOOKUP(H28,TettiDGR1233!$J$2:$N$74,5,FALSE),IF(AND(G28="DGR1233_2021",J28=1),VLOOKUP(H28,TettiDGR1233!$J$2:$N$74,4,FALSE),IF(AND(G28="DGR1233_2021",K28=1),VLOOKUP(H28,TettiDGR1233!$J$2:$N$74,5,FALSE),VLOOKUP(H28,TettiDGR1233!$J$2:$N$74,2,FALSE))))))))) -> 0 | S28: 0 | U28: 14
Q29: =IFERROR(VLOOKUP(H29,TettiDGR300!$J$2:$L88,3,FALSE), "") ->  | R29: =IF(H29="",0,IF(AND(G29="DGR300_2023",J29=1,K29=1),VLOOKUP(H29,TettiDGR300!$J$2:$N$74,5,FALSE),IF(AND(G29="DGR300_2023",J29=1),VLOOKUP(H29,TettiDGR300!$J$2:$N$74,4,FALSE),IF(AND(G29="DGR300_2023",K29=1),VLOOKUP(H29,TettiDGR300!$J$2:$N$74,5,FALSE),IF(G29="DGR300_2023",VLOOKUP(H29,TettiDGR300!$J$2:$N$74,2,FALSE),IF(AND(G29="DGR1233_2021",J29=1,K29=1),VLOOKUP(H29,TettiDGR1233!$J$2:$N$74,5,FALSE),IF(AND(G29="DGR1233_2021",J29=1),VLOOKUP(H29,TettiDGR1233!$J$2:$N$74,4,FALSE),IF(AND(G29="DGR1233_2021",K29=1),VLOOKUP(H29,TettiDGR1233!$J$2:$N$74,5,FALSE),VLOOKUP(H29,TettiDGR1233!$J$2:$N$74,2,FALSE))))))))) -> 0 | S29: 0 | U29: 15
A30: DATI RIEPILOGATIVI PER LE INFRASTRUTTURE DI RIFORNIMENTO/RICARICA Azienda beneficiaria | B30: Id intervento (inserire il codice indentif. già inserito nella scheda dedicata) | C30: Nuova realizzazione (0) - Ristrutturazione e/o ampliamento (1) | D30: Comune | E30: Località | F30: Investimento già parzialmente finanziato da altra misura pubblica | G30: - | H30: Tipologia intervento | I30: N. colonnine ricarica bus per sito | J30: Utilizzo infrastruttura da più operatori (1=si;0=no) | K30: Intervento allocato su più annualità (1=si;0=no) | L30: Importo complessivo dell'intervento [€] | M30: CIG e note particolari | N30: DATA STIPULA CONTRATTO | O30: Investimento sul cratere sisma 2016 (1=si;0=no) | P30: intervento liquidato (1=si;0=no) | Q30: Alimentaz. | R30: Costo allocato sull'anno in esame [€] | S30: Quota contributo sull'anno [€] | U30: Indicare il cronoprogramma delle attività per ogni intervento secondo le tre tipologie in legenda
B31: =IF(OR($B$4="DM 223/2020 - MIT",$B$4="FSC (D.Cipe 98/2017)"),"XXXX","") -> XXXX | L31: =IF(OR($B$4="DM 223/2020 - MIT",$B$4="FSC (D.Cipe 98/2017)"),"XXXX","") -> XXXX | M31: =IF(OR($B$4="DM 223/2020 - MIT",$B$4="FSC (D.Cipe 98/2017)"),"Il fondo prescelto non ammette infrastrutture","") -> Il fondo prescelto non ammette infrastrutture | Q31: =IFERROR(VLOOKUP(H31,Infrastrutture!$A$2:$B$9,2,FALSE), "") ->  | S31: =IF(L31<R31,"ERRORE",R31*PERCCONTRIB) -> 0 | U31: 20
B32: XXXX | L32: XXXX | M32: =IF(OR($B$4="DM 223/2020 - MIT",$B$4="FSC (D.Cipe 98/2017)"),"Il fondo prescelto non ammette infrastrutture","") -> Il fondo prescelto non ammette infrastrutture | Q32: =IFERROR(VLOOKUP(H32,Infrastrutture!$A$2:$B$9,2,FALSE), "") ->  | S32: 0 | U32: 21
B33: XXXX | L33: XXXX | M33: Il fondo prescelto non ammette infrastrutture | Q33: =IFERROR(VLOOKUP(H33,Infrastrutture!$A$2:$B$9,2,FALSE), "") ->  | S33: 0 | U33: 22
B34: XXXX | L34: XXXX | M34: Il fondo prescelto non ammette infrastrutture | Q34: =IFERROR(VLOOKUP(H34,Infrastrutture!$A$2:$B$9,2,FALSE), "") ->  | S34: 0 | U34: 23
B35: XXXX | L35: XXXX | M35: Il fondo prescelto non ammette infrastrutture | Q35: =IFERROR(VLOOKUP(H35,Infrastrutture!$A$2:$B$9,2,FALSE), "") ->  | S35: 0 | U35: 24
B36: XXXX | L36: XXXX | M36: Il fondo prescelto non ammette infrastrutture | Q36: =IFERROR(VLOOKUP(H36,Infrastrutture!$A$2:$B$9,2,FALSE), "") ->  | S36: 0 | U36: 25
B37: XXXX | L37: XXXX | M37: Il fondo prescelto non ammette infrastrutture | Q37: =IFERROR(VLOOKUP(H37,Infrastrutture!$A$2:$B$9,2,FALSE), "") ->  | S37: 0 | U37: 26
B38: XXXX | L38: XXXX | M38: Il fondo prescelto non ammette infrastrutture | Q38: =IFERROR(VLOOKUP(H38,Infrastrutture!$A$2:$B$9,2,FALSE), "") ->  | S38: 0 | U38: 27
B39: XXXX | L39: XXXX | M39: Il fondo prescelto non ammette infrastrutture | Q39: =IFERROR(VLOOKUP(H39,Infrastrutture!$A$2:$B$9,2,FALSE), "") ->  | S39: 0 | U39: 28
B40: XXXX | L40: XXXX | M40: Il fondo prescelto non ammette infrastrutture | Q40: =IFERROR(VLOOKUP(H40,Infrastrutture!$A$2:$B$9,2,FALSE), "") ->  | S40: 0 | U40: 29
A41: TOTALI AUTOBUS | B41: =SUM(B15:B29) -> 0 | C41: =SUM(C15:C29) -> 0 | O41: =+SUM(O15:O29) -> 0 | R41: =SUM(R15:R29) -> 0 | S41: =SUM(S15:S29) -> 0
A42: TOTALI INFRASTRUTTURE | O42: =+SUM(O31:O40) -> 0 | R42: =+SUM(R31:R40) -> 0 | S42: =+SUM(S31:S40) -> 0
A43: TOTALI GENERALE | R43: =+R41+R42 -> 0 | S43: =+SUM(S32:S41) -> 0

Sheet DM 223_2020
A1: Piano investimenti di bacino - D.G.R. 647 del 30 maggio 2022 - REGIONE MARCHE - Assessorato trasporti e reti regionali di trasporto. | U1: CRONOPROGRAMMA DEGLI INVESTIMENTI
A3: Ambito territoriale | B3: FM | F3: celle a fondo bianco da compilare obbligatoriamente direttamente o con menu a tendina | I3: Data compilazione | V3: Legenda:
A4: Fonte di finanziamento | B4: DM 223/2020 - MIT | F4: celle a fondo arancio compilate automaticamente | I4: Referente compilaz. | V4: 1 | W4: Espletamento gara
A5: Annualità | B5: 2020 | F5: Valori economici al netto dell'IVA | I5: Telefono di contatto | V5: 2 | W5: Stipula contratto
A6: K2 | B6: =B4&"_"&B5&"_"&B3 -> DM 223/2020 - MIT_2020_FM
A7: Contributo max assegnabile | B7: =VLOOKUP($B$6,'Assegnazione fondi'!$D$2:$G$208,3,FALSE) -> 414861.4568 | D7: Contributo tot. assegnato | F7: =+S43 -> 0 | I7: e-mail | V7: 3 | W7: Completamento fornitura
A8: % contribuzione sul costo d'acquisto | B8: =VLOOKUP($B$6,'Assegnazione fondi'!$D$2:$G$201,4,FALSE) -> 0.8 | D8: N. mezzi tot. da acquisire | F8: =B41+C41 -> 0
A9: Residuo annualità precedenti | B9: ='DM 223_2019'!F10 -> 483256.3599
A10: =+IF(B4="DM 81/2020 - PSNMS", "Importo da utilizzare per infrastrutture (di cui del contributo max)","Contributo max assegnabile per ventuali infrastrutture (di cui del contributo max)") -> Contributo max assegnabile per ventuali infrastrutture (di cui del contributo max) | B10: =VLOOKUP($B$6,'Assegnazione fondi'!$D$2:$G$208,2,FALSE) -> 0 | D10: Residuo sull'anno | F10: =+TOTIMP-F7+B9 -> 898117.8166
A12: DATI RIEPILOGATIVI SUGLI AUTOBUS DA ACQUISIRE | B12: Per complet. organico n. | C12: Per rinnovo parco n. | D12: Compilare un foglio per ogni fondo di finanziamento, per ogni annualità | U12: Indicare il cronoprogramma delle attività per ogni mezzo secondo le tre tipologie in legenda
B13: =B41 -> 0 | C13: =C41 -> 0 | U13: Anno | V13: 2018 | AH13: 2019 | AT13: 2020 | BF13: 2021 | BR13: 2022 | CD13: 2023 | CP13: 2024 | DB13: 2025 | DN13: 2026
A14: Azienda beneficiaria | B14: Completamento organico (1=si;0=no) | C14: Sostituzione mezzo (1=si;0=no) | D14: Targa mezzo da sostituire | E14: Impiego (URBANO / EXTRAURBANO) | F14: Data prima immatricolazione mezzo sostituito | G14: DGR tetti di spesa | H14: Tipologia nuovo mezzo (selezionare dall'elenco) | I14: Rastrelliera per biciclette (1=si;0=no) | J14: Metano LNG (1=si;0=no) | K14: Mezzo Myld hybrid (1=si;0=no) | L14: Costo preventivato unitario [€] | M14: CIG e note particolari | N14: DATA STIPULA CONTRATTO entro 31/10/2022 | O14: Investimento sul cratere sisma 2016 (1=si;0=no) | P14: intervento liquidato (1=si;0=no) | Q14: Alimentaz. | R14: Spesa max ammissibile unitaria | S14: Contributo unitario | U14: Id / Mese | V14: 1 | W14: 2 | X14: 3 | Y14: 4 | Z14: 5 | AA14: 6 | AB14: 7 | AC14: 8 | AD14: 9 | AE14: 10 | AF14: 11 | AG14: 12 | AH14: 1 | AI14: 2 | AJ14: 3 | AK14: 4 | AL14: 5 | AM14: 6 | AN14: 7 | AO14: 8 | AP14: 9 | AQ14: 10 | AR14: 11 | AS14: 12 | AT14: 1 | AU14: 2 | AV14: 3 | AW14: 4 | AX14: 5 | AY14: 6 | AZ14: 7 | BA14: 8 | BB14: 9 | BC14: 10 | BD14: 11 | BE14: 12 | BF14: 1 | BG14: 2 | BH14: 3 | BI14: 4 | BJ14: 5 | BK14: 6 | BL14: 7 | BM14: 8 | BN14: 9 | BO14: 10 | BP14: 11 | BQ14: 12 | BR14: 1 | BS14: 2 | BT14: 3 | BU14: 4 | BV14: 5 | BW14: 6 | BX14: 7 | BY14: 8 | BZ14: 9 | CA14: 10 | CB14: 11 | CC14: 12 | CD14: 1 | CE14: 2 | CF14: 3 | CG14: 4 | CH14: 5 | CI14: 6 | CJ14: 7 | CK14: 8 | CL14: 9 | CM14: 10 | CN14: 11 | CO14: 12 | CP14: 1 | CQ14: 2 | CR14: 3 | CS14: 4 | CT14: 5 | CU14: 6 | CV14: 7 | CW14: 8 | CX14: 9 | CY14: 10 | CZ14: 11 | DA14: 12 | DB14: 1 | DC14: 2 | DD14: 3 | DE14: 4 | DF14: 5 | DG14: 6 | DH14: 7 | DI14: 8 | DJ14: 9 | DK14: 10 | DL14: 11 | DM14: 12 | DN14: 1 | DO14: 2 | DP14: 3 | DQ14: 4 | DR14: 5 | DS14: 6 | DT14: 7 | DU14: 8 | DV14: 9 | DW14: 10 | DX14: 11 | DY14: 12
M15: =IF(L15<>0,"COMPILARE","") ->  | Q15: =IFERROR(VLOOKUP(H15,TettiDGR300!$J$2:$L74,3,FALSE), "") ->  | R15: =IF(H15="",0,IF(AND(G15="DGR300_2023",J15=1,K15=1),VLOOKUP(H15,TettiDGR300!$J$2:$N$74,5,FALSE),IF(AND(G15="DGR300_2023",J15=1),VLOOKUP(H15,TettiDGR300!$J$2:$N$74,4,FALSE),IF(AND(G15="DGR300_2023",K15=1),VLOOKUP(H15,TettiDGR300!$J$2:$N$74,5,FALSE),IF(G15="DGR300_2023",VLOOKUP(H15,TettiDGR300!$J$2:$N$74,2,FALSE),IF(AND(G15="DGR1233_2021",J15=1,K15=1),VLOOKUP(H15,TettiDGR1233!$J$2:$N$74,5,FALSE),IF(AND(G15="DGR1233_2021",J15=1),VLOOKUP(H15,TettiDGR1233!$J$2:$N$74,4,FALSE),IF(AND(G15="DGR1233_2021",K15=1),VLOOKUP(H15,TettiDGR1233!$J$2:$N$74,5,FALSE),VLOOKUP(H15,TettiDGR1233!$J$2:$N$74,2,FALSE))))))))) -> 0 | S15: =IF(L15<R15,L15*PERCCONTRIB,R15*PERCCONTRIB) -> 0 | U15: 1
Q16: =IFERROR(VLOOKUP(H16,TettiDGR300!$J$2:$L75,3,FALSE), "") ->  | R16: =IF(H16="",0,IF(AND(G16="DGR300_2023",J16=1,K16=1),VLOOKUP(H16,TettiDGR300!$J$2:$N$74,5,FALSE),IF(AND(G16="DGR300_2023",J16=1),VLOOKUP(H16,TettiDGR300!$J$2:$N$74,4,FALSE),IF(AND(G16="DGR300_2023",K16=1),VLOOKUP(H16,TettiDGR300!$J$2:$N$74,5,FALSE),IF(G16="DGR300_2023",VLOOKUP(H16,TettiDGR300!$J$2:$N$74,2,FALSE),IF(AND(G16="DGR1233_2021",J16=1,K16=1),VLOOKUP(H16,TettiDGR1233!$J$2:$N$74,5,FALSE),IF(AND(G16="DGR1233_2021",J16=1),VLOOKUP(H16,TettiDGR1233!$J$2:$N$74,4,FALSE),IF(AND(G16="DGR1233_2021",K16=1),VLOOKUP(H16,TettiDGR1233!$J$2:$N$74,5,FALSE),VLOOKUP(H16,TettiDGR1233!$J$2:$N$74,2,FALSE))))))))) -> 0 | S16: 0 | U16: 2
Q17: =IFERROR(VLOOKUP(H17,TettiDGR300!$J$2:$L76,3,FALSE), "") ->  | R17: =IF(H17="",0,IF(AND(G17="DGR300_2023",J17=1,K17=1),VLOOKUP(H17,TettiDGR300!$J$2:$N$74,5,FALSE),IF(AND(G17="DGR300_2023",J17=1),VLOOKUP(H17,TettiDGR300!$J$2:$N$74,4,FALSE),IF(AND(G17="DGR300_2023",K17=1),VLOOKUP(H17,TettiDGR300!$J$2:$N$74,5,FALSE),IF(G17="DGR300_2023",VLOOKUP(H17,TettiDGR300!$J$2:$N$74,2,FALSE),IF(AND(G17="DGR1233_2021",J17=1,K17=1),VLOOKUP(H17,TettiDGR1233!$J$2:$N$74,5,FALSE),IF(AND(G17="DGR1233_2021",J17=1),VLOOKUP(H17,TettiDGR1233!$J$2:$N$74,4,FALSE),IF(AND(G17="DGR1233_2021",K17=1),VLOOKUP(H17,TettiDGR1233!$J$2:$N$74,5,FALSE),VLOOKUP(H17,TettiDGR1233!$J$2:$N$74,2,FALSE))))))))) -> 0 | S17: 0 | U17: 3
Q18: =IFERROR(VLOOKUP(H18,TettiDGR300!$J$2:$L77,3,FALSE), "") ->  | R18: =IF(H18="",0,IF(AND(G18="DGR300_2023",J18=1,K18=1),VLOOKUP(H18,TettiDGR300!$J$2:$N$74,5,FALSE),IF(AND(G18="DGR300_2023",J18=1),VLOOKUP(H18,TettiDGR300!$J$2:$N$74,4,FALSE),IF(AND(G18="DGR300_2023",K18=1),VLOOKUP(H18,TettiDGR300!$J$2:$N$74,5,FALSE),IF(G18="DGR300_2023",VLOOKUP(H18,TettiDGR300!$J$2:$N$74,2,FALSE),IF(AND(G18="DGR1233_2021",J18=1,K18=1),VLOOKUP(H18,TettiDGR1233!$J$2:$N$74,5,FALSE),IF(AND(G18="DGR1233_2021",J18=1),VLOOKUP(H18,TettiDGR1233!$J$2:$N$74,4,FALSE),IF(AND(G18="DGR1233_2021",K18=1),VLOOKUP(H18,TettiDGR1233!$J$2:$N$74,5,FALSE),VLOOKUP(H18,TettiDGR1233!$J$2:$N$74,2,FALSE))))))))) -> 0 | S18: =IF(L18<R18,L18*PERCCONTRIB,R18*PERCCONTRIB) -> 0 | U18: 4
Q19: =IFERROR(VLOOKUP(H19,TettiDGR300!$J$2:$L78,3,FALSE), "") ->  | R19: =IF(H19="",0,IF(AND(G19="DGR300_2023",J19=1,K19=1),VLOOKUP(H19,TettiDGR300!$J$2:$N$74,5,FALSE),IF(AND(G19="DGR300_2023",J19=1),VLOOKUP(H19,TettiDGR300!$J$2:$N$74,4,FALSE),IF(AND(G19="DGR300_2023",K19=1),VLOOKUP(H19,TettiDGR300!$J$2:$N$74,5,FALSE),IF(G19="DGR300_2023",VLOOKUP(H19,TettiDGR300!$J$2:$N$74,2,FALSE),IF(AND(G19="DGR1233_2021",J19=1,K19=1),VLOOKUP(H19,TettiDGR1233!$J$2:$N$74,5,FALSE),IF(AND(G19="DGR1233_2021",J19=1),VLOOKUP(H19,TettiDGR1233!$J$2:$N$74,4,FALSE),IF(AND(G19="DGR1233_2021",K19=1),VLOOKUP(H19,TettiDGR1233!$J$2:$N$74,5,FALSE),VLOOKUP(H19,TettiDGR1233!$J$2:$N$74,2,FALSE))))))))) -> 0 | S19: 0 | U19: 5
Q20: =IFERROR(VLOOKUP(H20,TettiDGR300!$J$2:$L79,3,FALSE), "") ->  | R20: =IF(H20="",0,IF(AND(G20="DGR300_2023",J20=1,K20=1),VLOOKUP(H20,TettiDGR300!$J$2:$N$74,5,FALSE),IF(AND(G20="DGR300_2023",J20=1),VLOOKUP(H20,TettiDGR300!$J$2:$N$74,4,FALSE),IF(AND(G20="DGR300_2023",K20=1),VLOOKUP(H20,TettiDGR300!$J$2:$N$74,5,FALSE),IF(G20="DGR300_2023",VLOOKUP(H20,TettiDGR300!$J$2:$N$74,2,FALSE),IF(AND(G20="DGR1233_2021",J20=1,K20=1),VLOOKUP(H20,TettiDGR1233!$J$2:$N$74,5,FALSE),IF(AND(G20="DGR1233_2021",J20=1),VLOOKUP(H20,TettiDGR1233!$J$2:$N$74,4,FALSE),IF(AND(G20="DGR1233_2021",K20=1),VLOOKUP(H20,TettiDGR1233!$J$2:$N$74,5,FALSE),VLOOKUP(H20,TettiDGR1233!$J$2:$N$74,2,FALSE))))))))) -> 0 | S20: 0 | U20: 6
Q21: =IFERROR(VLOOKUP(H21,TettiDGR300!$J$2:$L80,3,FALSE), "") ->  | R21: =IF(H21="",0,IF(AND(G21="DGR300_2023",J21=1,K21=1),VLOOKUP(H21,TettiDGR300!$J$2:$N$74,5,FALSE),IF(AND(G21="DGR300_2023",J21=1),VLOOKUP(H21,TettiDGR300!$J$2:$N$74,4,FALSE),IF(AND(G21="DGR300_2023",K21=1),VLOOKUP(H21,TettiDGR300!$J$2:$N$74,5,FALSE),IF(G21="DGR300_2023",VLOOKUP(H21,TettiDGR300!$J$2:$N$74,2,FALSE),IF(AND(G21="DGR1233_2021",J21=1,K21=1),VLOOKUP(H21,TettiDGR1233!$J$2:$N$74,5,FALSE),IF(AND(G21="DGR1233_2021",J21=1),VLOOKUP(H21,TettiDGR1233!$J$2:$N$74,4,FALSE),IF(AND(G21="DGR1233_2021",K21=1),VLOOKUP(H21,TettiDGR1233!$J$2:$N$74,5,FALSE),VLOOKUP(H21,TettiDGR1233!$J$2:$N$74,2,FALSE))))))))) -> 0 | S21: 0 | U21: 7
Q22: =IFERROR(VLOOKUP(H22,TettiDGR300!$J$2:$L81,3,FALSE), "") ->  | R22: =IF(H22="",0,IF(AND(G22="DGR300_2023",J22=1,K22=1),VLOOKUP(H22,TettiDGR300!$J$2:$N$74,5,FALSE),IF(AND(G22="DGR300_2023",J22=1),VLOOKUP(H22,TettiDGR300!$J$2:$N$74,4,FALSE),IF(AND(G22="DGR300_2023",K22=1),VLOOKUP(H22,TettiDGR300!$J$2:$N$74,5,FALSE),IF(G22="DGR300_2023",VLOOKUP(H22,TettiDGR300!$J$2:$N$74,2,FALSE),IF(AND(G22="DGR1233_2021",J22=1,K22=1),VLOOKUP(H22,TettiDGR1233!$J$2:$N$74,5,FALSE),IF(AND(G22="DGR1233_2021",J22=1),VLOOKUP(H22,TettiDGR1233!$J$2:$N$74,4,FALSE),IF(AND(G22="DGR1233_2021",K22=1),VLOOKUP(H22,TettiDGR1233!$J$2:$N$74,5,FALSE),VLOOKUP(H22,TettiDGR1233!$J$2:$N$74,2,FALSE))))))))) -> 0 | S22: 0 | U22: 8
Q23: =IFERROR(VLOOKUP(H23,TettiDGR300!$J$2:$L82,3,FALSE), "") ->  | R23: =IF(H23="",0,IF(AND(G23="DGR300_2023",J23=1,K23=1),VLOOKUP(H23,TettiDGR300!$J$2:$N$74,5,FALSE),IF(AND(G23="DGR300_2023",J23=1),VLOOKUP(H23,TettiDGR300!$J$2:$N$74,4,FALSE),IF(AND(G23="DGR300_2023",K23=1),VLOOKUP(H23,TettiDGR300!$J$2:$N$74,5,FALSE),IF(G23="DGR300_2023",VLOOKUP(H23,TettiDGR300!$J$2:$N$74,2,FALSE),IF(AND(G23="DGR1233_2021",J23=1,K23=1),VLOOKUP(H23,TettiDGR1233!$J$2:$N$74,5,FALSE),IF(AND(G23="DGR1233_2021",J23=1),VLOOKUP(H23,TettiDGR1233!$J$2:$N$74,4,FALSE),IF(AND(G23="DGR1233_2021",K23=1),VLOOKUP(H23,TettiDGR1233!$J$2:$N$74,5,FALSE),VLOOKUP(H23,TettiDGR1233!$J$2:$N$74,2,FALSE))))))))) -> 0 | S23: 0 | U23: 9
Q24: =IFERROR(VLOOKUP(H24,TettiDGR300!$J$2:$L83,3,FALSE), "") ->  | R24: =IF(H24="",0,IF(AND(G24="DGR300_2023",J24=1,K24=1),VLOOKUP(H24,TettiDGR300!$J$2:$N$74,5,FALSE),IF(AND(G24="DGR300_2023",J24=1),VLOOKUP(H24,TettiDGR300!$J$2:$N$74,4,FALSE),IF(AND(G24="DGR300_2023",K24=1),VLOOKUP(H24,TettiDGR300!$J$2:$N$74,5,FALSE),IF(G24="DGR300_2023",VLOOKUP(H24,TettiDGR300!$J$2:$N$74,2,FALSE),IF(AND(G24="DGR1233_2021",J24=1,K24=1),VLOOKUP(H24,TettiDGR1233!$J$2:$N$74,5,FALSE),IF(AND(G24="DGR1233_2021",J24=1),VLOOKUP(H24,TettiDGR1233!$J$2:$N$74,4,FALSE),IF(AND(G24="DGR1233_2021",K24=1),VLOOKUP(H24,TettiDGR1233!$J$2:$N$74,5,FALSE),VLOOKUP(H24,TettiDGR1233!$J$2:$N$74,2,FALSE))))))))) -> 0 | S24: 0 | U24: 10
Q25: =IFERROR(VLOOKUP(H25,TettiDGR300!$J$2:$L84,3,FALSE), "") ->  | R25: =IF(H25="",0,IF(AND(G25="DGR300_2023",J25=1,K25=1),VLOOKUP(H25,TettiDGR300!$J$2:$N$74,5,FALSE),IF(AND(G25="DGR300_2023",J25=1),VLOOKUP(H25,TettiDGR300!$J$2:$N$74,4,FALSE),IF(AND(G25="DGR300_2023",K25=1),VLOOKUP(H25,TettiDGR300!$J$2:$N$74,5,FALSE),IF(G25="DGR300_2023",VLOOKUP(H25,TettiDGR300!$J$2:$N$74,2,FALSE),IF(AND(G25="DGR1233_2021",J25=1,K25=1),VLOOKUP(H25,TettiDGR1233!$J$2:$N$74,5,FALSE),IF(AND(G25="DGR1233_2021",J25=1),VLOOKUP(H25,TettiDGR1233!$J$2:$N$74,4,FALSE),IF(AND(G25="DGR1233_2021",K25=1),VLOOKUP(H25,TettiDGR1233!$J$2:$N$74,5,FALSE),VLOOKUP(H25,TettiDGR1233!$J$2:$N$74,2,FALSE))))))))) -> 0 | S25: 0 | U25: 11
Q26: =IFERROR(VLOOKUP(H26,TettiDGR300!$J$2:$L85,3,FALSE), "") ->  | R26: =IF(H26="",0,IF(AND(G26="DGR300_2023",J26=1,K26=1),VLOOKUP(H26,TettiDGR300!$J$2:$N$74,5,FALSE),IF(AND(G26="DGR300_2023",J26=1),VLOOKUP(H26,TettiDGR300!$J$2:$N$74,4,FALSE),IF(AND(G26="DGR300_2023",K26=1),VLOOKUP(H26,TettiDGR300!$J$2:$N$74,5,FALSE),IF(G26="DGR300_2023",VLOOKUP(H26,TettiDGR300!$J$2:$N$74,2,FALSE),IF(AND(G26="DGR1233_2021",J26=1,K26=1),VLOOKUP(H26,TettiDGR1233!$J$2:$N$74,5,FALSE),IF(AND(G26="DGR1233_2021",J26=1),VLOOKUP(H26,TettiDGR1233!$J$2:$N$74,4,FALSE),IF(AND(G26="DGR1233_2021",K26=1),VLOOKUP(H26,TettiDGR1233!$J$2:$N$74,5,FALSE),VLOOKUP(H26,TettiDGR1233!$J$2:$N$74,2,FALSE))))))))) -> 0 | S26: 0 | U26: 12
Q27: =IFERROR(VLOOKUP(H27,TettiDGR300!$J$2:$L86,3,FALSE), "") ->  | R27: =IF(H27="",0,IF(AND(G27="DGR300_2023",J27=1,K27=1),VLOOKUP(H27,TettiDGR300!$J$2:$N$74,5,FALSE),IF(AND(G27="DGR300_2023",J27=1),VLOOKUP(H27,TettiDGR300!$J$2:$N$74,4,FALSE),IF(AND(G27="DGR300_2023",K27=1),VLOOKUP(H27,TettiDGR300!$J$2:$N$74,5,FALSE),IF(G27="DGR300_2023",VLOOKUP(H27,TettiDGR300!$J$2:$N$74,2,FALSE),IF(AND(G27="DGR1233_2021",J27=1,K27=1),VLOOKUP(H27,TettiDGR1233!$J$2:$N$74,5,FALSE),IF(AND(G27="DGR1233_2021",J27=1),VLOOKUP(H27,TettiDGR1233!$J$2:$N$74,4,FALSE),IF(AND(G27="DGR1233_2021",K27=1),VLOOKUP(H27,TettiDGR1233!$J$2:$N$74,5,FALSE),VLOOKUP(H27,TettiDGR1233!$J$2:$N$74,2,FALSE))))))))) -> 0 | S27: 0 | U27: 13
Q28: =IFERROR(VLOOKUP(H28,TettiDGR300!$J$2:$L87,3,FALSE), "") ->  | R28: =IF(H28="",0,IF(AND(G28="DGR300_2023",J28=1,K28=1),VLOOKUP(H28,TettiDGR300!$J$2:$N$74,5,FALSE),IF(AND(G28="DGR300_2023",J28=1),VLOOKUP(H28,TettiDGR300!$J$2:$N$74,4,FALSE),IF(AND(G28="DGR300_2023",K28=1),VLOOKUP(H28,TettiDGR300!$J$2:$N$74,5,FALSE),IF(G28="DGR300_2023",VLOOKUP(H28,TettiDGR300!$J$2:$N$74,2,FALSE),IF(AND(G28="DGR1233_2021",J28=1,K28=1),VLOOKUP(H28,TettiDGR1233!$J$2:$N$74,5,FALSE),IF(AND(G28="DGR1233_2021",J28=1),VLOOKUP(H28,TettiDGR1233!$J$2:$N$74,4,FALSE),IF(AND(G28="DGR1233_2021",K28=1),VLOOKUP(H28,TettiDGR1233!$J$2:$N$74,5,FALSE),VLOOKUP(H28,TettiDGR1233!$J$2:$N$74,2,FALSE))))))))) -> 0 | S28: 0 | U28: 14
Q29: =IFERROR(VLOOKUP(H29,TettiDGR300!$J$2:$L88,3,FALSE), "") ->  | R29: =IF(H29="",0,IF(AND(G29="DGR300_2023",J29=1,K29=1),VLOOKUP(H29,TettiDGR300!$J$2:$N$74,5,FALSE),IF(AND(G29="DGR300_2023",J29=1),VLOOKUP(H29,TettiDGR300!$J$2:$N$74,4,FALSE),IF(AND(G29="DGR300_2023",K29=1),VLOOKUP(H29,TettiDGR300!$J$2:$N$74,5,FALSE),IF(G29="DGR300_2023",VLOOKUP(H29,TettiDGR300!$J$2:$N$74,2,FALSE),IF(AND(G29="DGR1233_2021",J29=1,K29=1),VLOOKUP(H29,TettiDGR1233!$J$2:$N$74,5,FALSE),IF(AND(G29="DGR1233_2021",J29=1),VLOOKUP(H29,TettiDGR1233!$J$2:$N$74,4,FALSE),IF(AND(G29="DGR1233_2021",K29=1),VLOOKUP(H29,TettiDGR1233!$J$2:$N$74,5,FALSE),VLOOKUP(H29,TettiDGR1233!$J$2:$N$74,2,FALSE))))))))) -> 0 | S29: 0 | U29: 15
A30: DATI RIEPILOGATIVI PER LE INFRASTRUTTURE DI RIFORNIMENTO/RICARICA Azienda beneficiaria | B30: Id intervento (inserire il codice indentif. già inserito nella scheda dedicata) | C30: Nuova realizzazione (0) - Ristrutturazione e/o ampliamento (1) | D30: Comune | E30: Località | F30: Investimento già parzialmente finanziato da altra misura pubblica | H30: Tipologia intervento | I30: N. colonnine ricarica bus per sito | J30: Utilizzo infrastruttura da più operatori (1=si;0=no) | K30: Intervento allocato su più annualità (1=si;0=no) | L30: Importo complessivo dell'intervento [€] | M30: CIG e note particolari | N30: DATA STIPULA CONTRATTO | O30: Investimento sul cratere sisma 2016 (1=si;0=no) | P30: intervento liquidato (1=si;0=no) | Q30: Alimentaz. | R30: Costo allocato sull'anno in esame [€] | S30: Quota contributo sull'anno [€] | U30: Indicare il cronoprogramma delle attività per ogni intervento secondo le tre tipologie in legenda
B31: =IF(OR($B$4="DM 223/2020 - MIT",$B$4="FSC (D.Cipe 98/2017)"),"XXXX","") -> XXXX | L31: =IF(OR($B$4="DM 223/2020 - MIT",$B$4="FSC (D.Cipe 98/2017)"),"XXXX","") -> XXXX | M31: =IF(OR($B$4="DM 223/2020 - MIT",$B$4="FSC (D.Cipe 98/2017)"),"Il fondo prescelto non ammette infrastrutture","") -> Il fondo prescelto non ammette infrastrutture | Q31: =IFERROR(VLOOKUP(H31,Infrastrutture!$A$2:$B$9,2,FALSE), "") ->  | S31: =IF(L31<R31,"ERRORE",R31*PERCCONTRIB) -> 0 | U31: 20
B32: XXXX | L32: XXXX | M32: =IF(OR($B$4="DM 223/2020 - MIT",$B$4="FSC (D.Cipe 98/2017)"),"Il fondo prescelto non ammette infrastrutture","") -> Il fondo prescelto non ammette infrastrutture | Q32: =IFERROR(VLOOKUP(H32,Infrastrutture!$A$2:$B$9,2,FALSE), "") ->  | S32: 0 | U32: 21
B33: XXXX | L33: XXXX | M33: Il fondo prescelto non ammette infrastrutture | Q33: =IFERROR(VLOOKUP(H33,Infrastrutture!$A$2:$B$9,2,FALSE), "") ->  | S33: 0 | U33: 22
B34: XXXX | L34: XXXX | M34: Il fondo prescelto non ammette infrastrutture | Q34: =IFERROR(VLOOKUP(H34,Infrastrutture!$A$2:$B$9,2,FALSE), "") ->  | S34: 0 | U34: 23
B35: XXXX | L35: XXXX | M35: Il fondo prescelto non ammette infrastrutture | Q35: =IFERROR(VLOOKUP(H35,Infrastrutture!$A$2:$B$9,2,FALSE), "") ->  | S35: 0 | U35: 24
B36: XXXX | L36: XXXX | M36: Il fondo prescelto non ammette infrastrutture | Q36: =IFERROR(VLOOKUP(H36,Infrastrutture!$A$2:$B$9,2,FALSE), "") ->  | S36: 0 | U36: 25
B37: XXXX | L37: XXXX | M37: Il fondo prescelto non ammette infrastrutture | Q37: =IFERROR(VLOOKUP(H37,Infrastrutture!$A$2:$B$9,2,FALSE), "") ->  | S37: 0 | U37: 26
B38: XXXX | L38: XXXX | M38: Il fondo prescelto non ammette infrastrutture | Q38: =IFERROR(VLOOKUP(H38,Infrastrutture!$A$2:$B$9,2,FALSE), "") ->  | S38: 0 | U38: 27
B39: XXXX | L39: XXXX | M39: Il fondo prescelto non ammette infrastrutture | Q39: =IFERROR(VLOOKUP(H39,Infrastrutture!$A$2:$B$9,2,FALSE), "") ->  | S39: 0 | U39: 28
B40: XXXX | L40: XXXX | M40: Il fondo prescelto non ammette infrastrutture | Q40: =IFERROR(VLOOKUP(H40,Infrastrutture!$A$2:$B$9,2,FALSE), "") ->  | S40: 0 | U40: 29
A41: TOTALI AUTOBUS | B41: =SUM(B15:B29) -> 0 | C41: =SUM(C15:C29) -> 0 | O41: =+SUM(O15:O29) -> 0 | R41: =SUM(R15:R29) -> 0 | S41: =SUM(S15:S29) -> 0
A42: TOTALI INFRASTRUTTURE | O42: =+SUM(O31:O40) -> 0 | R42: =+SUM(R31:R40) -> 0 | S42: =+SUM(S31:S40) -> 0
A43: TOTALI GENERALE | R43: =+R41+R42 -> 0 | S43: =+SUM(S32:S41) -> 0

Sheet DM 223_2021
A1: Piano investimenti di bacino - D.G.R. 647 del 30 maggio 2022 - REGIONE MARCHE - Assessorato trasporti e reti regionali di trasporto. | U1: CRONOPROGRAMMA DEGLI INVESTIMENTI
A3: Ambito territoriale | B3: FM | F3: celle a fondo bianco da compilare obbligatoriamente direttamente o con menu a tendina | I3: Data compilazione | V3: Legenda:
A4: Fonte di finanziamento | B4: DM 223/2020 - MIT | F4: celle a fondo arancio compilate automaticamente | I4: Referente compilaz. | V4: 1 | W4: Espletamento gara
A5: Annualità | B5: 2021 | F5: Valori economici al netto dell'IVA | I5: Telefono di contatto | V5: 2 | W5: Stipula contratto
A6: K2 | B6: =B4&"_"&B5&"_"&B3 -> DM 223/2020 - MIT_2021_FM
A7: Contributo max assegnabile | B7: =VLOOKUP($B$6,'Assegnazione fondi'!$D$2:$G$208,3,FALSE) -> 355584.7444 | D7: Contributo tot. assegnato | F7: =+S43 -> 0 | I7: e-mail | V7: 3 | W7: Completamento fornitura
A8: % contribuzione sul costo d'acquisto | B8: =VLOOKUP($B$6,'Assegnazione fondi'!$D$2:$G$201,4,FALSE) -> 0.8 | D8: N. mezzi tot. da acquisire | F8: =B41+C41 -> 0
A9: Residuo annualità precedenti | B9: ='DM 223_2020'!F10 -> 898117.8166
A10: =+IF(B4="DM 81/2020 - PSNMS", "Importo da utilizzare per infrastrutture (di cui del contributo max)","Contributo max assegnabile per ventuali infrastrutture (di cui del contributo max)") -> Contributo max assegnabile per ventuali infrastrutture (di cui del contributo max) | B10: =VLOOKUP($B$6,'Assegnazione fondi'!$D$2:$G$208,2,FALSE) -> 0 | D10: Residuo sull'anno | F10: =+TOTIMP-F7+B9 -> 1253702.561
A12: DATI RIEPILOGATIVI SUGLI AUTOBUS DA ACQUISIRE | B12: Per complet. organico n. | C12: Per rinnovo parco n. | D12: Compilare un foglio per ogni fondo di finanziamento, per ogni annualità | U12: Indicare il cronoprogramma delle attività per ogni mezzo secondo le tre tipologie in legenda
B13: =B41 -> 0 | C13: =C41 -> 0 | U13: Anno | V13: 2018 | AH13: 2019 | AT13: 2020 | BF13: 2021 | BR13: 2022 | CD13: 2023 | CP13: 2024 | DB13: 2025 | DN13: 2026
A14: Azienda beneficiaria | B14: Completamento organico (1=si;0=no) | C14: Sostituzione mezzo (1=si;0=no) | D14: Targa mezzo da sostituire | E14: Impiego (URBANO / EXTRAURBANO) | F14: Data prima immatricolazione mezzo sostituito | G14: DGR tetti di spesa | H14: Tipologia nuovo mezzo (selezionare dall'elenco) | I14: Rastrelliera per biciclette (1=si;0=no) | J14: Metano LNG (1=si;0=no) | K14: Mezzo Myld hybrid (1=si;0=no) | L14: Costo preventivato unitario [€] | M14: CIG e note particolari | N14: DATA STIPULA CONTRATTO entro 31/10/2022 | O14: Investimento sul cratere sisma 2016 (1=si;0=no) | P14: intervento liquidato (1=si;0=no) | Q14: Alimentaz. | R14: Spesa max ammissibile unitaria | S14: Contributo unitario | U14: Id / Mese | V14: 1 | W14: 2 | X14: 3 | Y14: 4 | Z14: 5 | AA14: 6 | AB14: 7 | AC14: 8 | AD14: 9 | AE14: 10 | AF14: 11 | AG14: 12 | AH14: 1 | AI14: 2 | AJ14: 3 | AK14: 4 | AL14: 5 | AM14: 6 | AN14: 7 | AO14: 8 | AP14: 9 | AQ14: 10 | AR14: 11 | AS14: 12 | AT14: 1 | AU14: 2 | AV14: 3 | AW14: 4 | AX14: 5 | AY14: 6 | AZ14: 7 | BA14: 8 | BB14: 9 | BC14: 10 | BD14: 11 | BE14: 12 | BF14: 1 | BG14: 2 | BH14: 3 | BI14: 4 | BJ14: 5 | BK14: 6 | BL14: 7 | BM14: 8 | BN14: 9 | BO14: 10 | BP14: 11 | BQ14: 12 | BR14: 1 | BS14: 2 | BT14: 3 | BU14: 4 | BV14: 5 | BW14: 6 | BX14: 7 | BY14: 8 | BZ14: 9 | CA14: 10 | CB14: 11 | CC14: 12 | CD14: 1 | CE14: 2 | CF14: 3 | CG14: 4 | CH14: 5 | CI14: 6 | CJ14: 7 | CK14: 8 | CL14: 9 | CM14: 10 | CN14: 11 | CO14: 12 | CP14: 1 | CQ14: 2 | CR14: 3 | CS14: 4 | CT14: 5 | CU14: 6 | CV14: 7 | CW14: 8 | CX14: 9 | CY14: 10 | CZ14: 11 | DA14: 12 | DB14: 1 | DC14: 2 | DD14: 3 | DE14: 4 | DF14: 5 | DG14: 6 | DH14: 7 | DI14: 8 | DJ14: 9 | DK14: 10 | DL14: 11 | DM14: 12 | DN14: 1 | DO14: 2 | DP14: 3 | DQ14: 4 | DR14: 5 | DS14: 6 | DT14: 7 | DU14: 8 | DV14: 9 | DW14: 10 | DX14: 11 | DY14: 12
M15: =IF(L15<>0,"COMPILARE","") ->  | Q15: =IFERROR(VLOOKUP(H15,TettiDGR300!$J$2:$L74,3,FALSE), "") ->  | R15: =IF(H15="",0,IF(AND(G15="DGR300_2023",J15=1,K15=1),VLOOKUP(H15,TettiDGR300!$J$2:$N$74,5,FALSE),IF(AND(G15="DGR300_2023",J15=1),VLOOKUP(H15,TettiDGR300!$J$2:$N$74,4,FALSE),IF(AND(G15="DGR300_2023",K15=1),VLOOKUP(H15,TettiDGR300!$J$2:$N$74,5,FALSE),IF(G15="DGR300_2023",VLOOKUP(H15,TettiDGR300!$J$2:$N$74,2,FALSE),IF(AND(G15="DGR1233_2021",J15=1,K15=1),VLOOKUP(H15,TettiDGR1233!$J$2:$N$74,5,FALSE),IF(AND(G15="DGR1233_2021",J15=1),VLOOKUP(H15,TettiDGR1233!$J$2:$N$74,4,FALSE),IF(AND(G15="DGR1233_2021",K15=1),VLOOKUP(H15,TettiDGR1233!$J$2:$N$74,5,FALSE),VLOOKUP(H15,TettiDGR1233!$J$2:$N$74,2,FALSE))))))))) -> 0 | S15: =IF(L15<R15,L15*PERCCONTRIB,R15*PERCCONTRIB) -> 0 | U15: 1
Q16: =IFERROR(VLOOKUP(H16,TettiDGR300!$J$2:$L75,3,FALSE), "") ->  | R16: =IF(H16="",0,IF(AND(G16="DGR300_2023",J16=1,K16=1),VLOOKUP(H16,TettiDGR300!$J$2:$N$74,5,FALSE),IF(AND(G16="DGR300_2023",J16=1),VLOOKUP(H16,TettiDGR300!$J$2:$N$74,4,FALSE),IF(AND(G16="DGR300_2023",K16=1),VLOOKUP(H16,TettiDGR300!$J$2:$N$74,5,FALSE),IF(G16="DGR300_2023",VLOOKUP(H16,TettiDGR300!$J$2:$N$74,2,FALSE),IF(AND(G16="DGR1233_2021",J16=1,K16=1),VLOOKUP(H16,TettiDGR1233!$J$2:$N$74,5,FALSE),IF(AND(G16="DGR1233_2021",J16=1),VLOOKUP(H16,TettiDGR1233!$J$2:$N$74,4,FALSE),IF(AND(G16="DGR1233_2021",K16=1),VLOOKUP(H16,TettiDGR1233!$J$2:$N$74,5,FALSE),VLOOKUP(H16,TettiDGR1233!$J$2:$N$74,2,FALSE))))))))) -> 0 | S16: 0 | U16: 2
Q17: =IFERROR(VLOOKUP(H17,TettiDGR300!$J$2:$L76,3,FALSE), "") ->  | R17: =IF(H17="",0,IF(AND(G17="DGR300_2023",J17=1,K17=1),VLOOKUP(H17,TettiDGR300!$J$2:$N$74,5,FALSE),IF(AND(G17="DGR300_2023",J17=1),VLOOKUP(H17,TettiDGR300!$J$2:$N$74,4,FALSE),IF(AND(G17="DGR300_2023",K17=1),VLOOKUP(H17,TettiDGR300!$J$2:$N$74,5,FALSE),IF(G17="DGR300_2023",VLOOKUP(H17,TettiDGR300!$J$2:$N$74,2,FALSE),IF(AND(G17="DGR1233_2021",J17=1,K17=1),VLOOKUP(H17,TettiDGR1233!$J$2:$N$74,5,FALSE),IF(AND(G17="DGR1233_2021",J17=1),VLOOKUP(H17,TettiDGR1233!$J$2:$N$74,4,FALSE),IF(AND(G17="DGR1233_2021",K17=1),VLOOKUP(H17,TettiDGR1233!$J$2:$N$74,5,FALSE),VLOOKUP(H17,TettiDGR1233!$J$2:$N$74,2,FALSE))))))))) -> 0 | S17: =IF(L17<R17,L17*PERCCONTRIB,R17*PERCCONTRIB) -> 0 | U17: 3
Q18: =IFERROR(VLOOKUP(H18,TettiDGR300!$J$2:$L77,3,FALSE), "") ->  | R18: =IF(H18="",0,IF(AND(G18="DGR300_2023",J18=1,K18=1),VLOOKUP(H18,TettiDGR300!$J$2:$N$74,5,FALSE),IF(AND(G18="DGR300_2023",J18=1),VLOOKUP(H18,TettiDGR300!$J$2:$N$74,4,FALSE),IF(AND(G18="DGR300_2023",K18=1),VLOOKUP(H18,TettiDGR300!$J$2:$N$74,5,FALSE),IF(G18="DGR300_2023",VLOOKUP(H18,TettiDGR300!$J$2:$N$74,2,FALSE),IF(AND(G18="DGR1233_2021",J18=1,K18=1),VLOOKUP(H18,TettiDGR1233!$J$2:$N$74,5,FALSE),IF(AND(G18="DGR1233_2021",J18=1),VLOOKUP(H18,TettiDGR1233!$J$2:$N$74,4,FALSE),IF(AND(G18="DGR1233_2021",K18=1),VLOOKUP(H18,TettiDGR1233!$J$2:$N$74,5,FALSE),VLOOKUP(H18,TettiDGR1233!$J$2:$N$74,2,FALSE))))))))) -> 0 | S18: 0 | U18: 4
Q19: =IFERROR(VLOOKUP(H19,TettiDGR300!$J$2:$L78,3,FALSE), "") ->  | R19: =IF(H19="",0,IF(AND(G19="DGR300_2023",J19=1,K19=1),VLOOKUP(H19,TettiDGR300!$J$2:$N$74,5,FALSE),IF(AND(G19="DGR300_2023",J19=1),VLOOKUP(H19,TettiDGR300!$J$2:$N$74,4,FALSE),IF(AND(G19="DGR300_2023",K19=1),VLOOKUP(H19,TettiDGR300!$J$2:$N$74,5,FALSE),IF(G19="DGR300_2023",VLOOKUP(H19,TettiDGR300!$J$2:$N$74,2,FALSE),IF(AND(G19="DGR1233_2021",J19=1,K19=1),VLOOKUP(H19,TettiDGR1233!$J$2:$N$74,5,FALSE),IF(AND(G19="DGR1233_2021",J19=1),VLOOKUP(H19,TettiDGR1233!$J$2:$N$74,4,FALSE),IF(AND(G19="DGR1233_2021",K19=1),VLOOKUP(H19,TettiDGR1233!$J$2:$N$74,5,FALSE),VLOOKUP(H19,TettiDGR1233!$J$2:$N$74,2,FALSE))))))))) -> 0 | S19: 0 | U19: 5
Q20: =IFERROR(VLOOKUP(H20,TettiDGR300!$J$2:$L79,3,FALSE), "") ->  | R20: =IF(H20="",0,IF(AND(G20="DGR300_2023",J20=1,K20=1),VLOOKUP(H20,TettiDGR300!$J$2:$N$74,5,FALSE),IF(AND(G20="DGR300_2023",J20=1),VLOOKUP(H20,TettiDGR300!$J$2:$N$74,4,FALSE),IF(AND(G20="DGR300_2023",K20=1),VLOOKUP(H20,TettiDGR300!$J$2:$N$74,5,FALSE),IF(G20="DGR300_2023",VLOOKUP(H20,TettiDGR300!$J$2:$N$74,2,FALSE),IF(AND(G20="DGR1233_2021",J20=1,K20=1),VLOOKUP(H20,TettiDGR1233!$J$2:$N$74,5,FALSE),IF(AND(G20="DGR1233_2021",J20=1),VLOOKUP(H20,TettiDGR1233!$J$2:$N$74,4,FALSE),IF(AND(G20="DGR1233_2021",K20=1),VLOOKUP(H20,TettiDGR1233!$J$2:$N$74,5,FALSE),VLOOKUP(H20,TettiDGR1233!$J$2:$N$74,2,FALSE))))))))) -> 0 | S20: 0 | U20: 6
Q21: =IFERROR(VLOOKUP(H21,TettiDGR300!$J$2:$L80,3,FALSE), "") ->  | R21: =IF(H21="",0,IF(AND(G21="DGR300_2023",J21=1,K21=1),VLOOKUP(H21,TettiDGR300!$J$2:$N$74,5,FALSE),IF(AND(G21="DGR300_2023",J21=1),VLOOKUP(H21,TettiDGR300!$J$2:$N$74,4,FALSE),IF(AND(G21="DGR300_2023",K21=1),VLOOKUP(H21,TettiDGR300!$J$2:$N$74,5,FALSE),IF(G21="DGR300_2023",VLOOKUP(H21,TettiDGR300!$J$2:$N$74,2,FALSE),IF(AND(G21="DGR1233_2021",J21=1,K21=1),VLOOKUP(H21,TettiDGR1233!$J$2:$N$74,5,FALSE),IF(AND(G21="DGR1233_2021",J21=1),VLOOKUP(H21,TettiDGR1233!$J$2:$N$74,4,FALSE),IF(AND(G21="DGR1233_2021",K21=1),VLOOKUP(H21,TettiDGR1233!$J$2:$N$74,5,FALSE),VLOOKUP(H21,TettiDGR1233!$J$2:$N$74,2,FALSE))))))))) -> 0 | S21: 0 | U21: 7
Q22: =IFERROR(VLOOKUP(H22,TettiDGR300!$J$2:$L81,3,FALSE), "") ->  | R22: =IF(H22="",0,IF(AND(G22="DGR300_2023",J22=1,K22=1),VLOOKUP(H22,TettiDGR300!$J$2:$N$74,5,FALSE),IF(AND(G22="DGR300_2023",J22=1),VLOOKUP(H22,TettiDGR300!$J$2:$N$74,4,FALSE),IF(AND(G22="DGR300_2023",K22=1),VLOOKUP(H22,TettiDGR300!$J$2:$N$74,5,FALSE),IF(G22="DGR300_2023",VLOOKUP(H22,TettiDGR300!$J$2:$N$74,2,FALSE),IF(AND(G22="DGR1233_2021",J22=1,K22=1),VLOOKUP(H22,TettiDGR1233!$J$2:$N$74,5,FALSE),IF(AND(G22="DGR1233_2021",J22=1),VLOOKUP(H22,TettiDGR1233!$J$2:$N$74,4,FALSE),IF(AND(G22="DGR1233_2021",K22=1),VLOOKUP(H22,TettiDGR1233!$J$2:$N$74,5,FALSE),VLOOKUP(H22,TettiDGR1233!$J$2:$N$74,2,FALSE))))))))) -> 0 | S22: 0 | U22: 8
Q23: =IFERROR(VLOOKUP(H23,TettiDGR300!$J$2:$L82,3,FALSE), "") ->  | R23: =IF(H23="",0,IF(AND(G23="DGR300_2023",J23=1,K23=1),VLOOKUP(H23,TettiDGR300!$J$2:$N$74,5,FALSE),IF(AND(G23="DGR300_2023",J23=1),VLOOKUP(H23,TettiDGR300!$J$2:$N$74,4,FALSE),IF(AND(G23="DGR300_2023",K23=1),VLOOKUP(H23,TettiDGR300!$J$2:$N$74,5,FALSE),IF(G23="DGR300_2023",VLOOKUP(H23,TettiDGR300!$J$2:$N$74,2,FALSE),IF(AND(G23="DGR1233_2021",J23=1,K23=1),VLOOKUP(H23,TettiDGR1233!$J$2:$N$74,5,FALSE),IF(AND(G23="DGR1233_2021",J23=1),VLOOKUP(H23,TettiDGR1233!$J$2:$N$74,4,FALSE),IF(AND(G23="DGR1233_2021",K23=1),VLOOKUP(H23,TettiDGR1233!$J$2:$N$74,5,FALSE),VLOOKUP(H23,TettiDGR1233!$J$2:$N$74,2,FALSE))))))))) -> 0 | S23: 0 | U23: 9
Q24: =IFERROR(VLOOKUP(H24,TettiDGR300!$J$2:$L83,3,FALSE), "") ->  | R24: =IF(H24="",0,IF(AND(G24="DGR300_2023",J24=1,K24=1),VLOOKUP(H24,TettiDGR300!$J$2:$N$74,5,FALSE),IF(AND(G24="DGR300_2023",J24=1),VLOOKUP(H24,TettiDGR300!$J$2:$N$74,4,FALSE),IF(AND(G24="DGR300_2023",K24=1),VLOOKUP(H24,TettiDGR300!$J$2:$N$74,5,FALSE),IF(G24="DGR300_2023",VLOOKUP(H24,TettiDGR300!$J$2:$N$74,2,FALSE),IF(AND(G24="DGR1233_2021",J24=1,K24=1),VLOOKUP(H24,TettiDGR1233!$J$2:$N$74,5,FALSE),IF(AND(G24="DGR1233_2021",J24=1),VLOOKUP(H24,TettiDGR1233!$J$2:$N$74,4,FALSE),IF(AND(G24="DGR1233_2021",K24=1),VLOOKUP(H24,TettiDGR1233!$J$2:$N$74,5,FALSE),VLOOKUP(H24,TettiDGR1233!$J$2:$N$74,2,FALSE))))))))) -> 0 | S24: 0 | U24: 10
Q25: =IFERROR(VLOOKUP(H25,TettiDGR300!$J$2:$L84,3,FALSE), "") ->  | R25: =IF(H25="",0,IF(AND(G25="DGR300_2023",J25=1,K25=1),VLOOKUP(H25,TettiDGR300!$J$2:$N$74,5,FALSE),IF(AND(G25="DGR300_2023",J25=1),VLOOKUP(H25,TettiDGR300!$J$2:$N$74,4,FALSE),IF(AND(G25="DGR300_2023",K25=1),VLOOKUP(H25,TettiDGR300!$J$2:$N$74,5,FALSE),IF(G25="DGR300_2023",VLOOKUP(H25,TettiDGR300!$J$2:$N$74,2,FALSE),IF(AND(G25="DGR1233_2021",J25=1,K25=1),VLOOKUP(H25,TettiDGR1233!$J$2:$N$74,5,FALSE),IF(AND(G25="DGR1233_2021",J25=1),VLOOKUP(H25,TettiDGR1233!$J$2:$N$74,4,FALSE),IF(AND(G25="DGR1233_2021",K25=1),VLOOKUP(H25,TettiDGR1233!$J$2:$N$74,5,FALSE),VLOOKUP(H25,TettiDGR1233!$J$2:$N$74,2,FALSE))))))))) -> 0 | S25: 0 | U25: 11
Q26: =IFERROR(VLOOKUP(H26,TettiDGR300!$J$2:$L85,3,FALSE), "") ->  | R26: =IF(H26="",0,IF(AND(G26="DGR300_2023",J26=1,K26=1),VLOOKUP(H26,TettiDGR300!$J$2:$N$74,5,FALSE),IF(AND(G26="DGR300_2023",J26=1),VLOOKUP(H26,TettiDGR300!$J$2:$N$74,4,FALSE),IF(AND(G26="DGR300_2023",K26=1),VLOOKUP(H26,TettiDGR300!$J$2:$N$74,5,FALSE),IF(G26="DGR300_2023",VLOOKUP(H26,TettiDGR300!$J$2:$N$74,2,FALSE),IF(AND(G26="DGR1233_2021",J26=1,K26=1),VLOOKUP(H26,TettiDGR1233!$J$2:$N$74,5,FALSE),IF(AND(G26="DGR1233_2021",J26=1),VLOOKUP(H26,TettiDGR1233!$J$2:$N$74,4,FALSE),IF(AND(G26="DGR1233_2021",K26=1),VLOOKUP(H26,TettiDGR1233!$J$2:$N$74,5,FALSE),VLOOKUP(H26,TettiDGR1233!$J$2:$N$74,2,FALSE))))))))) -> 0 | S26: 0 | U26: 12
Q27: =IFERROR(VLOOKUP(H27,TettiDGR300!$J$2:$L86,3,FALSE), "") ->  | R27: =IF(H27="",0,IF(AND(G27="DGR300_2023",J27=1,K27=1),VLOOKUP(H27,TettiDGR300!$J$2:$N$74,5,FALSE),IF(AND(G27="DGR300_2023",J27=1),VLOOKUP(H27,TettiDGR300!$J$2:$N$74,4,FALSE),IF(AND(G27="DGR300_2023",K27=1),VLOOKUP(H27,TettiDGR300!$J$2:$N$74,5,FALSE),IF(G27="DGR300_2023",VLOOKUP(H27,TettiDGR300!$J$2:$N$74,2,FALSE),IF(AND(G27="DGR1233_2021",J27=1,K27=1),VLOOKUP(H27,TettiDGR1233!$J$2:$N$74,5,FALSE),IF(AND(G27="DGR1233_2021",J27=1),VLOOKUP(H27,TettiDGR1233!$J$2:$N$74,4,FALSE),IF(AND(G27="DGR1233_2021",K27=1),VLOOKUP(H27,TettiDGR1233!$J$2:$N$74,5,FALSE),VLOOKUP(H27,TettiDGR1233!$J$2:$N$74,2,FALSE))))))))) -> 0 | S27: 0 | U27: 13
Q28: =IFERROR(VLOOKUP(H28,TettiDGR300!$J$2:$L87,3,FALSE), "") ->  | R28: =IF(H28="",0,IF(AND(G28="DGR300_2023",J28=1,K28=1),VLOOKUP(H28,TettiDGR300!$J$2:$N$74,5,FALSE),IF(AND(G28="DGR300_2023",J28=1),VLOOKUP(H28,TettiDGR300!$J$2:$N$74,4,FALSE),IF(AND(G28="DGR300_2023",K28=1),VLOOKUP(H28,TettiDGR300!$J$2:$N$74,5,FALSE),IF(G28="DGR300_2023",VLOOKUP(H28,TettiDGR300!$J$2:$N$74,2,FALSE),IF(AND(G28="DGR1233_2021",J28=1,K28=1),VLOOKUP(H28,TettiDGR1233!$J$2:$N$74,5,FALSE),IF(AND(G28="DGR1233_2021",J28=1),VLOOKUP(H28,TettiDGR1233!$J$2:$N$74,4,FALSE),IF(AND(G28="DGR1233_2021",K28=1),VLOOKUP(H28,TettiDGR1233!$J$2:$N$74,5,FALSE),VLOOKUP(H28,TettiDGR1233!$J$2:$N$74,2,FALSE))))))))) -> 0 | S28: 0 | U28: 14
Q29: =IFERROR(VLOOKUP(H29,TettiDGR300!$J$2:$L88,3,FALSE), "") ->  | R29: =IF(H29="",0,IF(AND(G29="DGR300_2023",J29=1,K29=1),VLOOKUP(H29,TettiDGR300!$J$2:$N$74,5,FALSE),IF(AND(G29="DGR300_2023",J29=1),VLOOKUP(H29,TettiDGR300!$J$2:$N$74,4,FALSE),IF(AND(G29="DGR300_2023",K29=1),VLOOKUP(H29,TettiDGR300!$J$2:$N$74,5,FALSE),IF(G29="DGR300_2023",VLOOKUP(H29,TettiDGR300!$J$2:$N$74,2,FALSE),IF(AND(G29="DGR1233_2021",J29=1,K29=1),VLOOKUP(H29,TettiDGR1233!$J$2:$N$74,5,FALSE),IF(AND(G29="DGR1233_2021",J29=1),VLOOKUP(H29,TettiDGR1233!$J$2:$N$74,4,FALSE),IF(AND(G29="DGR1233_2021",K29=1),VLOOKUP(H29,TettiDGR1233!$J$2:$N$74,5,FALSE),VLOOKUP(H29,TettiDGR1233!$J$2:$N$74,2,FALSE))))))))) -> 0 | S29: 0 | U29: 15
A30: DATI RIEPILOGATIVI PER LE INFRASTRUTTURE DI RIFORNIMENTO/RICARICA Azienda beneficiaria | B30: Id intervento (inserire il codice indentif. già inserito nella scheda dedicata) | C30: Nuova realizzazione (0) - Ristrutturazione e/o ampliamento (1) | D30: Comune | E30: Località | F30: Investimento già parzialmente finanziato da altra misura pubblica | H30: Tipologia intervento | I30: N. colonnine ricarica bus per sito | J30: Utilizzo infrastruttura da più operatori (1=si;0=no) | K30: Intervento allocato su più annualità (1=si;0=no) | L30: Importo complessivo dell'intervento [€] | M30: CIG e note particolari | N30: DATA STIPULA CONTRATTO | O30: Investimento sul cratere sisma 2016 (1=si;0=no) | P30: intervento liquidato (1=si;0=no) | Q30: Alimentaz. | R30: Costo allocato sull'anno in esame [€] | S30: Quota contributo sull'anno [€] | U30: Indicare il cronoprogramma delle attività per ogni intervento secondo le tre tipologie in legenda
B31: =IF(OR($B$4="DM 223/2020 - MIT",$B$4="FSC (D.Cipe 98/2017)"),"XXXX","") -> XXXX | L31: =IF(OR($B$4="DM 223/2020 - MIT",$B$4="FSC (D.Cipe 98/2017)"),"XXXX","") -> XXXX | M31: =IF(OR($B$4="DM 223/2020 - MIT",$B$4="FSC (D.Cipe 98/2017)"),"Il fondo prescelto non ammette infrastrutture","") -> Il fondo prescelto non ammette infrastrutture | Q31: =IFERROR(VLOOKUP(H31,Infrastrutture!$A$2:$B$9,2,FALSE), "") ->  | S31: =IF(L31<R31,"ERRORE",R31*PERCCONTRIB) -> 0 | U31: 20
B32: XXXX | L32: XXXX | M32: =IF(OR($B$4="DM 223/2020 - MIT",$B$4="FSC (D.Cipe 98/2017)"),"Il fondo prescelto non ammette infrastrutture","") -> Il fondo prescelto non ammette infrastrutture | Q32: =IFERROR(VLOOKUP(H32,Infrastrutture!$A$2:$B$9,2,FALSE), "") ->  | S32: 0 | U32: 21
B33: XXXX | L33: XXXX | M33: Il fondo prescelto non ammette infrastrutture | Q33: =IFERROR(VLOOKUP(H33,Infrastrutture!$A$2:$B$9,2,FALSE), "") ->  | S33: 0 | U33: 22
B34: XXXX | L34: XXXX | M34: Il fondo prescelto non ammette infrastrutture | Q34: =IFERROR(VLOOKUP(H34,Infrastrutture!$A$2:$B$9,2,FALSE), "") ->  | S34: 0 | U34: 23
B35: XXXX | L35: XXXX | M35: Il fondo prescelto non ammette infrastrutture | Q35: =IFERROR(VLOOKUP(H35,Infrastrutture!$A$2:$B$9,2,FALSE), "") ->  | S35: 0 | U35: 24
B36: XXXX | L36: XXXX | M36: Il fondo prescelto non ammette infrastrutture | Q36: =IFERROR(VLOOKUP(H36,Infrastrutture!$A$2:$B$9,2,FALSE), "") ->  | S36: 0 | U36: 25
B37: XXXX | L37: XXXX | M37: Il fondo prescelto non ammette infrastrutture | Q37: =IFERROR(VLOOKUP(H37,Infrastrutture!$A$2:$B$9,2,FALSE), "") ->  | S37: 0 | U37: 26
B38: XXXX | L38: XXXX | M38: Il fondo prescelto non ammette infrastrutture | Q38: =IFERROR(VLOOKUP(H38,Infrastrutture!$A$2:$B$9,2,FALSE), "") ->  | S38: 0 | U38: 27
B39: XXXX | L39: XXXX | M39: Il fondo prescelto non ammette infrastrutture | Q39: =IFERROR(VLOOKUP(H39,Infrastrutture!$A$2:$B$9,2,FALSE), "") ->  | S39: 0 | U39: 28
B40: XXXX | L40: XXXX | M40: Il fondo prescelto non ammette infrastrutture | Q40: =IFERROR(VLOOKUP(H40,Infrastrutture!$A$2:$B$9,2,FALSE), "") ->  | S40: 0 | U40: 29
A41: TOTALI AUTOBUS | B41: =SUM(B15:B29) -> 0 | C41: =SUM(C15:C29) -> 0 | O41: =+SUM(O15:O29) -> 0 | R41: =SUM(R15:R29) -> 0 | S41: =SUM(S15:S29) -> 0
A42: TOTALI INFRASTRUTTURE | O42: =+SUM(O31:O40) -> 0 | R42: =+SUM(R31:R40) -> 0 | S42: =+SUM(S31:S40) -> 0
A43: TOTALI GENERALE | R43: =+R41+R42 -> 0 | S43: =+SUM(S32:S41) -> 0

Sheet DM 223_2022
A1: Piano investimenti di bacino - D.G.R. 647 del 30 maggio 2022 - REGIONE MARCHE - Assessorato trasporti e reti regionali di trasporto. | U1: CRONOPROGRAMMA DEGLI INVESTIMENTI
A3: Ambito territoriale | B3: FM | F3: celle a fondo bianco da compilare obbligatoriamente direttamente o con menu a tendina | I3: Data compilazione | V3: Legenda:
A4: Fonte di finanziamento | B4: DM 223/2020 - MIT | F4: celle a fondo arancio compilate automaticamente | I4: Referente compilaz. | V4: 1 | W4: Espletamento gara
A5: Annualità | B5: 2022 | F5: Valori economici al netto dell'IVA | I5: Telefono di contatto | V5: 2 | W5: Stipula contratto
A6: K2 | B6: =B4&"_"&B5&"_"&B3 -> DM 223/2020 - MIT_2022_FM
A7: Contributo max assegnabile | B7: =VLOOKUP($B$6,'Assegnazione fondi'!$D$2:$G$208,3,FALSE) -> 389275.2938 | D7: Contributo tot. assegnato | F7: =+S43 -> 0 | I7: e-mail | V7: 3 | W7: Completamento fornitura
A8: % contribuzione sul costo d'acquisto | B8: =VLOOKUP($B$6,'Assegnazione fondi'!$D$2:$G$201,4,FALSE) -> 0.8 | D8: N. mezzi tot. da acquisire | F8: =B41+C41 -> 0
A9: Residuo annualità precedenti | D9: Residuo 2018-2021 | F9: ='DM 223_2021'!F10 -> 1253702.561
A10: =+IF(B4="DM 81/2020 - PSNMS", "Importo da utilizzare per infrastrutture (di cui del contributo max)","Contributo max assegnabile per ventuali infrastrutture (di cui del contributo max)") -> Contributo max assegnabile per ventuali infrastrutture (di cui del contributo max) | B10: =VLOOKUP($B$6,'Assegnazione fondi'!$D$2:$G$208,2,FALSE) -> 0 | D10: Residuo sull'anno | F10: =+TOTIMP+F9-F7 -> 1642977.855
A12: DATI RIEPILOGATIVI SUGLI AUTOBUS DA ACQUISIRE | B12: Per complet. organico n. | C12: Per rinnovo parco n. | D12: Compilare un foglio per ogni fondo di finanziamento, per ogni annualità | U12: Indicare il cronoprogramma delle attività per ogni mezzo secondo le tre tipologie in legenda
B13: =B41 -> 0 | C13: =C41 -> 0 | U13: Anno | V13: 2018 | AH13: 2019 | AT13: 2020 | BF13: 2021 | BR13: 2022 | CD13: 2023 | CP13: 2024 | DB13: 2025 | DN13: 2026
A14: Azienda beneficiaria | B14: Completamento organico (1=si;0=no) | C14: Sostituzione mezzo (1=si;0=no) | D14: Targa mezzo da sostituire | E14: Impiego (URBANO / EXTRAURBANO) | F14: Data prima immatricolazione mezzo sostituito | G14: DGR tetti di spesa | H14: Tipologia nuovo mezzo (selezionare dall'elenco) | I14: Rastrelliera per biciclette (1=si;0=no) | J14: Metano LNG (1=si;0=no) | K14: Mezzo Myld hybrid (1=si;0=no) | L14: Costo preventivato unitario [€] | M14: CIG e note particolari | N14: DATA STIPULA CONTRATTO entro 31/10/2022 | O14: Investimento sul cratere sisma 2016 (1=si;0=no) | P14: intervento liquidato (1=si;0=no) | Q14: Alimentaz. | R14: Spesa max ammissibile unitaria | S14: Contributo unitario | U14: Id / Mese | V14: 1 | W14: 2 | X14: 3 | Y14: 4 | Z14: 5 | AA14: 6 | AB14: 7 | AC14: 8 | AD14: 9 | AE14: 10 | AF14: 11 | AG14: 12 | AH14: 1 | AI14: 2 | AJ14: 3 | AK14: 4 | AL14: 5 | AM14: 6 | AN14: 7 | AO14: 8 | AP14: 9 | AQ14: 10 | AR14: 11 | AS14: 12 | AT14: 1 | AU14: 2 | AV14: 3 | AW14: 4 | AX14: 5 | AY14: 6 | AZ14: 7 | BA14: 8 | BB14: 9 | BC14: 10 | BD14: 11 | BE14: 12 | BF14: 1 | BG14: 2 | BH14: 3 | BI14: 4 | BJ14: 5 | BK14: 6 | BL14: 7 | BM14: 8 | BN14: 9 | BO14: 10 | BP14: 11 | BQ14: 12 | BR14: 1 | BS14: 2 | BT14: 3 | BU14: 4 | BV14: 5 | BW14: 6 | BX14: 7 | BY14: 8 | BZ14: 9 | CA14: 10 | CB14: 11 | CC14: 12 | CD14: 1 | CE14: 2 | CF14: 3 | CG14: 4 | CH14: 5 | CI14: 6 | CJ14: 7 | CK14: 8 | CL14: 9 | CM14: 10 | CN14: 11 | CO14: 12 | CP14: 1 | CQ14: 2 | CR14: 3 | CS14: 4 | CT14: 5 | CU14: 6 | CV14: 7 | CW14: 8 | CX14: 9 | CY14: 10 | CZ14: 11 | DA14: 12 | DB14: 1 | DC14: 2 | DD14: 3 | DE14: 4 | DF14: 5 | DG14: 6 | DH14: 7 | DI14: 8 | DJ14: 9 | DK14: 10 | DL14: 11 | DM14: 12 | DN14: 1 | DO14: 2 | DP14: 3 | DQ14: 4 | DR14: 5 | DS14: 6 | DT14: 7 | DU14: 8 | DV14: 9 | DW14: 10 | DX14: 11 | DY14: 12
M15: =IF(L15<>0,"COMPILARE","") ->  | Q15: =IFERROR(VLOOKUP(H15,TettiDGR300!$J$2:$L74,3,FALSE), "") ->  | R15: =IF(H15="",0,IF(AND(G15="DGR300_2023",J15=1,K15=1),VLOOKUP(H15,TettiDGR300!$J$2:$N$74,5,FALSE),IF(AND(G15="DGR300_2023",J15=1),VLOOKUP(H15,TettiDGR300!$J$2:$N$74,4,FALSE),IF(AND(G15="DGR300_2023",K15=1),VLOOKUP(H15,TettiDGR300!$J$2:$N$74,5,FALSE),IF(G15="DGR300_2023",VLOOKUP(H15,TettiDGR300!$J$2:$N$74,2,FALSE),IF(AND(G15="DGR1233_2021",J15=1,K15=1),VLOOKUP(H15,TettiDGR1233!$J$2:$N$74,5,FALSE),IF(AND(G15="DGR1233_2021",J15=1),VLOOKUP(H15,TettiDGR1233!$J$2:$N$74,4,FALSE),IF(AND(G15="DGR1233_2021",K15=1),VLOOKUP(H15,TettiDGR1233!$J$2:$N$74,5,FALSE),VLOOKUP(H15,TettiDGR1233!$J$2:$N$74,2,FALSE))))))))) -> 0 | S15: =IF(L15<R15,L15*PERCCONTRIB,R15*PERCCONTRIB) -> 0 | U15: 1
Q16: =IFERROR(VLOOKUP(H16,TettiDGR300!$J$2:$L75,3,FALSE), "") ->  | R16: =IF(H16="",0,IF(AND(G16="DGR300_2023",J16=1,K16=1),VLOOKUP(H16,TettiDGR300!$J$2:$N$74,5,FALSE),IF(AND(G16="DGR300_2023",J16=1),VLOOKUP(H16,TettiDGR300!$J$2:$N$74,4,FALSE),IF(AND(G16="DGR300_2023",K16=1),VLOOKUP(H16,TettiDGR300!$J$2:$N$74,5,FALSE),IF(G16="DGR300_2023",VLOOKUP(H16,TettiDGR300!$J$2:$N$74,2,FALSE),IF(AND(G16="DGR1233_2021",J16=1,K16=1),VLOOKUP(H16,TettiDGR1233!$J$2:$N$74,5,FALSE),IF(AND(G16="DGR1233_2021",J16=1),VLOOKUP(H16,TettiDGR1233!$J$2:$N$74,4,FALSE),IF(AND(G16="DGR1233_2021",K16=1),VLOOKUP(H16,TettiDGR1233!$J$2:$N$74,5,FALSE),VLOOKUP(H16,TettiDGR1233!$J$2:$N$74,2,FALSE))))))))) -> 0 | S16: 0 | U16: 2
Q17: =IFERROR(VLOOKUP(H17,TettiDGR300!$J$2:$L76,3,FALSE), "") ->  | R17: =IF(H17="",0,IF(AND(G17="DGR300_2023",J17=1,K17=1),VLOOKUP(H17,TettiDGR300!$J$2:$N$74,5,FALSE),IF(AND(G17="DGR300_2023",J17=1),VLOOKUP(H17,TettiDGR300!$J$2:$N$74,4,FALSE),IF(AND(G17="DGR300_2023",K17=1),VLOOKUP(H17,TettiDGR300!$J$2:$N$74,5,FALSE),IF(G17="DGR300_2023",VLOOKUP(H17,TettiDGR300!$J$2:$N$74,2,FALSE),IF(AND(G17="DGR1233_2021",J17=1,K17=1),VLOOKUP(H17,TettiDGR1233!$J$2:$N$74,5,FALSE),IF(AND(G17="DGR1233_2021",J17=1),VLOOKUP(H17,TettiDGR1233!$J$2:$N$74,4,FALSE),IF(AND(G17="DGR1233_2021",K17=1),VLOOKUP(H17,TettiDGR1233!$J$2:$N$74,5,FALSE),VLOOKUP(H17,TettiDGR1233!$J$2:$N$74,2,FALSE))))))))) -> 0 | S17: =IF(L17<R17,L17*PERCCONTRIB,R17*PERCCONTRIB) -> 0 | U17: 3
Q18: =IFERROR(VLOOKUP(H18,TettiDGR300!$J$2:$L77,3,FALSE), "") ->  | R18: =IF(H18="",0,IF(AND(G18="DGR300_2023",J18=1,K18=1),VLOOKUP(H18,TettiDGR300!$J$2:$N$74,5,FALSE),IF(AND(G18="DGR300_2023",J18=1),VLOOKUP(H18,TettiDGR300!$J$2:$N$74,4,FALSE),IF(AND(G18="DGR300_2023",K18=1),VLOOKUP(H18,TettiDGR300!$J$2:$N$74,5,FALSE),IF(G18="DGR300_2023",VLOOKUP(H18,TettiDGR300!$J$2:$N$74,2,FALSE),IF(AND(G18="DGR1233_2021",J18=1,K18=1),VLOOKUP(H18,TettiDGR1233!$J$2:$N$74,5,FALSE),IF(AND(G18="DGR1233_2021",J18=1),VLOOKUP(H18,TettiDGR1233!$J$2:$N$74,4,FALSE),IF(AND(G18="DGR1233_2021",K18=1),VLOOKUP(H18,TettiDGR1233!$J$2:$N$74,5,FALSE),VLOOKUP(H18,TettiDGR1233!$J$2:$N$74,2,FALSE))))))))) -> 0 | S18: 0 | U18: 4
Q19: =IFERROR(VLOOKUP(H19,TettiDGR300!$J$2:$L78,3,FALSE), "") ->  | R19: =IF(H19="",0,IF(AND(G19="DGR300_2023",J19=1,K19=1),VLOOKUP(H19,TettiDGR300!$J$2:$N$74,5,FALSE),IF(AND(G19="DGR300_2023",J19=1),VLOOKUP(H19,TettiDGR300!$J$2:$N$74,4,FALSE),IF(AND(G19="DGR300_2023",K19=1),VLOOKUP(H19,TettiDGR300!$J$2:$N$74,5,FALSE),IF(G19="DGR300_2023",VLOOKUP(H19,TettiDGR300!$J$2:$N$74,2,FALSE),IF(AND(G19="DGR1233_2021",J19=1,K19=1),VLOOKUP(H19,TettiDGR1233!$J$2:$N$74,5,FALSE),IF(AND(G19="DGR1233_2021",J19=1),VLOOKUP(H19,TettiDGR1233!$J$2:$N$74,4,FALSE),IF(AND(G19="DGR1233_2021",K19=1),VLOOKUP(H19,TettiDGR1233!$J$2:$N$74,5,FALSE),VLOOKUP(H19,TettiDGR1233!$J$2:$N$74,2,FALSE))))))))) -> 0 | S19: 0 | U19: 5
Q20: =IFERROR(VLOOKUP(H20,TettiDGR300!$J$2:$L79,3,FALSE), "") ->  | R20: =IF(H20="",0,IF(AND(G20="DGR300_2023",J20=1,K20=1),VLOOKUP(H20,TettiDGR300!$J$2:$N$74,5,FALSE),IF(AND(G20="DGR300_2023",J20=1),VLOOKUP(H20,TettiDGR300!$J$2:$N$74,4,FALSE),IF(AND(G20="DGR300_2023",K20=1),VLOOKUP(H20,TettiDGR300!$J$2:$N$74,5,FALSE),IF(G20="DGR300_2023",VLOOKUP(H20,TettiDGR300!$J$2:$N$74,2,FALSE),IF(AND(G20="DGR1233_2021",J20=1,K20=1),VLOOKUP(H20,TettiDGR1233!$J$2:$N$74,5,FALSE),IF(AND(G20="DGR1233_2021",J20=1),VLOOKUP(H20,TettiDGR1233!$J$2:$N$74,4,FALSE),IF(AND(G20="DGR1233_2021",K20=1),VLOOKUP(H20,TettiDGR1233!$J$2:$N$74,5,FALSE),VLOOKUP(H20,TettiDGR1233!$J$2:$N$74,2,FALSE))))))))) -> 0 | S20: 0 | U20: 6
Q21: =IFERROR(VLOOKUP(H21,TettiDGR300!$J$2:$L80,3,FALSE), "") ->  | R21: =IF(H21="",0,IF(AND(G21="DGR300_2023",J21=1,K21=1),VLOOKUP(H21,TettiDGR300!$J$2:$N$74,5,FALSE),IF(AND(G21="DGR300_2023",J21=1),VLOOKUP(H21,TettiDGR300!$J$2:$N$74,4,FALSE),IF(AND(G21="DGR300_2023",K21=1),VLOOKUP(H21,TettiDGR300!$J$2:$N$74,5,FALSE),IF(G21="DGR300_2023",VLOOKUP(H21,TettiDGR300!$J$2:$N$74,2,FALSE),IF(AND(G21="DGR1233_2021",J21=1,K21=1),VLOOKUP(H21,TettiDGR1233!$J$2:$N$74,5,FALSE),IF(AND(G21="DGR1233_2021",J21=1),VLOOKUP(H21,TettiDGR1233!$J$2:$N$74,4,FALSE),IF(AND(G21="DGR1233_2021",K21=1),VLOOKUP(H21,TettiDGR1233!$J$2:$N$74,5,FALSE),VLOOKUP(H21,TettiDGR1233!$J$2:$N$74,2,FALSE))))))))) -> 0 | S21: 0 | U21: 7
Q22: =IFERROR(VLOOKUP(H22,TettiDGR300!$J$2:$L81,3,FALSE), "") ->  | R22: =IF(H22="",0,IF(AND(G22="DGR300_2023",J22=1,K22=1),VLOOKUP(H22,TettiDGR300!$J$2:$N$74,5,FALSE),IF(AND(G22="DGR300_2023",J22=1),VLOOKUP(H22,TettiDGR300!$J$2:$N$74,4,FALSE),IF(AND(G22="DGR300_2023",K22=1),VLOOKUP(H22,TettiDGR300!$J$2:$N$74,5,FALSE),IF(G22="DGR300_2023",VLOOKUP(H22,TettiDGR300!$J$2:$N$74,2,FALSE),IF(AND(G22="DGR1233_2021",J22=1,K22=1),VLOOKUP(H22,TettiDGR1233!$J$2:$N$74,5,FALSE),IF(AND(G22="DGR1233_2021",J22=1),VLOOKUP(H22,TettiDGR1233!$J$2:$N$74,4,FALSE),IF(AND(G22="DGR1233_2021",K22=1),VLOOKUP(H22,TettiDGR1233!$J$2:$N$74,5,FALSE),VLOOKUP(H22,TettiDGR1233!$J$2:$N$74,2,FALSE))))))))) -> 0 | S22: 0 | U22: 8
Q23: =IFERROR(VLOOKUP(H23,TettiDGR300!$J$2:$L82,3,FALSE), "") ->  | R23: =IF(H23="",0,IF(AND(G23="DGR300_2023",J23=1,K23=1),VLOOKUP(H23,TettiDGR300!$J$2:$N$74,5,FALSE),IF(AND(G23="DGR300_2023",J23=1),VLOOKUP(H23,TettiDGR300!$J$2:$N$74,4,FALSE),IF(AND(G23="DGR300_2023",K23=1),VLOOKUP(H23,TettiDGR300!$J$2:$N$74,5,FALSE),IF(G23="DGR300_2023",VLOOKUP(H23,TettiDGR300!$J$2:$N$74,2,FALSE),IF(AND(G23="DGR1233_2021",J23=1,K23=1),VLOOKUP(H23,TettiDGR1233!$J$2:$N$74,5,FALSE),IF(AND(G23="DGR1233_2021",J23=1),VLOOKUP(H23,TettiDGR1233!$J$2:$N$74,4,FALSE),IF(AND(G23="DGR1233_2021",K23=1),VLOOKUP(H23,TettiDGR1233!$J$2:$N$74,5,FALSE),VLOOKUP(H23,TettiDGR1233!$J$2:$N$74,2,FALSE))))))))) -> 0 | S23: 0 | U23: 9
Q24: =IFERROR(VLOOKUP(H24,TettiDGR300!$J$2:$L83,3,FALSE), "") ->  | R24: =IF(H24="",0,IF(AND(G24="DGR300_2023",J24=1,K24=1),VLOOKUP(H24,TettiDGR300!$J$2:$N$74,5,FALSE),IF(AND(G24="DGR300_2023",J24=1),VLOOKUP(H24,TettiDGR300!$J$2:$N$74,4,FALSE),IF(AND(G24="DGR300_2023",K24=1),VLOOKUP(H24,TettiDGR300!$J$2:$N$74,5,FALSE),IF(G24="DGR300_2023",VLOOKUP(H24,TettiDGR300!$J$2:$N$74,2,FALSE),IF(AND(G24="DGR1233_2021",J24=1,K24=1),VLOOKUP(H24,TettiDGR1233!$J$2:$N$74,5,FALSE),IF(AND(G24="DGR1233_2021",J24=1),VLOOKUP(H24,TettiDGR1233!$J$2:$N$74,4,FALSE),IF(AND(G24="DGR1233_2021",K24=1),VLOOKUP(H24,TettiDGR1233!$J$2:$N$74,5,FALSE),VLOOKUP(H24,TettiDGR1233!$J$2:$N$74,2,FALSE))))))))) -> 0 | S24: 0 | U24: 10
Q25: =IFERROR(VLOOKUP(H25,TettiDGR300!$J$2:$L84,3,FALSE), "") ->  | R25: =IF(H25="",0,IF(AND(G25="DGR300_2023",J25=1,K25=1),VLOOKUP(H25,TettiDGR300!$J$2:$N$74,5,FALSE),IF(AND(G25="DGR300_2023",J25=1),VLOOKUP(H25,TettiDGR300!$J$2:$N$74,4,FALSE),IF(AND(G25="DGR300_2023",K25=1),VLOOKUP(H25,TettiDGR300!$J$2:$N$74,5,FALSE),IF(G25="DGR300_2023",VLOOKUP(H25,TettiDGR300!$J$2:$N$74,2,FALSE),IF(AND(G25="DGR1233_2021",J25=1,K25=1),VLOOKUP(H25,TettiDGR1233!$J$2:$N$74,5,FALSE),IF(AND(G25="DGR1233_2021",J25=1),VLOOKUP(H25,TettiDGR1233!$J$2:$N$74,4,FALSE),IF(AND(G25="DGR1233_2021",K25=1),VLOOKUP(H25,TettiDGR1233!$J$2:$N$74,5,FALSE),VLOOKUP(H25,TettiDGR1233!$J$2:$N$74,2,FALSE))))))))) -> 0 | S25: 0 | U25: 11
Q26: =IFERROR(VLOOKUP(H26,TettiDGR300!$J$2:$L85,3,FALSE), "") ->  | R26: =IF(H26="",0,IF(AND(G26="DGR300_2023",J26=1,K26=1),VLOOKUP(H26,TettiDGR300!$J$2:$N$74,5,FALSE),IF(AND(G26="DGR300_2023",J26=1),VLOOKUP(H26,TettiDGR300!$J$2:$N$74,4,FALSE),IF(AND(G26="DGR300_2023",K26=1),VLOOKUP(H26,TettiDGR300!$J$2:$N$74,5,FALSE),IF(G26="DGR300_2023",VLOOKUP(H26,TettiDGR300!$J$2:$N$74,2,FALSE),IF(AND(G26="DGR1233_2021",J26=1,K26=1),VLOOKUP(H26,TettiDGR1233!$J$2:$N$74,5,FALSE),IF(AND(G26="DGR1233_2021",J26=1),VLOOKUP(H26,TettiDGR1233!$J$2:$N$74,4,FALSE),IF(AND(G26="DGR1233_2021",K26=1),VLOOKUP(H26,TettiDGR1233!$J$2:$N$74,5,FALSE),VLOOKUP(H26,TettiDGR1233!$J$2:$N$74,2,FALSE))))))))) -> 0 | S26: 0 | U26: 12
Q27: =IFERROR(VLOOKUP(H27,TettiDGR300!$J$2:$L86,3,FALSE), "") ->  | R27: =IF(H27="",0,IF(AND(G27="DGR300_2023",J27=1,K27=1),VLOOKUP(H27,TettiDGR300!$J$2:$N$74,5,FALSE),IF(AND(G27="DGR300_2023",J27=1),VLOOKUP(H27,TettiDGR300!$J$2:$N$74,4,FALSE),IF(AND(G27="DGR300_2023",K27=1),VLOOKUP(H27,TettiDGR300!$J$2:$N$74,5,FALSE),IF(G27="DGR300_2023",VLOOKUP(H27,TettiDGR300!$J$2:$N$74,2,FALSE),IF(AND(G27="DGR1233_2021",J27=1,K27=1),VLOOKUP(H27,TettiDGR1233!$J$2:$N$74,5,FALSE),IF(AND(G27="DGR1233_2021",J27=1),VLOOKUP(H27,TettiDGR1233!$J$2:$N$74,4,FALSE),IF(AND(G27="DGR1233_2021",K27=1),VLOOKUP(H27,TettiDGR1233!$J$2:$N$74,5,FALSE),VLOOKUP(H27,TettiDGR1233!$J$2:$N$74,2,FALSE))))))))) -> 0 | S27: 0 | U27: 13
Q28: =IFERROR(VLOOKUP(H28,TettiDGR300!$J$2:$L87,3,FALSE), "") ->  | R28: =IF(H28="",0,IF(AND(G28="DGR300_2023",J28=1,K28=1),VLOOKUP(H28,TettiDGR300!$J$2:$N$74,5,FALSE),IF(AND(G28="DGR300_2023",J28=1),VLOOKUP(H28,TettiDGR300!$J$2:$N$74,4,FALSE),IF(AND(G28="DGR300_2023",K28=1),VLOOKUP(H28,TettiDGR300!$J$2:$N$74,5,FALSE),IF(G28="DGR300_2023",VLOOKUP(H28,TettiDGR300!$J$2:$N$74,2,FALSE),IF(AND(G28="DGR1233_2021",J28=1,K28=1),VLOOKUP(H28,TettiDGR1233!$J$2:$N$74,5,FALSE),IF(AND(G28="DGR1233_2021",J28=1),VLOOKUP(H28,TettiDGR1233!$J$2:$N$74,4,FALSE),IF(AND(G28="DGR1233_2021",K28=1),VLOOKUP(H28,TettiDGR1233!$J$2:$N$74,5,FALSE),VLOOKUP(H28,TettiDGR1233!$J$2:$N$74,2,FALSE))))))))) -> 0 | S28: 0 | U28: 14
Q29: =IFERROR(VLOOKUP(H29,TettiDGR300!$J$2:$L88,3,FALSE), "") ->  | R29: =IF(H29="",0,IF(AND(G29="DGR300_2023",J29=1,K29=1),VLOOKUP(H29,TettiDGR300!$J$2:$N$74,5,FALSE),IF(AND(G29="DGR300_2023",J29=1),VLOOKUP(H29,TettiDGR300!$J$2:$N$74,4,FALSE),IF(AND(G29="DGR300_2023",K29=1),VLOOKUP(H29,TettiDGR300!$J$2:$N$74,5,FALSE),IF(G29="DGR300_2023",VLOOKUP(H29,TettiDGR300!$J$2:$N$74,2,FALSE),IF(AND(G29="DGR1233_2021",J29=1,K29=1),VLOOKUP(H29,TettiDGR1233!$J$2:$N$74,5,FALSE),IF(AND(G29="DGR1233_2021",J29=1),VLOOKUP(H29,TettiDGR1233!$J$2:$N$74,4,FALSE),IF(AND(G29="DGR1233_2021",K29=1),VLOOKUP(H29,TettiDGR1233!$J$2:$N$74,5,FALSE),VLOOKUP(H29,TettiDGR1233!$J$2:$N$74,2,FALSE))))))))) -> 0 | S29: 0 | U29: 15
A30: DATI RIEPILOGATIVI PER LE INFRASTRUTTURE DI RIFORNIMENTO/RICARICA Azienda beneficiaria | B30: Id intervento (inserire il codice indentif. già inserito nella scheda dedicata) | C30: Nuova realizzazione (0) - Ristrutturazione e/o ampliamento (1) | D30: Comune | E30: Località | F30: Investimento già parzialmente finanziato da altra misura pubblica | H30: Tipologia intervento | I30: N. colonnine ricarica bus per sito | J30: Utilizzo infrastruttura da più operatori (1=si;0=no) | K30: Intervento allocato su più annualità (1=si;0=no) | L30: Importo complessivo dell'intervento [€] | M30: CIG e note particolari | N30: DATA STIPULA CONTRATTO | O30: Investimento sul cratere sisma 2016 (1=si;0=no) | P30: intervento liquidato (1=si;0=no) | Q30: Alimentaz. | R30: Costo allocato sull'anno in esame [€] | S30: Quota contributo sull'anno [€] | U30: Indicare il cronoprogramma delle attività per ogni intervento secondo le tre tipologie in legenda
B31: =IF(OR($B$4="DM 223/2020 - MIT",$B$4="FSC (D.Cipe 98/2017)"),"XXXX","") -> XXXX | L31: =IF(OR($B$4="DM 223/2020 - MIT",$B$4="FSC (D.Cipe 98/2017)"),"XXXX","") -> XXXX | M31: =IF(OR($B$4="DM 223/2020 - MIT",$B$4="FSC (D.Cipe 98/2017)"),"Il fondo prescelto non ammette infrastrutture","") -> Il fondo prescelto non ammette infrastrutture | Q31: =IFERROR(VLOOKUP(H31,Infrastrutture!$A$2:$B$9,2,FALSE), "") ->  | S31: =IF(L31<R31,"ERRORE",R31*PERCCONTRIB) -> 0 | U31: 20
B32: XXXX | L32: XXXX | M32: =IF(OR($B$4="DM 223/2020 - MIT",$B$4="FSC (D.Cipe 98/2017)"),"Il fondo prescelto non ammette infrastrutture","") -> Il fondo prescelto non ammette infrastrutture | Q32: =IFERROR(VLOOKUP(H32,Infrastrutture!$A$2:$B$9,2,FALSE), "") ->  | S32: 0 | U32: 21
B33: XXXX | L33: XXXX | M33: Il fondo prescelto non ammette infrastrutture | Q33: =IFERROR(VLOOKUP(H33,Infrastrutture!$A$2:$B$9,2,FALSE), "") ->  | S33: 0 | U33: 22
B34: XXXX | L34: XXXX | M34: Il fondo prescelto non ammette infrastrutture | Q34: =IFERROR(VLOOKUP(H34,Infrastrutture!$A$2:$B$9,2,FALSE), "") ->  | S34: 0 | U34: 23
B35: XXXX | L35: XXXX | M35: Il fondo prescelto non ammette infrastrutture | Q35: =IFERROR(VLOOKUP(H35,Infrastrutture!$A$2:$B$9,2,FALSE), "") ->  | S35: 0 | U35: 24
B36: XXXX | L36: XXXX | M36: Il fondo prescelto non ammette infrastrutture | Q36: =IFERROR(VLOOKUP(H36,Infrastrutture!$A$2:$B$9,2,FALSE), "") ->  | S36: 0 | U36: 25
B37: XXXX | L37: XXXX | M37: Il fondo prescelto non ammette infrastrutture | Q37: =IFERROR(VLOOKUP(H37,Infrastrutture!$A$2:$B$9,2,FALSE), "") ->  | S37: 0 | U37: 26
B38: XXXX | L38: XXXX | M38: Il fondo prescelto non ammette infrastrutture | Q38: =IFERROR(VLOOKUP(H38,Infrastrutture!$A$2:$B$9,2,FALSE), "") ->  | S38: 0 | U38: 27
B39: XXXX | L39: XXXX | M39: Il fondo prescelto non ammette infrastrutture | Q39: =IFERROR(VLOOKUP(H39,Infrastrutture!$A$2:$B$9,2,FALSE), "") ->  | S39: 0 | U39: 28
B40: XXXX | L40: XXXX | M40: Il fondo prescelto non ammette infrastrutture | Q40: =IFERROR(VLOOKUP(H40,Infrastrutture!$A$2:$B$9,2,FALSE), "") ->  | S40: 0 | U40: 29
A41: TOTALI AUTOBUS | B41: =SUM(B15:B29) -> 0 | C41: =SUM(C15:C29) -> 0 | O41: =+SUM(O15:O29) -> 0 | R41: =SUM(R15:R29) -> 0 | S41: =SUM(S15:S29) -> 0
A42: TOTALI INFRASTRUTTURE | O42: =+SUM(O31:O40) -> 0 | R42: =+SUM(R31:R40) -> 0 | S42: =+SUM(S31:S40) -> 0
A43: TOTALI GENERALE | R43: =+R41+R42 -> 0 | S43: =+SUM(S32:S41) -> 0

Sheet DM 223_2023
A1: Piano investimenti di bacino - D.G.R. 647 del 30 maggio 2022 - REGIONE MARCHE - Assessorato trasporti e reti regionali di trasporto. | U1: CRONOPROGRAMMA DEGLI INVESTIMENTI
A3: Ambito territoriale | B3: FM | F3: celle a fondo bianco da compilare obbligatoriamente direttamente o con menu a tendina | I3: Data compilazione | V3: Legenda:
A4: Fonte di finanziamento | B4: DM 223/2020 - MIT | F4: celle a fondo arancio compilate automaticamente | I4: Referente compilaz. | V4: 1 | W4: Espletamento gara
A5: Annualità | B5: 2023 | F5: Valori economici al netto dell'IVA | I5: Telefono di contatto | V5: 2 | W5: Stipula contratto
A6: K2 | B6: =B4&"_"&B5&"_"&B3 -> DM 223/2020 - MIT_2023_FM
A7: Contributo max assegnabile | B7: =VLOOKUP($B$6,'Assegnazione fondi'!$D$2:$G$208,3,FALSE) -> 208344.2783 | D7: Contributo tot. assegnato | F7: =+S43 -> 0 | I7: e-mail | V7: 3 | W7: Completamento fornitura
A8: % contribuzione sul costo d'acquisto | B8: =VLOOKUP($B$6,'Assegnazione fondi'!$D$2:$G$201,4,FALSE) -> 0.8 | D8: N. mezzi tot. da acquisire | F8: =B41+C41 -> 0
A9: Residuo annualità precedenti | B9: ='DM 223_2022'!F10 -> 1642977.855 | D9: di cui Residuo 2018-2021 | F9: ='DM 223_2021'!F10 -> 1253702.561
A10: =+IF(B4="DM 81/2020 - PSNMS", "Importo da utilizzare per infrastrutture (di cui del contributo max)","Contributo max assegnabile per ventuali infrastrutture (di cui del contributo max)") -> Contributo max assegnabile per ventuali infrastrutture (di cui del contributo max) | B10: =VLOOKUP($B$6,'Assegnazione fondi'!$D$2:$G$208,2,FALSE) -> 0 | D10: Residuo sull'anno | F10: =+TOTIMP-F7+B9 -> 1851322.133
A12: DATI RIEPILOGATIVI SUGLI AUTOBUS DA ACQUISIRE | B12: Per complet. organico n. | C12: Per rinnovo parco n. | D12: Compilare un foglio per ogni fondo di finanziamento, per ogni annualità | U12: Indicare il cronoprogramma delle attività per ogni mezzo secondo le tre tipologie in legenda
B13: =B41 -> 0 | C13: =C41 -> 0 | U13: Anno | V13: 2018 | AH13: 2019 | AT13: 2020 | BF13: 2021 | BR13: 2022 | CD13: 2023 | CP13: 2024 | DB13: 2025 | DN13: 2026
A14: Azienda beneficiaria | B14: Completamento organico (1=si;0=no) | C14: Sostituzione mezzo (1=si;0=no) | D14: Targa mezzo da sostituire | E14: Impiego (URBANO / EXTRAURBANO) | F14: Data prima immatricolazione mezzo sostituito | G14: DGR tetti di spesa | H14: Tipologia nuovo mezzo (selezionare dall'elenco) | I14: Rastrelliera per biciclette (1=si;0=no) | J14: Metano LNG (1=si;0=no) | K14: Mezzo Myld hybrid (1=si;0=no) | L14: Costo preventivato unitario [€] | M14: CIG e note particolari | N14: DATA STIPULA CONTRATTO entro 31/10/2022 | O14: Investimento sul cratere sisma 2016 (1=si;0=no) | P14: intervento liquidato (1=si;0=no) | Q14: Alimentaz. | R14: Spesa max ammissibile unitaria | S14: Contributo unitario | U14: Id / Mese | V14: 1 | W14: 2 | X14: 3 | Y14: 4 | Z14: 5 | AA14: 6 | AB14: 7 | AC14: 8 | AD14: 9 | AE14: 10 | AF14: 11 | AG14: 12 | AH14: 1 | AI14: 2 | AJ14: 3 | AK14: 4 | AL14: 5 | AM14: 6 | AN14: 7 | AO14: 8 | AP14: 9 | AQ14: 10 | AR14: 11 | AS14: 12 | AT14: 1 | AU14: 2 | AV14: 3 | AW14: 4 | AX14: 5 | AY14: 6 | AZ14: 7 | BA14: 8 | BB14: 9 | BC14: 10 | BD14: 11 | BE14: 12 | BF14: 1 | BG14: 2 | BH14: 3 | BI14: 4 | BJ14: 5 | BK14: 6 | BL14: 7 | BM14: 8 | BN14: 9 | BO14: 10 | BP14: 11 | BQ14: 12 | BR14: 1 | BS14: 2 | BT14: 3 | BU14: 4 | BV14: 5 | BW14: 6 | BX14: 7 | BY14: 8 | BZ14: 9 | CA14: 10 | CB14: 11 | CC14: 12 | CD14: 1 | CE14: 2 | CF14: 3 | CG14: 4 | CH14: 5 | CI14: 6 | CJ14: 7 | CK14: 8 | CL14: 9 | CM14: 10 | CN14: 11 | CO14: 12 | CP14: 1 | CQ14: 2 | CR14: 3 | CS14: 4 | CT14: 5 | CU14: 6 | CV14: 7 | CW14: 8 | CX14: 9 | CY14: 10 | CZ14: 11 | DA14: 12 | DB14: 1 | DC14: 2 | DD14: 3 | DE14: 4 | DF14: 5 | DG14: 6 | DH14: 7 | DI14: 8 | DJ14: 9 | DK14: 10 | DL14: 11 | DM14: 12 | DN14: 1 | DO14: 2 | DP14: 3 | DQ14: 4 | DR14: 5 | DS14: 6 | DT14: 7 | DU14: 8 | DV14: 9 | DW14: 10 | DX14: 11 | DY14: 12
M15: =IF(L15<>0,"COMPILARE","") ->  | Q15: =IFERROR(VLOOKUP(H15,TettiDGR300!$J$2:$L74,3,FALSE), "") ->  | R15: =IF(H15="",0,IF(AND(G15="DGR300_2023",J15=1,K15=1),VLOOKUP(H15,TettiDGR300!$J$2:$N$74,5,FALSE),IF(AND(G15="DGR300_2023",J15=1),VLOOKUP(H15,TettiDGR300!$J$2:$N$74,4,FALSE),IF(AND(G15="DGR300_2023",K15=1),VLOOKUP(H15,TettiDGR300!$J$2:$N$74,5,FALSE),IF(G15="DGR300_2023",VLOOKUP(H15,TettiDGR300!$J$2:$N$74,2,FALSE),IF(AND(G15="DGR1233_2021",J15=1,K15=1),VLOOKUP(H15,TettiDGR1233!$J$2:$N$74,5,FALSE),IF(AND(G15="DGR1233_2021",J15=1),VLOOKUP(H15,TettiDGR1233!$J$2:$N$74,4,FALSE),IF(AND(G15="DGR1233_2021",K15=1),VLOOKUP(H15,TettiDGR1233!$J$2:$N$74,5,FALSE),VLOOKUP(H15,TettiDGR1233!$J$2:$N$74,2,FALSE))))))))) -> 0 | S15: =IF(L15<R15,L15*PERCCONTRIB,R15*PERCCONTRIB) -> 0 | U15: 1
Q16: =IFERROR(VLOOKUP(H16,TettiDGR300!$J$2:$L75,3,FALSE), "") ->  | R16: =IF(H16="",0,IF(AND(G16="DGR300_2023",J16=1,K16=1),VLOOKUP(H16,TettiDGR300!$J$2:$N$74,5,FALSE),IF(AND(G16="DGR300_2023",J16=1),VLOOKUP(H16,TettiDGR300!$J$2:$N$74,4,FALSE),IF(AND(G16="DGR300_2023",K16=1),VLOOKUP(H16,TettiDGR300!$J$2:$N$74,5,FALSE),IF(G16="DGR300_2023",VLOOKUP(H16,TettiDGR300!$J$2:$N$74,2,FALSE),IF(AND(G16="DGR1233_2021",J16=1,K16=1),VLOOKUP(H16,TettiDGR1233!$J$2:$N$74,5,FALSE),IF(AND(G16="DGR1233_2021",J16=1),VLOOKUP(H16,TettiDGR1233!$J$2:$N$74,4,FALSE),IF(AND(G16="DGR1233_2021",K16=1),VLOOKUP(H16,TettiDGR1233!$J$2:$N$74,5,FALSE),VLOOKUP(H16,TettiDGR1233!$J$2:$N$74,2,FALSE))))))))) -> 0 | S16: =IF(L16<R16,L16*PERCCONTRIB,R16*PERCCONTRIB) -> 0 | U16: 2
Q17: =IFERROR(VLOOKUP(H17,TettiDGR300!$J$2:$L76,3,FALSE), "") ->  | R17: =IF(H17="",0,IF(AND(G17="DGR300_2023",J17=1,K17=1),VLOOKUP(H17,TettiDGR300!$J$2:$N$74,5,FALSE),IF(AND(G17="DGR300_2023",J17=1),VLOOKUP(H17,TettiDGR300!$J$2:$N$74,4,FALSE),IF(AND(G17="DGR300_2023",K17=1),VLOOKUP(H17,TettiDGR300!$J$2:$N$74,5,FALSE),IF(G17="DGR300_2023",VLOOKUP(H17,TettiDGR300!$J$2:$N$74,2,FALSE),IF(AND(G17="DGR1233_2021",J17=1,K17=1),VLOOKUP(H17,TettiDGR1233!$J$2:$N$74,5,FALSE),IF(AND(G17="DGR1233_2021",J17=1),VLOOKUP(H17,TettiDGR1233!$J$2:$N$74,4,FALSE),IF(AND(G17="DGR1233_2021",K17=1),VLOOKUP(H17,TettiDGR1233!$J$2:$N$74,5,FALSE),VLOOKUP(H17,TettiDGR1233!$J$2:$N$74,2,FALSE))))))))) -> 0 | S17: 0 | U17: 3
Q18: =IFERROR(VLOOKUP(H18,TettiDGR300!$J$2:$L77,3,FALSE), "") ->  | R18: =IF(H18="",0,IF(AND(G18="DGR300_2023",J18=1,K18=1),VLOOKUP(H18,TettiDGR300!$J$2:$N$74,5,FALSE),IF(AND(G18="DGR300_2023",J18=1),VLOOKUP(H18,TettiDGR300!$J$2:$N$74,4,FALSE),IF(AND(G18="DGR300_2023",K18=1),VLOOKUP(H18,TettiDGR300!$J$2:$N$74,5,FALSE),IF(G18="DGR300_2023",VLOOKUP(H18,TettiDGR300!$J$2:$N$74,2,FALSE),IF(AND(G18="DGR1233_2021",J18=1,K18=1),VLOOKUP(H18,TettiDGR1233!$J$2:$N$74,5,FALSE),IF(AND(G18="DGR1233_2021",J18=1),VLOOKUP(H18,TettiDGR1233!$J$2:$N$74,4,FALSE),IF(AND(G18="DGR1233_2021",K18=1),VLOOKUP(H18,TettiDGR1233!$J$2:$N$74,5,FALSE),VLOOKUP(H18,TettiDGR1233!$J$2:$N$74,2,FALSE))))))))) -> 0 | S18: 0 | U18: 4
Q19: =IFERROR(VLOOKUP(H19,TettiDGR300!$J$2:$L78,3,FALSE), "") ->  | R19: =IF(H19="",0,IF(AND(G19="DGR300_2023",J19=1,K19=1),VLOOKUP(H19,TettiDGR300!$J$2:$N$74,5,FALSE),IF(AND(G19="DGR300_2023",J19=1),VLOOKUP(H19,TettiDGR300!$J$2:$N$74,4,FALSE),IF(AND(G19="DGR300_2023",K19=1),VLOOKUP(H19,TettiDGR300!$J$2:$N$74,5,FALSE),IF(G19="DGR300_2023",VLOOKUP(H19,TettiDGR300!$J$2:$N$74,2,FALSE),IF(AND(G19="DGR1233_2021",J19=1,K19=1),VLOOKUP(H19,TettiDGR1233!$J$2:$N$74,5,FALSE),IF(AND(G19="DGR1233_2021",J19=1),VLOOKUP(H19,TettiDGR1233!$J$2:$N$74,4,FALSE),IF(AND(G19="DGR1233_2021",K19=1),VLOOKUP(H19,TettiDGR1233!$J$2:$N$74,5,FALSE),VLOOKUP(H19,TettiDGR1233!$J$2:$N$74,2,FALSE))))))))) -> 0 | S19: 0 | U19: 5
Q20: =IFERROR(VLOOKUP(H20,TettiDGR300!$J$2:$L79,3,FALSE), "") ->  | R20: =IF(H20="",0,IF(AND(G20="DGR300_2023",J20=1,K20=1),VLOOKUP(H20,TettiDGR300!$J$2:$N$74,5,FALSE),IF(AND(G20="DGR300_2023",J20=1),VLOOKUP(H20,TettiDGR300!$J$2:$N$74,4,FALSE),IF(AND(G20="DGR300_2023",K20=1),VLOOKUP(H20,TettiDGR300!$J$2:$N$74,5,FALSE),IF(G20="DGR300_2023",VLOOKUP(H20,TettiDGR300!$J$2:$N$74,2,FALSE),IF(AND(G20="DGR1233_2021",J20=1,K20=1),VLOOKUP(H20,TettiDGR1233!$J$2:$N$74,5,FALSE),IF(AND(G20="DGR1233_2021",J20=1),VLOOKUP(H20,TettiDGR1233!$J$2:$N$74,4,FALSE),IF(AND(G20="DGR1233_2021",K20=1),VLOOKUP(H20,TettiDGR1233!$J$2:$N$74,5,FALSE),VLOOKUP(H20,TettiDGR1233!$J$2:$N$74,2,FALSE))))))))) -> 0 | S20: 0 | U20: 6
Q21: =IFERROR(VLOOKUP(H21,TettiDGR300!$J$2:$L80,3,FALSE), "") ->  | R21: =IF(H21="",0,IF(AND(G21="DGR300_2023",J21=1,K21=1),VLOOKUP(H21,TettiDGR300!$J$2:$N$74,5,FALSE),IF(AND(G21="DGR300_2023",J21=1),VLOOKUP(H21,TettiDGR300!$J$2:$N$74,4,FALSE),IF(AND(G21="DGR300_2023",K21=1),VLOOKUP(H21,TettiDGR300!$J$2:$N$74,5,FALSE),IF(G21="DGR300_2023",VLOOKUP(H21,TettiDGR300!$J$2:$N$74,2,FALSE),IF(AND(G21="DGR1233_2021",J21=1,K21=1),VLOOKUP(H21,TettiDGR1233!$J$2:$N$74,5,FALSE),IF(AND(G21="DGR1233_2021",J21=1),VLOOKUP(H21,TettiDGR1233!$J$2:$N$74,4,FALSE),IF(AND(G21="DGR1233_2021",K21=1),VLOOKUP(H21,TettiDGR1233!$J$2:$N$74,5,FALSE),VLOOKUP(H21,TettiDGR1233!$J$2:$N$74,2,FALSE))))))))) -> 0 | S21: 0 | U21: 7
Q22: =IFERROR(VLOOKUP(H22,TettiDGR300!$J$2:$L81,3,FALSE), "") ->  | R22: =IF(H22="",0,IF(AND(G22="DGR300_2023",J22=1,K22=1),VLOOKUP(H22,TettiDGR300!$J$2:$N$74,5,FALSE),IF(AND(G22="DGR300_2023",J22=1),VLOOKUP(H22,TettiDGR300!$J$2:$N$74,4,FALSE),IF(AND(G22="DGR300_2023",K22=1),VLOOKUP(H22,TettiDGR300!$J$2:$N$74,5,FALSE),IF(G22="DGR300_2023",VLOOKUP(H22,TettiDGR300!$J$2:$N$74,2,FALSE),IF(AND(G22="DGR1233_2021",J22=1,K22=1),VLOOKUP(H22,TettiDGR1233!$J$2:$N$74,5,FALSE),IF(AND(G22="DGR1233_2021",J22=1),VLOOKUP(H22,TettiDGR1233!$J$2:$N$74,4,FALSE),IF(AND(G22="DGR1233_2021",K22=1),VLOOKUP(H22,TettiDGR1233!$J$2:$N$74,5,FALSE),VLOOKUP(H22,TettiDGR1233!$J$2:$N$74,2,FALSE))))))))) -> 0 | S22: 0 | U22: 8
Q23: =IFERROR(VLOOKUP(H23,TettiDGR300!$J$2:$L82,3,FALSE), "") ->  | R23: =IF(H23="",0,IF(AND(G23="DGR300_2023",J23=1,K23=1),VLOOKUP(H23,TettiDGR300!$J$2:$N$74,5,FALSE),IF(AND(G23="DGR300_2023",J23=1),VLOOKUP(H23,TettiDGR300!$J$2:$N$74,4,FALSE),IF(AND(G23="DGR300_2023",K23=1),VLOOKUP(H23,TettiDGR300!$J$2:$N$74,5,FALSE),IF(G23="DGR300_2023",VLOOKUP(H23,TettiDGR300!$J$2:$N$74,2,FALSE),IF(AND(G23="DGR1233_2021",J23=1,K23=1),VLOOKUP(H23,TettiDGR1233!$J$2:$N$74,5,FALSE),IF(AND(G23="DGR1233_2021",J23=1),VLOOKUP(H23,TettiDGR1233!$J$2:$N$74,4,FALSE),IF(AND(G23="DGR1233_2021",K23=1),VLOOKUP(H23,TettiDGR1233!$J$2:$N$74,5,FALSE),VLOOKUP(H23,TettiDGR1233!$J$2:$N$74,2,FALSE))))))))) -> 0 | S23: 0 | U23: 9
Q24: =IFERROR(VLOOKUP(H24,TettiDGR300!$J$2:$L83,3,FALSE), "") ->  | R24: =IF(H24="",0,IF(AND(G24="DGR300_2023",J24=1,K24=1),VLOOKUP(H24,TettiDGR300!$J$2:$N$74,5,FALSE),IF(AND(G24="DGR300_2023",J24=1),VLOOKUP(H24,TettiDGR300!$J$2:$N$74,4,FALSE),IF(AND(G24="DGR300_2023",K24=1),VLOOKUP(H24,TettiDGR300!$J$2:$N$74,5,FALSE),IF(G24="DGR300_2023",VLOOKUP(H24,TettiDGR300!$J$2:$N$74,2,FALSE),IF(AND(G24="DGR1233_2021",J24=1,K24=1),VLOOKUP(H24,TettiDGR1233!$J$2:$N$74,5,FALSE),IF(AND(G24="DGR1233_2021",J24=1),VLOOKUP(H24,TettiDGR1233!$J$2:$N$74,4,FALSE),IF(AND(G24="DGR1233_2021",K24=1),VLOOKUP(H24,TettiDGR1233!$J$2:$N$74,5,FALSE),VLOOKUP(H24,TettiDGR1233!$J$2:$N$74,2,FALSE))))))))) -> 0 | S24: 0 | U24: 10
Q25: =IFERROR(VLOOKUP(H25,TettiDGR300!$J$2:$L84,3,FALSE), "") ->  | R25: =IF(H25="",0,IF(AND(G25="DGR300_2023",J25=1,K25=1),VLOOKUP(H25,TettiDGR300!$J$2:$N$74,5,FALSE),IF(AND(G25="DGR300_2023",J25=1),VLOOKUP(H25,TettiDGR300!$J$2:$N$74,4,FALSE),IF(AND(G25="DGR300_2023",K25=1),VLOOKUP(H25,TettiDGR300!$J$2:$N$74,5,FALSE),IF(G25="DGR300_2023",VLOOKUP(H25,TettiDGR300!$J$2:$N$74,2,FALSE),IF(AND(G25="DGR1233_2021",J25=1,K25=1),VLOOKUP(H25,TettiDGR1233!$J$2:$N$74,5,FALSE),IF(AND(G25="DGR1233_2021",J25=1),VLOOKUP(H25,TettiDGR1233!$J$2:$N$74,4,FALSE),IF(AND(G25="DGR1233_2021",K25=1),VLOOKUP(H25,TettiDGR1233!$J$2:$N$74,5,FALSE),VLOOKUP(H25,TettiDGR1233!$J$2:$N$74,2,FALSE))))))))) -> 0 | S25: 0 | U25: 11
Q26: =IFERROR(VLOOKUP(H26,TettiDGR300!$J$2:$L85,3,FALSE), "") ->  | R26: =IF(H26="",0,IF(AND(G26="DGR300_2023",J26=1,K26=1),VLOOKUP(H26,TettiDGR300!$J$2:$N$74,5,FALSE),IF(AND(G26="DGR300_2023",J26=1),VLOOKUP(H26,TettiDGR300!$J$2:$N$74,4,FALSE),IF(AND(G26="DGR300_2023",K26=1),VLOOKUP(H26,TettiDGR300!$J$2:$N$74,5,FALSE),IF(G26="DGR300_2023",VLOOKUP(H26,TettiDGR300!$J$2:$N$74,2,FALSE),IF(AND(G26="DGR1233_2021",J26=1,K26=1),VLOOKUP(H26,TettiDGR1233!$J$2:$N$74,5,FALSE),IF(AND(G26="DGR1233_2021",J26=1),VLOOKUP(H26,TettiDGR1233!$J$2:$N$74,4,FALSE),IF(AND(G26="DGR1233_2021",K26=1),VLOOKUP(H26,TettiDGR1233!$J$2:$N$74,5,FALSE),VLOOKUP(H26,TettiDGR1233!$J$2:$N$74,2,FALSE))))))))) -> 0 | S26: 0 | U26: 12
Q27: =IFERROR(VLOOKUP(H27,TettiDGR300!$J$2:$L86,3,FALSE), "") ->  | R27: =IF(H27="",0,IF(AND(G27="DGR300_2023",J27=1,K27=1),VLOOKUP(H27,TettiDGR300!$J$2:$N$74,5,FALSE),IF(AND(G27="DGR300_2023",J27=1),VLOOKUP(H27,TettiDGR300!$J$2:$N$74,4,FALSE),IF(AND(G27="DGR300_2023",K27=1),VLOOKUP(H27,TettiDGR300!$J$2:$N$74,5,FALSE),IF(G27="DGR300_2023",VLOOKUP(H27,TettiDGR300!$J$2:$N$74,2,FALSE),IF(AND(G27="DGR1233_2021",J27=1,K27=1),VLOOKUP(H27,TettiDGR1233!$J$2:$N$74,5,FALSE),IF(AND(G27="DGR1233_2021",J27=1),VLOOKUP(H27,TettiDGR1233!$J$2:$N$74,4,FALSE),IF(AND(G27="DGR1233_2021",K27=1),VLOOKUP(H27,TettiDGR1233!$J$2:$N$74,5,FALSE),VLOOKUP(H27,TettiDGR1233!$J$2:$N$74,2,FALSE))))))))) -> 0 | S27: 0 | U27: 13
Q28: =IFERROR(VLOOKUP(H28,TettiDGR300!$J$2:$L87,3,FALSE), "") ->  | R28: =IF(H28="",0,IF(AND(G28="DGR300_2023",J28=1,K28=1),VLOOKUP(H28,TettiDGR300!$J$2:$N$74,5,FALSE),IF(AND(G28="DGR300_2023",J28=1),VLOOKUP(H28,TettiDGR300!$J$2:$N$74,4,FALSE),IF(AND(G28="DGR300_2023",K28=1),VLOOKUP(H28,TettiDGR300!$J$2:$N$74,5,FALSE),IF(G28="DGR300_2023",VLOOKUP(H28,TettiDGR300!$J$2:$N$74,2,FALSE),IF(AND(G28="DGR1233_2021",J28=1,K28=1),VLOOKUP(H28,TettiDGR1233!$J$2:$N$74,5,FALSE),IF(AND(G28="DGR1233_2021",J28=1),VLOOKUP(H28,TettiDGR1233!$J$2:$N$74,4,FALSE),IF(AND(G28="DGR1233_2021",K28=1),VLOOKUP(H28,TettiDGR1233!$J$2:$N$74,5,FALSE),VLOOKUP(H28,TettiDGR1233!$J$2:$N$74,2,FALSE))))))))) -> 0 | S28: 0 | U28: 14
Q29: =IFERROR(VLOOKUP(H29,TettiDGR300!$J$2:$L88,3,FALSE), "") ->  | R29: =IF(H29="",0,IF(AND(G29="DGR300_2023",J29=1,K29=1),VLOOKUP(H29,TettiDGR300!$J$2:$N$74,5,FALSE),IF(AND(G29="DGR300_2023",J29=1),VLOOKUP(H29,TettiDGR300!$J$2:$N$74,4,FALSE),IF(AND(G29="DGR300_2023",K29=1),VLOOKUP(H29,TettiDGR300!$J$2:$N$74,5,FALSE),IF(G29="DGR300_2023",VLOOKUP(H29,TettiDGR300!$J$2:$N$74,2,FALSE),IF(AND(G29="DGR1233_2021",J29=1,K29=1),VLOOKUP(H29,TettiDGR1233!$J$2:$N$74,5,FALSE),IF(AND(G29="DGR1233_2021",J29=1),VLOOKUP(H29,TettiDGR1233!$J$2:$N$74,4,FALSE),IF(AND(G29="DGR1233_2021",K29=1),VLOOKUP(H29,TettiDGR1233!$J$2:$N$74,5,FALSE),VLOOKUP(H29,TettiDGR1233!$J$2:$N$74,2,FALSE))))))))) -> 0 | S29: 0 | U29: 15
A30: DATI RIEPILOGATIVI PER LE INFRASTRUTTURE DI RIFORNIMENTO/RICARICA Azienda beneficiaria | B30: Id intervento (inserire il codice indentif. già inserito nella scheda dedicata) | C30: Nuova realizzazione (0) - Ristrutturazione e/o ampliamento (1) | D30: Comune | E30: Località | F30: Investimento già parzialmente finanziato da altra misura pubblica | H30: Tipologia intervento | I30: N. colonnine ricarica bus per sito | J30: Utilizzo infrastruttura da più operatori (1=si;0=no) | K30: Intervento allocato su più annualità (1=si;0=no) | L30: Importo complessivo dell'intervento [€] | M30: CIG e note particolari | N30: DATA STIPULA CONTRATTO | O30: Investimento sul cratere sisma 2016 (1=si;0=no) | P30: intervento liquidato (1=si;0=no) | Q30: Alimentaz. | R30: Costo allocato sull'anno in esame [€] | S30: Quota contributo sull'anno [€] | U30: Indicare il cronoprogramma delle attività per ogni intervento secondo le tre tipologie in legenda
B31: =IF(OR($B$4="DM 223/2020 - MIT",$B$4="FSC (D.Cipe 98/2017)"),"XXXX","") -> XXXX | L31: =IF(OR($B$4="DM 223/2020 - MIT",$B$4="FSC (D.Cipe 98/2017)"),"XXXX","") -> XXXX | M31: =IF(OR($B$4="DM 223/2020 - MIT",$B$4="FSC (D.Cipe 98/2017)"),"Il fondo prescelto non ammette infrastrutture","") -> Il fondo prescelto non ammette infrastrutture | Q31: =IFERROR(VLOOKUP(H31,Infrastrutture!$A$2:$B$9,2,FALSE), "") ->  | S31: =IF(L31<R31,"ERRORE",R31*PERCCONTRIB) -> 0 | U31: 20
B32: XXXX | L32: XXXX | M32: =IF(OR($B$4="DM 223/2020 - MIT",$B$4="FSC (D.Cipe 98/2017)"),"Il fondo prescelto non ammette infrastrutture","") -> Il fondo prescelto non ammette infrastrutture | Q32: =IFERROR(VLOOKUP(H32,Infrastrutture!$A$2:$B$9,2,FALSE), "") ->  | S32: 0 | U32: 21
B33: XXXX | L33: XXXX | M33: Il fondo prescelto non ammette infrastrutture | Q33: =IFERROR(VLOOKUP(H33,Infrastrutture!$A$2:$B$9,2,FALSE), "") ->  | S33: 0 | U33: 22
B34: XXXX | L34: XXXX | M34: Il fondo prescelto non ammette infrastrutture | Q34: =IFERROR(VLOOKUP(H34,Infrastrutture!$A$2:$B$9,2,FALSE), "") ->  | S34: 0 | U34: 23
B35: XXXX | L35: XXXX | M35: Il fondo prescelto non ammette infrastrutture | Q35: =IFERROR(VLOOKUP(H35,Infrastrutture!$A$2:$B$9,2,FALSE), "") ->  | S35: 0 | U35: 24
B36: XXXX | L36: XXXX | M36: Il fondo prescelto non ammette infrastrutture | Q36: =IFERROR(VLOOKUP(H36,Infrastrutture!$A$2:$B$9,2,FALSE), "") ->  | S36: 0 | U36: 25
B37: XXXX | L37: XXXX | M37: Il fondo prescelto non ammette infrastrutture | Q37: =IFERROR(VLOOKUP(H37,Infrastrutture!$A$2:$B$9,2,FALSE), "") ->  | S37: 0 | U37: 26
B38: XXXX | L38: XXXX | M38: Il fondo prescelto non ammette infrastrutture | Q38: =IFERROR(VLOOKUP(H38,Infrastrutture!$A$2:$B$9,2,FALSE), "") ->  | S38: 0 | U38: 27
B39: XXXX | L39: XXXX | M39: Il fondo prescelto non ammette infrastrutture | Q39: =IFERROR(VLOOKUP(H39,Infrastrutture!$A$2:$B$9,2,FALSE), "") ->  | S39: 0 | U39: 28
B40: XXXX | L40: XXXX | M40: Il fondo prescelto non ammette infrastrutture | Q40: =IFERROR(VLOOKUP(H40,Infrastrutture!$A$2:$B$9,2,FALSE), "") ->  | S40: 0 | U40: 29
A41: TOTALI AUTOBUS | B41: =SUM(B15:B29) -> 0 | C41: =SUM(C15:C29) -> 0 | O41: =+SUM(O15:O29) -> 0 | R41: =SUM(R15:R29) -> 0 | S41: =SUM(S15:S29) -> 0
A42: TOTALI INFRASTRUTTURE | O42: =+SUM(O31:O40) -> 0 | R42: =+SUM(R31:R40) -> 0 | S42: =+SUM(S31:S40) -> 0
A43: TOTALI GENERALE | R43: =+R41+R42 -> 0 | S43: =+SUM(S32:S41) -> 0

Sheet DM 223_2024
A1: Piano investimenti di bacino - D.G.R. 647 del 30 maggio 2022 - REGIONE MARCHE - Assessorato trasporti e reti regionali di trasporto. | U1: CRONOPROGRAMMA DEGLI INVESTIMENTI
A3: Ambito territoriale | B3: FM | F3: celle a fondo bianco da compilare obbligatoriamente direttamente o con menu a tendina | I3: Data compilazione | V3: Legenda:
A4: Fonte di finanziamento | B4: DM 223/2020 - MIT | F4: celle a fondo arancio compilate automaticamente | I4: Referente compilaz. | V4: 1 | W4: Espletamento gara
A5: Annualità | B5: 2024 | F5: Valori economici al netto dell'IVA | I5: Telefono di contatto | V5: 2 | W5: Stipula contratto
A6: K2 | B6: =B4&"_"&B5&"_"&B3 -> DM 223/2020 - MIT_2024_FM
A7: Contributo max assegnabile | B7: =VLOOKUP($B$6,'Assegnazione fondi'!$D$2:$G$208,3,FALSE) -> 248338.5239 | D7: Contributo tot. assegnato | F7: =+S43 -> 0 | I7: e-mail | V7: 3 | W7: Completamento fornitura
A8: % contribuzione sul costo d'acquisto | B8: =VLOOKUP($B$6,'Assegnazione fondi'!$D$2:$G$201,4,FALSE) -> 0.8 | D8: N. mezzi tot. da acquisire | F8: =B41+C41 -> 0
A9: Residuo annualità precedenti | B9: ='DM 223_2023'!F10 -> 1851322.133 | D9: di cui Residuo 2018-2021 | F9: ='DM 223_2021'!F10 -> 1253702.561
A10: =+IF(B4="DM 81/2020 - PSNMS", "Importo da utilizzare per infrastrutture (di cui del contributo max)","Contributo max assegnabile per ventuali infrastrutture (di cui del contributo max)") -> Contributo max assegnabile per ventuali infrastrutture (di cui del contributo max) | B10: =VLOOKUP($B$6,'Assegnazione fondi'!$D$2:$G$208,2,FALSE) -> 0 | D10: Residuo sull'anno | F10: =+TOTIMP-F7+B9 -> 2099660.657
A12: DATI RIEPILOGATIVI SUGLI AUTOBUS DA ACQUISIRE | B12: Per complet. organico n. | C12: Per rinnovo parco n. | D12: Compilare un foglio per ogni fondo di finanziamento, per ogni annualità | U12: Indicare il cronoprogramma delle attività per ogni mezzo secondo le tre tipologie in legenda
B13: =B41 -> 0 | C13: =C41 -> 0 | U13: Anno | V13: 2018 | AH13: 2019 | AT13: 2020 | BF13: 2021 | BR13: 2022 | CD13: 2023 | CP13: 2024 | DB13: 2025 | DN13: 2026
A14: Azienda beneficiaria | B14: Completamento organico (1=si;0=no) | C14: Sostituzione mezzo (1=si;0=no) | D14: Targa mezzo da sostituire | E14: Impiego (URBANO / EXTRAURBANO) | F14: Data prima immatricolazione mezzo sostituito | G14: DGR tetti di spesa | H14: Tipologia nuovo mezzo (selezionare dall'elenco) | I14: Rastrelliera per biciclette (1=si;0=no) | J14: Metano LNG (1=si;0=no) | K14: Mezzo Myld hybrid (1=si;0=no) | L14: Costo preventivato unitario [€] | M14: CIG e note particolari | N14: DATA STIPULA CONTRATTO entro 31/10/2022 | O14: Investimento sul cratere sisma 2016 (1=si;0=no) | P14: intervento liquidato (1=si;0=no) | Q14: Alimentaz. | R14: Spesa max ammissibile unitaria | S14: Contributo unitario | U14: Id / Mese | V14: 1 | W14: 2 | X14: 3 | Y14: 4 | Z14: 5 | AA14: 6 | AB14: 7 | AC14: 8 | AD14: 9 | AE14: 10 | AF14: 11 | AG14: 12 | AH14: 1 | AI14: 2 | AJ14: 3 | AK14: 4 | AL14: 5 | AM14: 6 | AN14: 7 | AO14: 8 | AP14: 9 | AQ14: 10 | AR14: 11 | AS14: 12 | AT14: 1 | AU14: 2 | AV14: 3 | AW14: 4 | AX14: 5 | AY14: 6 | AZ14: 7 | BA14: 8 | BB14: 9 | BC14: 10 | BD14: 11 | BE14: 12 | BF14: 1 | BG14: 2 | BH14: 3 | BI14: 4 | BJ14: 5 | BK14: 6 | BL14: 7 | BM14: 8 | BN14: 9 | BO14: 10 | BP14: 11 | BQ14: 12 | BR14: 1 | BS14: 2 | BT14: 3 | BU14: 4 | BV14: 5 | BW14: 6 | BX14: 7 | BY14: 8 | BZ14: 9 | CA14: 10 | CB14: 11 | CC14: 12 | CD14: 1 | CE14: 2 | CF14: 3 | CG14: 4 | CH14: 5 | CI14: 6 | CJ14: 7 | CK14: 8 | CL14: 9 | CM14: 10 | CN14: 11 | CO14: 12 | CP14: 1 | CQ14: 2 | CR14: 3 | CS14: 4 | CT14: 5 | CU14: 6 | CV14: 7 | CW14: 8 | CX14: 9 | CY14: 10 | CZ14: 11 | DA14: 12 | DB14: 1 | DC14: 2 | DD14: 3 | DE14: 4 | DF14: 5 | DG14: 6 | DH14: 7 | DI14: 8 | DJ14: 9 | DK14: 10 | DL14: 11 | DM14: 12 | DN14: 1 | DO14: 2 | DP14: 3 | DQ14: 4 | DR14: 5 | DS14: 6 | DT14: 7 | DU14: 8 | DV14: 9 | DW14: 10 | DX14: 11 | DY14: 12
M15: =IF(L15<>0,"COMPILARE","") ->  | Q15: =IFERROR(VLOOKUP(H15,TettiDGR300!$J$2:$L74,3,FALSE), "") ->  | R15: =IF(H15="",0,IF(AND(G15="DGR300_2023",J15=1,K15=1),VLOOKUP(H15,TettiDGR300!$J$2:$N$74,5,FALSE),IF(AND(G15="DGR300_2023",J15=1),VLOOKUP(H15,TettiDGR300!$J$2:$N$74,4,FALSE),IF(AND(G15="DGR300_2023",K15=1),VLOOKUP(H15,TettiDGR300!$J$2:$N$74,5,FALSE),IF(G15="DGR300_2023",VLOOKUP(H15,TettiDGR300!$J$2:$N$74,2,FALSE),IF(AND(G15="DGR1233_2021",J15=1,K15=1),VLOOKUP(H15,TettiDGR1233!$J$2:$N$74,5,FALSE),IF(AND(G15="DGR1233_2021",J15=1),VLOOKUP(H15,TettiDGR1233!$J$2:$N$74,4,FALSE),IF(AND(G15="DGR1233_2021",K15=1),VLOOKUP(H15,TettiDGR1233!$J$2:$N$74,5,FALSE),VLOOKUP(H15,TettiDGR1233!$J$2:$N$74,2,FALSE))))))))) -> 0 | S15: =IF(L15<R15,L15*PERCCONTRIB,R15*PERCCONTRIB) -> 0 | U15: 1
Q16: =IFERROR(VLOOKUP(H16,TettiDGR300!$J$2:$L75,3,FALSE), "") ->  | R16: =IF(H16="",0,IF(AND(G16="DGR300_2023",J16=1,K16=1),VLOOKUP(H16,TettiDGR300!$J$2:$N$74,5,FALSE),IF(AND(G16="DGR300_2023",J16=1),VLOOKUP(H16,TettiDGR300!$J$2:$N$74,4,FALSE),IF(AND(G16="DGR300_2023",K16=1),VLOOKUP(H16,TettiDGR300!$J$2:$N$74,5,FALSE),IF(G16="DGR300_2023",VLOOKUP(H16,TettiDGR300!$J$2:$N$74,2,FALSE),IF(AND(G16="DGR1233_2021",J16=1,K16=1),VLOOKUP(H16,TettiDGR1233!$J$2:$N$74,5,FALSE),IF(AND(G16="DGR1233_2021",J16=1),VLOOKUP(H16,TettiDGR1233!$J$2:$N$74,4,FALSE),IF(AND(G16="DGR1233_2021",K16=1),VLOOKUP(H16,TettiDGR1233!$J$2:$N$74,5,FALSE),VLOOKUP(H16,TettiDGR1233!$J$2:$N$74,2,FALSE))))))))) -> 0 | S16: 0 | U16: 2
Q17: =IFERROR(VLOOKUP(H17,TettiDGR300!$J$2:$L76,3,FALSE), "") ->  | R17: =IF(H17="",0,IF(AND(G17="DGR300_2023",J17=1,K17=1),VLOOKUP(H17,TettiDGR300!$J$2:$N$74,5,FALSE),IF(AND(G17="DGR300_2023",J17=1),VLOOKUP(H17,TettiDGR300!$J$2:$N$74,4,FALSE),IF(AND(G17="DGR300_2023",K17=1),VLOOKUP(H17,TettiDGR300!$J$2:$N$74,5,FALSE),IF(G17="DGR300_2023",VLOOKUP(H17,TettiDGR300!$J$2:$N$74,2,FALSE),IF(AND(G17="DGR1233_2021",J17=1,K17=1),VLOOKUP(H17,TettiDGR1233!$J$2:$N$74,5,FALSE),IF(AND(G17="DGR1233_2021",J17=1),VLOOKUP(H17,TettiDGR1233!$J$2:$N$74,4,FALSE),IF(AND(G17="DGR1233_2021",K17=1),VLOOKUP(H17,TettiDGR1233!$J$2:$N$74,5,FALSE),VLOOKUP(H17,TettiDGR1233!$J$2:$N$74,2,FALSE))))))))) -> 0 | S17: =IF(L17<R17,L17*PERCCONTRIB,R17*PERCCONTRIB) -> 0 | U17: 3
Q18: =IFERROR(VLOOKUP(H18,TettiDGR300!$J$2:$L77,3,FALSE), "") ->  | R18: =IF(H18="",0,IF(AND(G18="DGR300_2023",J18=1,K18=1),VLOOKUP(H18,TettiDGR300!$J$2:$N$74,5,FALSE),IF(AND(G18="DGR300_2023",J18=1),VLOOKUP(H18,TettiDGR300!$J$2:$N$74,4,FALSE),IF(AND(G18="DGR300_2023",K18=1),VLOOKUP(H18,TettiDGR300!$J$2:$N$74,5,FALSE),IF(G18="DGR300_2023",VLOOKUP(H18,TettiDGR300!$J$2:$N$74,2,FALSE),IF(AND(G18="DGR1233_2021",J18=1,K18=1),VLOOKUP(H18,TettiDGR1233!$J$2:$N$74,5,FALSE),IF(AND(G18="DGR1233_2021",J18=1),VLOOKUP(H18,TettiDGR1233!$J$2:$N$74,4,FALSE),IF(AND(G18="DGR1233_2021",K18=1),VLOOKUP(H18,TettiDGR1233!$J$2:$N$74,5,FALSE),VLOOKUP(H18,TettiDGR1233!$J$2:$N$74,2,FALSE))))))))) -> 0 | S18: 0 | U18: 4
Q19: =IFERROR(VLOOKUP(H19,TettiDGR300!$J$2:$L78,3,FALSE), "") ->  | R19: =IF(H19="",0,IF(AND(G19="DGR300_2023",J19=1,K19=1),VLOOKUP(H19,TettiDGR300!$J$2:$N$74,5,FALSE),IF(AND(G19="DGR300_2023",J19=1),VLOOKUP(H19,TettiDGR300!$J$2:$N$74,4,FALSE),IF(AND(G19="DGR300_2023",K19=1),VLOOKUP(H19,TettiDGR300!$J$2:$N$74,5,FALSE),IF(G19="DGR300_2023",VLOOKUP(H19,TettiDGR300!$J$2:$N$74,2,FALSE),IF(AND(G19="DGR1233_2021",J19=1,K19=1),VLOOKUP(H19,TettiDGR1233!$J$2:$N$74,5,FALSE),IF(AND(G19="DGR1233_2021",J19=1),VLOOKUP(H19,TettiDGR1233!$J$2:$N$74,4,FALSE),IF(AND(G19="DGR1233_2021",K19=1),VLOOKUP(H19,TettiDGR1233!$J$2:$N$74,5,FALSE),VLOOKUP(H19,TettiDGR1233!$J$2:$N$74,2,FALSE))))))))) -> 0 | S19: 0 | U19: 5
Q20: =IFERROR(VLOOKUP(H20,TettiDGR300!$J$2:$L79,3,FALSE), "") ->  | R20: =IF(H20="",0,IF(AND(G20="DGR300_2023",J20=1,K20=1),VLOOKUP(H20,TettiDGR300!$J$2:$N$74,5,FALSE),IF(AND(G20="DGR300_2023",J20=1),VLOOKUP(H20,TettiDGR300!$J$2:$N$74,4,FALSE),IF(AND(G20="DGR300_2023",K20=1),VLOOKUP(H20,TettiDGR300!$J$2:$N$74,5,FALSE),IF(G20="DGR300_2023",VLOOKUP(H20,TettiDGR300!$J$2:$N$74,2,FALSE),IF(AND(G20="DGR1233_2021",J20=1,K20=1),VLOOKUP(H20,TettiDGR1233!$J$2:$N$74,5,FALSE),IF(AND(G20="DGR1233_2021",J20=1),VLOOKUP(H20,TettiDGR1233!$J$2:$N$74,4,FALSE),IF(AND(G20="DGR1233_2021",K20=1),VLOOKUP(H20,TettiDGR1233!$J$2:$N$74,5,FALSE),VLOOKUP(H20,TettiDGR1233!$J$2:$N$74,2,FALSE))))))))) -> 0 | S20: 0 | U20: 6
Q21: =IFERROR(VLOOKUP(H21,TettiDGR300!$J$2:$L80,3,FALSE), "") ->  | R21: =IF(H21="",0,IF(AND(G21="DGR300_2023",J21=1,K21=1),VLOOKUP(H21,TettiDGR300!$J$2:$N$74,5,FALSE),IF(AND(G21="DGR300_2023",J21=1),VLOOKUP(H21,TettiDGR300!$J$2:$N$74,4,FALSE),IF(AND(G21="DGR300_2023",K21=1),VLOOKUP(H21,TettiDGR300!$J$2:$N$74,5,FALSE),IF(G21="DGR300_2023",VLOOKUP(H21,TettiDGR300!$J$2:$N$74,2,FALSE),IF(AND(G21="DGR1233_2021",J21=1,K21=1),VLOOKUP(H21,TettiDGR1233!$J$2:$N$74,5,FALSE),IF(AND(G21="DGR1233_2021",J21=1),VLOOKUP(H21,TettiDGR1233!$J$2:$N$74,4,FALSE),IF(AND(G21="DGR1233_2021",K21=1),VLOOKUP(H21,TettiDGR1233!$J$2:$N$74,5,FALSE),VLOOKUP(H21,TettiDGR1233!$J$2:$N$74,2,FALSE))))))))) -> 0 | S21: 0 | U21: 7
Q22: =IFERROR(VLOOKUP(H22,TettiDGR300!$J$2:$L81,3,FALSE), "") ->  | R22: =IF(H22="",0,IF(AND(G22="DGR300_2023",J22=1,K22=1),VLOOKUP(H22,TettiDGR300!$J$2:$N$74,5,FALSE),IF(AND(G22="DGR300_2023",J22=1),VLOOKUP(H22,TettiDGR300!$J$2:$N$74,4,FALSE),IF(AND(G22="DGR300_2023",K22=1),VLOOKUP(H22,TettiDGR300!$J$2:$N$74,5,FALSE),IF(G22="DGR300_2023",VLOOKUP(H22,TettiDGR300!$J$2:$N$74,2,FALSE),IF(AND(G22="DGR1233_2021",J22=1,K22=1),VLOOKUP(H22,TettiDGR1233!$J$2:$N$74,5,FALSE),IF(AND(G22="DGR1233_2021",J22=1),VLOOKUP(H22,TettiDGR1233!$J$2:$N$74,4,FALSE),IF(AND(G22="DGR1233_2021",K22=1),VLOOKUP(H22,TettiDGR1233!$J$2:$N$74,5,FALSE),VLOOKUP(H22,TettiDGR1233!$J$2:$N$74,2,FALSE))))))))) -> 0 | S22: 0 | U22: 8
Q23: =IFERROR(VLOOKUP(H23,TettiDGR300!$J$2:$L82,3,FALSE), "") ->  | R23: =IF(H23="",0,IF(AND(G23="DGR300_2023",J23=1,K23=1),VLOOKUP(H23,TettiDGR300!$J$2:$N$74,5,FALSE),IF(AND(G23="DGR300_2023",J23=1),VLOOKUP(H23,TettiDGR300!$J$2:$N$74,4,FALSE),IF(AND(G23="DGR300_2023",K23=1),VLOOKUP(H23,TettiDGR300!$J$2:$N$74,5,FALSE),IF(G23="DGR300_2023",VLOOKUP(H23,TettiDGR300!$J$2:$N$74,2,FALSE),IF(AND(G23="DGR1233_2021",J23=1,K23=1),VLOOKUP(H23,TettiDGR1233!$J$2:$N$74,5,FALSE),IF(AND(G23="DGR1233_2021",J23=1),VLOOKUP(H23,TettiDGR1233!$J$2:$N$74,4,FALSE),IF(AND(G23="DGR1233_2021",K23=1),VLOOKUP(H23,TettiDGR1233!$J$2:$N$74,5,FALSE),VLOOKUP(H23,TettiDGR1233!$J$2:$N$74,2,FALSE))))))))) -> 0 | S23: 0 | U23: 9
Q24: =IFERROR(VLOOKUP(H24,TettiDGR300!$J$2:$L83,3,FALSE), "") ->  | R24: =IF(H24="",0,IF(AND(G24="DGR300_2023",J24=1,K24=1),VLOOKUP(H24,TettiDGR300!$J$2:$N$74,5,FALSE),IF(AND(G24="DGR300_2023",J24=1),VLOOKUP(H24,TettiDGR300!$J$2:$N$74,4,FALSE),IF(AND(G24="DGR300_2023",K24=1),VLOOKUP(H24,TettiDGR300!$J$2:$N$74,5,FALSE),IF(G24="DGR300_2023",VLOOKUP(H24,TettiDGR300!$J$2:$N$74,2,FALSE),IF(AND(G24="DGR1233_2021",J24=1,K24=1),VLOOKUP(H24,TettiDGR1233!$J$2:$N$74,5,FALSE),IF(AND(G24="DGR1233_2021",J24=1),VLOOKUP(H24,TettiDGR1233!$J$2:$N$74,4,FALSE),IF(AND(G24="DGR1233_2021",K24=1),VLOOKUP(H24,TettiDGR1233!$J$2:$N$74,5,FALSE),VLOOKUP(H24,TettiDGR1233!$J$2:$N$74,2,FALSE))))))))) -> 0 | S24: 0 | U24: 10
Q25: =IFERROR(VLOOKUP(H25,TettiDGR300!$J$2:$L84,3,FALSE), "") ->  | R25: =IF(H25="",0,IF(AND(G25="DGR300_2023",J25=1,K25=1),VLOOKUP(H25,TettiDGR300!$J$2:$N$74,5,FALSE),IF(AND(G25="DGR300_2023",J25=1),VLOOKUP(H25,TettiDGR300!$J$2:$N$74,4,FALSE),IF(AND(G25="DGR300_2023",K25=1),VLOOKUP(H25,TettiDGR300!$J$2:$N$74,5,FALSE),IF(G25="DGR300_2023",VLOOKUP(H25,TettiDGR300!$J$2:$N$74,2,FALSE),IF(AND(G25="DGR1233_2021",J25=1,K25=1),VLOOKUP(H25,TettiDGR1233!$J$2:$N$74,5,FALSE),IF(AND(G25="DGR1233_2021",J25=1),VLOOKUP(H25,TettiDGR1233!$J$2:$N$74,4,FALSE),IF(AND(G25="DGR1233_2021",K25=1),VLOOKUP(H25,TettiDGR1233!$J$2:$N$74,5,FALSE),VLOOKUP(H25,TettiDGR1233!$J$2:$N$74,2,FALSE))))))))) -> 0 | S25: 0 | U25: 11
Q26: =IFERROR(VLOOKUP(H26,TettiDGR300!$J$2:$L85,3,FALSE), "") ->  | R26: =IF(H26="",0,IF(AND(G26="DGR300_2023",J26=1,K26=1),VLOOKUP(H26,TettiDGR300!$J$2:$N$74,5,FALSE),IF(AND(G26="DGR300_2023",J26=1),VLOOKUP(H26,TettiDGR300!$J$2:$N$74,4,FALSE),IF(AND(G26="DGR300_2023",K26=1),VLOOKUP(H26,TettiDGR300!$J$2:$N$74,5,FALSE),IF(G26="DGR300_2023",VLOOKUP(H26,TettiDGR300!$J$2:$N$74,2,FALSE),IF(AND(G26="DGR1233_2021",J26=1,K26=1),VLOOKUP(H26,TettiDGR1233!$J$2:$N$74,5,FALSE),IF(AND(G26="DGR1233_2021",J26=1),VLOOKUP(H26,TettiDGR1233!$J$2:$N$74,4,FALSE),IF(AND(G26="DGR1233_2021",K26=1),VLOOKUP(H26,TettiDGR1233!$J$2:$N$74,5,FALSE),VLOOKUP(H26,TettiDGR1233!$J$2:$N$74,2,FALSE))))))))) -> 0 | S26: 0 | U26: 12
Q27: =IFERROR(VLOOKUP(H27,TettiDGR300!$J$2:$L86,3,FALSE), "") ->  | R27: =IF(H27="",0,IF(AND(G27="DGR300_2023",J27=1,K27=1),VLOOKUP(H27,TettiDGR300!$J$2:$N$74,5,FALSE),IF(AND(G27="DGR300_2023",J27=1),VLOOKUP(H27,TettiDGR300!$J$2:$N$74,4,FALSE),IF(AND(G27="DGR300_2023",K27=1),VLOOKUP(H27,TettiDGR300!$J$2:$N$74,5,FALSE),IF(G27="DGR300_2023",VLOOKUP(H27,TettiDGR300!$J$2:$N$74,2,FALSE),IF(AND(G27="DGR1233_2021",J27=1,K27=1),VLOOKUP(H27,TettiDGR1233!$J$2:$N$74,5,FALSE),IF(AND(G27="DGR1233_2021",J27=1),VLOOKUP(H27,TettiDGR1233!$J$2:$N$74,4,FALSE),IF(AND(G27="DGR1233_2021",K27=1),VLOOKUP(H27,TettiDGR1233!$J$2:$N$74,5,FALSE),VLOOKUP(H27,TettiDGR1233!$J$2:$N$74,2,FALSE))))))))) -> 0 | S27: 0 | U27: 13
Q28: =IFERROR(VLOOKUP(H28,TettiDGR300!$J$2:$L87,3,FALSE), "") ->  | R28: =IF(H28="",0,IF(AND(G28="DGR300_2023",J28=1,K28=1),VLOOKUP(H28,TettiDGR300!$J$2:$N$74,5,FALSE),IF(AND(G28="DGR300_2023",J28=1),VLOOKUP(H28,TettiDGR300!$J$2:$N$74,4,FALSE),IF(AND(G28="DGR300_2023",K28=1),VLOOKUP(H28,TettiDGR300!$J$2:$N$74,5,FALSE),IF(G28="DGR300_2023",VLOOKUP(H28,TettiDGR300!$J$2:$N$74,2,FALSE),IF(AND(G28="DGR1233_2021",J28=1,K28=1),VLOOKUP(H28,TettiDGR1233!$J$2:$N$74,5,FALSE),IF(AND(G28="DGR1233_2021",J28=1),VLOOKUP(H28,TettiDGR1233!$J$2:$N$74,4,FALSE),IF(AND(G28="DGR1233_2021",K28=1),VLOOKUP(H28,TettiDGR1233!$J$2:$N$74,5,FALSE),VLOOKUP(H28,TettiDGR1233!$J$2:$N$74,2,FALSE))))))))) -> 0 | S28: 0 | U28: 14
Q29: =IFERROR(VLOOKUP(H29,TettiDGR300!$J$2:$L88,3,FALSE), "") ->  | R29: =IF(H29="",0,IF(AND(G29="DGR300_2023",J29=1,K29=1),VLOOKUP(H29,TettiDGR300!$J$2:$N$74,5,FALSE),IF(AND(G29="DGR300_2023",J29=1),VLOOKUP(H29,TettiDGR300!$J$2:$N$74,4,FALSE),IF(AND(G29="DGR300_2023",K29=1),VLOOKUP(H29,TettiDGR300!$J$2:$N$74,5,FALSE),IF(G29="DGR300_2023",VLOOKUP(H29,TettiDGR300!$J$2:$N$74,2,FALSE),IF(AND(G29="DGR1233_2021",J29=1,K29=1),VLOOKUP(H29,TettiDGR1233!$J$2:$N$74,5,FALSE),IF(AND(G29="DGR1233_2021",J29=1),VLOOKUP(H29,TettiDGR1233!$J$2:$N$74,4,FALSE),IF(AND(G29="DGR1233_2021",K29=1),VLOOKUP(H29,TettiDGR1233!$J$2:$N$74,5,FALSE),VLOOKUP(H29,TettiDGR1233!$J$2:$N$74,2,FALSE))))))))) -> 0 | S29: 0 | U29: 15
A30: DATI RIEPILOGATIVI PER LE INFRASTRUTTURE DI RIFORNIMENTO/RICARICA Azienda beneficiaria | B30: Id intervento (inserire il codice indentif. già inserito nella scheda dedicata) | C30: Nuova realizzazione (0) - Ristrutturazione e/o ampliamento (1) | D30: Comune | E30: Località | F30: Investimento già parzialmente finanziato da altra misura pubblica | H30: Tipologia intervento | I30: N. colonnine ricarica bus per sito | J30: Utilizzo infrastruttura da più operatori (1=si;0=no) | K30: Intervento allocato su più annualità (1=si;0=no) | L30: Importo complessivo dell'intervento [€] | M30: CIG e note particolari | N30: DATA STIPULA CONTRATTO | O30: Investimento sul cratere sisma 2016 (1=si;0=no) | P30: intervento liquidato (1=si;0=no) | Q30: Alimentaz. | R30: Costo allocato sull'anno in esame [€] | S30: Quota contributo sull'anno [€] | U30: Indicare il cronoprogramma delle attività per ogni intervento secondo le tre tipologie in legenda
B31: =IF(OR($B$4="DM 223/2020 - MIT",$B$4="FSC (D.Cipe 98/2017)"),"XXXX","") -> XXXX | L31: =IF(OR($B$4="DM 223/2020 - MIT",$B$4="FSC (D.Cipe 98/2017)"),"XXXX","") -> XXXX | M31: =IF(OR($B$4="DM 223/2020 - MIT",$B$4="FSC (D.Cipe 98/2017)"),"Il fondo prescelto non ammette infrastrutture","") -> Il fondo prescelto non ammette infrastrutture | Q31: =IFERROR(VLOOKUP(H31,Infrastrutture!$A$2:$B$9,2,FALSE), "") ->  | S31: =IF(L31<R31,"ERRORE",R31*PERCCONTRIB) -> 0 | U31: 20
B32: XXXX | L32: XXXX | M32: =IF(OR($B$4="DM 223/2020 - MIT",$B$4="FSC (D.Cipe 98/2017)"),"Il fondo prescelto non ammette infrastrutture","") -> Il fondo prescelto non ammette infrastrutture | Q32: =IFERROR(VLOOKUP(H32,Infrastrutture!$A$2:$B$9,2,FALSE), "") ->  | S32: 0 | U32: 21
B33: XXXX | L33: XXXX | M33: Il fondo prescelto non ammette infrastrutture | Q33: =IFERROR(VLOOKUP(H33,Infrastrutture!$A$2:$B$9,2,FALSE), "") ->  | S33: 0 | U33: 22
B34: XXXX | L34: XXXX | M34: Il fondo prescelto non ammette infrastrutture | Q34: =IFERROR(VLOOKUP(H34,Infrastrutture!$A$2:$B$9,2,FALSE), "") ->  | S34: 0 | U34: 23
B35: XXXX | L35: XXXX | M35: Il fondo prescelto non ammette infrastrutture | Q35: =IFERROR(VLOOKUP(H35,Infrastrutture!$A$2:$B$9,2,FALSE), "") ->  | S35: 0 | U35: 24
B36: XXXX | L36: XXXX | M36: Il fondo prescelto non ammette infrastrutture | Q36: =IFERROR(VLOOKUP(H36,Infrastrutture!$A$2:$B$9,2,FALSE), "") ->  | S36: 0 | U36: 25
B37: XXXX | L37: XXXX | M37: Il fondo prescelto non ammette infrastrutture | Q37: =IFERROR(VLOOKUP(H37,Infrastrutture!$A$2:$B$9,2,FALSE), "") ->  | S37: 0 | U37: 26
B38: XXXX | L38: XXXX | M38: Il fondo prescelto non ammette infrastrutture | Q38: =IFERROR(VLOOKUP(H38,Infrastrutture!$A$2:$B$9,2,FALSE), "") ->  | S38: 0 | U38: 27
B39: XXXX | L39: XXXX | M39: Il fondo prescelto non ammette infrastrutture | Q39: =IFERROR(VLOOKUP(H39,Infrastrutture!$A$2:$B$9,2,FALSE), "") ->  | S39: 0 | U39: 28
B40: XXXX | L40: XXXX | M40: Il fondo prescelto non ammette infrastrutture | Q40: =IFERROR(VLOOKUP(H40,Infrastrutture!$A$2:$B$9,2,FALSE), "") ->  | S40: 0 | U40: 29
A41: TOTALI AUTOBUS | B41: =SUM(B15:B29) -> 0 | C41: =SUM(C15:C29) -> 0 | O41: =+SUM(O15:O29) -> 0 | R41: =SUM(R15:R29) -> 0 | S41: =SUM(S15:S29) -> 0
A42: TOTALI INFRASTRUTTURE | O42: =+SUM(O31:O40) -> 0 | R42: =+SUM(R31:R40) -> 0 | S42: =+SUM(S31:S40) -> 0
A43: TOTALI GENERALE | R43: =+R41+R42 -> 0 | S43: =+SUM(S32:S41) -> 0

Sheet DM 223_2025
A1: Piano investimenti di bacino - D.G.R. 647 del 30 maggio 2022 - REGIONE MARCHE - Assessorato trasporti e reti regionali di trasporto. | U1: CRONOPROGRAMMA DEGLI INVESTIMENTI
A3: Ambito territoriale | B3: FM | F3: celle a fondo bianco da compilare obbligatoriamente direttamente o con menu a tendina | I3: Data compilazione | V3: Legenda:
A4: Fonte di finanziamento | B4: DM 223/2020 - MIT | F4: celle a fondo arancio compilate automaticamente | I4: Referente compilaz. | V4: 1 | W4: Espletamento gara
A5: Annualità | B5: 2025 | F5: Valori economici al netto dell'IVA | I5: Telefono di contatto | V5: 2 | W5: Stipula contratto
A6: K2 | B6: =B4&"_"&B5&"_"&B3 -> DM 223/2020 - MIT_2025_FM
A7: Contributo max assegnabile | B7: =VLOOKUP($B$6,'Assegnazione fondi'!$D$2:$G$208,3,FALSE) -> 140426.7992 | D7: Contributo tot. assegnato | F7: =+S43 -> 0 | I7: e-mail | V7: 3 | W7: Completamento fornitura
A8: % contribuzione sul costo d'acquisto | B8: =VLOOKUP($B$6,'Assegnazione fondi'!$D$2:$G$201,4,FALSE) -> 0.8 | D8: N. mezzi tot. da acquisire | F8: =B41+C41 -> 0
A9: Residuo annualità precedenti | D9: Residuo 2022-2024 | F9: ='DM 223_2024'!F10 -> 2099660.657
A10: =+IF(B4="DM 81/2020 - PSNMS", "Importo da utilizzare per infrastrutture (di cui del contributo max)","Contributo max assegnabile per ventuali infrastrutture (di cui del contributo max)") -> Contributo max assegnabile per ventuali infrastrutture (di cui del contributo max) | B10: =VLOOKUP($B$6,'Assegnazione fondi'!$D$2:$G$208,2,FALSE) -> 0 | D10: Residuo sull'anno | F10: =+TOTIMP-F7+F9 -> 2240087.456
A12: DATI RIEPILOGATIVI SUGLI AUTOBUS DA ACQUISIRE | B12: Per complet. organico n. | C12: Per rinnovo parco n. | D12: Compilare un foglio per ogni fondo di finanziamento, per ogni annualità | U12: Indicare il cronoprogramma delle attività per ogni mezzo secondo le tre tipologie in legenda
B13: =B41 -> 0 | C13: =C41 -> 0 | U13: Anno | V13: 2018 | AH13: 2019 | AT13: 2020 | BF13: 2021 | BR13: 2022 | CD13: 2023 | CP13: 2024 | DB13: 2025 | DN13: 2026
A14: Azienda beneficiaria | B14: Completamento organico (1=si;0=no) | C14: Sostituzione mezzo (1=si;0=no) | D14: Targa mezzo da sostituire | E14: Impiego (URBANO / EXTRAURBANO) | F14: Data prima immatricolazione mezzo sostituito | G14: DGR tetti di spesa | H14: Tipologia nuovo mezzo (selezionare dall'elenco) | I14: Rastrelliera per biciclette (1=si;0=no) | J14: Metano LNG (1=si;0=no) | K14: Mezzo Myld hybrid (1=si;0=no) | L14: Costo preventivato unitario [€] | M14: CIG e note particolari | N14: DATA STIPULA CONTRATTO entro 31/10/2025 | O14: Investimento sul cratere sisma 2016 (1=si;0=no) | P14: intervento liquidato (1=si;0=no) | Q14: Alimentaz. | R14: Spesa max ammissibile unitaria | S14: Contributo unitario | U14: Id / Mese | V14: 1 | W14: 2 | X14: 3 | Y14: 4 | Z14: 5 | AA14: 6 | AB14: 7 | AC14: 8 | AD14: 9 | AE14: 10 | AF14: 11 | AG14: 12 | AH14: 1 | AI14: 2 | AJ14: 3 | AK14: 4 | AL14: 5 | AM14: 6 | AN14: 7 | AO14: 8 | AP14: 9 | AQ14: 10 | AR14: 11 | AS14: 12 | AT14: 1 | AU14: 2 | AV14: 3 | AW14: 4 | AX14: 5 | AY14: 6 | AZ14: 7 | BA14: 8 | BB14: 9 | BC14: 10 | BD14: 11 | BE14: 12 | BF14: 1 | BG14: 2 | BH14: 3 | BI14: 4 | BJ14: 5 | BK14: 6 | BL14: 7 | BM14: 8 | BN14: 9 | BO14: 10 | BP14: 11 | BQ14: 12 | BR14: 1 | BS14: 2 | BT14: 3 | BU14: 4 | BV14: 5 | BW14: 6 | BX14: 7 | BY14: 8 | BZ14: 9 | CA14: 10 | CB14: 11 | CC14: 12 | CD14: 1 | CE14: 2 | CF14: 3 | CG14: 4 | CH14: 5 | CI14: 6 | CJ14: 7 | CK14: 8 | CL14: 9 | CM14: 10 | CN14: 11 | CO14: 12 | CP14: 1 | CQ14: 2 | CR14: 3 | CS14: 4 | CT14: 5 | CU14: 6 | CV14: 7 | CW14: 8 | CX14: 9 | CY14: 10 | CZ14: 11 | DA14: 12 | DB14: 1 | DC14: 2 | DD14: 3 | DE14: 4 | DF14: 5 | DG14: 6 | DH14: 7 | DI14: 8 | DJ14: 9 | DK14: 10 | DL14: 11 | DM14: 12 | DN14: 1 | DO14: 2 | DP14: 3 | DQ14: 4 | DR14: 5 | DS14: 6 | DT14: 7 | DU14: 8 | DV14: 9 | DW14: 10 | DX14: 11 | DY14: 12
M15: =IF(L15<>0,"COMPILARE","") ->  | Q15: =IFERROR(VLOOKUP(H15,TettiDGR300!$J$2:$L74,3,FALSE), "") ->  | R15: =IF(H15="",0,IF(AND(G15="DGR300_2023",J15=1,K15=1),VLOOKUP(H15,TettiDGR300!$J$2:$N$74,5,FALSE),IF(AND(G15="DGR300_2023",J15=1),VLOOKUP(H15,TettiDGR300!$J$2:$N$74,4,FALSE),IF(AND(G15="DGR300_2023",K15=1),VLOOKUP(H15,TettiDGR300!$J$2:$N$74,5,FALSE),IF(G15="DGR300_2023",VLOOKUP(H15,TettiDGR300!$J$2:$N$74,2,FALSE),IF(AND(G15="DGR1233_2021",J15=1,K15=1),VLOOKUP(H15,TettiDGR1233!$J$2:$N$74,5,FALSE),IF(AND(G15="DGR1233_2021",J15=1),VLOOKUP(H15,TettiDGR1233!$J$2:$N$74,4,FALSE),IF(AND(G15="DGR1233_2021",K15=1),VLOOKUP(H15,TettiDGR1233!$J$2:$N$74,5,FALSE),VLOOKUP(H15,TettiDGR1233!$J$2:$N$74,2,FALSE))))))))) -> 0 | S15: =IF(L15<R15,L15*PERCCONTRIB,R15*PERCCONTRIB) -> 0 | U15: 1
Q16: =IFERROR(VLOOKUP(H16,TettiDGR300!$J$2:$L75,3,FALSE), "") ->  | R16: =IF(H16="",0,IF(AND(G16="DGR300_2023",J16=1,K16=1),VLOOKUP(H16,TettiDGR300!$J$2:$N$74,5,FALSE),IF(AND(G16="DGR300_2023",J16=1),VLOOKUP(H16,TettiDGR300!$J$2:$N$74,4,FALSE),IF(AND(G16="DGR300_2023",K16=1),VLOOKUP(H16,TettiDGR300!$J$2:$N$74,5,FALSE),IF(G16="DGR300_2023",VLOOKUP(H16,TettiDGR300!$J$2:$N$74,2,FALSE),IF(AND(G16="DGR1233_2021",J16=1,K16=1),VLOOKUP(H16,TettiDGR1233!$J$2:$N$74,5,FALSE),IF(AND(G16="DGR1233_2021",J16=1),VLOOKUP(H16,TettiDGR1233!$J$2:$N$74,4,FALSE),IF(AND(G16="DGR1233_2021",K16=1),VLOOKUP(H16,TettiDGR1233!$J$2:$N$74,5,FALSE),VLOOKUP(H16,TettiDGR1233!$J$2:$N$74,2,FALSE))))))))) -> 0 | S16: 0 | U16: 2
Q17: =IFERROR(VLOOKUP(H17,TettiDGR300!$J$2:$L76,3,FALSE), "") ->  | R17: =IF(H17="",0,IF(AND(G17="DGR300_2023",J17=1,K17=1),VLOOKUP(H17,TettiDGR300!$J$2:$N$74,5,FALSE),IF(AND(G17="DGR300_2023",J17=1),VLOOKUP(H17,TettiDGR300!$J$2:$N$74,4,FALSE),IF(AND(G17="DGR300_2023",K17=1),VLOOKUP(H17,TettiDGR300!$J$2:$N$74,5,FALSE),IF(G17="DGR300_2023",VLOOKUP(H17,TettiDGR300!$J$2:$N$74,2,FALSE),IF(AND(G17="DGR1233_2021",J17=1,K17=1),VLOOKUP(H17,TettiDGR1233!$J$2:$N$74,5,FALSE),IF(AND(G17="DGR1233_2021",J17=1),VLOOKUP(H17,TettiDGR1233!$J$2:$N$74,4,FALSE),IF(AND(G17="DGR1233_2021",K17=1),VLOOKUP(H17,TettiDGR1233!$J$2:$N$74,5,FALSE),VLOOKUP(H17,TettiDGR1233!$J$2:$N$74,2,FALSE))))))))) -> 0 | S17: 0 | U17: 3
Q18: =IFERROR(VLOOKUP(H18,TettiDGR300!$J$2:$L77,3,FALSE), "") ->  | R18: =IF(H18="",0,IF(AND(G18="DGR300_2023",J18=1,K18=1),VLOOKUP(H18,TettiDGR300!$J$2:$N$74,5,FALSE),IF(AND(G18="DGR300_2023",J18=1),VLOOKUP(H18,TettiDGR300!$J$2:$N$74,4,FALSE),IF(AND(G18="DGR300_2023",K18=1),VLOOKUP(H18,TettiDGR300!$J$2:$N$74,5,FALSE),IF(G18="DGR300_2023",VLOOKUP(H18,TettiDGR300!$J$2:$N$74,2,FALSE),IF(AND(G18="DGR1233_2021",J18=1,K18=1),VLOOKUP(H18,TettiDGR1233!$J$2:$N$74,5,FALSE),IF(AND(G18="DGR1233_2021",J18=1),VLOOKUP(H18,TettiDGR1233!$J$2:$N$74,4,FALSE),IF(AND(G18="DGR1233_2021",K18=1),VLOOKUP(H18,TettiDGR1233!$J$2:$N$74,5,FALSE),VLOOKUP(H18,TettiDGR1233!$J$2:$N$74,2,FALSE))))))))) -> 0 | S18: 0 | U18: 4
Q19: =IFERROR(VLOOKUP(H19,TettiDGR300!$J$2:$L78,3,FALSE), "") ->  | R19: =IF(H19="",0,IF(AND(G19="DGR300_2023",J19=1,K19=1),VLOOKUP(H19,TettiDGR300!$J$2:$N$74,5,FALSE),IF(AND(G19="DGR300_2023",J19=1),VLOOKUP(H19,TettiDGR300!$J$2:$N$74,4,FALSE),IF(AND(G19="DGR300_2023",K19=1),VLOOKUP(H19,TettiDGR300!$J$2:$N$74,5,FALSE),IF(G19="DGR300_2023",VLOOKUP(H19,TettiDGR300!$J$2:$N$74,2,FALSE),IF(AND(G19="DGR1233_2021",J19=1,K19=1),VLOOKUP(H19,TettiDGR1233!$J$2:$N$74,5,FALSE),IF(AND(G19="DGR1233_2021",J19=1),VLOOKUP(H19,TettiDGR1233!$J$2:$N$74,4,FALSE),IF(AND(G19="DGR1233_2021",K19=1),VLOOKUP(H19,TettiDGR1233!$J$2:$N$74,5,FALSE),VLOOKUP(H19,TettiDGR1233!$J$2:$N$74,2,FALSE))))))))) -> 0 | S19: 0 | U19: 5
Q20: =IFERROR(VLOOKUP(H20,TettiDGR300!$J$2:$L79,3,FALSE), "") ->  | R20: =IF(H20="",0,IF(AND(G20="DGR300_2023",J20=1,K20=1),VLOOKUP(H20,TettiDGR300!$J$2:$N$74,5,FALSE),IF(AND(G20="DGR300_2023",J20=1),VLOOKUP(H20,TettiDGR300!$J$2:$N$74,4,FALSE),IF(AND(G20="DGR300_2023",K20=1),VLOOKUP(H20,TettiDGR300!$J$2:$N$74,5,FALSE),IF(G20="DGR300_2023",VLOOKUP(H20,TettiDGR300!$J$2:$N$74,2,FALSE),IF(AND(G20="DGR1233_2021",J20=1,K20=1),VLOOKUP(H20,TettiDGR1233!$J$2:$N$74,5,FALSE),IF(AND(G20="DGR1233_2021",J20=1),VLOOKUP(H20,TettiDGR1233!$J$2:$N$74,4,FALSE),IF(AND(G20="DGR1233_2021",K20=1),VLOOKUP(H20,TettiDGR1233!$J$2:$N$74,5,FALSE),VLOOKUP(H20,TettiDGR1233!$J$2:$N$74,2,FALSE))))))))) -> 0 | S20: 0 | U20: 6
Q21: =IFERROR(VLOOKUP(H21,TettiDGR300!$J$2:$L80,3,FALSE), "") ->  | R21: =IF(H21="",0,IF(AND(G21="DGR300_2023",J21=1,K21=1),VLOOKUP(H21,TettiDGR300!$J$2:$N$74,5,FALSE),IF(AND(G21="DGR300_2023",J21=1),VLOOKUP(H21,TettiDGR300!$J$2:$N$74,4,FALSE),IF(AND(G21="DGR300_2023",K21=1),VLOOKUP(H21,TettiDGR300!$J$2:$N$74,5,FALSE),IF(G21="DGR300_2023",VLOOKUP(H21,TettiDGR300!$J$2:$N$74,2,FALSE),IF(AND(G21="DGR1233_2021",J21=1,K21=1),VLOOKUP(H21,TettiDGR1233!$J$2:$N$74,5,FALSE),IF(AND(G21="DGR1233_2021",J21=1),VLOOKUP(H21,TettiDGR1233!$J$2:$N$74,4,FALSE),IF(AND(G21="DGR1233_2021",K21=1),VLOOKUP(H21,TettiDGR1233!$J$2:$N$74,5,FALSE),VLOOKUP(H21,TettiDGR1233!$J$2:$N$74,2,FALSE))))))))) -> 0 | S21: 0 | U21: 7
Q22: =IFERROR(VLOOKUP(H22,TettiDGR300!$J$2:$L81,3,FALSE), "") ->  | R22: =IF(H22="",0,IF(AND(G22="DGR300_2023",J22=1,K22=1),VLOOKUP(H22,TettiDGR300!$J$2:$N$74,5,FALSE),IF(AND(G22="DGR300_2023",J22=1),VLOOKUP(H22,TettiDGR300!$J$2:$N$74,4,FALSE),IF(AND(G22="DGR300_2023",K22=1),VLOOKUP(H22,TettiDGR300!$J$2:$N$74,5,FALSE),IF(G22="DGR300_2023",VLOOKUP(H22,TettiDGR300!$J$2:$N$74,2,FALSE),IF(AND(G22="DGR1233_2021",J22=1,K22=1),VLOOKUP(H22,TettiDGR1233!$J$2:$N$74,5,FALSE),IF(AND(G22="DGR1233_2021",J22=1),VLOOKUP(H22,TettiDGR1233!$J$2:$N$74,4,FALSE),IF(AND(G22="DGR1233_2021",K22=1),VLOOKUP(H22,TettiDGR1233!$J$2:$N$74,5,FALSE),VLOOKUP(H22,TettiDGR1233!$J$2:$N$74,2,FALSE))))))))) -> 0 | S22: 0 | U22: 8
Q23: =IFERROR(VLOOKUP(H23,TettiDGR300!$J$2:$L82,3,FALSE), "") ->  | R23: =IF(H23="",0,IF(AND(G23="DGR300_2023",J23=1,K23=1),VLOOKUP(H23,TettiDGR300!$J$2:$N$74,5,FALSE),IF(AND(G23="DGR300_2023",J23=1),VLOOKUP(H23,TettiDGR300!$J$2:$N$74,4,FALSE),IF(AND(G23="DGR300_2023",K23=1),VLOOKUP(H23,TettiDGR300!$J$2:$N$74,5,FALSE),IF(G23="DGR300_2023",VLOOKUP(H23,TettiDGR300!$J$2:$N$74,2,FALSE),IF(AND(G23="DGR1233_2021",J23=1,K23=1),VLOOKUP(H23,TettiDGR1233!$J$2:$N$74,5,FALSE),IF(AND(G23="DGR1233_2021",J23=1),VLOOKUP(H23,TettiDGR1233!$J$2:$N$74,4,FALSE),IF(AND(G23="DGR1233_2021",K23=1),VLOOKUP(H23,TettiDGR1233!$J$2:$N$74,5,FALSE),VLOOKUP(H23,TettiDGR1233!$J$2:$N$74,2,FALSE))))))))) -> 0 | S23: 0 | U23: 9
Q24: =IFERROR(VLOOKUP(H24,TettiDGR300!$J$2:$L83,3,FALSE), "") ->  | R24: =IF(H24="",0,IF(AND(G24="DGR300_2023",J24=1,K24=1),VLOOKUP(H24,TettiDGR300!$J$2:$N$74,5,FALSE),IF(AND(G24="DGR300_2023",J24=1),VLOOKUP(H24,TettiDGR300!$J$2:$N$74,4,FALSE),IF(AND(G24="DGR300_2023",K24=1),VLOOKUP(H24,TettiDGR300!$J$2:$N$74,5,FALSE),IF(G24="DGR300_2023",VLOOKUP(H24,TettiDGR300!$J$2:$N$74,2,FALSE),IF(AND(G24="DGR1233_2021",J24=1,K24=1),VLOOKUP(H24,TettiDGR1233!$J$2:$N$74,5,FALSE),IF(AND(G24="DGR1233_2021",J24=1),VLOOKUP(H24,TettiDGR1233!$J$2:$N$74,4,FALSE),IF(AND(G24="DGR1233_2021",K24=1),VLOOKUP(H24,TettiDGR1233!$J$2:$N$74,5,FALSE),VLOOKUP(H24,TettiDGR1233!$J$2:$N$74,2,FALSE))))))))) -> 0 | S24: 0 | U24: 10
Q25: =IFERROR(VLOOKUP(H25,TettiDGR300!$J$2:$L84,3,FALSE), "") ->  | R25: =IF(H25="",0,IF(AND(G25="DGR300_2023",J25=1,K25=1),VLOOKUP(H25,TettiDGR300!$J$2:$N$74,5,FALSE),IF(AND(G25="DGR300_2023",J25=1),VLOOKUP(H25,TettiDGR300!$J$2:$N$74,4,FALSE),IF(AND(G25="DGR300_2023",K25=1),VLOOKUP(H25,TettiDGR300!$J$2:$N$74,5,FALSE),IF(G25="DGR300_2023",VLOOKUP(H25,TettiDGR300!$J$2:$N$74,2,FALSE),IF(AND(G25="DGR1233_2021",J25=1,K25=1),VLOOKUP(H25,TettiDGR1233!$J$2:$N$74,5,FALSE),IF(AND(G25="DGR1233_2021",J25=1),VLOOKUP(H25,TettiDGR1233!$J$2:$N$74,4,FALSE),IF(AND(G25="DGR1233_2021",K25=1),VLOOKUP(H25,TettiDGR1233!$J$2:$N$74,5,FALSE),VLOOKUP(H25,TettiDGR1233!$J$2:$N$74,2,FALSE))))))))) -> 0 | S25: 0 | U25: 11
Q26: =IFERROR(VLOOKUP(H26,TettiDGR300!$J$2:$L85,3,FALSE), "") ->  | R26: =IF(H26="",0,IF(AND(G26="DGR300_2023",J26=1,K26=1),VLOOKUP(H26,TettiDGR300!$J$2:$N$74,5,FALSE),IF(AND(G26="DGR300_2023",J26=1),VLOOKUP(H26,TettiDGR300!$J$2:$N$74,4,FALSE),IF(AND(G26="DGR300_2023",K26=1),VLOOKUP(H26,TettiDGR300!$J$2:$N$74,5,FALSE),IF(G26="DGR300_2023",VLOOKUP(H26,TettiDGR300!$J$2:$N$74,2,FALSE),IF(AND(G26="DGR1233_2021",J26=1,K26=1),VLOOKUP(H26,TettiDGR1233!$J$2:$N$74,5,FALSE),IF(AND(G26="DGR1233_2021",J26=1),VLOOKUP(H26,TettiDGR1233!$J$2:$N$74,4,FALSE),IF(AND(G26="DGR1233_2021",K26=1),VLOOKUP(H26,TettiDGR1233!$J$2:$N$74,5,FALSE),VLOOKUP(H26,TettiDGR1233!$J$2:$N$74,2,FALSE))))))))) -> 0 | S26: 0 | U26: 12
Q27: =IFERROR(VLOOKUP(H27,TettiDGR300!$J$2:$L86,3,FALSE), "") ->  | R27: =IF(H27="",0,IF(AND(G27="DGR300_2023",J27=1,K27=1),VLOOKUP(H27,TettiDGR300!$J$2:$N$74,5,FALSE),IF(AND(G27="DGR300_2023",J27=1),VLOOKUP(H27,TettiDGR300!$J$2:$N$74,4,FALSE),IF(AND(G27="DGR300_2023",K27=1),VLOOKUP(H27,TettiDGR300!$J$2:$N$74,5,FALSE),IF(G27="DGR300_2023",VLOOKUP(H27,TettiDGR300!$J$2:$N$74,2,FALSE),IF(AND(G27="DGR1233_2021",J27=1,K27=1),VLOOKUP(H27,TettiDGR1233!$J$2:$N$74,5,FALSE),IF(AND(G27="DGR1233_2021",J27=1),VLOOKUP(H27,TettiDGR1233!$J$2:$N$74,4,FALSE),IF(AND(G27="DGR1233_2021",K27=1),VLOOKUP(H27,TettiDGR1233!$J$2:$N$74,5,FALSE),VLOOKUP(H27,TettiDGR1233!$J$2:$N$74,2,FALSE))))))))) -> 0 | S27: 0 | U27: 13
Q28: =IFERROR(VLOOKUP(H28,TettiDGR300!$J$2:$L87,3,FALSE), "") ->  | R28: =IF(H28="",0,IF(AND(G28="DGR300_2023",J28=1,K28=1),VLOOKUP(H28,TettiDGR300!$J$2:$N$74,5,FALSE),IF(AND(G28="DGR300_2023",J28=1),VLOOKUP(H28,TettiDGR300!$J$2:$N$74,4,FALSE),IF(AND(G28="DGR300_2023",K28=1),VLOOKUP(H28,TettiDGR300!$J$2:$N$74,5,FALSE),IF(G28="DGR300_2023",VLOOKUP(H28,TettiDGR300!$J$2:$N$74,2,FALSE),IF(AND(G28="DGR1233_2021",J28=1,K28=1),VLOOKUP(H28,TettiDGR1233!$J$2:$N$74,5,FALSE),IF(AND(G28="DGR1233_2021",J28=1),VLOOKUP(H28,TettiDGR1233!$J$2:$N$74,4,FALSE),IF(AND(G28="DGR1233_2021",K28=1),VLOOKUP(H28,TettiDGR1233!$J$2:$N$74,5,FALSE),VLOOKUP(H28,TettiDGR1233!$J$2:$N$74,2,FALSE))))))))) -> 0 | S28: 0 | U28: 14
Q29: =IFERROR(VLOOKUP(H29,TettiDGR300!$J$2:$L88,3,FALSE), "") ->  | R29: =IF(H29="",0,IF(AND(G29="DGR300_2023",J29=1,K29=1),VLOOKUP(H29,TettiDGR300!$J$2:$N$74,5,FALSE),IF(AND(G29="DGR300_2023",J29=1),VLOOKUP(H29,TettiDGR300!$J$2:$N$74,4,FALSE),IF(AND(G29="DGR300_2023",K29=1),VLOOKUP(H29,TettiDGR300!$J$2:$N$74,5,FALSE),IF(G29="DGR300_2023",VLOOKUP(H29,TettiDGR300!$J$2:$N$74,2,FALSE),IF(AND(G29="DGR1233_2021",J29=1,K29=1),VLOOKUP(H29,TettiDGR1233!$J$2:$N$74,5,FALSE),IF(AND(G29="DGR1233_2021",J29=1),VLOOKUP(H29,TettiDGR1233!$J$2:$N$74,4,FALSE),IF(AND(G29="DGR1233_2021",K29=1),VLOOKUP(H29,TettiDGR1233!$J$2:$N$74,5,FALSE),VLOOKUP(H29,TettiDGR1233!$J$2:$N$74,2,FALSE))))))))) -> 0 | S29: 0 | U29: 15
A30: DATI RIEPILOGATIVI PER LE INFRASTRUTTURE DI RIFORNIMENTO/RICARICA Azienda beneficiaria | B30: Id intervento (inserire il codice indentif. già inserito nella scheda dedicata) | C30: Nuova realizzazione (0) - Ristrutturazione e/o ampliamento (1) | D30: Comune | E30: Località | F30: Investimento già parzialmente finanziato da altra misura pubblica | H30: Tipologia intervento | I30: N. colonnine ricarica bus per sito | J30: Utilizzo infrastruttura da più operatori (1=si;0=no) | K30: Intervento allocato su più annualità (1=si;0=no) | L30: Importo complessivo dell'intervento [€] | M30: CIG e note particolari | N30: DATA STIPULA CONTRATTO | O30: Investimento sul cratere sisma 2016 (1=si;0=no) | P30: intervento liquidato (1=si;0=no) | Q30: Alimentaz. | R30: Costo allocato sull'anno in esame [€] | S30: Quota contributo sull'anno [€] | U30: Indicare il cronoprogramma delle attività per ogni intervento secondo le tre tipologie in legenda
B31: =IF(OR($B$4="DM 223/2020 - MIT",$B$4="FSC (D.Cipe 98/2017)"),"XXXX","") -> XXXX | L31: =IF(OR($B$4="DM 223/2020 - MIT",$B$4="FSC (D.Cipe 98/2017)"),"XXXX","") -> XXXX | M31: =IF(OR($B$4="DM 223/2020 - MIT",$B$4="FSC (D.Cipe 98/2017)"),"Il fondo prescelto non ammette infrastrutture","") -> Il fondo prescelto non ammette infrastrutture | Q31: =IFERROR(VLOOKUP(H31,Infrastrutture!$A$2:$B$9,2,FALSE), "") ->  | S31: =IF(L31<R31,"ERRORE",R31*PERCCONTRIB) -> 0 | U31: 20
B32: XXXX | L32: XXXX | M32: =IF(OR($B$4="DM 223/2020 - MIT",$B$4="FSC (D.Cipe 98/2017)"),"Il fondo prescelto non ammette infrastrutture","") -> Il fondo prescelto non ammette infrastrutture | Q32: =IFERROR(VLOOKUP(H32,Infrastrutture!$A$2:$B$9,2,FALSE), "") ->  | S32: 0 | U32: 21
B33: XXXX | L33: XXXX | M33: Il fondo prescelto non ammette infrastrutture | Q33: =IFERROR(VLOOKUP(H33,Infrastrutture!$A$2:$B$9,2,FALSE), "") ->  | S33: 0 | U33: 22
B34: XXXX | L34: XXXX | M34: Il fondo prescelto non ammette infrastrutture | Q34: =IFERROR(VLOOKUP(H34,Infrastrutture!$A$2:$B$9,2,FALSE), "") ->  | S34: 0 | U34: 23
B35: XXXX | L35: XXXX | M35: Il fondo prescelto non ammette infrastrutture | Q35: =IFERROR(VLOOKUP(H35,Infrastrutture!$A$2:$B$9,2,FALSE), "") ->  | S35: 0 | U35: 24
B36: XXXX | L36: XXXX | M36: Il fondo prescelto non ammette infrastrutture | Q36: =IFERROR(VLOOKUP(H36,Infrastrutture!$A$2:$B$9,2,FALSE), "") ->  | S36: 0 | U36: 25
B37: XXXX | L37: XXXX | M37: Il fondo prescelto non ammette infrastrutture | Q37: =IFERROR(VLOOKUP(H37,Infrastrutture!$A$2:$B$9,2,FALSE), "") ->  | S37: 0 | U37: 26
B38: XXXX | L38: XXXX | M38: Il fondo prescelto non ammette infrastrutture | Q38: =IFERROR(VLOOKUP(H38,Infrastrutture!$A$2:$B$9,2,FALSE), "") ->  | S38: 0 | U38: 27
B39: XXXX | L39: XXXX | M39: Il fondo prescelto non ammette infrastrutture | Q39: =IFERROR(VLOOKUP(H39,Infrastrutture!$A$2:$B$9,2,FALSE), "") ->  | S39: 0 | U39: 28
B40: XXXX | L40: XXXX | M40: Il fondo prescelto non ammette infrastrutture | Q40: =IFERROR(VLOOKUP(H40,Infrastrutture!$A$2:$B$9,2,FALSE), "") ->  | S40: 0 | U40: 29
A41: TOTALI AUTOBUS | B41: =SUM(B15:B29) -> 0 | C41: =SUM(C15:C29) -> 0 | O41: =+SUM(O15:O29) -> 0 | R41: =SUM(R15:R29) -> 0 | S41: =SUM(S15:S29) -> 0
A42: TOTALI INFRASTRUTTURE | O42: =+SUM(O31:O40) -> 0 | R42: =+SUM(R31:R40) -> 0 | S42: =+SUM(S31:S40) -> 0
A43: TOTALI GENERALE | R43: =+R41+R42 -> 0 | S43: =+SUM(S32:S41) -> 0

Sheet DM 81_2019
A1: Piano investimenti di bacino - D.G.R. 647 del 30 maggio 2022 - REGIONE MARCHE - Assessorato trasporti e reti regionali di trasporto. | U1: CRONOPROGRAMMA DEGLI INVESTIMENTI
A3: Ambito territoriale | B3: FM | F3: celle a fondo bianco da compilare obbligatoriamente direttamente o con menu a tendina | I3: Data compilazione | V3: Legenda:
A4: Fonte di finanziamento | B4: DM 81/2020 - PSNMS | F4: celle a fondo arancio compilate automaticamente | I4: Referente compilaz. | V4: 1 | W4: Espletamento gara
A5: Annualità | B5: 2019 | F5: Valori economici al netto dell'IVA | I5: Telefono di contatto | V5: 2 | W5: Stipula contratto
A6: K2 | B6: =B4&"_"&B5&"_"&B3 -> DM 81/2020 - PSNMS_2019_FM
A7: Contributo max assegnabile | B7: =VLOOKUP($B$6,'Assegnazione fondi'!$D$2:$G$208,3,FALSE) -> 395749.0664 | D7: Contributo tot. assegnato | F7: =+S43 -> 0 | I7: e-mail | V7: 3 | W7: Completamento fornitura
A8: % contribuzione sul costo d'acquisto | B8: =VLOOKUP($B$6,'Assegnazione fondi'!$D$2:$G$201,4,FALSE) -> 0.8 | D8: N. mezzi tot. da acquisire | F8: =B41+C41 -> 0
A9: Residuo annualità precedenti | B9: 0
A10: =+IF(B4="DM 81/2020 - PSNMS", "Importo da utilizzare per infrastrutture (di cui del contributo max)","Contributo max assegnabile per ventuali infrastrutture (di cui del contributo max)") -> Importo da utilizzare per infrastrutture (di cui del contributo max) | B10: =VLOOKUP($B$6,'Assegnazione fondi'!$D$2:$G$208,2,FALSE) -> 0 | D10: Residuo sull'anno | F10: =+TOTIMP-F7 -> 395749.0664
A12: DATI RIEPILOGATIVI SUGLI AUTOBUS DA ACQUISIRE | B12: Per complet. organico n. | C12: Per rinnovo parco n. | D12: Compilare un foglio per ogni fondo di finanziamento, per ogni annualità | U12: Indicare il cronoprogramma delle attività per ogni mezzo secondo le tre tipologie in legenda
B13: =B41 -> 0 | C13: =C41 -> 0 | U13: Anno | V13: 2018 | AH13: 2019 | AT13: 2020 | BF13: 2021 | BR13: 2022 | CD13: 2023 | CP13: 2024 | DB13: 2025 | DN13: 2026
A14: Azienda beneficiaria | B14: Completamento organico (1=si;0=no) | C14: Sostituzione mezzo (1=si;0=no) | D14: Targa mezzo da sostituire | E14: Impiego (URBANO / EXTRAURBANO) | F14: Data prima immatricolazione mezzo sostituito | G14: DGR tetti di spesa | H14: Tipologia nuovo mezzo (selezionare dall'elenco) | I14: Rastrelliera per biciclette (1=si;0=no) | J14: Metano LNG (1=si;0=no) | K14: Mezzo Myld hybrid (1=si;0=no) | L14: Costo preventivato unitario [€] | M14: CIG e note particolari | N14: DATA STIPULA CONTRATTO | O14: Investimento sul cratere sisma 2016 (1=si;0=no) | P14: intervento liquidato (1=si;0=no) | Q14: Alimentaz. | R14: Spesa max ammissibile unitaria | S14: Contributo unitario | U14: Id / Mese | V14: 1 | W14: 2 | X14: 3 | Y14: 4 | Z14: 5 | AA14: 6 | AB14: 7 | AC14: 8 | AD14: 9 | AE14: 10 | AF14: 11 | AG14: 12 | AH14: 1 | AI14: 2 | AJ14: 3 | AK14: 4 | AL14: 5 | AM14: 6 | AN14: 7 | AO14: 8 | AP14: 9 | AQ14: 10 | AR14: 11 | AS14: 12 | AT14: 1 | AU14: 2 | AV14: 3 | AW14: 4 | AX14: 5 | AY14: 6 | AZ14: 7 | BA14: 8 | BB14: 9 | BC14: 10 | BD14: 11 | BE14: 12 | BF14: 1 | BG14: 2 | BH14: 3 | BI14: 4 | BJ14: 5 | BK14: 6 | BL14: 7 | BM14: 8 | BN14: 9 | BO14: 10 | BP14: 11 | BQ14: 12 | BR14: 1 | BS14: 2 | BT14: 3 | BU14: 4 | BV14: 5 | BW14: 6 | BX14: 7 | BY14: 8 | BZ14: 9 | CA14: 10 | CB14: 11 | CC14: 12 | CD14: 1 | CE14: 2 | CF14: 3 | CG14: 4 | CH14: 5 | CI14: 6 | CJ14: 7 | CK14: 8 | CL14: 9 | CM14: 10 | CN14: 11 | CO14: 12 | CP14: 1 | CQ14: 2 | CR14: 3 | CS14: 4 | CT14: 5 | CU14: 6 | CV14: 7 | CW14: 8 | CX14: 9 | CY14: 10 | CZ14: 11 | DA14: 12 | DB14: 1 | DC14: 2 | DD14: 3 | DE14: 4 | DF14: 5 | DG14: 6 | DH14: 7 | DI14: 8 | DJ14: 9 | DK14: 10 | DL14: 11 | DM14: 12 | DN14: 1 | DO14: 2 | DP14: 3 | DQ14: 4 | DR14: 5 | DS14: 6 | DT14: 7 | DU14: 8 | DV14: 9 | DW14: 10 | DX14: 11 | DY14: 12
M15: =IF(L15<>0,"COMPILARE","") ->  | Q15: =IFERROR(VLOOKUP(H15,TettiDGR300!$J$2:$L74,3,FALSE), "") ->  | R15: =IF(H15="",0,IF(AND(G15="DGR300_2023",J15=1,K15=1),VLOOKUP(H15,TettiDGR300!$J$2:$N$74,5,FALSE),IF(AND(G15="DGR300_2023",J15=1),VLOOKUP(H15,TettiDGR300!$J$2:$N$74,4,FALSE),IF(AND(G15="DGR300_2023",K15=1),VLOOKUP(H15,TettiDGR300!$J$2:$N$74,5,FALSE),IF(G15="DGR300_2023",VLOOKUP(H15,TettiDGR300!$J$2:$N$74,2,FALSE),IF(AND(G15="DGR1233_2021",J15=1,K15=1),VLOOKUP(H15,TettiDGR1233!$J$2:$N$74,5,FALSE),IF(AND(G15="DGR1233_2021",J15=1),VLOOKUP(H15,TettiDGR1233!$J$2:$N$74,4,FALSE),IF(AND(G15="DGR1233_2021",K15=1),VLOOKUP(H15,TettiDGR1233!$J$2:$N$74,5,FALSE),VLOOKUP(H15,TettiDGR1233!$J$2:$N$74,2,FALSE))))))))) -> 0 | S15: =IF(L15<R15,L15*PERCCONTRIB,R15*PERCCONTRIB) -> 0 | U15: 1
Q16: =IFERROR(VLOOKUP(H16,TettiDGR300!$J$2:$L75,3,FALSE), "") ->  | R16: =IF(H16="",0,IF(AND(G16="DGR300_2023",J16=1,K16=1),VLOOKUP(H16,TettiDGR300!$J$2:$N$74,5,FALSE),IF(AND(G16="DGR300_2023",J16=1),VLOOKUP(H16,TettiDGR300!$J$2:$N$74,4,FALSE),IF(AND(G16="DGR300_2023",K16=1),VLOOKUP(H16,TettiDGR300!$J$2:$N$74,5,FALSE),IF(G16="DGR300_2023",VLOOKUP(H16,TettiDGR300!$J$2:$N$74,2,FALSE),IF(AND(G16="DGR1233_2021",J16=1,K16=1),VLOOKUP(H16,TettiDGR1233!$J$2:$N$74,5,FALSE),IF(AND(G16="DGR1233_2021",J16=1),VLOOKUP(H16,TettiDGR1233!$J$2:$N$74,4,FALSE),IF(AND(G16="DGR1233_2021",K16=1),VLOOKUP(H16,TettiDGR1233!$J$2:$N$74,5,FALSE),VLOOKUP(H16,TettiDGR1233!$J$2:$N$74,2,FALSE))))))))) -> 0 | S16: 0 | U16: 2
Q17: =IFERROR(VLOOKUP(H17,TettiDGR300!$J$2:$L76,3,FALSE), "") ->  | R17: =IF(H17="",0,IF(AND(G17="DGR300_2023",J17=1,K17=1),VLOOKUP(H17,TettiDGR300!$J$2:$N$74,5,FALSE),IF(AND(G17="DGR300_2023",J17=1),VLOOKUP(H17,TettiDGR300!$J$2:$N$74,4,FALSE),IF(AND(G17="DGR300_2023",K17=1),VLOOKUP(H17,TettiDGR300!$J$2:$N$74,5,FALSE),IF(G17="DGR300_2023",VLOOKUP(H17,TettiDGR300!$J$2:$N$74,2,FALSE),IF(AND(G17="DGR1233_2021",J17=1,K17=1),VLOOKUP(H17,TettiDGR1233!$J$2:$N$74,5,FALSE),IF(AND(G17="DGR1233_2021",J17=1),VLOOKUP(H17,TettiDGR1233!$J$2:$N$74,4,FALSE),IF(AND(G17="DGR1233_2021",K17=1),VLOOKUP(H17,TettiDGR1233!$J$2:$N$74,5,FALSE),VLOOKUP(H17,TettiDGR1233!$J$2:$N$74,2,FALSE))))))))) -> 0 | S17: =IF(L17<R17,L17*PERCCONTRIB,R17*PERCCONTRIB) -> 0 | U17: 3
Q18: =IFERROR(VLOOKUP(H18,TettiDGR300!$J$2:$L77,3,FALSE), "") ->  | R18: =IF(H18="",0,IF(AND(G18="DGR300_2023",J18=1,K18=1),VLOOKUP(H18,TettiDGR300!$J$2:$N$74,5,FALSE),IF(AND(G18="DGR300_2023",J18=1),VLOOKUP(H18,TettiDGR300!$J$2:$N$74,4,FALSE),IF(AND(G18="DGR300_2023",K18=1),VLOOKUP(H18,TettiDGR300!$J$2:$N$74,5,FALSE),IF(G18="DGR300_2023",VLOOKUP(H18,TettiDGR300!$J$2:$N$74,2,FALSE),IF(AND(G18="DGR1233_2021",J18=1,K18=1),VLOOKUP(H18,TettiDGR1233!$J$2:$N$74,5,FALSE),IF(AND(G18="DGR1233_2021",J18=1),VLOOKUP(H18,TettiDGR1233!$J$2:$N$74,4,FALSE),IF(AND(G18="DGR1233_2021",K18=1),VLOOKUP(H18,TettiDGR1233!$J$2:$N$74,5,FALSE),VLOOKUP(H18,TettiDGR1233!$J$2:$N$74,2,FALSE))))))))) -> 0 | S18: 0 | U18: 4
Q19: =IFERROR(VLOOKUP(H19,TettiDGR300!$J$2:$L78,3,FALSE), "") ->  | R19: =IF(H19="",0,IF(AND(G19="DGR300_2023",J19=1,K19=1),VLOOKUP(H19,TettiDGR300!$J$2:$N$74,5,FALSE),IF(AND(G19="DGR300_2023",J19=1),VLOOKUP(H19,TettiDGR300!$J$2:$N$74,4,FALSE),IF(AND(G19="DGR300_2023",K19=1),VLOOKUP(H19,TettiDGR300!$J$2:$N$74,5,FALSE),IF(G19="DGR300_2023",VLOOKUP(H19,TettiDGR300!$J$2:$N$74,2,FALSE),IF(AND(G19="DGR1233_2021",J19=1,K19=1),VLOOKUP(H19,TettiDGR1233!$J$2:$N$74,5,FALSE),IF(AND(G19="DGR1233_2021",J19=1),VLOOKUP(H19,TettiDGR1233!$J$2:$N$74,4,FALSE),IF(AND(G19="DGR1233_2021",K19=1),VLOOKUP(H19,TettiDGR1233!$J$2:$N$74,5,FALSE),VLOOKUP(H19,TettiDGR1233!$J$2:$N$74,2,FALSE))))))))) -> 0 | S19: 0 | U19: 5
Q20: =IFERROR(VLOOKUP(H20,TettiDGR300!$J$2:$L79,3,FALSE), "") ->  | R20: =IF(H20="",0,IF(AND(G20="DGR300_2023",J20=1,K20=1),VLOOKUP(H20,TettiDGR300!$J$2:$N$74,5,FALSE),IF(AND(G20="DGR300_2023",J20=1),VLOOKUP(H20,TettiDGR300!$J$2:$N$74,4,FALSE),IF(AND(G20="DGR300_2023",K20=1),VLOOKUP(H20,TettiDGR300!$J$2:$N$74,5,FALSE),IF(G20="DGR300_2023",VLOOKUP(H20,TettiDGR300!$J$2:$N$74,2,FALSE),IF(AND(G20="DGR1233_2021",J20=1,K20=1),VLOOKUP(H20,TettiDGR1233!$J$2:$N$74,5,FALSE),IF(AND(G20="DGR1233_2021",J20=1),VLOOKUP(H20,TettiDGR1233!$J$2:$N$74,4,FALSE),IF(AND(G20="DGR1233_2021",K20=1),VLOOKUP(H20,TettiDGR1233!$J$2:$N$74,5,FALSE),VLOOKUP(H20,TettiDGR1233!$J$2:$N$74,2,FALSE))))))))) -> 0 | S20: 0 | U20: 6
Q21: =IFERROR(VLOOKUP(H21,TettiDGR300!$J$2:$L80,3,FALSE), "") ->  | R21: =IF(H21="",0,IF(AND(G21="DGR300_2023",J21=1,K21=1),VLOOKUP(H21,TettiDGR300!$J$2:$N$74,5,FALSE),IF(AND(G21="DGR300_2023",J21=1),VLOOKUP(H21,TettiDGR300!$J$2:$N$74,4,FALSE),IF(AND(G21="DGR300_2023",K21=1),VLOOKUP(H21,TettiDGR300!$J$2:$N$74,5,FALSE),IF(G21="DGR300_2023",VLOOKUP(H21,TettiDGR300!$J$2:$N$74,2,FALSE),IF(AND(G21="DGR1233_2021",J21=1,K21=1),VLOOKUP(H21,TettiDGR1233!$J$2:$N$74,5,FALSE),IF(AND(G21="DGR1233_2021",J21=1),VLOOKUP(H21,TettiDGR1233!$J$2:$N$74,4,FALSE),IF(AND(G21="DGR1233_2021",K21=1),VLOOKUP(H21,TettiDGR1233!$J$2:$N$74,5,FALSE),VLOOKUP(H21,TettiDGR1233!$J$2:$N$74,2,FALSE))))))))) -> 0 | S21: 0 | U21: 7
Q22: =IFERROR(VLOOKUP(H22,TettiDGR300!$J$2:$L81,3,FALSE), "") ->  | R22: =IF(H22="",0,IF(AND(G22="DGR300_2023",J22=1,K22=1),VLOOKUP(H22,TettiDGR300!$J$2:$N$74,5,FALSE),IF(AND(G22="DGR300_2023",J22=1),VLOOKUP(H22,TettiDGR300!$J$2:$N$74,4,FALSE),IF(AND(G22="DGR300_2023",K22=1),VLOOKUP(H22,TettiDGR300!$J$2:$N$74,5,FALSE),IF(G22="DGR300_2023",VLOOKUP(H22,TettiDGR300!$J$2:$N$74,2,FALSE),IF(AND(G22="DGR1233_2021",J22=1,K22=1),VLOOKUP(H22,TettiDGR1233!$J$2:$N$74,5,FALSE),IF(AND(G22="DGR1233_2021",J22=1),VLOOKUP(H22,TettiDGR1233!$J$2:$N$74,4,FALSE),IF(AND(G22="DGR1233_2021",K22=1),VLOOKUP(H22,TettiDGR1233!$J$2:$N$74,5,FALSE),VLOOKUP(H22,TettiDGR1233!$J$2:$N$74,2,FALSE))))))))) -> 0 | S22: 0 | U22: 8
Q23: =IFERROR(VLOOKUP(H23,TettiDGR300!$J$2:$L82,3,FALSE), "") ->  | R23: =IF(H23="",0,IF(AND(G23="DGR300_2023",J23=1,K23=1),VLOOKUP(H23,TettiDGR300!$J$2:$N$74,5,FALSE),IF(AND(G23="DGR300_2023",J23=1),VLOOKUP(H23,TettiDGR300!$J$2:$N$74,4,FALSE),IF(AND(G23="DGR300_2023",K23=1),VLOOKUP(H23,TettiDGR300!$J$2:$N$74,5,FALSE),IF(G23="DGR300_2023",VLOOKUP(H23,TettiDGR300!$J$2:$N$74,2,FALSE),IF(AND(G23="DGR1233_2021",J23=1,K23=1),VLOOKUP(H23,TettiDGR1233!$J$2:$N$74,5,FALSE),IF(AND(G23="DGR1233_2021",J23=1),VLOOKUP(H23,TettiDGR1233!$J$2:$N$74,4,FALSE),IF(AND(G23="DGR1233_2021",K23=1),VLOOKUP(H23,TettiDGR1233!$J$2:$N$74,5,FALSE),VLOOKUP(H23,TettiDGR1233!$J$2:$N$74,2,FALSE))))))))) -> 0 | S23: 0 | U23: 9
Q24: =IFERROR(VLOOKUP(H24,TettiDGR300!$J$2:$L83,3,FALSE), "") ->  | R24: =IF(H24="",0,IF(AND(G24="DGR300_2023",J24=1,K24=1),VLOOKUP(H24,TettiDGR300!$J$2:$N$74,5,FALSE),IF(AND(G24="DGR300_2023",J24=1),VLOOKUP(H24,TettiDGR300!$J$2:$N$74,4,FALSE),IF(AND(G24="DGR300_2023",K24=1),VLOOKUP(H24,TettiDGR300!$J$2:$N$74,5,FALSE),IF(G24="DGR300_2023",VLOOKUP(H24,TettiDGR300!$J$2:$N$74,2,FALSE),IF(AND(G24="DGR1233_2021",J24=1,K24=1),VLOOKUP(H24,TettiDGR1233!$J$2:$N$74,5,FALSE),IF(AND(G24="DGR1233_2021",J24=1),VLOOKUP(H24,TettiDGR1233!$J$2:$N$74,4,FALSE),IF(AND(G24="DGR1233_2021",K24=1),VLOOKUP(H24,TettiDGR1233!$J$2:$N$74,5,FALSE),VLOOKUP(H24,TettiDGR1233!$J$2:$N$74,2,FALSE))))))))) -> 0 | S24: 0 | U24: 10
Q25: =IFERROR(VLOOKUP(H25,TettiDGR300!$J$2:$L84,3,FALSE), "") ->  | R25: =IF(H25="",0,IF(AND(G25="DGR300_2023",J25=1,K25=1),VLOOKUP(H25,TettiDGR300!$J$2:$N$74,5,FALSE),IF(AND(G25="DGR300_2023",J25=1),VLOOKUP(H25,TettiDGR300!$J$2:$N$74,4,FALSE),IF(AND(G25="DGR300_2023",K25=1),VLOOKUP(H25,TettiDGR300!$J$2:$N$74,5,FALSE),IF(G25="DGR300_2023",VLOOKUP(H25,TettiDGR300!$J$2:$N$74,2,FALSE),IF(AND(G25="DGR1233_2021",J25=1,K25=1),VLOOKUP(H25,TettiDGR1233!$J$2:$N$74,5,FALSE),IF(AND(G25="DGR1233_2021",J25=1),VLOOKUP(H25,TettiDGR1233!$J$2:$N$74,4,FALSE),IF(AND(G25="DGR1233_2021",K25=1),VLOOKUP(H25,TettiDGR1233!$J$2:$N$74,5,FALSE),VLOOKUP(H25,TettiDGR1233!$J$2:$N$74,2,FALSE))))))))) -> 0 | S25: 0 | U25: 11
Q26: =IFERROR(VLOOKUP(H26,TettiDGR300!$J$2:$L85,3,FALSE), "") ->  | R26: =IF(H26="",0,IF(AND(G26="DGR300_2023",J26=1,K26=1),VLOOKUP(H26,TettiDGR300!$J$2:$N$74,5,FALSE),IF(AND(G26="DGR300_2023",J26=1),VLOOKUP(H26,TettiDGR300!$J$2:$N$74,4,FALSE),IF(AND(G26="DGR300_2023",K26=1),VLOOKUP(H26,TettiDGR300!$J$2:$N$74,5,FALSE),IF(G26="DGR300_2023",VLOOKUP(H26,TettiDGR300!$J$2:$N$74,2,FALSE),IF(AND(G26="DGR1233_2021",J26=1,K26=1),VLOOKUP(H26,TettiDGR1233!$J$2:$N$74,5,FALSE),IF(AND(G26="DGR1233_2021",J26=1),VLOOKUP(H26,TettiDGR1233!$J$2:$N$74,4,FALSE),IF(AND(G26="DGR1233_2021",K26=1),VLOOKUP(H26,TettiDGR1233!$J$2:$N$74,5,FALSE),VLOOKUP(H26,TettiDGR1233!$J$2:$N$74,2,FALSE))))))))) -> 0 | S26: 0 | U26: 12
Q27: =IFERROR(VLOOKUP(H27,TettiDGR300!$J$2:$L86,3,FALSE), "") ->  | R27: =IF(H27="",0,IF(AND(G27="DGR300_2023",J27=1,K27=1),VLOOKUP(H27,TettiDGR300!$J$2:$N$74,5,FALSE),IF(AND(G27="DGR300_2023",J27=1),VLOOKUP(H27,TettiDGR300!$J$2:$N$74,4,FALSE),IF(AND(G27="DGR300_2023",K27=1),VLOOKUP(H27,TettiDGR300!$J$2:$N$74,5,FALSE),IF(G27="DGR300_2023",VLOOKUP(H27,TettiDGR300!$J$2:$N$74,2,FALSE),IF(AND(G27="DGR1233_2021",J27=1,K27=1),VLOOKUP(H27,TettiDGR1233!$J$2:$N$74,5,FALSE),IF(AND(G27="DGR1233_2021",J27=1),VLOOKUP(H27,TettiDGR1233!$J$2:$N$74,4,FALSE),IF(AND(G27="DGR1233_2021",K27=1),VLOOKUP(H27,TettiDGR1233!$J$2:$N$74,5,FALSE),VLOOKUP(H27,TettiDGR1233!$J$2:$N$74,2,FALSE))))))))) -> 0 | S27: 0 | U27: 13
Q28: =IFERROR(VLOOKUP(H28,TettiDGR300!$J$2:$L87,3,FALSE), "") ->  | R28: =IF(H28="",0,IF(AND(G28="DGR300_2023",J28=1,K28=1),VLOOKUP(H28,TettiDGR300!$J$2:$N$74,5,FALSE),IF(AND(G28="DGR300_2023",J28=1),VLOOKUP(H28,TettiDGR300!$J$2:$N$74,4,FALSE),IF(AND(G28="DGR300_2023",K28=1),VLOOKUP(H28,TettiDGR300!$J$2:$N$74,5,FALSE),IF(G28="DGR300_2023",VLOOKUP(H28,TettiDGR300!$J$2:$N$74,2,FALSE),IF(AND(G28="DGR1233_2021",J28=1,K28=1),VLOOKUP(H28,TettiDGR1233!$J$2:$N$74,5,FALSE),IF(AND(G28="DGR1233_2021",J28=1),VLOOKUP(H28,TettiDGR1233!$J$2:$N$74,4,FALSE),IF(AND(G28="DGR1233_2021",K28=1),VLOOKUP(H28,TettiDGR1233!$J$2:$N$74,5,FALSE),VLOOKUP(H28,TettiDGR1233!$J$2:$N$74,2,FALSE))))))))) -> 0 | S28: 0 | U28: 14
Q29: =IFERROR(VLOOKUP(H29,TettiDGR300!$J$2:$L88,3,FALSE), "") ->  | R29: =IF(H29="",0,IF(AND(G29="DGR300_2023",J29=1,K29=1),VLOOKUP(H29,TettiDGR300!$J$2:$N$74,5,FALSE),IF(AND(G29="DGR300_2023",J29=1),VLOOKUP(H29,TettiDGR300!$J$2:$N$74,4,FALSE),IF(AND(G29="DGR300_2023",K29=1),VLOOKUP(H29,TettiDGR300!$J$2:$N$74,5,FALSE),IF(G29="DGR300_2023",VLOOKUP(H29,TettiDGR300!$J$2:$N$74,2,FALSE),IF(AND(G29="DGR1233_2021",J29=1,K29=1),VLOOKUP(H29,TettiDGR1233!$J$2:$N$74,5,FALSE),IF(AND(G29="DGR1233_2021",J29=1),VLOOKUP(H29,TettiDGR1233!$J$2:$N$74,4,FALSE),IF(AND(G29="DGR1233_2021",K29=1),VLOOKUP(H29,TettiDGR1233!$J$2:$N$74,5,FALSE),VLOOKUP(H29,TettiDGR1233!$J$2:$N$74,2,FALSE))))))))) -> 0 | S29: 0 | U29: 15
A30: DATI RIEPILOGATIVI PER LE INFRASTRUTTURE DI RIFORNIMENTO/RICARICA Azienda beneficiaria | B30: Id intervento (inserire il codice indentif. già inserito nella scheda dedicata) | C30: Nuova realizzazione (0) - Ristrutturazione e/o ampliamento (1) | D30: Comune | E30: Località | F30: Investimento già parzialmente finanziato da altra misura pubblica | H30: Tipologia intervento | I30: N. colonnine ricarica bus per sito | J30: Utilizzo infrastruttura da più operatori (1=si;0=no) | K30: Intervento allocato su più annualità (1=si;0=no) | L30: Importo complessivo dell'intervento [€] | M30: CIG e note particolari | N30: DATA STIPULA CONTRATTO | O30: Investimento sul cratere sisma 2016 (1=si;0=no) | P30: intervento liquidato (1=si;0=no) | Q30: Alimentaz. | R30: Costo allocato sull'anno in esame [€] | S30: Quota contributo sull'anno [€] | U30: Indicare il cronoprogramma delle attività per ogni intervento secondo le tre tipologie in legenda
B31: =IF(OR($B$4="DM 223/2020 - MIT",$B$4="FSC (D.Cipe 98/2017)"),"XXXX","") ->  | L31: =IF(OR($B$4="DM 223/2020 - MIT",$B$4="FSC (D.Cipe 98/2017)"),"XXXX","") ->  | M31: =IF(OR($B$4="DM 223/2020 - MIT",$B$4="FSC (D.Cipe 98/2017)"),"Il fondo prescelto non ammette infrastrutture","") ->  | Q31: =IFERROR(VLOOKUP(H31,Infrastrutture!$A$2:$B$9,2,FALSE), "") ->  | S31: =IF(L31<R31,"ERRORE",R31*PERCCONTRIB) -> 0 | U31: 20
M32: =IF(OR($B$4="DM 223/2020 - MIT",$B$4="FSC (D.Cipe 98/2017)"),"Il fondo prescelto non ammette infrastrutture","") ->  | Q32: =IFERROR(VLOOKUP(H32,Infrastrutture!$A$2:$B$9,2,FALSE), "") ->  | S32: 0 | U32: 21
Q33: =IFERROR(VLOOKUP(H33,Infrastrutture!$A$2:$B$9,2,FALSE), "") ->  | S33: 0 | U33: 22
Q34: =IFERROR(VLOOKUP(H34,Infrastrutture!$A$2:$B$9,2,FALSE), "") ->  | S34: 0 | U34: 23
Q35: =IFERROR(VLOOKUP(H35,Infrastrutture!$A$2:$B$9,2,FALSE), "") ->  | S35: 0 | U35: 24
Q36: =IFERROR(VLOOKUP(H36,Infrastrutture!$A$2:$B$9,2,FALSE), "") ->  | S36: 0 | U36: 25
Q37: =IFERROR(VLOOKUP(H37,Infrastrutture!$A$2:$B$9,2,FALSE), "") ->  | S37: 0 | U37: 26
Q38: =IFERROR(VLOOKUP(H38,Infrastrutture!$A$2:$B$9,2,FALSE), "") ->  | S38: 0 | U38: 27
Q39: =IFERROR(VLOOKUP(H39,Infrastrutture!$A$2:$B$9,2,FALSE), "") ->  | S39: 0 | U39: 28
Q40: =IFERROR(VLOOKUP(H40,Infrastrutture!$A$2:$B$9,2,FALSE), "") ->  | S40: 0 | U40: 29
A41: TOTALI AUTOBUS | B41: =SUM(B15:B29) -> 0 | C41: =SUM(C15:C29) -> 0 | O41: =+SUM(O15:O29) -> 0 | R41: =SUM(R15:R29) -> 0 | S41: =SUM(S15:S29) -> 0
A42: TOTALI INFRASTRUTTURE | O42: =+SUM(O31:O40) -> 0 | R42: =+SUM(R31:R40) -> 0 | S42: =+SUM(S31:S40) -> 0
A43: TOTALI GENERALE | R43: =+R41+R42 -> 0 | S43: =+S41+S42 -> 0

Sheet DM 81_2020
A1: Piano investimenti di bacino - D.G.R. 647 del 30 maggio 2022 - REGIONE MARCHE - Assessorato trasporti e reti regionali di trasporto. | U1: CRONOPROGRAMMA DEGLI INVESTIMENTI
A3: Ambito territoriale | B3: FM | F3: celle a fondo bianco da compilare obbligatoriamente direttamente o con menu a tendina | I3: Data compilazione | V3: Legenda:
A4: Fonte di finanziamento | B4: DM 81/2020 - PSNMS | F4: celle a fondo arancio compilate automaticamente | I4: Referente compilaz. | V4: 1 | W4: Espletamento gara
A5: Annualità | B5: 2020 | F5: Valori economici al netto dell'IVA | I5: Telefono di contatto | V5: 2 | W5: Stipula contratto
A6: K2 | B6: =B4&"_"&B5&"_"&B3 -> DM 81/2020 - PSNMS_2020_FM
A7: Contributo max assegnabile | B7: =VLOOKUP($B$6,'Assegnazione fondi'!$D$2:$G$208,3,FALSE) -> 593623.6563 | D7: Contributo tot. assegnato | F7: =+S43 -> 0 | I7: e-mail | V7: 3 | W7: Completamento fornitura
A8: % contribuzione sul costo d'acquisto | B8: =VLOOKUP($B$6,'Assegnazione fondi'!$D$2:$G$201,4,FALSE) -> 0.8 | D8: N. mezzi tot. da acquisire | F8: =B41+C41 -> 0
A9: Residuo annualità precedenti | B9: ='DM 81_2019'!F10 -> 395749.0664
A10: =+IF(B4="DM 81/2020 - PSNMS", "Importo da utilizzare per infrastrutture (di cui del contributo max)","Contributo max assegnabile per ventuali infrastrutture (di cui del contributo max)") -> Importo da utilizzare per infrastrutture (di cui del contributo max) | B10: =VLOOKUP($B$6,'Assegnazione fondi'!$D$2:$G$208,2,FALSE) -> 0 | D10: Residuo sull'anno | F10: =+TOTIMP-F7+B9 -> 989372.7227
A12: DATI RIEPILOGATIVI SUGLI AUTOBUS DA ACQUISIRE | B12: Per complet. organico n. | C12: Per rinnovo parco n. | D12: Compilare un foglio per ogni fondo di finanziamento, per ogni annualità | U12: Indicare il cronoprogramma delle attività per ogni mezzo secondo le tre tipologie in legenda
B13: =B41 -> 0 | C13: =C41 -> 0 | U13: Anno | V13: 2018 | AH13: 2019 | AT13: 2020 | BF13: 2021 | BR13: 2022 | CD13: 2023 | CP13: 2024 | DB13: 2025 | DN13: 2026
A14: Azienda beneficiaria | B14: Completamento organico (1=si;0=no) | C14: Sostituzione mezzo (1=si;0=no) | D14: Targa mezzo da sostituire | E14: Impiego (URBANO / EXTRAURBANO) | F14: Data prima immatricolazione mezzo sostituito | G14: DGR tetti di spesa | H14: Tipologia nuovo mezzo (selezionare dall'elenco) | I14: Rastrelliera per biciclette (1=si;0=no) | J14: Metano LNG (1=si;0=no) | K14: Mezzo Myld hybrid (1=si;0=no) | L14: Costo preventivato unitario [€] | M14: CIG e note particolari | N14: DATA STIPULA CONTRATTO | O14: Investimento sul cratere sisma 2016 (1=si;0=no) | P14: intervento liquidato (1=si;0=no) | Q14: Alimentaz. | R14: Spesa max ammissibile unitaria | S14: Contributo unitario | U14: Id / Mese | V14: 1 | W14: 2 | X14: 3 | Y14: 4 | Z14: 5 | AA14: 6 | AB14: 7 | AC14: 8 | AD14: 9 | AE14: 10 | AF14: 11 | AG14: 12 | AH14: 1 | AI14: 2 | AJ14: 3 | AK14: 4 | AL14: 5 | AM14: 6 | AN14: 7 | AO14: 8 | AP14: 9 | AQ14: 10 | AR14: 11 | AS14: 12 | AT14: 1 | AU14: 2 | AV14: 3 | AW14: 4 | AX14: 5 | AY14: 6 | AZ14: 7 | BA14: 8 | BB14: 9 | BC14: 10 | BD14: 11 | BE14: 12 | BF14: 1 | BG14: 2 | BH14: 3 | BI14: 4 | BJ14: 5 | BK14: 6 | BL14: 7 | BM14: 8 | BN14: 9 | BO14: 10 | BP14: 11 | BQ14: 12 | BR14: 1 | BS14: 2 | BT14: 3 | BU14: 4 | BV14: 5 | BW14: 6 | BX14: 7 | BY14: 8 | BZ14: 9 | CA14: 10 | CB14: 11 | CC14: 12 | CD14: 1 | CE14: 2 | CF14: 3 | CG14: 4 | CH14: 5 | CI14: 6 | CJ14: 7 | CK14: 8 | CL14: 9 | CM14: 10 | CN14: 11 | CO14: 12 | CP14: 1 | CQ14: 2 | CR14: 3 | CS14: 4 | CT14: 5 | CU14: 6 | CV14: 7 | CW14: 8 | CX14: 9 | CY14: 10 | CZ14: 11 | DA14: 12 | DB14: 1 | DC14: 2 | DD14: 3 | DE14: 4 | DF14: 5 | DG14: 6 | DH14: 7 | DI14: 8 | DJ14: 9 | DK14: 10 | DL14: 11 | DM14: 12 | DN14: 1 | DO14: 2 | DP14: 3 | DQ14: 4 | DR14: 5 | DS14: 6 | DT14: 7 | DU14: 8 | DV14: 9 | DW14: 10 | DX14: 11 | DY14: 12
M15: =IF(L15<>0,"COMPILARE","") ->  | Q15: =IFERROR(VLOOKUP(H15,TettiDGR300!$J$2:$L74,3,FALSE), "") ->  | R15: =IF(H15="",0,IF(AND(G15="DGR300_2023",J15=1,K15=1),VLOOKUP(H15,TettiDGR300!$J$2:$N$74,5,FALSE),IF(AND(G15="DGR300_2023",J15=1),VLOOKUP(H15,TettiDGR300!$J$2:$N$74,4,FALSE),IF(AND(G15="DGR300_2023",K15=1),VLOOKUP(H15,TettiDGR300!$J$2:$N$74,5,FALSE),IF(G15="DGR300_2023",VLOOKUP(H15,TettiDGR300!$J$2:$N$74,2,FALSE),IF(AND(G15="DGR1233_2021",J15=1,K15=1),VLOOKUP(H15,TettiDGR1233!$J$2:$N$74,5,FALSE),IF(AND(G15="DGR1233_2021",J15=1),VLOOKUP(H15,TettiDGR1233!$J$2:$N$74,4,FALSE),IF(AND(G15="DGR1233_2021",K15=1),VLOOKUP(H15,TettiDGR1233!$J$2:$N$74,5,FALSE),VLOOKUP(H15,TettiDGR1233!$J$2:$N$74,2,FALSE))))))))) -> 0 | S15: =IF(L15<R15,L15*PERCCONTRIB,R15*PERCCONTRIB) -> 0 | U15: 1
Q16: =IFERROR(VLOOKUP(H16,TettiDGR300!$J$2:$L75,3,FALSE), "") ->  | R16: =IF(H16="",0,IF(AND(G16="DGR300_2023",J16=1,K16=1),VLOOKUP(H16,TettiDGR300!$J$2:$N$74,5,FALSE),IF(AND(G16="DGR300_2023",J16=1),VLOOKUP(H16,TettiDGR300!$J$2:$N$74,4,FALSE),IF(AND(G16="DGR300_2023",K16=1),VLOOKUP(H16,TettiDGR300!$J$2:$N$74,5,FALSE),IF(G16="DGR300_2023",VLOOKUP(H16,TettiDGR300!$J$2:$N$74,2,FALSE),IF(AND(G16="DGR1233_2021",J16=1,K16=1),VLOOKUP(H16,TettiDGR1233!$J$2:$N$74,5,FALSE),IF(AND(G16="DGR1233_2021",J16=1),VLOOKUP(H16,TettiDGR1233!$J$2:$N$74,4,FALSE),IF(AND(G16="DGR1233_2021",K16=1),VLOOKUP(H16,TettiDGR1233!$J$2:$N$74,5,FALSE),VLOOKUP(H16,TettiDGR1233!$J$2:$N$74,2,FALSE))))))))) -> 0 | S16: 0 | U16: 2
Q17: =IFERROR(VLOOKUP(H17,TettiDGR300!$J$2:$L76,3,FALSE), "") ->  | R17: =IF(H17="",0,IF(AND(G17="DGR300_2023",J17=1,K17=1),VLOOKUP(H17,TettiDGR300!$J$2:$N$74,5,FALSE),IF(AND(G17="DGR300_2023",J17=1),VLOOKUP(H17,TettiDGR300!$J$2:$N$74,4,FALSE),IF(AND(G17="DGR300_2023",K17=1),VLOOKUP(H17,TettiDGR300!$J$2:$N$74,5,FALSE),IF(G17="DGR300_2023",VLOOKUP(H17,TettiDGR300!$J$2:$N$74,2,FALSE),IF(AND(G17="DGR1233_2021",J17=1,K17=1),VLOOKUP(H17,TettiDGR1233!$J$2:$N$74,5,FALSE),IF(AND(G17="DGR1233_2021",J17=1),VLOOKUP(H17,TettiDGR1233!$J$2:$N$74,4,FALSE),IF(AND(G17="DGR1233_2021",K17=1),VLOOKUP(H17,TettiDGR1233!$J$2:$N$74,5,FALSE),VLOOKUP(H17,TettiDGR1233!$J$2:$N$74,2,FALSE))))))))) -> 0 | S17: 0 | U17: 3
Q18: =IFERROR(VLOOKUP(H18,TettiDGR300!$J$2:$L77,3,FALSE), "") ->  | R18: =IF(H18="",0,IF(AND(G18="DGR300_2023",J18=1,K18=1),VLOOKUP(H18,TettiDGR300!$J$2:$N$74,5,FALSE),IF(AND(G18="DGR300_2023",J18=1),VLOOKUP(H18,TettiDGR300!$J$2:$N$74,4,FALSE),IF(AND(G18="DGR300_2023",K18=1),VLOOKUP(H18,TettiDGR300!$J$2:$N$74,5,FALSE),IF(G18="DGR300_2023",VLOOKUP(H18,TettiDGR300!$J$2:$N$74,2,FALSE),IF(AND(G18="DGR1233_2021",J18=1,K18=1),VLOOKUP(H18,TettiDGR1233!$J$2:$N$74,5,FALSE),IF(AND(G18="DGR1233_2021",J18=1),VLOOKUP(H18,TettiDGR1233!$J$2:$N$74,4,FALSE),IF(AND(G18="DGR1233_2021",K18=1),VLOOKUP(H18,TettiDGR1233!$J$2:$N$74,5,FALSE),VLOOKUP(H18,TettiDGR1233!$J$2:$N$74,2,FALSE))))))))) -> 0 | S18: =IF(L18<R18,L18*PERCCONTRIB,R18*PERCCONTRIB) -> 0 | U18: 4
Q19: =IFERROR(VLOOKUP(H19,TettiDGR300!$J$2:$L78,3,FALSE), "") ->  | R19: =IF(H19="",0,IF(AND(G19="DGR300_2023",J19=1,K19=1),VLOOKUP(H19,TettiDGR300!$J$2:$N$74,5,FALSE),IF(AND(G19="DGR300_2023",J19=1),VLOOKUP(H19,TettiDGR300!$J$2:$N$74,4,FALSE),IF(AND(G19="DGR300_2023",K19=1),VLOOKUP(H19,TettiDGR300!$J$2:$N$74,5,FALSE),IF(G19="DGR300_2023",VLOOKUP(H19,TettiDGR300!$J$2:$N$74,2,FALSE),IF(AND(G19="DGR1233_2021",J19=1,K19=1),VLOOKUP(H19,TettiDGR1233!$J$2:$N$74,5,FALSE),IF(AND(G19="DGR1233_2021",J19=1),VLOOKUP(H19,TettiDGR1233!$J$2:$N$74,4,FALSE),IF(AND(G19="DGR1233_2021",K19=1),VLOOKUP(H19,TettiDGR1233!$J$2:$N$74,5,FALSE),VLOOKUP(H19,TettiDGR1233!$J$2:$N$74,2,FALSE))))))))) -> 0 | S19: 0 | U19: 5
Q20: =IFERROR(VLOOKUP(H20,TettiDGR300!$J$2:$L79,3,FALSE), "") ->  | R20: =IF(H20="",0,IF(AND(G20="DGR300_2023",J20=1,K20=1),VLOOKUP(H20,TettiDGR300!$J$2:$N$74,5,FALSE),IF(AND(G20="DGR300_2023",J20=1),VLOOKUP(H20,TettiDGR300!$J$2:$N$74,4,FALSE),IF(AND(G20="DGR300_2023",K20=1),VLOOKUP(H20,TettiDGR300!$J$2:$N$74,5,FALSE),IF(G20="DGR300_2023",VLOOKUP(H20,TettiDGR300!$J$2:$N$74,2,FALSE),IF(AND(G20="DGR1233_2021",J20=1,K20=1),VLOOKUP(H20,TettiDGR1233!$J$2:$N$74,5,FALSE),IF(AND(G20="DGR1233_2021",J20=1),VLOOKUP(H20,TettiDGR1233!$J$2:$N$74,4,FALSE),IF(AND(G20="DGR1233_2021",K20=1),VLOOKUP(H20,TettiDGR1233!$J$2:$N$74,5,FALSE),VLOOKUP(H20,TettiDGR1233!$J$2:$N$74,2,FALSE))))))))) -> 0 | S20: 0 | U20: 6
Q21: =IFERROR(VLOOKUP(H21,TettiDGR300!$J$2:$L80,3,FALSE), "") ->  | R21: =IF(H21="",0,IF(AND(G21="DGR300_2023",J21=1,K21=1),VLOOKUP(H21,TettiDGR300!$J$2:$N$74,5,FALSE),IF(AND(G21="DGR300_2023",J21=1),VLOOKUP(H21,TettiDGR300!$J$2:$N$74,4,FALSE),IF(AND(G21="DGR300_2023",K21=1),VLOOKUP(H21,TettiDGR300!$J$2:$N$74,5,FALSE),IF(G21="DGR300_2023",VLOOKUP(H21,TettiDGR300!$J$2:$N$74,2,FALSE),IF(AND(G21="DGR1233_2021",J21=1,K21=1),VLOOKUP(H21,TettiDGR1233!$J$2:$N$74,5,FALSE),IF(AND(G21="DGR1233_2021",J21=1),VLOOKUP(H21,TettiDGR1233!$J$2:$N$74,4,FALSE),IF(AND(G21="DGR1233_2021",K21=1),VLOOKUP(H21,TettiDGR1233!$J$2:$N$74,5,FALSE),VLOOKUP(H21,TettiDGR1233!$J$2:$N$74,2,FALSE))))))))) -> 0 | S21: 0 | U21: 7
Q22: =IFERROR(VLOOKUP(H22,TettiDGR300!$J$2:$L81,3,FALSE), "") ->  | R22: =IF(H22="",0,IF(AND(G22="DGR300_2023",J22=1,K22=1),VLOOKUP(H22,TettiDGR300!$J$2:$N$74,5,FALSE),IF(AND(G22="DGR300_2023",J22=1),VLOOKUP(H22,TettiDGR300!$J$2:$N$74,4,FALSE),IF(AND(G22="DGR300_2023",K22=1),VLOOKUP(H22,TettiDGR300!$J$2:$N$74,5,FALSE),IF(G22="DGR300_2023",VLOOKUP(H22,TettiDGR300!$J$2:$N$74,2,FALSE),IF(AND(G22="DGR1233_2021",J22=1,K22=1),VLOOKUP(H22,TettiDGR1233!$J$2:$N$74,5,FALSE),IF(AND(G22="DGR1233_2021",J22=1),VLOOKUP(H22,TettiDGR1233!$J$2:$N$74,4,FALSE),IF(AND(G22="DGR1233_2021",K22=1),VLOOKUP(H22,TettiDGR1233!$J$2:$N$74,5,FALSE),VLOOKUP(H22,TettiDGR1233!$J$2:$N$74,2,FALSE))))))))) -> 0 | S22: 0 | U22: 8
Q23: =IFERROR(VLOOKUP(H23,TettiDGR300!$J$2:$L82,3,FALSE), "") ->  | R23: =IF(H23="",0,IF(AND(G23="DGR300_2023",J23=1,K23=1),VLOOKUP(H23,TettiDGR300!$J$2:$N$74,5,FALSE),IF(AND(G23="DGR300_2023",J23=1),VLOOKUP(H23,TettiDGR300!$J$2:$N$74,4,FALSE),IF(AND(G23="DGR300_2023",K23=1),VLOOKUP(H23,TettiDGR300!$J$2:$N$74,5,FALSE),IF(G23="DGR300_2023",VLOOKUP(H23,TettiDGR300!$J$2:$N$74,2,FALSE),IF(AND(G23="DGR1233_2021",J23=1,K23=1),VLOOKUP(H23,TettiDGR1233!$J$2:$N$74,5,FALSE),IF(AND(G23="DGR1233_2021",J23=1),VLOOKUP(H23,TettiDGR1233!$J$2:$N$74,4,FALSE),IF(AND(G23="DGR1233_2021",K23=1),VLOOKUP(H23,TettiDGR1233!$J$2:$N$74,5,FALSE),VLOOKUP(H23,TettiDGR1233!$J$2:$N$74,2,FALSE))))))))) -> 0 | S23: 0 | U23: 9
Q24: =IFERROR(VLOOKUP(H24,TettiDGR300!$J$2:$L83,3,FALSE), "") ->  | R24: =IF(H24="",0,IF(AND(G24="DGR300_2023",J24=1,K24=1),VLOOKUP(H24,TettiDGR300!$J$2:$N$74,5,FALSE),IF(AND(G24="DGR300_2023",J24=1),VLOOKUP(H24,TettiDGR300!$J$2:$N$74,4,FALSE),IF(AND(G24="DGR300_2023",K24=1),VLOOKUP(H24,TettiDGR300!$J$2:$N$74,5,FALSE),IF(G24="DGR300_2023",VLOOKUP(H24,TettiDGR300!$J$2:$N$74,2,FALSE),IF(AND(G24="DGR1233_2021",J24=1,K24=1),VLOOKUP(H24,TettiDGR1233!$J$2:$N$74,5,FALSE),IF(AND(G24="DGR1233_2021",J24=1),VLOOKUP(H24,TettiDGR1233!$J$2:$N$74,4,FALSE),IF(AND(G24="DGR1233_2021",K24=1),VLOOKUP(H24,TettiDGR1233!$J$2:$N$74,5,FALSE),VLOOKUP(H24,TettiDGR1233!$J$2:$N$74,2,FALSE))))))))) -> 0 | S24: 0 | U24: 10
Q25: =IFERROR(VLOOKUP(H25,TettiDGR300!$J$2:$L84,3,FALSE), "") ->  | R25: =IF(H25="",0,IF(AND(G25="DGR300_2023",J25=1,K25=1),VLOOKUP(H25,TettiDGR300!$J$2:$N$74,5,FALSE),IF(AND(G25="DGR300_2023",J25=1),VLOOKUP(H25,TettiDGR300!$J$2:$N$74,4,FALSE),IF(AND(G25="DGR300_2023",K25=1),VLOOKUP(H25,TettiDGR300!$J$2:$N$74,5,FALSE),IF(G25="DGR300_2023",VLOOKUP(H25,TettiDGR300!$J$2:$N$74,2,FALSE),IF(AND(G25="DGR1233_2021",J25=1,K25=1),VLOOKUP(H25,TettiDGR1233!$J$2:$N$74,5,FALSE),IF(AND(G25="DGR1233_2021",J25=1),VLOOKUP(H25,TettiDGR1233!$J$2:$N$74,4,FALSE),IF(AND(G25="DGR1233_2021",K25=1),VLOOKUP(H25,TettiDGR1233!$J$2:$N$74,5,FALSE),VLOOKUP(H25,TettiDGR1233!$J$2:$N$74,2,FALSE))))))))) -> 0 | S25: 0 | U25: 11
Q26: =IFERROR(VLOOKUP(H26,TettiDGR300!$J$2:$L85,3,FALSE), "") ->  | R26: =IF(H26="",0,IF(AND(G26="DGR300_2023",J26=1,K26=1),VLOOKUP(H26,TettiDGR300!$J$2:$N$74,5,FALSE),IF(AND(G26="DGR300_2023",J26=1),VLOOKUP(H26,TettiDGR300!$J$2:$N$74,4,FALSE),IF(AND(G26="DGR300_2023",K26=1),VLOOKUP(H26,TettiDGR300!$J$2:$N$74,5,FALSE),IF(G26="DGR300_2023",VLOOKUP(H26,TettiDGR300!$J$2:$N$74,2,FALSE),IF(AND(G26="DGR1233_2021",J26=1,K26=1),VLOOKUP(H26,TettiDGR1233!$J$2:$N$74,5,FALSE),IF(AND(G26="DGR1233_2021",J26=1),VLOOKUP(H26,TettiDGR1233!$J$2:$N$74,4,FALSE),IF(AND(G26="DGR1233_2021",K26=1),VLOOKUP(H26,TettiDGR1233!$J$2:$N$74,5,FALSE),VLOOKUP(H26,TettiDGR1233!$J$2:$N$74,2,FALSE))))))))) -> 0 | S26: 0 | U26: 12
Q27: =IFERROR(VLOOKUP(H27,TettiDGR300!$J$2:$L86,3,FALSE), "") ->  | R27: =IF(H27="",0,IF(AND(G27="DGR300_2023",J27=1,K27=1),VLOOKUP(H27,TettiDGR300!$J$2:$N$74,5,FALSE),IF(AND(G27="DGR300_2023",J27=1),VLOOKUP(H27,TettiDGR300!$J$2:$N$74,4,FALSE),IF(AND(G27="DGR300_2023",K27=1),VLOOKUP(H27,TettiDGR300!$J$2:$N$74,5,FALSE),IF(G27="DGR300_2023",VLOOKUP(H27,TettiDGR300!$J$2:$N$74,2,FALSE),IF(AND(G27="DGR1233_2021",J27=1,K27=1),VLOOKUP(H27,TettiDGR1233!$J$2:$N$74,5,FALSE),IF(AND(G27="DGR1233_2021",J27=1),VLOOKUP(H27,TettiDGR1233!$J$2:$N$74,4,FALSE),IF(AND(G27="DGR1233_2021",K27=1),VLOOKUP(H27,TettiDGR1233!$J$2:$N$74,5,FALSE),VLOOKUP(H27,TettiDGR1233!$J$2:$N$74,2,FALSE))))))))) -> 0 | S27: 0 | U27: 13
Q28: =IFERROR(VLOOKUP(H28,TettiDGR300!$J$2:$L87,3,FALSE), "") ->  | R28: =IF(H28="",0,IF(AND(G28="DGR300_2023",J28=1,K28=1),VLOOKUP(H28,TettiDGR300!$J$2:$N$74,5,FALSE),IF(AND(G28="DGR300_2023",J28=1),VLOOKUP(H28,TettiDGR300!$J$2:$N$74,4,FALSE),IF(AND(G28="DGR300_2023",K28=1),VLOOKUP(H28,TettiDGR300!$J$2:$N$74,5,FALSE),IF(G28="DGR300_2023",VLOOKUP(H28,TettiDGR300!$J$2:$N$74,2,FALSE),IF(AND(G28="DGR1233_2021",J28=1,K28=1),VLOOKUP(H28,TettiDGR1233!$J$2:$N$74,5,FALSE),IF(AND(G28="DGR1233_2021",J28=1),VLOOKUP(H28,TettiDGR1233!$J$2:$N$74,4,FALSE),IF(AND(G28="DGR1233_2021",K28=1),VLOOKUP(H28,TettiDGR1233!$J$2:$N$74,5,FALSE),VLOOKUP(H28,TettiDGR1233!$J$2:$N$74,2,FALSE))))))))) -> 0 | S28: 0 | U28: 14
Q29: =IFERROR(VLOOKUP(H29,TettiDGR300!$J$2:$L88,3,FALSE), "") ->  | R29: =IF(H29="",0,IF(AND(G29="DGR300_2023",J29=1,K29=1),VLOOKUP(H29,TettiDGR300!$J$2:$N$74,5,FALSE),IF(AND(G29="DGR300_2023",J29=1),VLOOKUP(H29,TettiDGR300!$J$2:$N$74,4,FALSE),IF(AND(G29="DGR300_2023",K29=1),VLOOKUP(H29,TettiDGR300!$J$2:$N$74,5,FALSE),IF(G29="DGR300_2023",VLOOKUP(H29,TettiDGR300!$J$2:$N$74,2,FALSE),IF(AND(G29="DGR1233_2021",J29=1,K29=1),VLOOKUP(H29,TettiDGR1233!$J$2:$N$74,5,FALSE),IF(AND(G29="DGR1233_2021",J29=1),VLOOKUP(H29,TettiDGR1233!$J$2:$N$74,4,FALSE),IF(AND(G29="DGR1233_2021",K29=1),VLOOKUP(H29,TettiDGR1233!$J$2:$N$74,5,FALSE),VLOOKUP(H29,TettiDGR1233!$J$2:$N$74,2,FALSE))))))))) -> 0 | S29: 0 | U29: 15
A30: DATI RIEPILOGATIVI PER LE INFRASTRUTTURE DI RIFORNIMENTO/RICARICA Azienda beneficiaria | B30: Id intervento (inserire il codice indentif. già inserito nella scheda dedicata) | C30: Nuova realizzazione (0) - Ristrutturazione e/o ampliamento (1) | D30: Comune | E30: Località | F30: Investimento già parzialmente finanziato da altra misura pubblica | H30: Tipologia intervento | I30: N. colonnine ricarica bus per sito | J30: Utilizzo infrastruttura da più operatori (1=si;0=no) | K30: Intervento allocato su più annualità (1=si;0=no) | L30: Importo complessivo dell'intervento [€] | M30: CIG e note particolari | N30: DATA STIPULA CONTRATTO | O30: Investimento sul cratere sisma 2016 (1=si;0=no) | P30: intervento liquidato (1=si;0=no) | Q30: Alimentaz. | R30: Costo allocato sull'anno in esame [€] | S30: Quota contributo sull'anno [€] | U30: Indicare il cronoprogramma delle attività per ogni intervento secondo le tre tipologie in legenda
B31: =IF(OR($B$4="DM 223/2020 - MIT",$B$4="FSC (D.Cipe 98/2017)"),"XXXX","") ->  | L31: =IF(OR($B$4="DM 223/2020 - MIT",$B$4="FSC (D.Cipe 98/2017)"),"XXXX","") ->  | M31: =IF(OR($B$4="DM 223/2020 - MIT",$B$4="FSC (D.Cipe 98/2017)"),"Il fondo prescelto non ammette infrastrutture","") ->  | Q31: =IFERROR(VLOOKUP(H31,Infrastrutture!$A$2:$B$9,2,FALSE), "") ->  | S31: =IF(L31<R31,"ERRORE",R31*PERCCONTRIB) -> 0 | U31: 20
M32: =IF(OR($B$4="DM 223/2020 - MIT",$B$4="FSC (D.Cipe 98/2017)"),"Il fondo prescelto non ammette infrastrutture","") ->  | Q32: =IFERROR(VLOOKUP(H32,Infrastrutture!$A$2:$B$9,2,FALSE), "") ->  | S32: 0 | U32: 21
Q33: =IFERROR(VLOOKUP(H33,Infrastrutture!$A$2:$B$9,2,FALSE), "") ->  | S33: 0 | U33: 22
Q34: =IFERROR(VLOOKUP(H34,Infrastrutture!$A$2:$B$9,2,FALSE), "") ->  | S34: 0 | U34: 23
Q35: =IFERROR(VLOOKUP(H35,Infrastrutture!$A$2:$B$9,2,FALSE), "") ->  | S35: 0 | U35: 24
Q36: =IFERROR(VLOOKUP(H36,Infrastrutture!$A$2:$B$9,2,FALSE), "") ->  | S36: 0 | U36: 25
Q37: =IFERROR(VLOOKUP(H37,Infrastrutture!$A$2:$B$9,2,FALSE), "") ->  | S37: 0 | U37: 26
Q38: =IFERROR(VLOOKUP(H38,Infrastrutture!$A$2:$B$9,2,FALSE), "") ->  | S38: 0 | U38: 27
Q39: =IFERROR(VLOOKUP(H39,Infrastrutture!$A$2:$B$9,2,FALSE), "") ->  | S39: 0 | U39: 28
Q40: =IFERROR(VLOOKUP(H40,Infrastrutture!$A$2:$B$9,2,FALSE), "") ->  | S40: 0 | U40: 29
A41: TOTALI AUTOBUS | B41: =SUM(B15:B29) -> 0 | C41: =SUM(C15:C29) -> 0 | O41: =+SUM(O15:O29) -> 0 | R41: =SUM(R15:R29) -> 0 | S41: =SUM(S15:S29) -> 0
A42: TOTALI INFRASTRUTTURE | O42: =+SUM(O31:O40) -> 0 | R42: =+SUM(R31:R40) -> 0 | S42: =+SUM(S31:S40) -> 0
A43: TOTALI GENERALE | R43: =+R41+R42 -> 0 | S43: =+S41+S42 -> 0

Sheet DM 81_2021
A1: Piano investimenti di bacino - D.G.R. 647 del 30 maggio 2022 - REGIONE MARCHE - Assessorato trasporti e reti regionali di trasporto. | U1: CRONOPROGRAMMA DEGLI INVESTIMENTI
A3: Ambito territoriale | B3: FM | F3: celle a fondo bianco da compilare obbligatoriamente direttamente o con menu a tendina | I3: Data compilazione | V3: Legenda:
A4: Fonte di finanziamento | B4: DM 81/2020 - PSNMS | F4: celle a fondo arancio compilate automaticamente | I4: Referente compilaz. | V4: 1 | W4: Espletamento gara
A5: Annualità | B5: 2021 | F5: Valori economici al netto dell'IVA | I5: Telefono di contatto | V5: 2 | W5: Stipula contratto
A6: K2 | B6: =B4&"_"&B5&"_"&B3 -> DM 81/2020 - PSNMS_2021_FM
A7: Contributo max assegnabile | B7: =VLOOKUP($B$6,'Assegnazione fondi'!$D$2:$G$208,3,FALSE) -> 593623.6563 | D7: Contributo tot. assegnato | F7: =+S43 -> 0 | I7: e-mail | V7: 3 | W7: Completamento fornitura
A8: % contribuzione sul costo d'acquisto | B8: =VLOOKUP($B$6,'Assegnazione fondi'!$D$2:$G$201,4,FALSE) -> 0.8 | D8: N. mezzi tot. da acquisire | F8: =B41+C41 -> 0
A9: Residuo annualità precedenti | B9: ='DM 81_2020'!F10 -> 989372.7227
A10: =+IF(B4="DM 81/2020 - PSNMS", "Importo da utilizzare per infrastrutture (di cui del contributo max)","Contributo max assegnabile per ventuali infrastrutture (di cui del contributo max)") -> Importo da utilizzare per infrastrutture (di cui del contributo max) | B10: =VLOOKUP($B$6,'Assegnazione fondi'!$D$2:$G$208,2,FALSE) -> 0 | D10: Residuo sull'anno | F10: =+TOTIMP-F7+B9 -> 1582996.379
A12: DATI RIEPILOGATIVI SUGLI AUTOBUS DA ACQUISIRE | B12: Per complet. organico n. | C12: Per rinnovo parco n. | D12: Compilare un foglio per ogni fondo di finanziamento, per ogni annualità | U12: Indicare il cronoprogramma delle attività per ogni mezzo secondo le tre tipologie in legenda
B13: =B41 -> 0 | C13: =C41 -> 0 | U13: Anno | V13: 2018 | AH13: 2019 | AT13: 2020 | BF13: 2021 | BR13: 2022 | CD13: 2023 | CP13: 2024 | DB13: 2025 | DN13: 2026
A14: Azienda beneficiaria | B14: Completamento organico (1=si;0=no) | C14: Sostituzione mezzo (1=si;0=no) | D14: Targa mezzo da sostituire | E14: Impiego (URBANO / EXTRAURBANO) | F14: Data prima immatricolazione mezzo sostituito | G14: DGR tetti di spesa | H14: Tipologia nuovo mezzo (selezionare dall'elenco) | I14: Rastrelliera per biciclette (1=si;0=no) | J14: Metano LNG (1=si;0=no) | K14: Mezzo Myld hybrid (1=si;0=no) | L14: Costo preventivato unitario [€] | M14: CIG e note particolari | N14: DATA STIPULA CONTRATTO | O14: Investimento sul cratere sisma 2016 (1=si;0=no) | P14: intervento liquidato (1=si;0=no) | Q14: Alimentaz. | R14: Spesa max ammissibile unitaria | S14: Contributo unitario | U14: Id / Mese | V14: 1 | W14: 2 | X14: 3 | Y14: 4 | Z14: 5 | AA14: 6 | AB14: 7 | AC14: 8 | AD14: 9 | AE14: 10 | AF14: 11 | AG14: 12 | AH14: 1 | AI14: 2 | AJ14: 3 | AK14: 4 | AL14: 5 | AM14: 6 | AN14: 7 | AO14: 8 | AP14: 9 | AQ14: 10 | AR14: 11 | AS14: 12 | AT14: 1 | AU14: 2 | AV14: 3 | AW14: 4 | AX14: 5 | AY14: 6 | AZ14: 7 | BA14: 8 | BB14: 9 | BC14: 10 | BD14: 11 | BE14: 12 | BF14: 1 | BG14: 2 | BH14: 3 | BI14: 4 | BJ14: 5 | BK14: 6 | BL14: 7 | BM14: 8 | BN14: 9 | BO14: 10 | BP14: 11 | BQ14: 12 | BR14: 1 | BS14: 2 | BT14: 3 | BU14: 4 | BV14: 5 | BW14: 6 | BX14: 7 | BY14: 8 | BZ14: 9 | CA14: 10 | CB14: 11 | CC14: 12 | CD14: 1 | CE14: 2 | CF14: 3 | CG14: 4 | CH14: 5 | CI14: 6 | CJ14: 7 | CK14: 8 | CL14: 9 | CM14: 10 | CN14: 11 | CO14: 12 | CP14: 1 | CQ14: 2 | CR14: 3 | CS14: 4 | CT14: 5 | CU14: 6 | CV14: 7 | CW14: 8 | CX14: 9 | CY14: 10 | CZ14: 11 | DA14: 12 | DB14: 1 | DC14: 2 | DD14: 3 | DE14: 4 | DF14: 5 | DG14: 6 | DH14: 7 | DI14: 8 | DJ14: 9 | DK14: 10 | DL14: 11 | DM14: 12 | DN14: 1 | DO14: 2 | DP14: 3 | DQ14: 4 | DR14: 5 | DS14: 6 | DT14: 7 | DU14: 8 | DV14: 9 | DW14: 10 | DX14: 11 | DY14: 12
M15: =IF(L15<>0,"COMPILARE","") ->  | Q15: =IFERROR(VLOOKUP(H15,TettiDGR300!$J$2:$L74,3,FALSE), "") ->  | R15: =IF(H15="",0,IF(AND(G15="DGR300_2023",J15=1,K15=1),VLOOKUP(H15,TettiDGR300!$J$2:$N$74,5,FALSE),IF(AND(G15="DGR300_2023",J15=1),VLOOKUP(H15,TettiDGR300!$J$2:$N$74,4,FALSE),IF(AND(G15="DGR300_2023",K15=1),VLOOKUP(H15,TettiDGR300!$J$2:$N$74,5,FALSE),IF(G15="DGR300_2023",VLOOKUP(H15,TettiDGR300!$J$2:$N$74,2,FALSE),IF(AND(G15="DGR1233_2021",J15=1,K15=1),VLOOKUP(H15,TettiDGR1233!$J$2:$N$74,5,FALSE),IF(AND(G15="DGR1233_2021",J15=1),VLOOKUP(H15,TettiDGR1233!$J$2:$N$74,4,FALSE),IF(AND(G15="DGR1233_2021",K15=1),VLOOKUP(H15,TettiDGR1233!$J$2:$N$74,5,FALSE),VLOOKUP(H15,TettiDGR1233!$J$2:$N$74,2,FALSE))))))))) -> 0 | S15: =IF(L15<R15,L15*PERCCONTRIB,R15*PERCCONTRIB) -> 0 | U15: 1
Q16: =IFERROR(VLOOKUP(H16,TettiDGR300!$J$2:$L75,3,FALSE), "") ->  | R16: =IF(H16="",0,IF(AND(G16="DGR300_2023",J16=1,K16=1),VLOOKUP(H16,TettiDGR300!$J$2:$N$74,5,FALSE),IF(AND(G16="DGR300_2023",J16=1),VLOOKUP(H16,TettiDGR300!$J$2:$N$74,4,FALSE),IF(AND(G16="DGR300_2023",K16=1),VLOOKUP(H16,TettiDGR300!$J$2:$N$74,5,FALSE),IF(G16="DGR300_2023",VLOOKUP(H16,TettiDGR300!$J$2:$N$74,2,FALSE),IF(AND(G16="DGR1233_2021",J16=1,K16=1),VLOOKUP(H16,TettiDGR1233!$J$2:$N$74,5,FALSE),IF(AND(G16="DGR1233_2021",J16=1),VLOOKUP(H16,TettiDGR1233!$J$2:$N$74,4,FALSE),IF(AND(G16="DGR1233_2021",K16=1),VLOOKUP(H16,TettiDGR1233!$J$2:$N$74,5,FALSE),VLOOKUP(H16,TettiDGR1233!$J$2:$N$74,2,FALSE))))))))) -> 0 | S16: 0 | U16: 2
Q17: =IFERROR(VLOOKUP(H17,TettiDGR300!$J$2:$L76,3,FALSE), "") ->  | R17: =IF(H17="",0,IF(AND(G17="DGR300_2023",J17=1,K17=1),VLOOKUP(H17,TettiDGR300!$J$2:$N$74,5,FALSE),IF(AND(G17="DGR300_2023",J17=1),VLOOKUP(H17,TettiDGR300!$J$2:$N$74,4,FALSE),IF(AND(G17="DGR300_2023",K17=1),VLOOKUP(H17,TettiDGR300!$J$2:$N$74,5,FALSE),IF(G17="DGR300_2023",VLOOKUP(H17,TettiDGR300!$J$2:$N$74,2,FALSE),IF(AND(G17="DGR1233_2021",J17=1,K17=1),VLOOKUP(H17,TettiDGR1233!$J$2:$N$74,5,FALSE),IF(AND(G17="DGR1233_2021",J17=1),VLOOKUP(H17,TettiDGR1233!$J$2:$N$74,4,FALSE),IF(AND(G17="DGR1233_2021",K17=1),VLOOKUP(H17,TettiDGR1233!$J$2:$N$74,5,FALSE),VLOOKUP(H17,TettiDGR1233!$J$2:$N$74,2,FALSE))))))))) -> 0 | S17: 0 | U17: 3
Q18: =IFERROR(VLOOKUP(H18,TettiDGR300!$J$2:$L77,3,FALSE), "") ->  | R18: =IF(H18="",0,IF(AND(G18="DGR300_2023",J18=1,K18=1),VLOOKUP(H18,TettiDGR300!$J$2:$N$74,5,FALSE),IF(AND(G18="DGR300_2023",J18=1),VLOOKUP(H18,TettiDGR300!$J$2:$N$74,4,FALSE),IF(AND(G18="DGR300_2023",K18=1),VLOOKUP(H18,TettiDGR300!$J$2:$N$74,5,FALSE),IF(G18="DGR300_2023",VLOOKUP(H18,TettiDGR300!$J$2:$N$74,2,FALSE),IF(AND(G18="DGR1233_2021",J18=1,K18=1),VLOOKUP(H18,TettiDGR1233!$J$2:$N$74,5,FALSE),IF(AND(G18="DGR1233_2021",J18=1),VLOOKUP(H18,TettiDGR1233!$J$2:$N$74,4,FALSE),IF(AND(G18="DGR1233_2021",K18=1),VLOOKUP(H18,TettiDGR1233!$J$2:$N$74,5,FALSE),VLOOKUP(H18,TettiDGR1233!$J$2:$N$74,2,FALSE))))))))) -> 0 | S18: =IF(L18<R18,L18*PERCCONTRIB,R18*PERCCONTRIB) -> 0 | U18: 4
Q19: =IFERROR(VLOOKUP(H19,TettiDGR300!$J$2:$L78,3,FALSE), "") ->  | R19: =IF(H19="",0,IF(AND(G19="DGR300_2023",J19=1,K19=1),VLOOKUP(H19,TettiDGR300!$J$2:$N$74,5,FALSE),IF(AND(G19="DGR300_2023",J19=1),VLOOKUP(H19,TettiDGR300!$J$2:$N$74,4,FALSE),IF(AND(G19="DGR300_2023",K19=1),VLOOKUP(H19,TettiDGR300!$J$2:$N$74,5,FALSE),IF(G19="DGR300_2023",VLOOKUP(H19,TettiDGR300!$J$2:$N$74,2,FALSE),IF(AND(G19="DGR1233_2021",J19=1,K19=1),VLOOKUP(H19,TettiDGR1233!$J$2:$N$74,5,FALSE),IF(AND(G19="DGR1233_2021",J19=1),VLOOKUP(H19,TettiDGR1233!$J$2:$N$74,4,FALSE),IF(AND(G19="DGR1233_2021",K19=1),VLOOKUP(H19,TettiDGR1233!$J$2:$N$74,5,FALSE),VLOOKUP(H19,TettiDGR1233!$J$2:$N$74,2,FALSE))))))))) -> 0 | S19: 0 | U19: 5
Q20: =IFERROR(VLOOKUP(H20,TettiDGR300!$J$2:$L79,3,FALSE), "") ->  | R20: =IF(H20="",0,IF(AND(G20="DGR300_2023",J20=1,K20=1),VLOOKUP(H20,TettiDGR300!$J$2:$N$74,5,FALSE),IF(AND(G20="DGR300_2023",J20=1),VLOOKUP(H20,TettiDGR300!$J$2:$N$74,4,FALSE),IF(AND(G20="DGR300_2023",K20=1),VLOOKUP(H20,TettiDGR300!$J$2:$N$74,5,FALSE),IF(G20="DGR300_2023",VLOOKUP(H20,TettiDGR300!$J$2:$N$74,2,FALSE),IF(AND(G20="DGR1233_2021",J20=1,K20=1),VLOOKUP(H20,TettiDGR1233!$J$2:$N$74,5,FALSE),IF(AND(G20="DGR1233_2021",J20=1),VLOOKUP(H20,TettiDGR1233!$J$2:$N$74,4,FALSE),IF(AND(G20="DGR1233_2021",K20=1),VLOOKUP(H20,TettiDGR1233!$J$2:$N$74,5,FALSE),VLOOKUP(H20,TettiDGR1233!$J$2:$N$74,2,FALSE))))))))) -> 0 | S20: 0 | U20: 6
Q21: =IFERROR(VLOOKUP(H21,TettiDGR300!$J$2:$L80,3,FALSE), "") ->  | R21: =IF(H21="",0,IF(AND(G21="DGR300_2023",J21=1,K21=1),VLOOKUP(H21,TettiDGR300!$J$2:$N$74,5,FALSE),IF(AND(G21="DGR300_2023",J21=1),VLOOKUP(H21,TettiDGR300!$J$2:$N$74,4,FALSE),IF(AND(G21="DGR300_2023",K21=1),VLOOKUP(H21,TettiDGR300!$J$2:$N$74,5,FALSE),IF(G21="DGR300_2023",VLOOKUP(H21,TettiDGR300!$J$2:$N$74,2,FALSE),IF(AND(G21="DGR1233_2021",J21=1,K21=1),VLOOKUP(H21,TettiDGR1233!$J$2:$N$74,5,FALSE),IF(AND(G21="DGR1233_2021",J21=1),VLOOKUP(H21,TettiDGR1233!$J$2:$N$74,4,FALSE),IF(AND(G21="DGR1233_2021",K21=1),VLOOKUP(H21,TettiDGR1233!$J$2:$N$74,5,FALSE),VLOOKUP(H21,TettiDGR1233!$J$2:$N$74,2,FALSE))))))))) -> 0 | S21: 0 | U21: 7
Q22: =IFERROR(VLOOKUP(H22,TettiDGR300!$J$2:$L81,3,FALSE), "") ->  | R22: =IF(H22="",0,IF(AND(G22="DGR300_2023",J22=1,K22=1),VLOOKUP(H22,TettiDGR300!$J$2:$N$74,5,FALSE),IF(AND(G22="DGR300_2023",J22=1),VLOOKUP(H22,TettiDGR300!$J$2:$N$74,4,FALSE),IF(AND(G22="DGR300_2023",K22=1),VLOOKUP(H22,TettiDGR300!$J$2:$N$74,5,FALSE),IF(G22="DGR300_2023",VLOOKUP(H22,TettiDGR300!$J$2:$N$74,2,FALSE),IF(AND(G22="DGR1233_2021",J22=1,K22=1),VLOOKUP(H22,TettiDGR1233!$J$2:$N$74,5,FALSE),IF(AND(G22="DGR1233_2021",J22=1),VLOOKUP(H22,TettiDGR1233!$J$2:$N$74,4,FALSE),IF(AND(G22="DGR1233_2021",K22=1),VLOOKUP(H22,TettiDGR1233!$J$2:$N$74,5,FALSE),VLOOKUP(H22,TettiDGR1233!$J$2:$N$74,2,FALSE))))))))) -> 0 | S22: 0 | U22: 8
Q23: =IFERROR(VLOOKUP(H23,TettiDGR300!$J$2:$L82,3,FALSE), "") ->  | R23: =IF(H23="",0,IF(AND(G23="DGR300_2023",J23=1,K23=1),VLOOKUP(H23,TettiDGR300!$J$2:$N$74,5,FALSE),IF(AND(G23="DGR300_2023",J23=1),VLOOKUP(H23,TettiDGR300!$J$2:$N$74,4,FALSE),IF(AND(G23="DGR300_2023",K23=1),VLOOKUP(H23,TettiDGR300!$J$2:$N$74,5,FALSE),IF(G23="DGR300_2023",VLOOKUP(H23,TettiDGR300!$J$2:$N$74,2,FALSE),IF(AND(G23="DGR1233_2021",J23=1,K23=1),VLOOKUP(H23,TettiDGR1233!$J$2:$N$74,5,FALSE),IF(AND(G23="DGR1233_2021",J23=1),VLOOKUP(H23,TettiDGR1233!$J$2:$N$74,4,FALSE),IF(AND(G23="DGR1233_2021",K23=1),VLOOKUP(H23,TettiDGR1233!$J$2:$N$74,5,FALSE),VLOOKUP(H23,TettiDGR1233!$J$2:$N$74,2,FALSE))))))))) -> 0 | S23: 0 | U23: 9
Q24: =IFERROR(VLOOKUP(H24,TettiDGR300!$J$2:$L83,3,FALSE), "") ->  | R24: =IF(H24="",0,IF(AND(G24="DGR300_2023",J24=1,K24=1),VLOOKUP(H24,TettiDGR300!$J$2:$N$74,5,FALSE),IF(AND(G24="DGR300_2023",J24=1),VLOOKUP(H24,TettiDGR300!$J$2:$N$74,4,FALSE),IF(AND(G24="DGR300_2023",K24=1),VLOOKUP(H24,TettiDGR300!$J$2:$N$74,5,FALSE),IF(G24="DGR300_2023",VLOOKUP(H24,TettiDGR300!$J$2:$N$74,2,FALSE),IF(AND(G24="DGR1233_2021",J24=1,K24=1),VLOOKUP(H24,TettiDGR1233!$J$2:$N$74,5,FALSE),IF(AND(G24="DGR1233_2021",J24=1),VLOOKUP(H24,TettiDGR1233!$J$2:$N$74,4,FALSE),IF(AND(G24="DGR1233_2021",K24=1),VLOOKUP(H24,TettiDGR1233!$J$2:$N$74,5,FALSE),VLOOKUP(H24,TettiDGR1233!$J$2:$N$74,2,FALSE))))))))) -> 0 | S24: 0 | U24: 10
Q25: =IFERROR(VLOOKUP(H25,TettiDGR300!$J$2:$L84,3,FALSE), "") ->  | R25: =IF(H25="",0,IF(AND(G25="DGR300_2023",J25=1,K25=1),VLOOKUP(H25,TettiDGR300!$J$2:$N$74,5,FALSE),IF(AND(G25="DGR300_2023",J25=1),VLOOKUP(H25,TettiDGR300!$J$2:$N$74,4,FALSE),IF(AND(G25="DGR300_2023",K25=1),VLOOKUP(H25,TettiDGR300!$J$2:$N$74,5,FALSE),IF(G25="DGR300_2023",VLOOKUP(H25,TettiDGR300!$J$2:$N$74,2,FALSE),IF(AND(G25="DGR1233_2021",J25=1,K25=1),VLOOKUP(H25,TettiDGR1233!$J$2:$N$74,5,FALSE),IF(AND(G25="DGR1233_2021",J25=1),VLOOKUP(H25,TettiDGR1233!$J$2:$N$74,4,FALSE),IF(AND(G25="DGR1233_2021",K25=1),VLOOKUP(H25,TettiDGR1233!$J$2:$N$74,5,FALSE),VLOOKUP(H25,TettiDGR1233!$J$2:$N$74,2,FALSE))))))))) -> 0 | S25: 0 | U25: 11
Q26: =IFERROR(VLOOKUP(H26,TettiDGR300!$J$2:$L85,3,FALSE), "") ->  | R26: =IF(H26="",0,IF(AND(G26="DGR300_2023",J26=1,K26=1),VLOOKUP(H26,TettiDGR300!$J$2:$N$74,5,FALSE),IF(AND(G26="DGR300_2023",J26=1),VLOOKUP(H26,TettiDGR300!$J$2:$N$74,4,FALSE),IF(AND(G26="DGR300_2023",K26=1),VLOOKUP(H26,TettiDGR300!$J$2:$N$74,5,FALSE),IF(G26="DGR300_2023",VLOOKUP(H26,TettiDGR300!$J$2:$N$74,2,FALSE),IF(AND(G26="DGR1233_2021",J26=1,K26=1),VLOOKUP(H26,TettiDGR1233!$J$2:$N$74,5,FALSE),IF(AND(G26="DGR1233_2021",J26=1),VLOOKUP(H26,TettiDGR1233!$J$2:$N$74,4,FALSE),IF(AND(G26="DGR1233_2021",K26=1),VLOOKUP(H26,TettiDGR1233!$J$2:$N$74,5,FALSE),VLOOKUP(H26,TettiDGR1233!$J$2:$N$74,2,FALSE))))))))) -> 0 | S26: 0 | U26: 12
Q27: =IFERROR(VLOOKUP(H27,TettiDGR300!$J$2:$L86,3,FALSE), "") ->  | R27: =IF(H27="",0,IF(AND(G27="DGR300_2023",J27=1,K27=1),VLOOKUP(H27,TettiDGR300!$J$2:$N$74,5,FALSE),IF(AND(G27="DGR300_2023",J27=1),VLOOKUP(H27,TettiDGR300!$J$2:$N$74,4,FALSE),IF(AND(G27="DGR300_2023",K27=1),VLOOKUP(H27,TettiDGR300!$J$2:$N$74,5,FALSE),IF(G27="DGR300_2023",VLOOKUP(H27,TettiDGR300!$J$2:$N$74,2,FALSE),IF(AND(G27="DGR1233_2021",J27=1,K27=1),VLOOKUP(H27,TettiDGR1233!$J$2:$N$74,5,FALSE),IF(AND(G27="DGR1233_2021",J27=1),VLOOKUP(H27,TettiDGR1233!$J$2:$N$74,4,FALSE),IF(AND(G27="DGR1233_2021",K27=1),VLOOKUP(H27,TettiDGR1233!$J$2:$N$74,5,FALSE),VLOOKUP(H27,TettiDGR1233!$J$2:$N$74,2,FALSE))))))))) -> 0 | S27: 0 | U27: 13
Q28: =IFERROR(VLOOKUP(H28,TettiDGR300!$J$2:$L87,3,FALSE), "") ->  | R28: =IF(H28="",0,IF(AND(G28="DGR300_2023",J28=1,K28=1),VLOOKUP(H28,TettiDGR300!$J$2:$N$74,5,FALSE),IF(AND(G28="DGR300_2023",J28=1),VLOOKUP(H28,TettiDGR300!$J$2:$N$74,4,FALSE),IF(AND(G28="DGR300_2023",K28=1),VLOOKUP(H28,TettiDGR300!$J$2:$N$74,5,FALSE),IF(G28="DGR300_2023",VLOOKUP(H28,TettiDGR300!$J$2:$N$74,2,FALSE),IF(AND(G28="DGR1233_2021",J28=1,K28=1),VLOOKUP(H28,TettiDGR1233!$J$2:$N$74,5,FALSE),IF(AND(G28="DGR1233_2021",J28=1),VLOOKUP(H28,TettiDGR1233!$J$2:$N$74,4,FALSE),IF(AND(G28="DGR1233_2021",K28=1),VLOOKUP(H28,TettiDGR1233!$J$2:$N$74,5,FALSE),VLOOKUP(H28,TettiDGR1233!$J$2:$N$74,2,FALSE))))))))) -> 0 | S28: 0 | U28: 14
Q29: =IFERROR(VLOOKUP(H29,TettiDGR300!$J$2:$L88,3,FALSE), "") ->  | R29: =IF(H29="",0,IF(AND(G29="DGR300_2023",J29=1,K29=1),VLOOKUP(H29,TettiDGR300!$J$2:$N$74,5,FALSE),IF(AND(G29="DGR300_2023",J29=1),VLOOKUP(H29,TettiDGR300!$J$2:$N$74,4,FALSE),IF(AND(G29="DGR300_2023",K29=1),VLOOKUP(H29,TettiDGR300!$J$2:$N$74,5,FALSE),IF(G29="DGR300_2023",VLOOKUP(H29,TettiDGR300!$J$2:$N$74,2,FALSE),IF(AND(G29="DGR1233_2021",J29=1,K29=1),VLOOKUP(H29,TettiDGR1233!$J$2:$N$74,5,FALSE),IF(AND(G29="DGR1233_2021",J29=1),VLOOKUP(H29,TettiDGR1233!$J$2:$N$74,4,FALSE),IF(AND(G29="DGR1233_2021",K29=1),VLOOKUP(H29,TettiDGR1233!$J$2:$N$74,5,FALSE),VLOOKUP(H29,TettiDGR1233!$J$2:$N$74,2,FALSE))))))))) -> 0 | S29: 0 | U29: 15
A30: DATI RIEPILOGATIVI PER LE INFRASTRUTTURE DI RIFORNIMENTO/RICARICA Azienda beneficiaria | B30: Id intervento (inserire il codice indentif. già inserito nella scheda dedicata) | C30: Nuova realizzazione (0) - Ristrutturazione e/o ampliamento (1) | D30: Comune | E30: Località | F30: Investimento già parzialmente finanziato da altra misura pubblica | H30: Tipologia intervento | I30: N. colonnine ricarica bus per sito | J30: Utilizzo infrastruttura da più operatori (1=si;0=no) | K30: Intervento allocato su più annualità (1=si;0=no) | L30: Importo complessivo dell'intervento [€] | M30: CIG e note particolari | N30: DATA STIPULA CONTRATTO | O30: Investimento sul cratere sisma 2016 (1=si;0=no) | P30: intervento liquidato (1=si;0=no) | Q30: Alimentaz. | R30: Costo allocato sull'anno in esame [€] | S30: Quota contributo sull'anno [€] | U30: Indicare il cronoprogramma delle attività per ogni intervento secondo le tre tipologie in legenda
B31: =IF(OR($B$4="DM 223/2020 - MIT",$B$4="FSC (D.Cipe 98/2017)"),"XXXX","") ->  | L31: =IF(OR($B$4="DM 223/2020 - MIT",$B$4="FSC (D.Cipe 98/2017)"),"XXXX","") ->  | M31: =IF(OR($B$4="DM 223/2020 - MIT",$B$4="FSC (D.Cipe 98/2017)"),"Il fondo prescelto non ammette infrastrutture","") ->  | Q31: =IFERROR(VLOOKUP(H31,Infrastrutture!$A$2:$B$9,2,FALSE), "") ->  | S31: =IF(L31<R31,"ERRORE",R31*PERCCONTRIB) -> 0 | U31: 20
M32: =IF(OR($B$4="DM 223/2020 - MIT",$B$4="FSC (D.Cipe 98/2017)"),"Il fondo prescelto non ammette infrastrutture","") ->  | Q32: =IFERROR(VLOOKUP(H32,Infrastrutture!$A$2:$B$9,2,FALSE), "") ->  | S32: 0 | U32: 21
Q33: =IFERROR(VLOOKUP(H33,Infrastrutture!$A$2:$B$9,2,FALSE), "") ->  | S33: 0 | U33: 22
Q34: =IFERROR(VLOOKUP(H34,Infrastrutture!$A$2:$B$9,2,FALSE), "") ->  | S34: 0 | U34: 23
Q35: =IFERROR(VLOOKUP(H35,Infrastrutture!$A$2:$B$9,2,FALSE), "") ->  | S35: 0 | U35: 24
Q36: =IFERROR(VLOOKUP(H36,Infrastrutture!$A$2:$B$9,2,FALSE), "") ->  | S36: 0 | U36: 25
Q37: =IFERROR(VLOOKUP(H37,Infrastrutture!$A$2:$B$9,2,FALSE), "") ->  | S37: 0 | U37: 26
Q38: =IFERROR(VLOOKUP(H38,Infrastrutture!$A$2:$B$9,2,FALSE), "") ->  | S38: 0 | U38: 27
Q39: =IFERROR(VLOOKUP(H39,Infrastrutture!$A$2:$B$9,2,FALSE), "") ->  | S39: 0 | U39: 28
Q40: =IFERROR(VLOOKUP(H40,Infrastrutture!$A$2:$B$9,2,FALSE), "") ->  | S40: 0 | U40: 29
A41: TOTALI AUTOBUS | B41: =SUM(B15:B29) -> 0 | C41: =SUM(C15:C29) -> 0 | O41: =+SUM(O15:O29) -> 0 | R41: =SUM(R15:R29) -> 0 | S41: =SUM(S15:S29) -> 0
A42: TOTALI INFRASTRUTTURE | O42: =+SUM(O31:O40) -> 0 | R42: =+SUM(R31:R40) -> 0 | S42: =+SUM(S31:S40) -> 0
A43: TOTALI GENERALE | R43: =+R41+R42 -> 0 | S43: =+S41+S42 -> 0

Sheet DM 81_2022
A1: Piano investimenti di bacino - D.G.R. 647 del 30 maggio 2022 - REGIONE MARCHE - Assessorato trasporti e reti regionali di trasporto. | U1: CRONOPROGRAMMA DEGLI INVESTIMENTI
A3: Ambito territoriale | B3: FM | F3: celle a fondo bianco da compilare obbligatoriamente direttamente o con menu a tendina | I3: Data compilazione | V3: Legenda:
A4: Fonte di finanziamento | B4: DM 81/2020 - PSNMS | F4: celle a fondo arancio compilate automaticamente | I4: Referente compilaz. | V4: 1 | W4: Espletamento gara
A5: Annualità | B5: 2022 | F5: Valori economici al netto dell'IVA | I5: Telefono di contatto | V5: 2 | W5: Stipula contratto
A6: K2 | B6: =B4&"_"&B5&"_"&B3 -> DM 81/2020 - PSNMS_2022_FM
A7: Contributo max assegnabile | B7: =VLOOKUP($B$6,'Assegnazione fondi'!$D$2:$G$208,3,FALSE) -> 593623.6563 | D7: Contributo tot. assegnato | F7: =+S43 -> 0 | I7: e-mail | V7: 3 | W7: Completamento fornitura
A8: % contribuzione sul costo d'acquisto | B8: =VLOOKUP($B$6,'Assegnazione fondi'!$D$2:$G$201,4,FALSE) -> 0.8 | D8: N. mezzi tot. da acquisire | F8: =B41+C41 -> 0
A9: Residuo annualità precedenti | B9: ='DM 81_2021'!F10 -> 1582996.379
A10: =+IF(B4="DM 81/2020 - PSNMS", "Importo da utilizzare per infrastrutture (di cui del contributo max)","Contributo max assegnabile per ventuali infrastrutture (di cui del contributo max)") -> Importo da utilizzare per infrastrutture (di cui del contributo max) | B10: =VLOOKUP($B$6,'Assegnazione fondi'!$D$2:$G$208,2,FALSE) -> 0 | D10: Residuo sull'anno | F10: =+TOTIMP-F7+B9 -> 2176620.035
A12: DATI RIEPILOGATIVI SUGLI AUTOBUS DA ACQUISIRE | B12: Per complet. organico n. | C12: Per rinnovo parco n. | D12: Compilare un foglio per ogni fondo di finanziamento, per ogni annualità | U12: Indicare il cronoprogramma delle attività per ogni mezzo secondo le tre tipologie in legenda
B13: =B41 -> 0 | C13: =C41 -> 0 | U13: Anno | V13: 2018 | AH13: 2019 | AT13: 2020 | BF13: 2021 | BR13: 2022 | CD13: 2023 | CP13: 2024 | DB13: 2025 | DN13: 2026
A14: Azienda beneficiaria | B14: Completamento organico (1=si;0=no) | C14: Sostituzione mezzo (1=si;0=no) | D14: Targa mezzo da sostituire | E14: Impiego (URBANO / EXTRAURBANO) | F14: Data prima immatricolazione mezzo sostituito | G14: DGR tetti di spesa | H14: Tipologia nuovo mezzo (selezionare dall'elenco) | I14: Rastrelliera per biciclette (1=si;0=no) | J14: Metano LNG (1=si;0=no) | K14: Mezzo Myld hybrid (1=si;0=no) | L14: Costo preventivato unitario [€] | M14: CIG e note particolari | N14: DATA STIPULA CONTRATTO | O14: Investimento sul cratere sisma 2016 (1=si;0=no) | P14: intervento liquidato (1=si;0=no) | Q14: Alimentaz. | R14: Spesa max ammissibile unitaria | S14: Contributo unitario | U14: Id / Mese | V14: 1 | W14: 2 | X14: 3 | Y14: 4 | Z14: 5 | AA14: 6 | AB14: 7 | AC14: 8 | AD14: 9 | AE14: 10 | AF14: 11 | AG14: 12 | AH14: 1 | AI14: 2 | AJ14: 3 | AK14: 4 | AL14: 5 | AM14: 6 | AN14: 7 | AO14: 8 | AP14: 9 | AQ14: 10 | AR14: 11 | AS14: 12 | AT14: 1 | AU14: 2 | AV14: 3 | AW14: 4 | AX14: 5 | AY14: 6 | AZ14: 7 | BA14: 8 | BB14: 9 | BC14: 10 | BD14: 11 | BE14: 12 | BF14: 1 | BG14: 2 | BH14: 3 | BI14: 4 | BJ14: 5 | BK14: 6 | BL14: 7 | BM14: 8 | BN14: 9 | BO14: 10 | BP14: 11 | BQ14: 12 | BR14: 1 | BS14: 2 | BT14: 3 | BU14: 4 | BV14: 5 | BW14: 6 | BX14: 7 | BY14: 8 | BZ14: 9 | CA14: 10 | CB14: 11 | CC14: 12 | CD14: 1 | CE14: 2 | CF14: 3 | CG14: 4 | CH14: 5 | CI14: 6 | CJ14: 7 | CK14: 8 | CL14: 9 | CM14: 10 | CN14: 11 | CO14: 12 | CP14: 1 | CQ14: 2 | CR14: 3 | CS14: 4 | CT14: 5 | CU14: 6 | CV14: 7 | CW14: 8 | CX14: 9 | CY14: 10 | CZ14: 11 | DA14: 12 | DB14: 1 | DC14: 2 | DD14: 3 | DE14: 4 | DF14: 5 | DG14: 6 | DH14: 7 | DI14: 8 | DJ14: 9 | DK14: 10 | DL14: 11 | DM14: 12 | DN14: 1 | DO14: 2 | DP14: 3 | DQ14: 4 | DR14: 5 | DS14: 6 | DT14: 7 | DU14: 8 | DV14: 9 | DW14: 10 | DX14: 11 | DY14: 12
M15: =IF(L15<>0,"COMPILARE","") ->  | Q15: =IFERROR(VLOOKUP(H15,TettiDGR300!$J$2:$L74,3,FALSE), "") ->  | R15: =IF(H15="",0,IF(AND(G15="DGR300_2023",J15=1,K15=1),VLOOKUP(H15,TettiDGR300!$J$2:$N$74,5,FALSE),IF(AND(G15="DGR300_2023",J15=1),VLOOKUP(H15,TettiDGR300!$J$2:$N$74,4,FALSE),IF(AND(G15="DGR300_2023",K15=1),VLOOKUP(H15,TettiDGR300!$J$2:$N$74,5,FALSE),IF(G15="DGR300_2023",VLOOKUP(H15,TettiDGR300!$J$2:$N$74,2,FALSE),IF(AND(G15="DGR1233_2021",J15=1,K15=1),VLOOKUP(H15,TettiDGR1233!$J$2:$N$74,5,FALSE),IF(AND(G15="DGR1233_2021",J15=1),VLOOKUP(H15,TettiDGR1233!$J$2:$N$74,4,FALSE),IF(AND(G15="DGR1233_2021",K15=1),VLOOKUP(H15,TettiDGR1233!$J$2:$N$74,5,FALSE),VLOOKUP(H15,TettiDGR1233!$J$2:$N$74,2,FALSE))))))))) -> 0 | S15: =IF(L15<R15,L15*PERCCONTRIB,R15*PERCCONTRIB) -> 0 | U15: 1
Q16: =IFERROR(VLOOKUP(H16,TettiDGR300!$J$2:$L75,3,FALSE), "") ->  | R16: =IF(H16="",0,IF(AND(G16="DGR300_2023",J16=1,K16=1),VLOOKUP(H16,TettiDGR300!$J$2:$N$74,5,FALSE),IF(AND(G16="DGR300_2023",J16=1),VLOOKUP(H16,TettiDGR300!$J$2:$N$74,4,FALSE),IF(AND(G16="DGR300_2023",K16=1),VLOOKUP(H16,TettiDGR300!$J$2:$N$74,5,FALSE),IF(G16="DGR300_2023",VLOOKUP(H16,TettiDGR300!$J$2:$N$74,2,FALSE),IF(AND(G16="DGR1233_2021",J16=1,K16=1),VLOOKUP(H16,TettiDGR1233!$J$2:$N$74,5,FALSE),IF(AND(G16="DGR1233_2021",J16=1),VLOOKUP(H16,TettiDGR1233!$J$2:$N$74,4,FALSE),IF(AND(G16="DGR1233_2021",K16=1),VLOOKUP(H16,TettiDGR1233!$J$2:$N$74,5,FALSE),VLOOKUP(H16,TettiDGR1233!$J$2:$N$74,2,FALSE))))))))) -> 0 | S16: 0 | U16: 2
Q17: =IFERROR(VLOOKUP(H17,TettiDGR300!$J$2:$L76,3,FALSE), "") ->  | R17: =IF(H17="",0,IF(AND(G17="DGR300_2023",J17=1,K17=1),VLOOKUP(H17,TettiDGR300!$J$2:$N$74,5,FALSE),IF(AND(G17="DGR300_2023",J17=1),VLOOKUP(H17,TettiDGR300!$J$2:$N$74,4,FALSE),IF(AND(G17="DGR300_2023",K17=1),VLOOKUP(H17,TettiDGR300!$J$2:$N$74,5,FALSE),IF(G17="DGR300_2023",VLOOKUP(H17,TettiDGR300!$J$2:$N$74,2,FALSE),IF(AND(G17="DGR1233_2021",J17=1,K17=1),VLOOKUP(H17,TettiDGR1233!$J$2:$N$74,5,FALSE),IF(AND(G17="DGR1233_2021",J17=1),VLOOKUP(H17,TettiDGR1233!$J$2:$N$74,4,FALSE),IF(AND(G17="DGR1233_2021",K17=1),VLOOKUP(H17,TettiDGR1233!$J$2:$N$74,5,FALSE),VLOOKUP(H17,TettiDGR1233!$J$2:$N$74,2,FALSE))))))))) -> 0 | S17: 0 | U17: 3
Q18: =IFERROR(VLOOKUP(H18,TettiDGR300!$J$2:$L77,3,FALSE), "") ->  | R18: =IF(H18="",0,IF(AND(G18="DGR300_2023",J18=1,K18=1),VLOOKUP(H18,TettiDGR300!$J$2:$N$74,5,FALSE),IF(AND(G18="DGR300_2023",J18=1),VLOOKUP(H18,TettiDGR300!$J$2:$N$74,4,FALSE),IF(AND(G18="DGR300_2023",K18=1),VLOOKUP(H18,TettiDGR300!$J$2:$N$74,5,FALSE),IF(G18="DGR300_2023",VLOOKUP(H18,TettiDGR300!$J$2:$N$74,2,FALSE),IF(AND(G18="DGR1233_2021",J18=1,K18=1),VLOOKUP(H18,TettiDGR1233!$J$2:$N$74,5,FALSE),IF(AND(G18="DGR1233_2021",J18=1),VLOOKUP(H18,TettiDGR1233!$J$2:$N$74,4,FALSE),IF(AND(G18="DGR1233_2021",K18=1),VLOOKUP(H18,TettiDGR1233!$J$2:$N$74,5,FALSE),VLOOKUP(H18,TettiDGR1233!$J$2:$N$74,2,FALSE))))))))) -> 0 | S18: =IF(L18<R18,L18*PERCCONTRIB,R18*PERCCONTRIB) -> 0 | U18: 4
Q19: =IFERROR(VLOOKUP(H19,TettiDGR300!$J$2:$L78,3,FALSE), "") ->  | R19: =IF(H19="",0,IF(AND(G19="DGR300_2023",J19=1,K19=1),VLOOKUP(H19,TettiDGR300!$J$2:$N$74,5,FALSE),IF(AND(G19="DGR300_2023",J19=1),VLOOKUP(H19,TettiDGR300!$J$2:$N$74,4,FALSE),IF(AND(G19="DGR300_2023",K19=1),VLOOKUP(H19,TettiDGR300!$J$2:$N$74,5,FALSE),IF(G19="DGR300_2023",VLOOKUP(H19,TettiDGR300!$J$2:$N$74,2,FALSE),IF(AND(G19="DGR1233_2021",J19=1,K19=1),VLOOKUP(H19,TettiDGR1233!$J$2:$N$74,5,FALSE),IF(AND(G19="DGR1233_2021",J19=1),VLOOKUP(H19,TettiDGR1233!$J$2:$N$74,4,FALSE),IF(AND(G19="DGR1233_2021",K19=1),VLOOKUP(H19,TettiDGR1233!$J$2:$N$74,5,FALSE),VLOOKUP(H19,TettiDGR1233!$J$2:$N$74,2,FALSE))))))))) -> 0 | S19: 0 | U19: 5
Q20: =IFERROR(VLOOKUP(H20,TettiDGR300!$J$2:$L79,3,FALSE), "") ->  | R20: =IF(H20="",0,IF(AND(G20="DGR300_2023",J20=1,K20=1),VLOOKUP(H20,TettiDGR300!$J$2:$N$74,5,FALSE),IF(AND(G20="DGR300_2023",J20=1),VLOOKUP(H20,TettiDGR300!$J$2:$N$74,4,FALSE),IF(AND(G20="DGR300_2023",K20=1),VLOOKUP(H20,TettiDGR300!$J$2:$N$74,5,FALSE),IF(G20="DGR300_2023",VLOOKUP(H20,TettiDGR300!$J$2:$N$74,2,FALSE),IF(AND(G20="DGR1233_2021",J20=1,K20=1),VLOOKUP(H20,TettiDGR1233!$J$2:$N$74,5,FALSE),IF(AND(G20="DGR1233_2021",J20=1),VLOOKUP(H20,TettiDGR1233!$J$2:$N$74,4,FALSE),IF(AND(G20="DGR1233_2021",K20=1),VLOOKUP(H20,TettiDGR1233!$J$2:$N$74,5,FALSE),VLOOKUP(H20,TettiDGR1233!$J$2:$N$74,2,FALSE))))))))) -> 0 | S20: 0 | U20: 6
Q21: =IFERROR(VLOOKUP(H21,TettiDGR300!$J$2:$L80,3,FALSE), "") ->  | R21: =IF(H21="",0,IF(AND(G21="DGR300_2023",J21=1,K21=1),VLOOKUP(H21,TettiDGR300!$J$2:$N$74,5,FALSE),IF(AND(G21="DGR300_2023",J21=1),VLOOKUP(H21,TettiDGR300!$J$2:$N$74,4,FALSE),IF(AND(G21="DGR300_2023",K21=1),VLOOKUP(H21,TettiDGR300!$J$2:$N$74,5,FALSE),IF(G21="DGR300_2023",VLOOKUP(H21,TettiDGR300!$J$2:$N$74,2,FALSE),IF(AND(G21="DGR1233_2021",J21=1,K21=1),VLOOKUP(H21,TettiDGR1233!$J$2:$N$74,5,FALSE),IF(AND(G21="DGR1233_2021",J21=1),VLOOKUP(H21,TettiDGR1233!$J$2:$N$74,4,FALSE),IF(AND(G21="DGR1233_2021",K21=1),VLOOKUP(H21,TettiDGR1233!$J$2:$N$74,5,FALSE),VLOOKUP(H21,TettiDGR1233!$J$2:$N$74,2,FALSE))))))))) -> 0 | S21: 0 | U21: 7
Q22: =IFERROR(VLOOKUP(H22,TettiDGR300!$J$2:$L81,3,FALSE), "") ->  | R22: =IF(H22="",0,IF(AND(G22="DGR300_2023",J22=1,K22=1),VLOOKUP(H22,TettiDGR300!$J$2:$N$74,5,FALSE),IF(AND(G22="DGR300_2023",J22=1),VLOOKUP(H22,TettiDGR300!$J$2:$N$74,4,FALSE),IF(AND(G22="DGR300_2023",K22=1),VLOOKUP(H22,TettiDGR300!$J$2:$N$74,5,FALSE),IF(G22="DGR300_2023",VLOOKUP(H22,TettiDGR300!$J$2:$N$74,2,FALSE),IF(AND(G22="DGR1233_2021",J22=1,K22=1),VLOOKUP(H22,TettiDGR1233!$J$2:$N$74,5,FALSE),IF(AND(G22="DGR1233_2021",J22=1),VLOOKUP(H22,TettiDGR1233!$J$2:$N$74,4,FALSE),IF(AND(G22="DGR1233_2021",K22=1),VLOOKUP(H22,TettiDGR1233!$J$2:$N$74,5,FALSE),VLOOKUP(H22,TettiDGR1233!$J$2:$N$74,2,FALSE))))))))) -> 0 | S22: 0 | U22: 8
Q23: =IFERROR(VLOOKUP(H23,TettiDGR300!$J$2:$L82,3,FALSE), "") ->  | R23: =IF(H23="",0,IF(AND(G23="DGR300_2023",J23=1,K23=1),VLOOKUP(H23,TettiDGR300!$J$2:$N$74,5,FALSE),IF(AND(G23="DGR300_2023",J23=1),VLOOKUP(H23,TettiDGR300!$J$2:$N$74,4,FALSE),IF(AND(G23="DGR300_2023",K23=1),VLOOKUP(H23,TettiDGR300!$J$2:$N$74,5,FALSE),IF(G23="DGR300_2023",VLOOKUP(H23,TettiDGR300!$J$2:$N$74,2,FALSE),IF(AND(G23="DGR1233_2021",J23=1,K23=1),VLOOKUP(H23,TettiDGR1233!$J$2:$N$74,5,FALSE),IF(AND(G23="DGR1233_2021",J23=1),VLOOKUP(H23,TettiDGR1233!$J$2:$N$74,4,FALSE),IF(AND(G23="DGR1233_2021",K23=1),VLOOKUP(H23,TettiDGR1233!$J$2:$N$74,5,FALSE),VLOOKUP(H23,TettiDGR1233!$J$2:$N$74,2,FALSE))))))))) -> 0 | S23: 0 | U23: 9
Q24: =IFERROR(VLOOKUP(H24,TettiDGR300!$J$2:$L83,3,FALSE), "") ->  | R24: =IF(H24="",0,IF(AND(G24="DGR300_2023",J24=1,K24=1),VLOOKUP(H24,TettiDGR300!$J$2:$N$74,5,FALSE),IF(AND(G24="DGR300_2023",J24=1),VLOOKUP(H24,TettiDGR300!$J$2:$N$74,4,FALSE),IF(AND(G24="DGR300_2023",K24=1),VLOOKUP(H24,TettiDGR300!$J$2:$N$74,5,FALSE),IF(G24="DGR300_2023",VLOOKUP(H24,TettiDGR300!$J$2:$N$74,2,FALSE),IF(AND(G24="DGR1233_2021",J24=1,K24=1),VLOOKUP(H24,TettiDGR1233!$J$2:$N$74,5,FALSE),IF(AND(G24="DGR1233_2021",J24=1),VLOOKUP(H24,TettiDGR1233!$J$2:$N$74,4,FALSE),IF(AND(G24="DGR1233_2021",K24=1),VLOOKUP(H24,TettiDGR1233!$J$2:$N$74,5,FALSE),VLOOKUP(H24,TettiDGR1233!$J$2:$N$74,2,FALSE))))))))) -> 0 | S24: 0 | U24: 10
Q25: =IFERROR(VLOOKUP(H25,TettiDGR300!$J$2:$L84,3,FALSE), "") ->  | R25: =IF(H25="",0,IF(AND(G25="DGR300_2023",J25=1,K25=1),VLOOKUP(H25,TettiDGR300!$J$2:$N$74,5,FALSE),IF(AND(G25="DGR300_2023",J25=1),VLOOKUP(H25,TettiDGR300!$J$2:$N$74,4,FALSE),IF(AND(G25="DGR300_2023",K25=1),VLOOKUP(H25,TettiDGR300!$J$2:$N$74,5,FALSE),IF(G25="DGR300_2023",VLOOKUP(H25,TettiDGR300!$J$2:$N$74,2,FALSE),IF(AND(G25="DGR1233_2021",J25=1,K25=1),VLOOKUP(H25,TettiDGR1233!$J$2:$N$74,5,FALSE),IF(AND(G25="DGR1233_2021",J25=1),VLOOKUP(H25,TettiDGR1233!$J$2:$N$74,4,FALSE),IF(AND(G25="DGR1233_2021",K25=1),VLOOKUP(H25,TettiDGR1233!$J$2:$N$74,5,FALSE),VLOOKUP(H25,TettiDGR1233!$J$2:$N$74,2,FALSE))))))))) -> 0 | S25: 0 | U25: 11
Q26: =IFERROR(VLOOKUP(H26,TettiDGR300!$J$2:$L85,3,FALSE), "") ->  | R26: =IF(H26="",0,IF(AND(G26="DGR300_2023",J26=1,K26=1),VLOOKUP(H26,TettiDGR300!$J$2:$N$74,5,FALSE),IF(AND(G26="DGR300_2023",J26=1),VLOOKUP(H26,TettiDGR300!$J$2:$N$74,4,FALSE),IF(AND(G26="DGR300_2023",K26=1),VLOOKUP(H26,TettiDGR300!$J$2:$N$74,5,FALSE),IF(G26="DGR300_2023",VLOOKUP(H26,TettiDGR300!$J$2:$N$74,2,FALSE),IF(AND(G26="DGR1233_2021",J26=1,K26=1),VLOOKUP(H26,TettiDGR1233!$J$2:$N$74,5,FALSE),IF(AND(G26="DGR1233_2021",J26=1),VLOOKUP(H26,TettiDGR1233!$J$2:$N$74,4,FALSE),IF(AND(G26="DGR1233_2021",K26=1),VLOOKUP(H26,TettiDGR1233!$J$2:$N$74,5,FALSE),VLOOKUP(H26,TettiDGR1233!$J$2:$N$74,2,FALSE))))))))) -> 0 | S26: 0 | U26: 12
Q27: =IFERROR(VLOOKUP(H27,TettiDGR300!$J$2:$L86,3,FALSE), "") ->  | R27: =IF(H27="",0,IF(AND(G27="DGR300_2023",J27=1,K27=1),VLOOKUP(H27,TettiDGR300!$J$2:$N$74,5,FALSE),IF(AND(G27="DGR300_2023",J27=1),VLOOKUP(H27,TettiDGR300!$J$2:$N$74,4,FALSE),IF(AND(G27="DGR300_2023",K27=1),VLOOKUP(H27,TettiDGR300!$J$2:$N$74,5,FALSE),IF(G27="DGR300_2023",VLOOKUP(H27,TettiDGR300!$J$2:$N$74,2,FALSE),IF(AND(G27="DGR1233_2021",J27=1,K27=1),VLOOKUP(H27,TettiDGR1233!$J$2:$N$74,5,FALSE),IF(AND(G27="DGR1233_2021",J27=1),VLOOKUP(H27,TettiDGR1233!$J$2:$N$74,4,FALSE),IF(AND(G27="DGR1233_2021",K27=1),VLOOKUP(H27,TettiDGR1233!$J$2:$N$74,5,FALSE),VLOOKUP(H27,TettiDGR1233!$J$2:$N$74,2,FALSE))))))))) -> 0 | S27: 0 | U27: 13
Q28: =IFERROR(VLOOKUP(H28,TettiDGR300!$J$2:$L87,3,FALSE), "") ->  | R28: =IF(H28="",0,IF(AND(G28="DGR300_2023",J28=1,K28=1),VLOOKUP(H28,TettiDGR300!$J$2:$N$74,5,FALSE),IF(AND(G28="DGR300_2023",J28=1),VLOOKUP(H28,TettiDGR300!$J$2:$N$74,4,FALSE),IF(AND(G28="DGR300_2023",K28=1),VLOOKUP(H28,TettiDGR300!$J$2:$N$74,5,FALSE),IF(G28="DGR300_2023",VLOOKUP(H28,TettiDGR300!$J$2:$N$74,2,FALSE),IF(AND(G28="DGR1233_2021",J28=1,K28=1),VLOOKUP(H28,TettiDGR1233!$J$2:$N$74,5,FALSE),IF(AND(G28="DGR1233_2021",J28=1),VLOOKUP(H28,TettiDGR1233!$J$2:$N$74,4,FALSE),IF(AND(G28="DGR1233_2021",K28=1),VLOOKUP(H28,TettiDGR1233!$J$2:$N$74,5,FALSE),VLOOKUP(H28,TettiDGR1233!$J$2:$N$74,2,FALSE))))))))) -> 0 | S28: 0 | U28: 14
Q29: =IFERROR(VLOOKUP(H29,TettiDGR300!$J$2:$L88,3,FALSE), "") ->  | R29: =IF(H29="",0,IF(AND(G29="DGR300_2023",J29=1,K29=1),VLOOKUP(H29,TettiDGR300!$J$2:$N$74,5,FALSE),IF(AND(G29="DGR300_2023",J29=1),VLOOKUP(H29,TettiDGR300!$J$2:$N$74,4,FALSE),IF(AND(G29="DGR300_2023",K29=1),VLOOKUP(H29,TettiDGR300!$J$2:$N$74,5,FALSE),IF(G29="DGR300_2023",VLOOKUP(H29,TettiDGR300!$J$2:$N$74,2,FALSE),IF(AND(G29="DGR1233_2021",J29=1,K29=1),VLOOKUP(H29,TettiDGR1233!$J$2:$N$74,5,FALSE),IF(AND(G29="DGR1233_2021",J29=1),VLOOKUP(H29,TettiDGR1233!$J$2:$N$74,4,FALSE),IF(AND(G29="DGR1233_2021",K29=1),VLOOKUP(H29,TettiDGR1233!$J$2:$N$74,5,FALSE),VLOOKUP(H29,TettiDGR1233!$J$2:$N$74,2,FALSE))))))))) -> 0 | S29: 0 | U29: 15
A30: DATI RIEPILOGATIVI PER LE INFRASTRUTTURE DI RIFORNIMENTO/RICARICA Azienda beneficiaria | B30: Id intervento (inserire il codice indentif. già inserito nella scheda dedicata) | C30: Nuova realizzazione (0) - Ristrutturazione e/o ampliamento (1) | D30: Comune | E30: Località | F30: Investimento già parzialmente finanziato da altra misura pubblica | H30: Tipologia intervento | I30: N. colonnine ricarica bus per sito | J30: Utilizzo infrastruttura da più operatori (1=si;0=no) | K30: Intervento allocato su più annualità (1=si;0=no) | L30: Importo complessivo dell'intervento [€] | M30: CIG e note particolari | N30: DATA STIPULA CONTRATTO | O30: Investimento sul cratere sisma 2016 (1=si;0=no) | P30: intervento liquidato (1=si;0=no) | Q30: Alimentaz. | R30: Costo allocato sull'anno in esame [€] | S30: Quota contributo sull'anno [€] | U30: Indicare il cronoprogramma delle attività per ogni intervento secondo le tre tipologie in legenda
B31: =IF(OR($B$4="DM 223/2020 - MIT",$B$4="FSC (D.Cipe 98/2017)"),"XXXX","") ->  | L31: =IF(OR($B$4="DM 223/2020 - MIT",$B$4="FSC (D.Cipe 98/2017)"),"XXXX","") ->  | M31: =IF(OR($B$4="DM 223/2020 - MIT",$B$4="FSC (D.Cipe 98/2017)"),"Il fondo prescelto non ammette infrastrutture","") ->  | Q31: =IFERROR(VLOOKUP(H31,Infrastrutture!$A$2:$B$9,2,FALSE), "") ->  | S31: =IF(L31<R31,"ERRORE",R31*PERCCONTRIB) -> 0 | U31: 20
M32: =IF(OR($B$4="DM 223/2020 - MIT",$B$4="FSC (D.Cipe 98/2017)"),"Il fondo prescelto non ammette infrastrutture","") ->  | Q32: =IFERROR(VLOOKUP(H32,Infrastrutture!$A$2:$B$9,2,FALSE), "") ->  | S32: 0 | U32: 21
Q33: =IFERROR(VLOOKUP(H33,Infrastrutture!$A$2:$B$9,2,FALSE), "") ->  | S33: 0 | U33: 22
Q34: =IFERROR(VLOOKUP(H34,Infrastrutture!$A$2:$B$9,2,FALSE), "") ->  | S34: 0 | U34: 23
Q35: =IFERROR(VLOOKUP(H35,Infrastrutture!$A$2:$B$9,2,FALSE), "") ->  | S35: 0 | U35: 24
Q36: =IFERROR(VLOOKUP(H36,Infrastrutture!$A$2:$B$9,2,FALSE), "") ->  | S36: 0 | U36: 25
Q37: =IFERROR(VLOOKUP(H37,Infrastrutture!$A$2:$B$9,2,FALSE), "") ->  | S37: 0 | U37: 26
Q38: =IFERROR(VLOOKUP(H38,Infrastrutture!$A$2:$B$9,2,FALSE), "") ->  | S38: 0 | U38: 27
Q39: =IFERROR(VLOOKUP(H39,Infrastrutture!$A$2:$B$9,2,FALSE), "") ->  | S39: 0 | U39: 28
Q40: =IFERROR(VLOOKUP(H40,Infrastrutture!$A$2:$B$9,2,FALSE), "") ->  | S40: 0 | U40: 29
A41: TOTALI AUTOBUS | B41: =SUM(B15:B29) -> 0 | C41: =SUM(C15:C29) -> 0 | O41: =+SUM(O15:O29) -> 0 | R41: =SUM(R15:R29) -> 0 | S41: =SUM(S15:S29) -> 0
A42: TOTALI INFRASTRUTTURE | O42: =+SUM(O31:O40) -> 0 | R42: =+SUM(R31:R40) -> 0 | S42: =+SUM(S31:S40) -> 0
A43: TOTALI GENERALE | R43: =+R41+R42 -> 0 | S43: =+S41+S42 -> 0

Sheet DM 81_2023
A1: Piano investimenti di bacino - D.G.R. 647 del 30 maggio 2022 - REGIONE MARCHE - Assessorato trasporti e reti regionali di trasporto. | U1: CRONOPROGRAMMA DEGLI INVESTIMENTI
A3: Ambito territoriale | B3: FM | F3: celle a fondo bianco da compilare obbligatoriamente direttamente o con menu a tendina | I3: Data compilazione | V3: Legenda:
A4: Fonte di finanziamento | B4: DM 81/2020 - PSNMS | F4: celle a fondo arancio compilate automaticamente | I4: Referente compilaz. | V4: 1 | W4: Espletamento gara
A5: Annualità | B5: 2023 | F5: Valori economici al netto dell'IVA | I5: Telefono di contatto | V5: 2 | W5: Stipula contratto
A6: K2 | B6: =B4&"_"&B5&"_"&B3 -> DM 81/2020 - PSNMS_2023_FM
A7: Contributo max assegnabile | B7: =VLOOKUP($B$6,'Assegnazione fondi'!$D$2:$G$208,3,FALSE) -> 593623.6563 | D7: Contributo tot. assegnato | F7: =+S43 -> 0 | I7: e-mail | V7: 3 | W7: Completamento fornitura
A8: % contribuzione sul costo d'acquisto | B8: =VLOOKUP($B$6,'Assegnazione fondi'!$D$2:$G$201,4,FALSE) -> 0.8 | D8: N. mezzi tot. da acquisire | F8: =B41+C41 -> 0
A9: Residuo annualità precedenti | B9: ='DM 81_2022'!F10 -> 2176620.035
A10: =+IF(B4="DM 81/2020 - PSNMS", "Importo da utilizzare per infrastrutture (di cui del contributo max)","Contributo max assegnabile per ventuali infrastrutture (di cui del contributo max)") -> Importo da utilizzare per infrastrutture (di cui del contributo max) | B10: =VLOOKUP($B$6,'Assegnazione fondi'!$D$2:$G$208,2,FALSE) -> 0 | D10: Residuo sull'anno | F10: =+TOTIMP-F7+B9 -> 2770243.692
A12: DATI RIEPILOGATIVI SUGLI AUTOBUS DA ACQUISIRE | B12: Per complet. organico n. | C12: Per rinnovo parco n. | D12: Compilare un foglio per ogni fondo di finanziamento, per ogni annualità | U12: Indicare il cronoprogramma delle attività per ogni mezzo secondo le tre tipologie in legenda
B13: =B41 -> 0 | C13: =C41 -> 0 | U13: Anno | V13: 2018 | AH13: 2019 | AT13: 2020 | BF13: 2021 | BR13: 2022 | CD13: 2023 | CP13: 2024 | DB13: 2025 | DN13: 2026
A14: Azienda beneficiaria | B14: Completamento organico (1=si;0=no) | C14: Sostituzione mezzo (1=si;0=no) | D14: Targa mezzo da sostituire | E14: Impiego (URBANO / EXTRAURBANO) | F14: Data prima immatricolazione mezzo sostituito | G14: DGR tetti di spesa | H14: Tipologia nuovo mezzo (selezionare dall'elenco) | I14: Rastrelliera per biciclette (1=si;0=no) | J14: Metano LNG (1=si;0=no) | K14: Mezzo Myld hybrid (1=si;0=no) | L14: Costo preventivato unitario [€] | M14: CIG e note particolari | N14: DATA STIPULA CONTRATTO | O14: Investimento sul cratere sisma 2016 (1=si;0=no) | P14: intervento liquidato (1=si;0=no) | Q14: Alimentaz. | R14: Spesa max ammissibile unitaria | S14: Contributo unitario | U14: Id / Mese | V14: 1 | W14: 2 | X14: 3 | Y14: 4 | Z14: 5 | AA14: 6 | AB14: 7 | AC14: 8 | AD14: 9 | AE14: 10 | AF14: 11 | AG14: 12 | AH14: 1 | AI14: 2 | AJ14: 3 | AK14: 4 | AL14: 5 | AM14: 6 | AN14: 7 | AO14: 8 | AP14: 9 | AQ14: 10 | AR14: 11 | AS14: 12 | AT14: 1 | AU14: 2 | AV14: 3 | AW14: 4 | AX14: 5 | AY14: 6 | AZ14: 7 | BA14: 8 | BB14: 9 | BC14: 10 | BD14: 11 | BE14: 12 | BF14: 1 | BG14: 2 | BH14: 3 | BI14: 4 | BJ14: 5 | BK14: 6 | BL14: 7 | BM14: 8 | BN14: 9 | BO14: 10 | BP14: 11 | BQ14: 12 | BR14: 1 | BS14: 2 | BT14: 3 | BU14: 4 | BV14: 5 | BW14: 6 | BX14: 7 | BY14: 8 | BZ14: 9 | CA14: 10 | CB14: 11 | CC14: 12 | CD14: 1 | CE14: 2 | CF14: 3 | CG14: 4 | CH14: 5 | CI14: 6 | CJ14: 7 | CK14: 8 | CL14: 9 | CM14: 10 | CN14: 11 | CO14: 12 | CP14: 1 | CQ14: 2 | CR14: 3 | CS14: 4 | CT14: 5 | CU14: 6 | CV14: 7 | CW14: 8 | CX14: 9 | CY14: 10 | CZ14: 11 | DA14: 12 | DB14: 1 | DC14: 2 | DD14: 3 | DE14: 4 | DF14: 5 | DG14: 6 | DH14: 7 | DI14: 8 | DJ14: 9 | DK14: 10 | DL14: 11 | DM14: 12 | DN14: 1 | DO14: 2 | DP14: 3 | DQ14: 4 | DR14: 5 | DS14: 6 | DT14: 7 | DU14: 8 | DV14: 9 | DW14: 10 | DX14: 11 | DY14: 12
M15: =IF(L15<>0,"COMPILARE","") ->  | Q15: =IFERROR(VLOOKUP(H15,TettiDGR300!$J$2:$L74,3,FALSE), "") ->  | R15: =IF(H15="",0,IF(AND(G15="DGR300_2023",J15=1,K15=1),VLOOKUP(H15,TettiDGR300!$J$2:$N$74,5,FALSE),IF(AND(G15="DGR300_2023",J15=1),VLOOKUP(H15,TettiDGR300!$J$2:$N$74,4,FALSE),IF(AND(G15="DGR300_2023",K15=1),VLOOKUP(H15,TettiDGR300!$J$2:$N$74,5,FALSE),IF(G15="DGR300_2023",VLOOKUP(H15,TettiDGR300!$J$2:$N$74,2,FALSE),IF(AND(G15="DGR1233_2021",J15=1,K15=1),VLOOKUP(H15,TettiDGR1233!$J$2:$N$74,5,FALSE),IF(AND(G15="DGR1233_2021",J15=1),VLOOKUP(H15,TettiDGR1233!$J$2:$N$74,4,FALSE),IF(AND(G15="DGR1233_2021",K15=1),VLOOKUP(H15,TettiDGR1233!$J$2:$N$74,5,FALSE),VLOOKUP(H15,TettiDGR1233!$J$2:$N$74,2,FALSE))))))))) -> 0 | S15: =IF(L15<R15,L15*PERCCONTRIB,R15*PERCCONTRIB) -> 0 | U15: 1
Q16: =IFERROR(VLOOKUP(H16,TettiDGR300!$J$2:$L75,3,FALSE), "") ->  | R16: =IF(H16="",0,IF(AND(G16="DGR300_2023",J16=1,K16=1),VLOOKUP(H16,TettiDGR300!$J$2:$N$74,5,FALSE),IF(AND(G16="DGR300_2023",J16=1),VLOOKUP(H16,TettiDGR300!$J$2:$N$74,4,FALSE),IF(AND(G16="DGR300_2023",K16=1),VLOOKUP(H16,TettiDGR300!$J$2:$N$74,5,FALSE),IF(G16="DGR300_2023",VLOOKUP(H16,TettiDGR300!$J$2:$N$74,2,FALSE),IF(AND(G16="DGR1233_2021",J16=1,K16=1),VLOOKUP(H16,TettiDGR1233!$J$2:$N$74,5,FALSE),IF(AND(G16="DGR1233_2021",J16=1),VLOOKUP(H16,TettiDGR1233!$J$2:$N$74,4,FALSE),IF(AND(G16="DGR1233_2021",K16=1),VLOOKUP(H16,TettiDGR1233!$J$2:$N$74,5,FALSE),VLOOKUP(H16,TettiDGR1233!$J$2:$N$74,2,FALSE))))))))) -> 0 | S16: 0 | U16: 2
Q17: =IFERROR(VLOOKUP(H17,TettiDGR300!$J$2:$L76,3,FALSE), "") ->  | R17: =IF(H17="",0,IF(AND(G17="DGR300_2023",J17=1,K17=1),VLOOKUP(H17,TettiDGR300!$J$2:$N$74,5,FALSE),IF(AND(G17="DGR300_2023",J17=1),VLOOKUP(H17,TettiDGR300!$J$2:$N$74,4,FALSE),IF(AND(G17="DGR300_2023",K17=1),VLOOKUP(H17,TettiDGR300!$J$2:$N$74,5,FALSE),IF(G17="DGR300_2023",VLOOKUP(H17,TettiDGR300!$J$2:$N$74,2,FALSE),IF(AND(G17="DGR1233_2021",J17=1,K17=1),VLOOKUP(H17,TettiDGR1233!$J$2:$N$74,5,FALSE),IF(AND(G17="DGR1233_2021",J17=1),VLOOKUP(H17,TettiDGR1233!$J$2:$N$74,4,FALSE),IF(AND(G17="DGR1233_2021",K17=1),VLOOKUP(H17,TettiDGR1233!$J$2:$N$74,5,FALSE),VLOOKUP(H17,TettiDGR1233!$J$2:$N$74,2,FALSE))))))))) -> 0 | S17: 0 | U17: 3
Q18: =IFERROR(VLOOKUP(H18,TettiDGR300!$J$2:$L77,3,FALSE), "") ->  | R18: =IF(H18="",0,IF(AND(G18="DGR300_2023",J18=1,K18=1),VLOOKUP(H18,TettiDGR300!$J$2:$N$74,5,FALSE),IF(AND(G18="DGR300_2023",J18=1),VLOOKUP(H18,TettiDGR300!$J$2:$N$74,4,FALSE),IF(AND(G18="DGR300_2023",K18=1),VLOOKUP(H18,TettiDGR300!$J$2:$N$74,5,FALSE),IF(G18="DGR300_2023",VLOOKUP(H18,TettiDGR300!$J$2:$N$74,2,FALSE),IF(AND(G18="DGR1233_2021",J18=1,K18=1),VLOOKUP(H18,TettiDGR1233!$J$2:$N$74,5,FALSE),IF(AND(G18="DGR1233_2021",J18=1),VLOOKUP(H18,TettiDGR1233!$J$2:$N$74,4,FALSE),IF(AND(G18="DGR1233_2021",K18=1),VLOOKUP(H18,TettiDGR1233!$J$2:$N$74,5,FALSE),VLOOKUP(H18,TettiDGR1233!$J$2:$N$74,2,FALSE))))))))) -> 0 | S18: =IF(L18<R18,L18*PERCCONTRIB,R18*PERCCONTRIB) -> 0 | U18: 4
Q19: =IFERROR(VLOOKUP(H19,TettiDGR300!$J$2:$L78,3,FALSE), "") ->  | R19: =IF(H19="",0,IF(AND(G19="DGR300_2023",J19=1,K19=1),VLOOKUP(H19,TettiDGR300!$J$2:$N$74,5,FALSE),IF(AND(G19="DGR300_2023",J19=1),VLOOKUP(H19,TettiDGR300!$J$2:$N$74,4,FALSE),IF(AND(G19="DGR300_2023",K19=1),VLOOKUP(H19,TettiDGR300!$J$2:$N$74,5,FALSE),IF(G19="DGR300_2023",VLOOKUP(H19,TettiDGR300!$J$2:$N$74,2,FALSE),IF(AND(G19="DGR1233_2021",J19=1,K19=1),VLOOKUP(H19,TettiDGR1233!$J$2:$N$74,5,FALSE),IF(AND(G19="DGR1233_2021",J19=1),VLOOKUP(H19,TettiDGR1233!$J$2:$N$74,4,FALSE),IF(AND(G19="DGR1233_2021",K19=1),VLOOKUP(H19,TettiDGR1233!$J$2:$N$74,5,FALSE),VLOOKUP(H19,TettiDGR1233!$J$2:$N$74,2,FALSE))))))))) -> 0 | S19: 0 | U19: 5
Q20: =IFERROR(VLOOKUP(H20,TettiDGR300!$J$2:$L79,3,FALSE), "") ->  | R20: =IF(H20="",0,IF(AND(G20="DGR300_2023",J20=1,K20=1),VLOOKUP(H20,TettiDGR300!$J$2:$N$74,5,FALSE),IF(AND(G20="DGR300_2023",J20=1),VLOOKUP(H20,TettiDGR300!$J$2:$N$74,4,FALSE),IF(AND(G20="DGR300_2023",K20=1),VLOOKUP(H20,TettiDGR300!$J$2:$N$74,5,FALSE),IF(G20="DGR300_2023",VLOOKUP(H20,TettiDGR300!$J$2:$N$74,2,FALSE),IF(AND(G20="DGR1233_2021",J20=1,K20=1),VLOOKUP(H20,TettiDGR1233!$J$2:$N$74,5,FALSE),IF(AND(G20="DGR1233_2021",J20=1),VLOOKUP(H20,TettiDGR1233!$J$2:$N$74,4,FALSE),IF(AND(G20="DGR1233_2021",K20=1),VLOOKUP(H20,TettiDGR1233!$J$2:$N$74,5,FALSE),VLOOKUP(H20,TettiDGR1233!$J$2:$N$74,2,FALSE))))))))) -> 0 | S20: 0 | U20: 6
Q21: =IFERROR(VLOOKUP(H21,TettiDGR300!$J$2:$L80,3,FALSE), "") ->  | R21: =IF(H21="",0,IF(AND(G21="DGR300_2023",J21=1,K21=1),VLOOKUP(H21,TettiDGR300!$J$2:$N$74,5,FALSE),IF(AND(G21="DGR300_2023",J21=1),VLOOKUP(H21,TettiDGR300!$J$2:$N$74,4,FALSE),IF(AND(G21="DGR300_2023",K21=1),VLOOKUP(H21,TettiDGR300!$J$2:$N$74,5,FALSE),IF(G21="DGR300_2023",VLOOKUP(H21,TettiDGR300!$J$2:$N$74,2,FALSE),IF(AND(G21="DGR1233_2021",J21=1,K21=1),VLOOKUP(H21,TettiDGR1233!$J$2:$N$74,5,FALSE),IF(AND(G21="DGR1233_2021",J21=1),VLOOKUP(H21,TettiDGR1233!$J$2:$N$74,4,FALSE),IF(AND(G21="DGR1233_2021",K21=1),VLOOKUP(H21,TettiDGR1233!$J$2:$N$74,5,FALSE),VLOOKUP(H21,TettiDGR1233!$J$2:$N$74,2,FALSE))))))))) -> 0 | S21: 0 | U21: 7
Q22: =IFERROR(VLOOKUP(H22,TettiDGR300!$J$2:$L81,3,FALSE), "") ->  | R22: =IF(H22="",0,IF(AND(G22="DGR300_2023",J22=1,K22=1),VLOOKUP(H22,TettiDGR300!$J$2:$N$74,5,FALSE),IF(AND(G22="DGR300_2023",J22=1),VLOOKUP(H22,TettiDGR300!$J$2:$N$74,4,FALSE),IF(AND(G22="DGR300_2023",K22=1),VLOOKUP(H22,TettiDGR300!$J$2:$N$74,5,FALSE),IF(G22="DGR300_2023",VLOOKUP(H22,TettiDGR300!$J$2:$N$74,2,FALSE),IF(AND(G22="DGR1233_2021",J22=1,K22=1),VLOOKUP(H22,TettiDGR1233!$J$2:$N$74,5,FALSE),IF(AND(G22="DGR1233_2021",J22=1),VLOOKUP(H22,TettiDGR1233!$J$2:$N$74,4,FALSE),IF(AND(G22="DGR1233_2021",K22=1),VLOOKUP(H22,TettiDGR1233!$J$2:$N$74,5,FALSE),VLOOKUP(H22,TettiDGR1233!$J$2:$N$74,2,FALSE))))))))) -> 0 | S22: 0 | U22: 8
Q23: =IFERROR(VLOOKUP(H23,TettiDGR300!$J$2:$L82,3,FALSE), "") ->  | R23: =IF(H23="",0,IF(AND(G23="DGR300_2023",J23=1,K23=1),VLOOKUP(H23,TettiDGR300!$J$2:$N$74,5,FALSE),IF(AND(G23="DGR300_2023",J23=1),VLOOKUP(H23,TettiDGR300!$J$2:$N$74,4,FALSE),IF(AND(G23="DGR300_2023",K23=1),VLOOKUP(H23,TettiDGR300!$J$2:$N$74,5,FALSE),IF(G23="DGR300_2023",VLOOKUP(H23,TettiDGR300!$J$2:$N$74,2,FALSE),IF(AND(G23="DGR1233_2021",J23=1,K23=1),VLOOKUP(H23,TettiDGR1233!$J$2:$N$74,5,FALSE),IF(AND(G23="DGR1233_2021",J23=1),VLOOKUP(H23,TettiDGR1233!$J$2:$N$74,4,FALSE),IF(AND(G23="DGR1233_2021",K23=1),VLOOKUP(H23,TettiDGR1233!$J$2:$N$74,5,FALSE),VLOOKUP(H23,TettiDGR1233!$J$2:$N$74,2,FALSE))))))))) -> 0 | S23: 0 | U23: 9
Q24: =IFERROR(VLOOKUP(H24,TettiDGR300!$J$2:$L83,3,FALSE), "") ->  | R24: =IF(H24="",0,IF(AND(G24="DGR300_2023",J24=1,K24=1),VLOOKUP(H24,TettiDGR300!$J$2:$N$74,5,FALSE),IF(AND(G24="DGR300_2023",J24=1),VLOOKUP(H24,TettiDGR300!$J$2:$N$74,4,FALSE),IF(AND(G24="DGR300_2023",K24=1),VLOOKUP(H24,TettiDGR300!$J$2:$N$74,5,FALSE),IF(G24="DGR300_2023",VLOOKUP(H24,TettiDGR300!$J$2:$N$74,2,FALSE),IF(AND(G24="DGR1233_2021",J24=1,K24=1),VLOOKUP(H24,TettiDGR1233!$J$2:$N$74,5,FALSE),IF(AND(G24="DGR1233_2021",J24=1),VLOOKUP(H24,TettiDGR1233!$J$2:$N$74,4,FALSE),IF(AND(G24="DGR1233_2021",K24=1),VLOOKUP(H24,TettiDGR1233!$J$2:$N$74,5,FALSE),VLOOKUP(H24,TettiDGR1233!$J$2:$N$74,2,FALSE))))))))) -> 0 | S24: 0 | U24: 10
Q25: =IFERROR(VLOOKUP(H25,TettiDGR300!$J$2:$L84,3,FALSE), "") ->  | R25: =IF(H25="",0,IF(AND(G25="DGR300_2023",J25=1,K25=1),VLOOKUP(H25,TettiDGR300!$J$2:$N$74,5,FALSE),IF(AND(G25="DGR300_2023",J25=1),VLOOKUP(H25,TettiDGR300!$J$2:$N$74,4,FALSE),IF(AND(G25="DGR300_2023",K25=1),VLOOKUP(H25,TettiDGR300!$J$2:$N$74,5,FALSE),IF(G25="DGR300_2023",VLOOKUP(H25,TettiDGR300!$J$2:$N$74,2,FALSE),IF(AND(G25="DGR1233_2021",J25=1,K25=1),VLOOKUP(H25,TettiDGR1233!$J$2:$N$74,5,FALSE),IF(AND(G25="DGR1233_2021",J25=1),VLOOKUP(H25,TettiDGR1233!$J$2:$N$74,4,FALSE),IF(AND(G25="DGR1233_2021",K25=1),VLOOKUP(H25,TettiDGR1233!$J$2:$N$74,5,FALSE),VLOOKUP(H25,TettiDGR1233!$J$2:$N$74,2,FALSE))))))))) -> 0 | S25: 0 | U25: 11
Q26: =IFERROR(VLOOKUP(H26,TettiDGR300!$J$2:$L85,3,FALSE), "") ->  | R26: =IF(H26="",0,IF(AND(G26="DGR300_2023",J26=1,K26=1),VLOOKUP(H26,TettiDGR300!$J$2:$N$74,5,FALSE),IF(AND(G26="DGR300_2023",J26=1),VLOOKUP(H26,TettiDGR300!$J$2:$N$74,4,FALSE),IF(AND(G26="DGR300_2023",K26=1),VLOOKUP(H26,TettiDGR300!$J$2:$N$74,5,FALSE),IF(G26="DGR300_2023",VLOOKUP(H26,TettiDGR300!$J$2:$N$74,2,FALSE),IF(AND(G26="DGR1233_2021",J26=1,K26=1),VLOOKUP(H26,TettiDGR1233!$J$2:$N$74,5,FALSE),IF(AND(G26="DGR1233_2021",J26=1),VLOOKUP(H26,TettiDGR1233!$J$2:$N$74,4,FALSE),IF(AND(G26="DGR1233_2021",K26=1),VLOOKUP(H26,TettiDGR1233!$J$2:$N$74,5,FALSE),VLOOKUP(H26,TettiDGR1233!$J$2:$N$74,2,FALSE))))))))) -> 0 | S26: 0 | U26: 12
Q27: =IFERROR(VLOOKUP(H27,TettiDGR300!$J$2:$L86,3,FALSE), "") ->  | R27: =IF(H27="",0,IF(AND(G27="DGR300_2023",J27=1,K27=1),VLOOKUP(H27,TettiDGR300!$J$2:$N$74,5,FALSE),IF(AND(G27="DGR300_2023",J27=1),VLOOKUP(H27,TettiDGR300!$J$2:$N$74,4,FALSE),IF(AND(G27="DGR300_2023",K27=1),VLOOKUP(H27,TettiDGR300!$J$2:$N$74,5,FALSE),IF(G27="DGR300_2023",VLOOKUP(H27,TettiDGR300!$J$2:$N$74,2,FALSE),IF(AND(G27="DGR1233_2021",J27=1,K27=1),VLOOKUP(H27,TettiDGR1233!$J$2:$N$74,5,FALSE),IF(AND(G27="DGR1233_2021",J27=1),VLOOKUP(H27,TettiDGR1233!$J$2:$N$74,4,FALSE),IF(AND(G27="DGR1233_2021",K27=1),VLOOKUP(H27,TettiDGR1233!$J$2:$N$74,5,FALSE),VLOOKUP(H27,TettiDGR1233!$J$2:$N$74,2,FALSE))))))))) -> 0 | S27: 0 | U27: 13
Q28: =IFERROR(VLOOKUP(H28,TettiDGR300!$J$2:$L87,3,FALSE), "") ->  | R28: =IF(H28="",0,IF(AND(G28="DGR300_2023",J28=1,K28=1),VLOOKUP(H28,TettiDGR300!$J$2:$N$74,5,FALSE),IF(AND(G28="DGR300_2023",J28=1),VLOOKUP(H28,TettiDGR300!$J$2:$N$74,4,FALSE),IF(AND(G28="DGR300_2023",K28=1),VLOOKUP(H28,TettiDGR300!$J$2:$N$74,5,FALSE),IF(G28="DGR300_2023",VLOOKUP(H28,TettiDGR300!$J$2:$N$74,2,FALSE),IF(AND(G28="DGR1233_2021",J28=1,K28=1),VLOOKUP(H28,TettiDGR1233!$J$2:$N$74,5,FALSE),IF(AND(G28="DGR1233_2021",J28=1),VLOOKUP(H28,TettiDGR1233!$J$2:$N$74,4,FALSE),IF(AND(G28="DGR1233_2021",K28=1),VLOOKUP(H28,TettiDGR1233!$J$2:$N$74,5,FALSE),VLOOKUP(H28,TettiDGR1233!$J$2:$N$74,2,FALSE))))))))) -> 0 | S28: 0 | U28: 14
Q29: =IFERROR(VLOOKUP(H29,TettiDGR300!$J$2:$L88,3,FALSE), "") ->  | R29: =IF(H29="",0,IF(AND(G29="DGR300_2023",J29=1,K29=1),VLOOKUP(H29,TettiDGR300!$J$2:$N$74,5,FALSE),IF(AND(G29="DGR300_2023",J29=1),VLOOKUP(H29,TettiDGR300!$J$2:$N$74,4,FALSE),IF(AND(G29="DGR300_2023",K29=1),VLOOKUP(H29,TettiDGR300!$J$2:$N$74,5,FALSE),IF(G29="DGR300_2023",VLOOKUP(H29,TettiDGR300!$J$2:$N$74,2,FALSE),IF(AND(G29="DGR1233_2021",J29=1,K29=1),VLOOKUP(H29,TettiDGR1233!$J$2:$N$74,5,FALSE),IF(AND(G29="DGR1233_2021",J29=1),VLOOKUP(H29,TettiDGR1233!$J$2:$N$74,4,FALSE),IF(AND(G29="DGR1233_2021",K29=1),VLOOKUP(H29,TettiDGR1233!$J$2:$N$74,5,FALSE),VLOOKUP(H29,TettiDGR1233!$J$2:$N$74,2,FALSE))))))))) -> 0 | S29: 0 | U29: 15
A30: DATI RIEPILOGATIVI PER LE INFRASTRUTTURE DI RIFORNIMENTO/RICARICA Azienda beneficiaria | B30: Id intervento (inserire il codice indentif. già inserito nella scheda dedicata) | C30: Nuova realizzazione (0) - Ristrutturazione e/o ampliamento (1) | D30: Comune | E30: Località | F30: Investimento già parzialmente finanziato da altra misura pubblica | H30: Tipologia intervento | I30: N. colonnine ricarica bus per sito | J30: Utilizzo infrastruttura da più operatori (1=si;0=no) | K30: Intervento allocato su più annualità (1=si;0=no) | L30: Importo complessivo dell'intervento [€] | M30: CIG e note particolari | N30: DATA STIPULA CONTRATTO | O30: Investimento sul cratere sisma 2016 (1=si;0=no) | P30: intervento liquidato (1=si;0=no) | Q30: Alimentaz. | R30: Costo allocato sull'anno in esame [€] | S30: Quota contributo sull'anno [€] | U30: Indicare il cronoprogramma delle attività per ogni intervento secondo le tre tipologie in legenda
B31: =IF(OR($B$4="DM 223/2020 - MIT",$B$4="FSC (D.Cipe 98/2017)"),"XXXX","") ->  | L31: =IF(OR($B$4="DM 223/2020 - MIT",$B$4="FSC (D.Cipe 98/2017)"),"XXXX","") ->  | M31: =IF(OR($B$4="DM 223/2020 - MIT",$B$4="FSC (D.Cipe 98/2017)"),"Il fondo prescelto non ammette infrastrutture","") ->  | Q31: =IFERROR(VLOOKUP(H31,Infrastrutture!$A$2:$B$9,2,FALSE), "") ->  | S31: =IF(L31<R31,"ERRORE",R31*PERCCONTRIB) -> 0 | U31: 20
M32: =IF(OR($B$4="DM 223/2020 - MIT",$B$4="FSC (D.Cipe 98/2017)"),"Il fondo prescelto non ammette infrastrutture","") ->  | Q32: =IFERROR(VLOOKUP(H32,Infrastrutture!$A$2:$B$9,2,FALSE), "") ->  | S32: 0 | U32: 21
Q33: =IFERROR(VLOOKUP(H33,Infrastrutture!$A$2:$B$9,2,FALSE), "") ->  | S33: 0 | U33: 22
Q34: =IFERROR(VLOOKUP(H34,Infrastrutture!$A$2:$B$9,2,FALSE), "") ->  | S34: 0 | U34: 23
Q35: =IFERROR(VLOOKUP(H35,Infrastrutture!$A$2:$B$9,2,FALSE), "") ->  | S35: 0 | U35: 24
Q36: =IFERROR(VLOOKUP(H36,Infrastrutture!$A$2:$B$9,2,FALSE), "") ->  | S36: 0 | U36: 25
Q37: =IFERROR(VLOOKUP(H37,Infrastrutture!$A$2:$B$9,2,FALSE), "") ->  | S37: 0 | U37: 26
Q38: =IFERROR(VLOOKUP(H38,Infrastrutture!$A$2:$B$9,2,FALSE), "") ->  | S38: 0 | U38: 27
Q39: =IFERROR(VLOOKUP(H39,Infrastrutture!$A$2:$B$9,2,FALSE), "") ->  | S39: 0 | U39: 28
Q40: =IFERROR(VLOOKUP(H40,Infrastrutture!$A$2:$B$9,2,FALSE), "") ->  | S40: 0 | U40: 29
A41: TOTALI AUTOBUS | B41: =SUM(B15:B29) -> 0 | C41: =SUM(C15:C29) -> 0 | O41: =+SUM(O15:O29) -> 0 | R41: =SUM(R15:R29) -> 0 | S41: =SUM(S15:S29) -> 0
A42: TOTALI INFRASTRUTTURE | O42: =+SUM(O31:O40) -> 0 | R42: =+SUM(R31:R40) -> 0 | S42: =+SUM(S31:S40) -> 0
A43: TOTALI GENERALE | R43: =+R41+R42 -> 0 | S43: =+S41+S42 -> 0

Sheet DM 81_2024
A1: Piano investimenti di bacino - D.G.R. 647 del 30 maggio 2022 - REGIONE MARCHE - Assessorato trasporti e reti regionali di trasporto. | U1: CRONOPROGRAMMA DEGLI INVESTIMENTI
A3: Ambito territoriale | B3: FM | F3: celle a fondo bianco da compilare obbligatoriamente direttamente o con menu a tendina | I3: Data compilazione | V3: Legenda:
A4: Fonte di finanziamento | B4: DM 81/2020 - PSNMS | F4: celle a fondo arancio compilate automaticamente | I4: Referente compilaz. | V4: 1 | W4: Espletamento gara
A5: Annualità | B5: 2024 | F5: Valori economici al netto dell'IVA | I5: Telefono di contatto | V5: 2 | W5: Stipula contratto
A6: K2 | B6: =B4&"_"&B5&"_"&B3 -> DM 81/2020 - PSNMS_2024_FM
A7: Contributo max assegnabile | B7: =VLOOKUP($B$6,'Assegnazione fondi'!$D$2:$G$208,3,FALSE) -> 593623.6563 | D7: Contributo tot. assegnato | F7: =+S43 -> 0 | I7: e-mail | V7: 3 | W7: Completamento fornitura
A8: % contribuzione sul costo d'acquisto | B8: =VLOOKUP($B$6,'Assegnazione fondi'!$D$2:$G$201,4,FALSE) -> 0.8 | D8: N. mezzi tot. da acquisire | F8: =B41+C41 -> 0
A9: Residuo annualità precedenti | B9: 0 | D9: Residuo 2019-2023 non utilizzabile | F9: ='DM 81_2023'!F10 -> 2770243.692
A10: =+IF(B4="DM 81/2020 - PSNMS", "Importo da utilizzare per infrastrutture (di cui del contributo max)","Contributo max assegnabile per ventuali infrastrutture (di cui del contributo max)") -> Importo da utilizzare per infrastrutture (di cui del contributo max) | B10: =VLOOKUP($B$6,'Assegnazione fondi'!$D$2:$G$208,2,FALSE) -> 0 | D10: Residuo sull'anno | F10: =+TOTIMP-F7+B9 -> 593623.6563
A12: DATI RIEPILOGATIVI SUGLI AUTOBUS DA ACQUISIRE | B12: Per complet. organico n. | C12: Per rinnovo parco n. | D12: Compilare un foglio per ogni fondo di finanziamento, per ogni annualità | U12: Indicare il cronoprogramma delle attività per ogni mezzo secondo le tre tipologie in legenda
B13: =B41 -> 0 | C13: =C41 -> 0 | U13: Anno | V13: 2018 | AH13: 2019 | AT13: 2020 | BF13: 2021 | BR13: 2022 | CD13: 2023 | CP13: 2024 | DB13: 2025 | DN13: 2026
A14: Azienda beneficiaria | B14: Completamento organico (1=si;0=no) | C14: Sostituzione mezzo (1=si;0=no) | D14: Targa mezzo da sostituire | E14: Impiego (URBANO / EXTRAURBANO) | F14: Data prima immatricolazione mezzo sostituito | G14: DGR tetti di spesa | H14: Tipologia nuovo mezzo (selezionare dall'elenco) | I14: Rastrelliera per biciclette (1=si;0=no) | J14: Metano LNG (1=si;0=no) | K14: Mezzo Myld hybrid (1=si;0=no) | L14: Costo preventivato unitario [€] | M14: CIG e note particolari | N14: DATA STIPULA CONTRATTO | O14: Investimento sul cratere sisma 2016 (1=si;0=no) | P14: intervento liquidato (1=si;0=no) | Q14: Alimentaz. | R14: Spesa max ammissibile unitaria | S14: Contributo unitario | U14: Id / Mese | V14: 1 | W14: 2 | X14: 3 | Y14: 4 | Z14: 5 | AA14: 6 | AB14: 7 | AC14: 8 | AD14: 9 | AE14: 10 | AF14: 11 | AG14: 12 | AH14: 1 | AI14: 2 | AJ14: 3 | AK14: 4 | AL14: 5 | AM14: 6 | AN14: 7 | AO14: 8 | AP14: 9 | AQ14: 10 | AR14: 11 | AS14: 12 | AT14: 1 | AU14: 2 | AV14: 3 | AW14: 4 | AX14: 5 | AY14: 6 | AZ14: 7 | BA14: 8 | BB14: 9 | BC14: 10 | BD14: 11 | BE14: 12 | BF14: 1 | BG14: 2 | BH14: 3 | BI14: 4 | BJ14: 5 | BK14: 6 | BL14: 7 | BM14: 8 | BN14: 9 | BO14: 10 | BP14: 11 | BQ14: 12 | BR14: 1 | BS14: 2 | BT14: 3 | BU14: 4 | BV14: 5 | BW14: 6 | BX14: 7 | BY14: 8 | BZ14: 9 | CA14: 10 | CB14: 11 | CC14: 12 | CD14: 1 | CE14: 2 | CF14: 3 | CG14: 4 | CH14: 5 | CI14: 6 | CJ14: 7 | CK14: 8 | CL14: 9 | CM14: 10 | CN14: 11 | CO14: 12 | CP14: 1 | CQ14: 2 | CR14: 3 | CS14: 4 | CT14: 5 | CU14: 6 | CV14: 7 | CW14: 8 | CX14: 9 | CY14: 10 | CZ14: 11 | DA14: 12 | DB14: 1 | DC14: 2 | DD14: 3 | DE14: 4 | DF14: 5 | DG14: 6 | DH14: 7 | DI14: 8 | DJ14: 9 | DK14: 10 | DL14: 11 | DM14: 12 | DN14: 1 | DO14: 2 | DP14: 3 | DQ14: 4 | DR14: 5 | DS14: 6 | DT14: 7 | DU14: 8 | DV14: 9 | DW14: 10 | DX14: 11 | DY14: 12
M15: =IF(L15<>0,"COMPILARE","") ->  | Q15: =IFERROR(VLOOKUP(H15,TettiDGR300!$J$2:$L74,3,FALSE), "") ->  | R15: =IF(H15="",0,IF(AND(G15="DGR300_2023",J15=1,K15=1),VLOOKUP(H15,TettiDGR300!$J$2:$N$74,5,FALSE),IF(AND(G15="DGR300_2023",J15=1),VLOOKUP(H15,TettiDGR300!$J$2:$N$74,4,FALSE),IF(AND(G15="DGR300_2023",K15=1),VLOOKUP(H15,TettiDGR300!$J$2:$N$74,5,FALSE),IF(G15="DGR300_2023",VLOOKUP(H15,TettiDGR300!$J$2:$N$74,2,FALSE),IF(AND(G15="DGR1233_2021",J15=1,K15=1),VLOOKUP(H15,TettiDGR1233!$J$2:$N$74,5,FALSE),IF(AND(G15="DGR1233_2021",J15=1),VLOOKUP(H15,TettiDGR1233!$J$2:$N$74,4,FALSE),IF(AND(G15="DGR1233_2021",K15=1),VLOOKUP(H15,TettiDGR1233!$J$2:$N$74,5,FALSE),VLOOKUP(H15,TettiDGR1233!$J$2:$N$74,2,FALSE))))))))) -> 0 | S15: =IF(L15<R15,L15*PERCCONTRIB,R15*PERCCONTRIB) -> 0 | U15: 1
Q16: =IFERROR(VLOOKUP(H16,TettiDGR300!$J$2:$L75,3,FALSE), "") ->  | R16: =IF(H16="",0,IF(AND(G16="DGR300_2023",J16=1,K16=1),VLOOKUP(H16,TettiDGR300!$J$2:$N$74,5,FALSE),IF(AND(G16="DGR300_2023",J16=1),VLOOKUP(H16,TettiDGR300!$J$2:$N$74,4,FALSE),IF(AND(G16="DGR300_2023",K16=1),VLOOKUP(H16,TettiDGR300!$J$2:$N$74,5,FALSE),IF(G16="DGR300_2023",VLOOKUP(H16,TettiDGR300!$J$2:$N$74,2,FALSE),IF(AND(G16="DGR1233_2021",J16=1,K16=1),VLOOKUP(H16,TettiDGR1233!$J$2:$N$74,5,FALSE),IF(AND(G16="DGR1233_2021",J16=1),VLOOKUP(H16,TettiDGR1233!$J$2:$N$74,4,FALSE),IF(AND(G16="DGR1233_2021",K16=1),VLOOKUP(H16,TettiDGR1233!$J$2:$N$74,5,FALSE),VLOOKUP(H16,TettiDGR1233!$J$2:$N$74,2,FALSE))))))))) -> 0 | S16: 0 | U16: 2
Q17: =IFERROR(VLOOKUP(H17,TettiDGR300!$J$2:$L76,3,FALSE), "") ->  | R17: =IF(H17="",0,IF(AND(G17="DGR300_2023",J17=1,K17=1),VLOOKUP(H17,TettiDGR300!$J$2:$N$74,5,FALSE),IF(AND(G17="DGR300_2023",J17=1),VLOOKUP(H17,TettiDGR300!$J$2:$N$74,4,FALSE),IF(AND(G17="DGR300_2023",K17=1),VLOOKUP(H17,TettiDGR300!$J$2:$N$74,5,FALSE),IF(G17="DGR300_2023",VLOOKUP(H17,TettiDGR300!$J$2:$N$74,2,FALSE),IF(AND(G17="DGR1233_2021",J17=1,K17=1),VLOOKUP(H17,TettiDGR1233!$J$2:$N$74,5,FALSE),IF(AND(G17="DGR1233_2021",J17=1),VLOOKUP(H17,TettiDGR1233!$J$2:$N$74,4,FALSE),IF(AND(G17="DGR1233_2021",K17=1),VLOOKUP(H17,TettiDGR1233!$J$2:$N$74,5,FALSE),VLOOKUP(H17,TettiDGR1233!$J$2:$N$74,2,FALSE))))))))) -> 0 | S17: 0 | U17: 3
Q18: =IFERROR(VLOOKUP(H18,TettiDGR300!$J$2:$L77,3,FALSE), "") ->  | R18: =IF(H18="",0,IF(AND(G18="DGR300_2023",J18=1,K18=1),VLOOKUP(H18,TettiDGR300!$J$2:$N$74,5,FALSE),IF(AND(G18="DGR300_2023",J18=1),VLOOKUP(H18,TettiDGR300!$J$2:$N$74,4,FALSE),IF(AND(G18="DGR300_2023",K18=1),VLOOKUP(H18,TettiDGR300!$J$2:$N$74,5,FALSE),IF(G18="DGR300_2023",VLOOKUP(H18,TettiDGR300!$J$2:$N$74,2,FALSE),IF(AND(G18="DGR1233_2021",J18=1,K18=1),VLOOKUP(H18,TettiDGR1233!$J$2:$N$74,5,FALSE),IF(AND(G18="DGR1233_2021",J18=1),VLOOKUP(H18,TettiDGR1233!$J$2:$N$74,4,FALSE),IF(AND(G18="DGR1233_2021",K18=1),VLOOKUP(H18,TettiDGR1233!$J$2:$N$74,5,FALSE),VLOOKUP(H18,TettiDGR1233!$J$2:$N$74,2,FALSE))))))))) -> 0 | S18: =IF(L18<R18,L18*PERCCONTRIB,R18*PERCCONTRIB) -> 0 | U18: 4
Q19: =IFERROR(VLOOKUP(H19,TettiDGR300!$J$2:$L78,3,FALSE), "") ->  | R19: =IF(H19="",0,IF(AND(G19="DGR300_2023",J19=1,K19=1),VLOOKUP(H19,TettiDGR300!$J$2:$N$74,5,FALSE),IF(AND(G19="DGR300_2023",J19=1),VLOOKUP(H19,TettiDGR300!$J$2:$N$74,4,FALSE),IF(AND(G19="DGR300_2023",K19=1),VLOOKUP(H19,TettiDGR300!$J$2:$N$74,5,FALSE),IF(G19="DGR300_2023",VLOOKUP(H19,TettiDGR300!$J$2:$N$74,2,FALSE),IF(AND(G19="DGR1233_2021",J19=1,K19=1),VLOOKUP(H19,TettiDGR1233!$J$2:$N$74,5,FALSE),IF(AND(G19="DGR1233_2021",J19=1),VLOOKUP(H19,TettiDGR1233!$J$2:$N$74,4,FALSE),IF(AND(G19="DGR1233_2021",K19=1),VLOOKUP(H19,TettiDGR1233!$J$2:$N$74,5,FALSE),VLOOKUP(H19,TettiDGR1233!$J$2:$N$74,2,FALSE))))))))) -> 0 | S19: 0 | U19: 5
Q20: =IFERROR(VLOOKUP(H20,TettiDGR300!$J$2:$L79,3,FALSE), "") ->  | R20: =IF(H20="",0,IF(AND(G20="DGR300_2023",J20=1,K20=1),VLOOKUP(H20,TettiDGR300!$J$2:$N$74,5,FALSE),IF(AND(G20="DGR300_2023",J20=1),VLOOKUP(H20,TettiDGR300!$J$2:$N$74,4,FALSE),IF(AND(G20="DGR300_2023",K20=1),VLOOKUP(H20,TettiDGR300!$J$2:$N$74,5,FALSE),IF(G20="DGR300_2023",VLOOKUP(H20,TettiDGR300!$J$2:$N$74,2,FALSE),IF(AND(G20="DGR1233_2021",J20=1,K20=1),VLOOKUP(H20,TettiDGR1233!$J$2:$N$74,5,FALSE),IF(AND(G20="DGR1233_2021",J20=1),VLOOKUP(H20,TettiDGR1233!$J$2:$N$74,4,FALSE),IF(AND(G20="DGR1233_2021",K20=1),VLOOKUP(H20,TettiDGR1233!$J$2:$N$74,5,FALSE),VLOOKUP(H20,TettiDGR1233!$J$2:$N$74,2,FALSE))))))))) -> 0 | S20: 0 | U20: 6
Q21: =IFERROR(VLOOKUP(H21,TettiDGR300!$J$2:$L80,3,FALSE), "") ->  | R21: =IF(H21="",0,IF(AND(G21="DGR300_2023",J21=1,K21=1),VLOOKUP(H21,TettiDGR300!$J$2:$N$74,5,FALSE),IF(AND(G21="DGR300_2023",J21=1),VLOOKUP(H21,TettiDGR300!$J$2:$N$74,4,FALSE),IF(AND(G21="DGR300_2023",K21=1),VLOOKUP(H21,TettiDGR300!$J$2:$N$74,5,FALSE),IF(G21="DGR300_2023",VLOOKUP(H21,TettiDGR300!$J$2:$N$74,2,FALSE),IF(AND(G21="DGR1233_2021",J21=1,K21=1),VLOOKUP(H21,TettiDGR1233!$J$2:$N$74,5,FALSE),IF(AND(G21="DGR1233_2021",J21=1),VLOOKUP(H21,TettiDGR1233!$J$2:$N$74,4,FALSE),IF(AND(G21="DGR1233_2021",K21=1),VLOOKUP(H21,TettiDGR1233!$J$2:$N$74,5,FALSE),VLOOKUP(H21,TettiDGR1233!$J$2:$N$74,2,FALSE))))))))) -> 0 | S21: 0 | U21: 7
Q22: =IFERROR(VLOOKUP(H22,TettiDGR300!$J$2:$L81,3,FALSE), "") ->  | R22: =IF(H22="",0,IF(AND(G22="DGR300_2023",J22=1,K22=1),VLOOKUP(H22,TettiDGR300!$J$2:$N$74,5,FALSE),IF(AND(G22="DGR300_2023",J22=1),VLOOKUP(H22,TettiDGR300!$J$2:$N$74,4,FALSE),IF(AND(G22="DGR300_2023",K22=1),VLOOKUP(H22,TettiDGR300!$J$2:$N$74,5,FALSE),IF(G22="DGR300_2023",VLOOKUP(H22,TettiDGR300!$J$2:$N$74,2,FALSE),IF(AND(G22="DGR1233_2021",J22=1,K22=1),VLOOKUP(H22,TettiDGR1233!$J$2:$N$74,5,FALSE),IF(AND(G22="DGR1233_2021",J22=1),VLOOKUP(H22,TettiDGR1233!$J$2:$N$74,4,FALSE),IF(AND(G22="DGR1233_2021",K22=1),VLOOKUP(H22,TettiDGR1233!$J$2:$N$74,5,FALSE),VLOOKUP(H22,TettiDGR1233!$J$2:$N$74,2,FALSE))))))))) -> 0 | S22: 0 | U22: 8
Q23: =IFERROR(VLOOKUP(H23,TettiDGR300!$J$2:$L82,3,FALSE), "") ->  | R23: =IF(H23="",0,IF(AND(G23="DGR300_2023",J23=1,K23=1),VLOOKUP(H23,TettiDGR300!$J$2:$N$74,5,FALSE),IF(AND(G23="DGR300_2023",J23=1),VLOOKUP(H23,TettiDGR300!$J$2:$N$74,4,FALSE),IF(AND(G23="DGR300_2023",K23=1),VLOOKUP(H23,TettiDGR300!$J$2:$N$74,5,FALSE),IF(G23="DGR300_2023",VLOOKUP(H23,TettiDGR300!$J$2:$N$74,2,FALSE),IF(AND(G23="DGR1233_2021",J23=1,K23=1),VLOOKUP(H23,TettiDGR1233!$J$2:$N$74,5,FALSE),IF(AND(G23="DGR1233_2021",J23=1),VLOOKUP(H23,TettiDGR1233!$J$2:$N$74,4,FALSE),IF(AND(G23="DGR1233_2021",K23=1),VLOOKUP(H23,TettiDGR1233!$J$2:$N$74,5,FALSE),VLOOKUP(H23,TettiDGR1233!$J$2:$N$74,2,FALSE))))))))) -> 0 | S23: 0 | U23: 9
Q24: =IFERROR(VLOOKUP(H24,TettiDGR300!$J$2:$L83,3,FALSE), "") ->  | R24: =IF(H24="",0,IF(AND(G24="DGR300_2023",J24=1,K24=1),VLOOKUP(H24,TettiDGR300!$J$2:$N$74,5,FALSE),IF(AND(G24="DGR300_2023",J24=1),VLOOKUP(H24,TettiDGR300!$J$2:$N$74,4,FALSE),IF(AND(G24="DGR300_2023",K24=1),VLOOKUP(H24,TettiDGR300!$J$2:$N$74,5,FALSE),IF(G24="DGR300_2023",VLOOKUP(H24,TettiDGR300!$J$2:$N$74,2,FALSE),IF(AND(G24="DGR1233_2021",J24=1,K24=1),VLOOKUP(H24,TettiDGR1233!$J$2:$N$74,5,FALSE),IF(AND(G24="DGR1233_2021",J24=1),VLOOKUP(H24,TettiDGR1233!$J$2:$N$74,4,FALSE),IF(AND(G24="DGR1233_2021",K24=1),VLOOKUP(H24,TettiDGR1233!$J$2:$N$74,5,FALSE),VLOOKUP(H24,TettiDGR1233!$J$2:$N$74,2,FALSE))))))))) -> 0 | S24: 0 | U24: 10
Q25: =IFERROR(VLOOKUP(H25,TettiDGR300!$J$2:$L84,3,FALSE), "") ->  | R25: =IF(H25="",0,IF(AND(G25="DGR300_2023",J25=1,K25=1),VLOOKUP(H25,TettiDGR300!$J$2:$N$74,5,FALSE),IF(AND(G25="DGR300_2023",J25=1),VLOOKUP(H25,TettiDGR300!$J$2:$N$74,4,FALSE),IF(AND(G25="DGR300_2023",K25=1),VLOOKUP(H25,TettiDGR300!$J$2:$N$74,5,FALSE),IF(G25="DGR300_2023",VLOOKUP(H25,TettiDGR300!$J$2:$N$74,2,FALSE),IF(AND(G25="DGR1233_2021",J25=1,K25=1),VLOOKUP(H25,TettiDGR1233!$J$2:$N$74,5,FALSE),IF(AND(G25="DGR1233_2021",J25=1),VLOOKUP(H25,TettiDGR1233!$J$2:$N$74,4,FALSE),IF(AND(G25="DGR1233_2021",K25=1),VLOOKUP(H25,TettiDGR1233!$J$2:$N$74,5,FALSE),VLOOKUP(H25,TettiDGR1233!$J$2:$N$74,2,FALSE))))))))) -> 0 | S25: 0 | U25: 11
Q26: =IFERROR(VLOOKUP(H26,TettiDGR300!$J$2:$L85,3,FALSE), "") ->  | R26: =IF(H26="",0,IF(AND(G26="DGR300_2023",J26=1,K26=1),VLOOKUP(H26,TettiDGR300!$J$2:$N$74,5,FALSE),IF(AND(G26="DGR300_2023",J26=1),VLOOKUP(H26,TettiDGR300!$J$2:$N$74,4,FALSE),IF(AND(G26="DGR300_2023",K26=1),VLOOKUP(H26,TettiDGR300!$J$2:$N$74,5,FALSE),IF(G26="DGR300_2023",VLOOKUP(H26,TettiDGR300!$J$2:$N$74,2,FALSE),IF(AND(G26="DGR1233_2021",J26=1,K26=1),VLOOKUP(H26,TettiDGR1233!$J$2:$N$74,5,FALSE),IF(AND(G26="DGR1233_2021",J26=1),VLOOKUP(H26,TettiDGR1233!$J$2:$N$74,4,FALSE),IF(AND(G26="DGR1233_2021",K26=1),VLOOKUP(H26,TettiDGR1233!$J$2:$N$74,5,FALSE),VLOOKUP(H26,TettiDGR1233!$J$2:$N$74,2,FALSE))))))))) -> 0 | S26: 0 | U26: 12
Q27: =IFERROR(VLOOKUP(H27,TettiDGR300!$J$2:$L86,3,FALSE), "") ->  | R27: =IF(H27="",0,IF(AND(G27="DGR300_2023",J27=1,K27=1),VLOOKUP(H27,TettiDGR300!$J$2:$N$74,5,FALSE),IF(AND(G27="DGR300_2023",J27=1),VLOOKUP(H27,TettiDGR300!$J$2:$N$74,4,FALSE),IF(AND(G27="DGR300_2023",K27=1),VLOOKUP(H27,TettiDGR300!$J$2:$N$74,5,FALSE),IF(G27="DGR300_2023",VLOOKUP(H27,TettiDGR300!$J$2:$N$74,2,FALSE),IF(AND(G27="DGR1233_2021",J27=1,K27=1),VLOOKUP(H27,TettiDGR1233!$J$2:$N$74,5,FALSE),IF(AND(G27="DGR1233_2021",J27=1),VLOOKUP(H27,TettiDGR1233!$J$2:$N$74,4,FALSE),IF(AND(G27="DGR1233_2021",K27=1),VLOOKUP(H27,TettiDGR1233!$J$2:$N$74,5,FALSE),VLOOKUP(H27,TettiDGR1233!$J$2:$N$74,2,FALSE))))))))) -> 0 | S27: 0 | U27: 13
Q28: =IFERROR(VLOOKUP(H28,TettiDGR300!$J$2:$L87,3,FALSE), "") ->  | R28: =IF(H28="",0,IF(AND(G28="DGR300_2023",J28=1,K28=1),VLOOKUP(H28,TettiDGR300!$J$2:$N$74,5,FALSE),IF(AND(G28="DGR300_2023",J28=1),VLOOKUP(H28,TettiDGR300!$J$2:$N$74,4,FALSE),IF(AND(G28="DGR300_2023",K28=1),VLOOKUP(H28,TettiDGR300!$J$2:$N$74,5,FALSE),IF(G28="DGR300_2023",VLOOKUP(H28,TettiDGR300!$J$2:$N$74,2,FALSE),IF(AND(G28="DGR1233_2021",J28=1,K28=1),VLOOKUP(H28,TettiDGR1233!$J$2:$N$74,5,FALSE),IF(AND(G28="DGR1233_2021",J28=1),VLOOKUP(H28,TettiDGR1233!$J$2:$N$74,4,FALSE),IF(AND(G28="DGR1233_2021",K28=1),VLOOKUP(H28,TettiDGR1233!$J$2:$N$74,5,FALSE),VLOOKUP(H28,TettiDGR1233!$J$2:$N$74,2,FALSE))))))))) -> 0 | S28: 0 | U28: 14
Q29: =IFERROR(VLOOKUP(H29,TettiDGR300!$J$2:$L88,3,FALSE), "") ->  | R29: =IF(H29="",0,IF(AND(G29="DGR300_2023",J29=1,K29=1),VLOOKUP(H29,TettiDGR300!$J$2:$N$74,5,FALSE),IF(AND(G29="DGR300_2023",J29=1),VLOOKUP(H29,TettiDGR300!$J$2:$N$74,4,FALSE),IF(AND(G29="DGR300_2023",K29=1),VLOOKUP(H29,TettiDGR300!$J$2:$N$74,5,FALSE),IF(G29="DGR300_2023",VLOOKUP(H29,TettiDGR300!$J$2:$N$74,2,FALSE),IF(AND(G29="DGR1233_2021",J29=1,K29=1),VLOOKUP(H29,TettiDGR1233!$J$2:$N$74,5,FALSE),IF(AND(G29="DGR1233_2021",J29=1),VLOOKUP(H29,TettiDGR1233!$J$2:$N$74,4,FALSE),IF(AND(G29="DGR1233_2021",K29=1),VLOOKUP(H29,TettiDGR1233!$J$2:$N$74,5,FALSE),VLOOKUP(H29,TettiDGR1233!$J$2:$N$74,2,FALSE))))))))) -> 0 | S29: 0 | U29: 15
A30: DATI RIEPILOGATIVI PER LE INFRASTRUTTURE DI RIFORNIMENTO/RICARICA Azienda beneficiaria | B30: Id intervento (inserire il codice indentif. già inserito nella scheda dedicata) | C30: Nuova realizzazione (0) - Ristrutturazione e/o ampliamento (1) | D30: Comune | E30: Località | F30: Investimento già parzialmente finanziato da altra misura pubblica | H30: Tipologia intervento | I30: N. colonnine ricarica bus per sito | J30: Utilizzo infrastruttura da più operatori (1=si;0=no) | K30: Intervento allocato su più annualità (1=si;0=no) | L30: Importo complessivo dell'intervento [€] | M30: CIG e note particolari | N30: DATA STIPULA CONTRATTO | O30: Investimento sul cratere sisma 2016 (1=si;0=no) | P30: intervento liquidato (1=si;0=no) | Q30: Alimentaz. | R30: Costo allocato sull'anno in esame [€] | S30: Quota contributo sull'anno [€] | U30: Indicare il cronoprogramma delle attività per ogni intervento secondo le tre tipologie in legenda
B31: =IF(OR($B$4="DM 223/2020 - MIT",$B$4="FSC (D.Cipe 98/2017)"),"XXXX","") ->  | L31: =IF(OR($B$4="DM 223/2020 - MIT",$B$4="FSC (D.Cipe 98/2017)"),"XXXX","") ->  | M31: =IF(OR($B$4="DM 223/2020 - MIT",$B$4="FSC (D.Cipe 98/2017)"),"Il fondo prescelto non ammette infrastrutture","") ->  | Q31: =IFERROR(VLOOKUP(H31,Infrastrutture!$A$2:$B$9,2,FALSE), "") ->  | S31: =IF(L31<R31,"ERRORE",R31*PERCCONTRIB) -> 0 | U31: 20
M32: =IF(OR($B$4="DM 223/2020 - MIT",$B$4="FSC (D.Cipe 98/2017)"),"Il fondo prescelto non ammette infrastrutture","") ->  | Q32: =IFERROR(VLOOKUP(H32,Infrastrutture!$A$2:$B$9,2,FALSE), "") ->  | S32: 0 | U32: 21
Q33: =IFERROR(VLOOKUP(H33,Infrastrutture!$A$2:$B$9,2,FALSE), "") ->  | S33: 0 | U33: 22
Q34: =IFERROR(VLOOKUP(H34,Infrastrutture!$A$2:$B$9,2,FALSE), "") ->  | S34: 0 | U34: 23
Q35: =IFERROR(VLOOKUP(H35,Infrastrutture!$A$2:$B$9,2,FALSE), "") ->  | S35: 0 | U35: 24
Q36: =IFERROR(VLOOKUP(H36,Infrastrutture!$A$2:$B$9,2,FALSE), "") ->  | S36: 0 | U36: 25
Q37: =IFERROR(VLOOKUP(H37,Infrastrutture!$A$2:$B$9,2,FALSE), "") ->  | S37: 0 | U37: 26
Q38: =IFERROR(VLOOKUP(H38,Infrastrutture!$A$2:$B$9,2,FALSE), "") ->  | S38: 0 | U38: 27
Q39: =IFERROR(VLOOKUP(H39,Infrastrutture!$A$2:$B$9,2,FALSE), "") ->  | S39: 0 | U39: 28
Q40: =IFERROR(VLOOKUP(H40,Infrastrutture!$A$2:$B$9,2,FALSE), "") ->  | S40: 0 | U40: 29
A41: TOTALI AUTOBUS | B41: =SUM(B15:B29) -> 0 | C41: =SUM(C15:C29) -> 0 | O41: =+SUM(O15:O29) -> 0 | R41: =SUM(R15:R29) -> 0 | S41: =SUM(S15:S29) -> 0
A42: TOTALI INFRASTRUTTURE | O42: =+SUM(O31:O40) -> 0 | R42: =+SUM(R31:R40) -> 0 | S42: =+SUM(S31:S40) -> 0
A43: TOTALI GENERALE | R43: =+R41+R42 -> 0 | S43: =+S41+S42 -> 0

Sheet DM 81_2025
A1: Piano investimenti di bacino - D.G.R. 647 del 30 maggio 2022 - REGIONE MARCHE - Assessorato trasporti e reti regionali di trasporto. | U1: CRONOPROGRAMMA DEGLI INVESTIMENTI
A3: Ambito territoriale | B3: FM | F3: celle a fondo bianco da compilare obbligatoriamente direttamente o con menu a tendina | I3: Data compilazione | V3: Legenda:
A4: Fonte di finanziamento | B4: DM 81/2020 - PSNMS | F4: celle a fondo arancio compilate automaticamente | I4: Referente compilaz. | V4: 1 | W4: Espletamento gara
A5: Annualità | B5: 2025 | F5: Valori economici al netto dell'IVA | I5: Telefono di contatto | V5: 2 | W5: Stipula contratto
A6: K2 | B6: =B4&"_"&B5&"_"&B3 -> DM 81/2020 - PSNMS_2025_FM
A7: Contributo max assegnabile | B7: =VLOOKUP($B$6,'Assegnazione fondi'!$D$2:$G$208,3,FALSE) -> 593623.6563 | D7: Contributo tot. assegnato | F7: =+S43 -> 0 | I7: e-mail | V7: 3 | W7: Completamento fornitura
A8: % contribuzione sul costo d'acquisto | B8: =VLOOKUP($B$6,'Assegnazione fondi'!$D$2:$G$201,4,FALSE) -> 0.8 | D8: N. mezzi tot. da acquisire | F8: =B41+C41 -> 0
A9: Residuo annualità precedenti | B9: ='DM 81_2024'!F10 -> 593623.6563 | D9: Residuo 2019-2023 non utilizzabile | F9: ='DM 81_2023'!F10 -> 2770243.692
A10: =+IF(B4="DM 81/2020 - PSNMS", "Importo da utilizzare per infrastrutture (di cui del contributo max)","Contributo max assegnabile per ventuali infrastrutture (di cui del contributo max)") -> Importo da utilizzare per infrastrutture (di cui del contributo max) | B10: =VLOOKUP($B$6,'Assegnazione fondi'!$D$2:$G$208,2,FALSE) -> 0 | D10: Residuo sull'anno | F10: =+TOTIMP-F7+B9 -> 1187247.313
A12: DATI RIEPILOGATIVI SUGLI AUTOBUS DA ACQUISIRE | B12: Per complet. organico n. | C12: Per rinnovo parco n. | D12: Compilare un foglio per ogni fondo di finanziamento, per ogni annualità | U12: Indicare il cronoprogramma delle attività per ogni mezzo secondo le tre tipologie in legenda
B13: =B41 -> 0 | C13: =C41 -> 0 | U13: Anno | V13: 2018 | AH13: 2019 | AT13: 2020 | BF13: 2021 | BR13: 2022 | CD13: 2023 | CP13: 2024 | DB13: 2025 | DN13: 2026
A14: Azienda beneficiaria | B14: Completamento organico (1=si;0=no) | C14: Sostituzione mezzo (1=si;0=no) | D14: Targa mezzo da sostituire | E14: Impiego (URBANO / EXTRAURBANO) | F14: Data prima immatricolazione mezzo sostituito | G14: DGR tetti di spesa | H14: Tipologia nuovo mezzo (selezionare dall'elenco) | I14: Rastrelliera per biciclette (1=si;0=no) | J14: Metano LNG (1=si;0=no) | K14: Mezzo Myld hybrid (1=si;0=no) | L14: Costo preventivato unitario [€] | M14: CIG e note particolari | N14: DATA STIPULA CONTRATTO | O14: Investimento sul cratere sisma 2016 (1=si;0=no) | P14: intervento liquidato (1=si;0=no) | Q14: Alimentaz. | R14: Spesa max ammissibile unitaria | S14: Contributo unitario | U14: Id / Mese | V14: 1 | W14: 2 | X14: 3 | Y14: 4 | Z14: 5 | AA14: 6 | AB14: 7 | AC14: 8 | AD14: 9 | AE14: 10 | AF14: 11 | AG14: 12 | AH14: 1 | AI14: 2 | AJ14: 3 | AK14: 4 | AL14: 5 | AM14: 6 | AN14: 7 | AO14: 8 | AP14: 9 | AQ14: 10 | AR14: 11 | AS14: 12 | AT14: 1 | AU14: 2 | AV14: 3 | AW14: 4 | AX14: 5 | AY14: 6 | AZ14: 7 | BA14: 8 | BB14: 9 | BC14: 10 | BD14: 11 | BE14: 12 | BF14: 1 | BG14: 2 | BH14: 3 | BI14: 4 | BJ14: 5 | BK14: 6 | BL14: 7 | BM14: 8 | BN14: 9 | BO14: 10 | BP14: 11 | BQ14: 12 | BR14: 1 | BS14: 2 | BT14: 3 | BU14: 4 | BV14: 5 | BW14: 6 | BX14: 7 | BY14: 8 | BZ14: 9 | CA14: 10 | CB14: 11 | CC14: 12 | CD14: 1 | CE14: 2 | CF14: 3 | CG14: 4 | CH14: 5 | CI14: 6 | CJ14: 7 | CK14: 8 | CL14: 9 | CM14: 10 | CN14: 11 | CO14: 12 | CP14: 1 | CQ14: 2 | CR14: 3 | CS14: 4 | CT14: 5 | CU14: 6 | CV14: 7 | CW14: 8 | CX14: 9 | CY14: 10 | CZ14: 11 | DA14: 12 | DB14: 1 | DC14: 2 | DD14: 3 | DE14: 4 | DF14: 5 | DG14: 6 | DH14: 7 | DI14: 8 | DJ14: 9 | DK14: 10 | DL14: 11 | DM14: 12 | DN14: 1 | DO14: 2 | DP14: 3 | DQ14: 4 | DR14: 5 | DS14: 6 | DT14: 7 | DU14: 8 | DV14: 9 | DW14: 10 | DX14: 11 | DY14: 12
M15: =IF(L15<>0,"COMPILARE","") ->  | Q15: =IFERROR(VLOOKUP(H15,TettiDGR300!$J$2:$L74,3,FALSE), "") ->  | R15: =IF(H15="",0,IF(AND(G15="DGR300_2023",J15=1,K15=1),VLOOKUP(H15,TettiDGR300!$J$2:$N$74,5,FALSE),IF(AND(G15="DGR300_2023",J15=1),VLOOKUP(H15,TettiDGR300!$J$2:$N$74,4,FALSE),IF(AND(G15="DGR300_2023",K15=1),VLOOKUP(H15,TettiDGR300!$J$2:$N$74,5,FALSE),IF(G15="DGR300_2023",VLOOKUP(H15,TettiDGR300!$J$2:$N$74,2,FALSE),IF(AND(G15="DGR1233_2021",J15=1,K15=1),VLOOKUP(H15,TettiDGR1233!$J$2:$N$74,5,FALSE),IF(AND(G15="DGR1233_2021",J15=1),VLOOKUP(H15,TettiDGR1233!$J$2:$N$74,4,FALSE),IF(AND(G15="DGR1233_2021",K15=1),VLOOKUP(H15,TettiDGR1233!$J$2:$N$74,5,FALSE),VLOOKUP(H15,TettiDGR1233!$J$2:$N$74,2,FALSE))))))))) -> 0 | S15: =IF(L15<R15,L15*PERCCONTRIB,R15*PERCCONTRIB) -> 0 | U15: 1
Q16: =IFERROR(VLOOKUP(H16,TettiDGR300!$J$2:$L75,3,FALSE), "") ->  | R16: =IF(H16="",0,IF(AND(G16="DGR300_2023",J16=1,K16=1),VLOOKUP(H16,TettiDGR300!$J$2:$N$74,5,FALSE),IF(AND(G16="DGR300_2023",J16=1),VLOOKUP(H16,TettiDGR300!$J$2:$N$74,4,FALSE),IF(AND(G16="DGR300_2023",K16=1),VLOOKUP(H16,TettiDGR300!$J$2:$N$74,5,FALSE),IF(G16="DGR300_2023",VLOOKUP(H16,TettiDGR300!$J$2:$N$74,2,FALSE),IF(AND(G16="DGR1233_2021",J16=1,K16=1),VLOOKUP(H16,TettiDGR1233!$J$2:$N$74,5,FALSE),IF(AND(G16="DGR1233_2021",J16=1),VLOOKUP(H16,TettiDGR1233!$J$2:$N$74,4,FALSE),IF(AND(G16="DGR1233_2021",K16=1),VLOOKUP(H16,TettiDGR1233!$J$2:$N$74,5,FALSE),VLOOKUP(H16,TettiDGR1233!$J$2:$N$74,2,FALSE))))))))) -> 0 | S16: 0 | U16: 2
Q17: =IFERROR(VLOOKUP(H17,TettiDGR300!$J$2:$L76,3,FALSE), "") ->  | R17: =IF(H17="",0,IF(AND(G17="DGR300_2023",J17=1,K17=1),VLOOKUP(H17,TettiDGR300!$J$2:$N$74,5,FALSE),IF(AND(G17="DGR300_2023",J17=1),VLOOKUP(H17,TettiDGR300!$J$2:$N$74,4,FALSE),IF(AND(G17="DGR300_2023",K17=1),VLOOKUP(H17,TettiDGR300!$J$2:$N$74,5,FALSE),IF(G17="DGR300_2023",VLOOKUP(H17,TettiDGR300!$J$2:$N$74,2,FALSE),IF(AND(G17="DGR1233_2021",J17=1,K17=1),VLOOKUP(H17,TettiDGR1233!$J$2:$N$74,5,FALSE),IF(AND(G17="DGR1233_2021",J17=1),VLOOKUP(H17,TettiDGR1233!$J$2:$N$74,4,FALSE),IF(AND(G17="DGR1233_2021",K17=1),VLOOKUP(H17,TettiDGR1233!$J$2:$N$74,5,FALSE),VLOOKUP(H17,TettiDGR1233!$J$2:$N$74,2,FALSE))))))))) -> 0 | S17: 0 | U17: 3
Q18: =IFERROR(VLOOKUP(H18,TettiDGR300!$J$2:$L77,3,FALSE), "") ->  | R18: =IF(H18="",0,IF(AND(G18="DGR300_2023",J18=1,K18=1),VLOOKUP(H18,TettiDGR300!$J$2:$N$74,5,FALSE),IF(AND(G18="DGR300_2023",J18=1),VLOOKUP(H18,TettiDGR300!$J$2:$N$74,4,FALSE),IF(AND(G18="DGR300_2023",K18=1),VLOOKUP(H18,TettiDGR300!$J$2:$N$74,5,FALSE),IF(G18="DGR300_2023",VLOOKUP(H18,TettiDGR300!$J$2:$N$74,2,FALSE),IF(AND(G18="DGR1233_2021",J18=1,K18=1),VLOOKUP(H18,TettiDGR1233!$J$2:$N$74,5,FALSE),IF(AND(G18="DGR1233_2021",J18=1),VLOOKUP(H18,TettiDGR1233!$J$2:$N$74,4,FALSE),IF(AND(G18="DGR1233_2021",K18=1),VLOOKUP(H18,TettiDGR1233!$J$2:$N$74,5,FALSE),VLOOKUP(H18,TettiDGR1233!$J$2:$N$74,2,FALSE))))))))) -> 0 | S18: 0 | U18: 4
Q19: =IFERROR(VLOOKUP(H19,TettiDGR300!$J$2:$L78,3,FALSE), "") ->  | R19: =IF(H19="",0,IF(AND(G19="DGR300_2023",J19=1,K19=1),VLOOKUP(H19,TettiDGR300!$J$2:$N$74,5,FALSE),IF(AND(G19="DGR300_2023",J19=1),VLOOKUP(H19,TettiDGR300!$J$2:$N$74,4,FALSE),IF(AND(G19="DGR300_2023",K19=1),VLOOKUP(H19,TettiDGR300!$J$2:$N$74,5,FALSE),IF(G19="DGR300_2023",VLOOKUP(H19,TettiDGR300!$J$2:$N$74,2,FALSE),IF(AND(G19="DGR1233_2021",J19=1,K19=1),VLOOKUP(H19,TettiDGR1233!$J$2:$N$74,5,FALSE),IF(AND(G19="DGR1233_2021",J19=1),VLOOKUP(H19,TettiDGR1233!$J$2:$N$74,4,FALSE),IF(AND(G19="DGR1233_2021",K19=1),VLOOKUP(H19,TettiDGR1233!$J$2:$N$74,5,FALSE),VLOOKUP(H19,TettiDGR1233!$J$2:$N$74,2,FALSE))))))))) -> 0 | S19: 0 | U19: 5
Q20: =IFERROR(VLOOKUP(H20,TettiDGR300!$J$2:$L79,3,FALSE), "") ->  | R20: =IF(H20="",0,IF(AND(G20="DGR300_2023",J20=1,K20=1),VLOOKUP(H20,TettiDGR300!$J$2:$N$74,5,FALSE),IF(AND(G20="DGR300_2023",J20=1),VLOOKUP(H20,TettiDGR300!$J$2:$N$74,4,FALSE),IF(AND(G20="DGR300_2023",K20=1),VLOOKUP(H20,TettiDGR300!$J$2:$N$74,5,FALSE),IF(G20="DGR300_2023",VLOOKUP(H20,TettiDGR300!$J$2:$N$74,2,FALSE),IF(AND(G20="DGR1233_2021",J20=1,K20=1),VLOOKUP(H20,TettiDGR1233!$J$2:$N$74,5,FALSE),IF(AND(G20="DGR1233_2021",J20=1),VLOOKUP(H20,TettiDGR1233!$J$2:$N$74,4,FALSE),IF(AND(G20="DGR1233_2021",K20=1),VLOOKUP(H20,TettiDGR1233!$J$2:$N$74,5,FALSE),VLOOKUP(H20,TettiDGR1233!$J$2:$N$74,2,FALSE))))))))) -> 0 | S20: 0 | U20: 6
Q21: =IFERROR(VLOOKUP(H21,TettiDGR300!$J$2:$L80,3,FALSE), "") ->  | R21: =IF(H21="",0,IF(AND(G21="DGR300_2023",J21=1,K21=1),VLOOKUP(H21,TettiDGR300!$J$2:$N$74,5,FALSE),IF(AND(G21="DGR300_2023",J21=1),VLOOKUP(H21,TettiDGR300!$J$2:$N$74,4,FALSE),IF(AND(G21="DGR300_2023",K21=1),VLOOKUP(H21,TettiDGR300!$J$2:$N$74,5,FALSE),IF(G21="DGR300_2023",VLOOKUP(H21,TettiDGR300!$J$2:$N$74,2,FALSE),IF(AND(G21="DGR1233_2021",J21=1,K21=1),VLOOKUP(H21,TettiDGR1233!$J$2:$N$74,5,FALSE),IF(AND(G21="DGR1233_2021",J21=1),VLOOKUP(H21,TettiDGR1233!$J$2:$N$74,4,FALSE),IF(AND(G21="DGR1233_2021",K21=1),VLOOKUP(H21,TettiDGR1233!$J$2:$N$74,5,FALSE),VLOOKUP(H21,TettiDGR1233!$J$2:$N$74,2,FALSE))))))))) -> 0 | S21: 0 | U21: 7
Q22: =IFERROR(VLOOKUP(H22,TettiDGR300!$J$2:$L81,3,FALSE), "") ->  | R22: =IF(H22="",0,IF(AND(G22="DGR300_2023",J22=1,K22=1),VLOOKUP(H22,TettiDGR300!$J$2:$N$74,5,FALSE),IF(AND(G22="DGR300_2023",J22=1),VLOOKUP(H22,TettiDGR300!$J$2:$N$74,4,FALSE),IF(AND(G22="DGR300_2023",K22=1),VLOOKUP(H22,TettiDGR300!$J$2:$N$74,5,FALSE),IF(G22="DGR300_2023",VLOOKUP(H22,TettiDGR300!$J$2:$N$74,2,FALSE),IF(AND(G22="DGR1233_2021",J22=1,K22=1),VLOOKUP(H22,TettiDGR1233!$J$2:$N$74,5,FALSE),IF(AND(G22="DGR1233_2021",J22=1),VLOOKUP(H22,TettiDGR1233!$J$2:$N$74,4,FALSE),IF(AND(G22="DGR1233_2021",K22=1),VLOOKUP(H22,TettiDGR1233!$J$2:$N$74,5,FALSE),VLOOKUP(H22,TettiDGR1233!$J$2:$N$74,2,FALSE))))))))) -> 0 | S22: 0 | U22: 8
Q23: =IFERROR(VLOOKUP(H23,TettiDGR300!$J$2:$L82,3,FALSE), "") ->  | R23: =IF(H23="",0,IF(AND(G23="DGR300_2023",J23=1,K23=1),VLOOKUP(H23,TettiDGR300!$J$2:$N$74,5,FALSE),IF(AND(G23="DGR300_2023",J23=1),VLOOKUP(H23,TettiDGR300!$J$2:$N$74,4,FALSE),IF(AND(G23="DGR300_2023",K23=1),VLOOKUP(H23,TettiDGR300!$J$2:$N$74,5,FALSE),IF(G23="DGR300_2023",VLOOKUP(H23,TettiDGR300!$J$2:$N$74,2,FALSE),IF(AND(G23="DGR1233_2021",J23=1,K23=1),VLOOKUP(H23,TettiDGR1233!$J$2:$N$74,5,FALSE),IF(AND(G23="DGR1233_2021",J23=1),VLOOKUP(H23,TettiDGR1233!$J$2:$N$74,4,FALSE),IF(AND(G23="DGR1233_2021",K23=1),VLOOKUP(H23,TettiDGR1233!$J$2:$N$74,5,FALSE),VLOOKUP(H23,TettiDGR1233!$J$2:$N$74,2,FALSE))))))))) -> 0 | S23: 0 | U23: 9
Q24: =IFERROR(VLOOKUP(H24,TettiDGR300!$J$2:$L83,3,FALSE), "") ->  | R24: =IF(H24="",0,IF(AND(G24="DGR300_2023",J24=1,K24=1),VLOOKUP(H24,TettiDGR300!$J$2:$N$74,5,FALSE),IF(AND(G24="DGR300_2023",J24=1),VLOOKUP(H24,TettiDGR300!$J$2:$N$74,4,FALSE),IF(AND(G24="DGR300_2023",K24=1),VLOOKUP(H24,TettiDGR300!$J$2:$N$74,5,FALSE),IF(G24="DGR300_2023",VLOOKUP(H24,TettiDGR300!$J$2:$N$74,2,FALSE),IF(AND(G24="DGR1233_2021",J24=1,K24=1),VLOOKUP(H24,TettiDGR1233!$J$2:$N$74,5,FALSE),IF(AND(G24="DGR1233_2021",J24=1),VLOOKUP(H24,TettiDGR1233!$J$2:$N$74,4,FALSE),IF(AND(G24="DGR1233_2021",K24=1),VLOOKUP(H24,TettiDGR1233!$J$2:$N$74,5,FALSE),VLOOKUP(H24,TettiDGR1233!$J$2:$N$74,2,FALSE))))))))) -> 0 | S24: 0 | U24: 10
Q25: =IFERROR(VLOOKUP(H25,TettiDGR300!$J$2:$L84,3,FALSE), "") ->  | R25: =IF(H25="",0,IF(AND(G25="DGR300_2023",J25=1,K25=1),VLOOKUP(H25,TettiDGR300!$J$2:$N$74,5,FALSE),IF(AND(G25="DGR300_2023",J25=1),VLOOKUP(H25,TettiDGR300!$J$2:$N$74,4,FALSE),IF(AND(G25="DGR300_2023",K25=1),VLOOKUP(H25,TettiDGR300!$J$2:$N$74,5,FALSE),IF(G25="DGR300_2023",VLOOKUP(H25,TettiDGR300!$J$2:$N$74,2,FALSE),IF(AND(G25="DGR1233_2021",J25=1,K25=1),VLOOKUP(H25,TettiDGR1233!$J$2:$N$74,5,FALSE),IF(AND(G25="DGR1233_2021",J25=1),VLOOKUP(H25,TettiDGR1233!$J$2:$N$74,4,FALSE),IF(AND(G25="DGR1233_2021",K25=1),VLOOKUP(H25,TettiDGR1233!$J$2:$N$74,5,FALSE),VLOOKUP(H25,TettiDGR1233!$J$2:$N$74,2,FALSE))))))))) -> 0 | S25: 0 | U25: 11
Q26: =IFERROR(VLOOKUP(H26,TettiDGR300!$J$2:$L85,3,FALSE), "") ->  | R26: =IF(H26="",0,IF(AND(G26="DGR300_2023",J26=1,K26=1),VLOOKUP(H26,TettiDGR300!$J$2:$N$74,5,FALSE),IF(AND(G26="DGR300_2023",J26=1),VLOOKUP(H26,TettiDGR300!$J$2:$N$74,4,FALSE),IF(AND(G26="DGR300_2023",K26=1),VLOOKUP(H26,TettiDGR300!$J$2:$N$74,5,FALSE),IF(G26="DGR300_2023",VLOOKUP(H26,TettiDGR300!$J$2:$N$74,2,FALSE),IF(AND(G26="DGR1233_2021",J26=1,K26=1),VLOOKUP(H26,TettiDGR1233!$J$2:$N$74,5,FALSE),IF(AND(G26="DGR1233_2021",J26=1),VLOOKUP(H26,TettiDGR1233!$J$2:$N$74,4,FALSE),IF(AND(G26="DGR1233_2021",K26=1),VLOOKUP(H26,TettiDGR1233!$J$2:$N$74,5,FALSE),VLOOKUP(H26,TettiDGR1233!$J$2:$N$74,2,FALSE))))))))) -> 0 | S26: 0 | U26: 12
Q27: =IFERROR(VLOOKUP(H27,TettiDGR300!$J$2:$L86,3,FALSE), "") ->  | R27: =IF(H27="",0,IF(AND(G27="DGR300_2023",J27=1,K27=1),VLOOKUP(H27,TettiDGR300!$J$2:$N$74,5,FALSE),IF(AND(G27="DGR300_2023",J27=1),VLOOKUP(H27,TettiDGR300!$J$2:$N$74,4,FALSE),IF(AND(G27="DGR300_2023",K27=1),VLOOKUP(H27,TettiDGR300!$J$2:$N$74,5,FALSE),IF(G27="DGR300_2023",VLOOKUP(H27,TettiDGR300!$J$2:$N$74,2,FALSE),IF(AND(G27="DGR1233_2021",J27=1,K27=1),VLOOKUP(H27,TettiDGR1233!$J$2:$N$74,5,FALSE),IF(AND(G27="DGR1233_2021",J27=1),VLOOKUP(H27,TettiDGR1233!$J$2:$N$74,4,FALSE),IF(AND(G27="DGR1233_2021",K27=1),VLOOKUP(H27,TettiDGR1233!$J$2:$N$74,5,FALSE),VLOOKUP(H27,TettiDGR1233!$J$2:$N$74,2,FALSE))))))))) -> 0 | S27: 0 | U27: 13
Q28: =IFERROR(VLOOKUP(H28,TettiDGR300!$J$2:$L87,3,FALSE), "") ->  | R28: =IF(H28="",0,IF(AND(G28="DGR300_2023",J28=1,K28=1),VLOOKUP(H28,TettiDGR300!$J$2:$N$74,5,FALSE),IF(AND(G28="DGR300_2023",J28=1),VLOOKUP(H28,TettiDGR300!$J$2:$N$74,4,FALSE),IF(AND(G28="DGR300_2023",K28=1),VLOOKUP(H28,TettiDGR300!$J$2:$N$74,5,FALSE),IF(G28="DGR300_2023",VLOOKUP(H28,TettiDGR300!$J$2:$N$74,2,FALSE),IF(AND(G28="DGR1233_2021",J28=1,K28=1),VLOOKUP(H28,TettiDGR1233!$J$2:$N$74,5,FALSE),IF(AND(G28="DGR1233_2021",J28=1),VLOOKUP(H28,TettiDGR1233!$J$2:$N$74,4,FALSE),IF(AND(G28="DGR1233_2021",K28=1),VLOOKUP(H28,TettiDGR1233!$J$2:$N$74,5,FALSE),VLOOKUP(H28,TettiDGR1233!$J$2:$N$74,2,FALSE))))))))) -> 0 | S28: 0 | U28: 14
Q29: =IFERROR(VLOOKUP(H29,TettiDGR300!$J$2:$L88,3,FALSE), "") ->  | R29: =IF(H29="",0,IF(AND(G29="DGR300_2023",J29=1,K29=1),VLOOKUP(H29,TettiDGR300!$J$2:$N$74,5,FALSE),IF(AND(G29="DGR300_2023",J29=1),VLOOKUP(H29,TettiDGR300!$J$2:$N$74,4,FALSE),IF(AND(G29="DGR300_2023",K29=1),VLOOKUP(H29,TettiDGR300!$J$2:$N$74,5,FALSE),IF(G29="DGR300_2023",VLOOKUP(H29,TettiDGR300!$J$2:$N$74,2,FALSE),IF(AND(G29="DGR1233_2021",J29=1,K29=1),VLOOKUP(H29,TettiDGR1233!$J$2:$N$74,5,FALSE),IF(AND(G29="DGR1233_2021",J29=1),VLOOKUP(H29,TettiDGR1233!$J$2:$N$74,4,FALSE),IF(AND(G29="DGR1233_2021",K29=1),VLOOKUP(H29,TettiDGR1233!$J$2:$N$74,5,FALSE),VLOOKUP(H29,TettiDGR1233!$J$2:$N$74,2,FALSE))))))))) -> 0 | S29: 0 | U29: 15
A30: DATI RIEPILOGATIVI PER LE INFRASTRUTTURE DI RIFORNIMENTO/RICARICA Azienda beneficiaria | B30: Id intervento (inserire il codice indentif. già inserito nella scheda dedicata) | C30: Nuova realizzazione (0) - Ristrutturazione e/o ampliamento (1) | D30: Comune | E30: Località | F30: Investimento già parzialmente finanziato da altra misura pubblica | H30: Tipologia intervento | I30: N. colonnine ricarica bus per sito | J30: Utilizzo infrastruttura da più operatori (1=si;0=no) | K30: Intervento allocato su più annualità (1=si;0=no) | L30: Importo complessivo dell'intervento [€] | M30: CIG e note particolari | N30: DATA STIPULA CONTRATTO | O30: Investimento sul cratere sisma 2016 (1=si;0=no) | P30: intervento liquidato (1=si;0=no) | Q30: Alimentaz. | R30: Costo allocato sull'anno in esame [€] | S30: Quota contributo sull'anno [€] | U30: Indicare il cronoprogramma delle attività per ogni intervento secondo le tre tipologie in legenda
B31: =IF(OR($B$4="DM 223/2020 - MIT",$B$4="FSC (D.Cipe 98/2017)"),"XXXX","") ->  | L31: =IF(OR($B$4="DM 223/2020 - MIT",$B$4="FSC (D.Cipe 98/2017)"),"XXXX","") ->  | M31: =IF(OR($B$4="DM 223/2020 - MIT",$B$4="FSC (D.Cipe 98/2017)"),"Il fondo prescelto non ammette infrastrutture","") ->  | Q31: =IFERROR(VLOOKUP(H31,Infrastrutture!$A$2:$B$9,2,FALSE), "") ->  | S31: =IF(L31<R31,"ERRORE",R31*PERCCONTRIB) -> 0 | U31: 20
M32: =IF(OR($B$4="DM 223/2020 - MIT",$B$4="FSC (D.Cipe 98/2017)"),"Il fondo prescelto non ammette infrastrutture","") ->  | Q32: =IFERROR(VLOOKUP(H32,Infrastrutture!$A$2:$B$9,2,FALSE), "") ->  | S32: 0 | U32: 21
Q33: =IFERROR(VLOOKUP(H33,Infrastrutture!$A$2:$B$9,2,FALSE), "") ->  | S33: 0 | U33: 22
Q34: =IFERROR(VLOOKUP(H34,Infrastrutture!$A$2:$B$9,2,FALSE), "") ->  | S34: 0 | U34: 23
Q35: =IFERROR(VLOOKUP(H35,Infrastrutture!$A$2:$B$9,2,FALSE), "") ->  | S35: 0 | U35: 24
Q36: =IFERROR(VLOOKUP(H36,Infrastrutture!$A$2:$B$9,2,FALSE), "") ->  | S36: 0 | U36: 25
Q37: =IFERROR(VLOOKUP(H37,Infrastrutture!$A$2:$B$9,2,FALSE), "") ->  | S37: 0 | U37: 26
Q38: =IFERROR(VLOOKUP(H38,Infrastrutture!$A$2:$B$9,2,FALSE), "") ->  | S38: 0 | U38: 27
Q39: =IFERROR(VLOOKUP(H39,Infrastrutture!$A$2:$B$9,2,FALSE), "") ->  | S39: 0 | U39: 28
Q40: =IFERROR(VLOOKUP(H40,Infrastrutture!$A$2:$B$9,2,FALSE), "") ->  | S40: 0 | U40: 29
A41: TOTALI AUTOBUS | B41: =SUM(B15:B29) -> 0 | C41: =SUM(C15:C29) -> 0 | O41: =+SUM(O15:O29) -> 0 | R41: =SUM(R15:R29) -> 0 | S41: =SUM(S15:S29) -> 0
A42: TOTALI INFRASTRUTTURE | O42: =+SUM(O31:O40) -> 0 | R42: =+SUM(R31:R40) -> 0 | S42: =+SUM(S31:S40) -> 0
A43: TOTALI GENERALE | R43: =+R41+R42 -> 0 | S43: =+S41+S42 -> 0

Sheet DM 315_2022
A1: Piano investimenti di bacino - D.G.R. 647 del 30 maggio 2022 - REGIONE MARCHE - Assessorato trasporti e reti regionali di trasporto. | U1: CRONOPROGRAMMA DEGLI INVESTIMENTI
A3: Ambito territoriale | B3: FM | F3: celle a fondo bianco da compilare obbligatoriamente direttamente o con menu a tendina | I3: Data compilazione | V3: Legenda:
A4: Fonte di finanziamento | B4: DM 315/2021 - fondo compl. PNRR | F4: celle a fondo arancio compilate automaticamente | I4: Referente compilaz. | V4: 1 | W4: Espletamento gara
A5: Annualità | B5: 2022 | F5: Valori economici al netto dell'IVA | I5: Telefono di contatto | V5: 2 | W5: Stipula contratto
A6: K2 | B6: =B4&"_"&B5&"_"&B3 -> DM 315/2021 - fondo compl. PNRR_2022_FM
A7: Contributo max assegnabile | B7: =VLOOKUP($B$6,'Assegnazione fondi'!$D$2:$G$208,3,FALSE) -> 159560.4565 | D7: Contributo tot. assegnato | F7: =+S43 -> 0 | I7: e-mail | V7: 3 | W7: Completamento fornitura
A8: % contribuzione sul costo d'acquisto | B8: =VLOOKUP($B$6,'Assegnazione fondi'!$D$2:$G$201,4,FALSE) -> 0.8 | D8: N. mezzi tot. da acquisire | F8: =B41+C41 -> 0
A9: Residuo annualità precedenti | B9: 0
A10: =+IF(B4="DM 81/2020 - PSNMS", "Importo da utilizzare per infrastrutture (di cui del contributo max)","Contributo max assegnabile per eventuali infrastrutture (di cui del contributo max)") -> Contributo max assegnabile per eventuali infrastrutture (di cui del contributo max) | B10: =VLOOKUP($B$6,'Assegnazione fondi'!$D$2:$G$208,2,FALSE) -> 79780.22823 | D10: Residuo sull'anno | F10: =+TOTIMP-F7 -> 159560.4565
A12: DATI RIEPILOGATIVI SUGLI AUTOBUS DA ACQUISIRE | B12: Per complet. organico n. | C12: Per rinnovo parco n. | D12: Compilare un foglio per ogni fondo di finanziamento, per ogni annualità | U12: Indicare il cronoprogramma delle attività per ogni mezzo secondo le tre tipologie in legenda
B13: =B41 -> 0 | C13: =C41 -> 0 | U13: Anno | V13: 2018 | AH13: 2019 | AT13: 2020 | BF13: 2021 | BR13: 2022 | CD13: 2023 | CP13: 2024 | DB13: 2025 | DN13: 2026
A14: Azienda beneficiaria | B14: Completamento organico (1=si;0=no) | C14: Sostituzione mezzo (1=si;0=no) | D14: Targa mezzo da sostituire | E14: Impiego (URBANO / EXTRAURBANO) | F14: Data prima immatricolazione mezzo sostituito | G14: DGR tetti di spesa | H14: Tipologia nuovo mezzo (selezionare dall'elenco) | I14: Rastrelliera per biciclette (1=si;0=no) | J14: Metano LNG (1=si;0=no) | K14: Mezzo Myld hybrid (1=si;0=no) | L14: Costo preventivato unitario [€] | M14: CIG e note particolari | N14: DATA STIPULA CONTRATTO entro 31/12/2022 | O14: Investimento sul cratere sisma 2016 (1=si;0=no) | P14: intervento liquidato (1=si;0=no) | Q14: Alimentaz. | R14: Spesa max ammissibile unitaria | S14: Contributo unitario | U14: Id / Mese | V14: 1 | W14: 2 | X14: 3 | Y14: 4 | Z14: 5 | AA14: 6 | AB14: 7 | AC14: 8 | AD14: 9 | AE14: 10 | AF14: 11 | AG14: 12 | AH14: 1 | AI14: 2 | AJ14: 3 | AK14: 4 | AL14: 5 | AM14: 6 | AN14: 7 | AO14: 8 | AP14: 9 | AQ14: 10 | AR14: 11 | AS14: 12 | AT14: 1 | AU14: 2 | AV14: 3 | AW14: 4 | AX14: 5 | AY14: 6 | AZ14: 7 | BA14: 8 | BB14: 9 | BC14: 10 | BD14: 11 | BE14: 12 | BF14: 1 | BG14: 2 | BH14: 3 | BI14: 4 | BJ14: 5 | BK14: 6 | BL14: 7 | BM14: 8 | BN14: 9 | BO14: 10 | BP14: 11 | BQ14: 12 | BR14: 1 | BS14: 2 | BT14: 3 | BU14: 4 | BV14: 5 | BW14: 6 | BX14: 7 | BY14: 8 | BZ14: 9 | CA14: 10 | CB14: 11 | CC14: 12 | CD14: 1 | CE14: 2 | CF14: 3 | CG14: 4 | CH14: 5 | CI14: 6 | CJ14: 7 | CK14: 8 | CL14: 9 | CM14: 10 | CN14: 11 | CO14: 12 | CP14: 1 | CQ14: 2 | CR14: 3 | CS14: 4 | CT14: 5 | CU14: 6 | CV14: 7 | CW14: 8 | CX14: 9 | CY14: 10 | CZ14: 11 | DA14: 12 | DB14: 1 | DC14: 2 | DD14: 3 | DE14: 4 | DF14: 5 | DG14: 6 | DH14: 7 | DI14: 8 | DJ14: 9 | DK14: 10 | DL14: 11 | DM14: 12 | DN14: 1 | DO14: 2 | DP14: 3 | DQ14: 4 | DR14: 5 | DS14: 6 | DT14: 7 | DU14: 8 | DV14: 9 | DW14: 10 | DX14: 11 | DY14: 12
M15: =IF(L15<>0,"COMPILARE","") ->  | Q15: =IFERROR(VLOOKUP(H15,TettiDGR300!$J$2:$L74,3,FALSE), "") ->  | R15: =IF(H15="",0,IF(AND(G15="DGR300_2023",J15=1,K15=1),VLOOKUP(H15,TettiDGR300!$J$2:$N74,5,FALSE),IF(AND(G15="DGR300_2023",J15=1),VLOOKUP(H15,TettiDGR300!$J$2:$N73,4,FALSE),IF(AND(G15="DGR300_2023",K15=1),VLOOKUP(H15,TettiDGR300!$J$2:$N74,5,FALSE),IF(G15="DGR300_2023",VLOOKUP(H15,TettiDGR300!$J$2:$N74,2,FALSE),IF(AND(G15="DGR1233_2021",J15=1,K15=1),VLOOKUP(H15,TettiDGR1233!$J$2:$N74,5,FALSE),IF(AND(G15="DGR1233_2021",J15=1),VLOOKUP(H15,TettiDGR1233!$J$2:$N73,4,FALSE),IF(AND(G15="DGR1233_2021",K15=1),VLOOKUP(H15,TettiDGR1233!$J$2:$N74,5,FALSE),VLOOKUP(H15,TettiDGR1233!$J$2:$L74,2,FALSE))))))))) -> 0 | S15: =IF(L15<R15,L15*PERCCONTRIB,R15*PERCCONTRIB) -> 0 | U15: 1
Q16: =IFERROR(VLOOKUP(H16,TettiDGR300!$J$2:$L75,3,FALSE), "") ->  | R16: =IF(H16="",0,IF(AND(G16="DGR300_2023",J16=1,K16=1),VLOOKUP(H16,TettiDGR300!$J$2:$N75,5,FALSE),IF(AND(G16="DGR300_2023",J16=1),VLOOKUP(H16,TettiDGR300!$J$2:$N74,4,FALSE),IF(AND(G16="DGR300_2023",K16=1),VLOOKUP(H16,TettiDGR300!$J$2:$N75,5,FALSE),IF(G16="DGR300_2023",VLOOKUP(H16,TettiDGR300!$J$2:$N75,2,FALSE),IF(AND(G16="DGR1233_2021",J16=1,K16=1),VLOOKUP(H16,TettiDGR1233!$J$2:$N75,5,FALSE),IF(AND(G16="DGR1233_2021",J16=1),VLOOKUP(H16,TettiDGR1233!$J$2:$N74,4,FALSE),IF(AND(G16="DGR1233_2021",K16=1),VLOOKUP(H16,TettiDGR1233!$J$2:$N75,5,FALSE),VLOOKUP(H16,TettiDGR1233!$J$2:$L75,2,FALSE))))))))) -> 0 | S16: 0 | U16: 2
Q17: =IFERROR(VLOOKUP(H17,TettiDGR300!$J$2:$L76,3,FALSE), "") ->  | R17: =IF(H17="",0,IF(AND(G17="DGR300_2023",J17=1,K17=1),VLOOKUP(H17,TettiDGR300!$J$2:$N76,5,FALSE),IF(AND(G17="DGR300_2023",J17=1),VLOOKUP(H17,TettiDGR300!$J$2:$N75,4,FALSE),IF(AND(G17="DGR300_2023",K17=1),VLOOKUP(H17,TettiDGR300!$J$2:$N76,5,FALSE),IF(G17="DGR300_2023",VLOOKUP(H17,TettiDGR300!$J$2:$N76,2,FALSE),IF(AND(G17="DGR1233_2021",J17=1,K17=1),VLOOKUP(H17,TettiDGR1233!$J$2:$N76,5,FALSE),IF(AND(G17="DGR1233_2021",J17=1),VLOOKUP(H17,TettiDGR1233!$J$2:$N75,4,FALSE),IF(AND(G17="DGR1233_2021",K17=1),VLOOKUP(H17,TettiDGR1233!$J$2:$N76,5,FALSE),VLOOKUP(H17,TettiDGR1233!$J$2:$L76,2,FALSE))))))))) -> 0 | S17: 0 | U17: 3
Q18: =IFERROR(VLOOKUP(H18,TettiDGR300!$J$2:$L77,3,FALSE), "") ->  | R18: =IF(H18="",0,IF(AND(G18="DGR300_2023",J18=1,K18=1),VLOOKUP(H18,TettiDGR300!$J$2:$N77,5,FALSE),IF(AND(G18="DGR300_2023",J18=1),VLOOKUP(H18,TettiDGR300!$J$2:$N76,4,FALSE),IF(AND(G18="DGR300_2023",K18=1),VLOOKUP(H18,TettiDGR300!$J$2:$N77,5,FALSE),IF(G18="DGR300_2023",VLOOKUP(H18,TettiDGR300!$J$2:$N77,2,FALSE),IF(AND(G18="DGR1233_2021",J18=1,K18=1),VLOOKUP(H18,TettiDGR1233!$J$2:$N77,5,FALSE),IF(AND(G18="DGR1233_2021",J18=1),VLOOKUP(H18,TettiDGR1233!$J$2:$N76,4,FALSE),IF(AND(G18="DGR1233_2021",K18=1),VLOOKUP(H18,TettiDGR1233!$J$2:$N77,5,FALSE),VLOOKUP(H18,TettiDGR1233!$J$2:$L77,2,FALSE))))))))) -> 0 | S18: 0 | U18: 4
Q19: =IFERROR(VLOOKUP(H19,TettiDGR300!$J$2:$L78,3,FALSE), "") ->  | R19: =IF(H19="",0,IF(AND(G19="DGR300_2023",J19=1,K19=1),VLOOKUP(H19,TettiDGR300!$J$2:$N78,5,FALSE),IF(AND(G19="DGR300_2023",J19=1),VLOOKUP(H19,TettiDGR300!$J$2:$N77,4,FALSE),IF(AND(G19="DGR300_2023",K19=1),VLOOKUP(H19,TettiDGR300!$J$2:$N78,5,FALSE),IF(G19="DGR300_2023",VLOOKUP(H19,TettiDGR300!$J$2:$N78,2,FALSE),IF(AND(G19="DGR1233_2021",J19=1,K19=1),VLOOKUP(H19,TettiDGR1233!$J$2:$N78,5,FALSE),IF(AND(G19="DGR1233_2021",J19=1),VLOOKUP(H19,TettiDGR1233!$J$2:$N77,4,FALSE),IF(AND(G19="DGR1233_2021",K19=1),VLOOKUP(H19,TettiDGR1233!$J$2:$N78,5,FALSE),VLOOKUP(H19,TettiDGR1233!$J$2:$L78,2,FALSE))))))))) -> 0 | S19: 0 | U19: 5
Q20: =IFERROR(VLOOKUP(H20,TettiDGR300!$J$2:$L79,3,FALSE), "") ->  | R20: =IF(H20="",0,IF(AND(G20="DGR300_2023",J20=1,K20=1),VLOOKUP(H20,TettiDGR300!$J$2:$N79,5,FALSE),IF(AND(G20="DGR300_2023",J20=1),VLOOKUP(H20,TettiDGR300!$J$2:$N78,4,FALSE),IF(AND(G20="DGR300_2023",K20=1),VLOOKUP(H20,TettiDGR300!$J$2:$N79,5,FALSE),IF(G20="DGR300_2023",VLOOKUP(H20,TettiDGR300!$J$2:$N79,2,FALSE),IF(AND(G20="DGR1233_2021",J20=1,K20=1),VLOOKUP(H20,TettiDGR1233!$J$2:$N79,5,FALSE),IF(AND(G20="DGR1233_2021",J20=1),VLOOKUP(H20,TettiDGR1233!$J$2:$N78,4,FALSE),IF(AND(G20="DGR1233_2021",K20=1),VLOOKUP(H20,TettiDGR1233!$J$2:$N79,5,FALSE),VLOOKUP(H20,TettiDGR1233!$J$2:$L79,2,FALSE))))))))) -> 0 | S20: 0 | U20: 6
Q21: =IFERROR(VLOOKUP(H21,TettiDGR300!$J$2:$L80,3,FALSE), "") ->  | R21: =IF(H21="",0,IF(AND(G21="DGR300_2023",J21=1,K21=1),VLOOKUP(H21,TettiDGR300!$J$2:$N80,5,FALSE),IF(AND(G21="DGR300_2023",J21=1),VLOOKUP(H21,TettiDGR300!$J$2:$N79,4,FALSE),IF(AND(G21="DGR300_2023",K21=1),VLOOKUP(H21,TettiDGR300!$J$2:$N80,5,FALSE),IF(G21="DGR300_2023",VLOOKUP(H21,TettiDGR300!$J$2:$N80,2,FALSE),IF(AND(G21="DGR1233_2021",J21=1,K21=1),VLOOKUP(H21,TettiDGR1233!$J$2:$N80,5,FALSE),IF(AND(G21="DGR1233_2021",J21=1),VLOOKUP(H21,TettiDGR1233!$J$2:$N79,4,FALSE),IF(AND(G21="DGR1233_2021",K21=1),VLOOKUP(H21,TettiDGR1233!$J$2:$N80,5,FALSE),VLOOKUP(H21,TettiDGR1233!$J$2:$L80,2,FALSE))))))))) -> 0 | S21: 0 | U21: 7
Q22: =IFERROR(VLOOKUP(H22,TettiDGR300!$J$2:$L81,3,FALSE), "") ->  | R22: =IF(H22="",0,IF(AND(G22="DGR300_2023",J22=1,K22=1),VLOOKUP(H22,TettiDGR300!$J$2:$N81,5,FALSE),IF(AND(G22="DGR300_2023",J22=1),VLOOKUP(H22,TettiDGR300!$J$2:$N80,4,FALSE),IF(AND(G22="DGR300_2023",K22=1),VLOOKUP(H22,TettiDGR300!$J$2:$N81,5,FALSE),IF(G22="DGR300_2023",VLOOKUP(H22,TettiDGR300!$J$2:$N81,2,FALSE),IF(AND(G22="DGR1233_2021",J22=1,K22=1),VLOOKUP(H22,TettiDGR1233!$J$2:$N81,5,FALSE),IF(AND(G22="DGR1233_2021",J22=1),VLOOKUP(H22,TettiDGR1233!$J$2:$N80,4,FALSE),IF(AND(G22="DGR1233_2021",K22=1),VLOOKUP(H22,TettiDGR1233!$J$2:$N81,5,FALSE),VLOOKUP(H22,TettiDGR1233!$J$2:$L81,2,FALSE))))))))) -> 0 | S22: 0 | U22: 8
Q23: =IFERROR(VLOOKUP(H23,TettiDGR300!$J$2:$L82,3,FALSE), "") ->  | R23: =IF(H23="",0,IF(AND(G23="DGR300_2023",J23=1,K23=1),VLOOKUP(H23,TettiDGR300!$J$2:$N82,5,FALSE),IF(AND(G23="DGR300_2023",J23=1),VLOOKUP(H23,TettiDGR300!$J$2:$N81,4,FALSE),IF(AND(G23="DGR300_2023",K23=1),VLOOKUP(H23,TettiDGR300!$J$2:$N82,5,FALSE),IF(G23="DGR300_2023",VLOOKUP(H23,TettiDGR300!$J$2:$N82,2,FALSE),IF(AND(G23="DGR1233_2021",J23=1,K23=1),VLOOKUP(H23,TettiDGR1233!$J$2:$N82,5,FALSE),IF(AND(G23="DGR1233_2021",J23=1),VLOOKUP(H23,TettiDGR1233!$J$2:$N81,4,FALSE),IF(AND(G23="DGR1233_2021",K23=1),VLOOKUP(H23,TettiDGR1233!$J$2:$N82,5,FALSE),VLOOKUP(H23,TettiDGR1233!$J$2:$L82,2,FALSE))))))))) -> 0 | S23: 0 | U23: 9
Q24: =IFERROR(VLOOKUP(H24,TettiDGR300!$J$2:$L83,3,FALSE), "") ->  | R24: =IF(H24="",0,IF(AND(G24="DGR300_2023",J24=1,K24=1),VLOOKUP(H24,TettiDGR300!$J$2:$N83,5,FALSE),IF(AND(G24="DGR300_2023",J24=1),VLOOKUP(H24,TettiDGR300!$J$2:$N82,4,FALSE),IF(AND(G24="DGR300_2023",K24=1),VLOOKUP(H24,TettiDGR300!$J$2:$N83,5,FALSE),IF(G24="DGR300_2023",VLOOKUP(H24,TettiDGR300!$J$2:$N83,2,FALSE),IF(AND(G24="DGR1233_2021",J24=1,K24=1),VLOOKUP(H24,TettiDGR1233!$J$2:$N83,5,FALSE),IF(AND(G24="DGR1233_2021",J24=1),VLOOKUP(H24,TettiDGR1233!$J$2:$N82,4,FALSE),IF(AND(G24="DGR1233_2021",K24=1),VLOOKUP(H24,TettiDGR1233!$J$2:$N83,5,FALSE),VLOOKUP(H24,TettiDGR1233!$J$2:$L83,2,FALSE))))))))) -> 0 | S24: 0 | U24: 10
Q25: =IFERROR(VLOOKUP(H25,TettiDGR300!$J$2:$L84,3,FALSE), "") ->  | R25: =IF(H25="",0,IF(AND(G25="DGR300_2023",J25=1,K25=1),VLOOKUP(H25,TettiDGR300!$J$2:$N84,5,FALSE),IF(AND(G25="DGR300_2023",J25=1),VLOOKUP(H25,TettiDGR300!$J$2:$N83,4,FALSE),IF(AND(G25="DGR300_2023",K25=1),VLOOKUP(H25,TettiDGR300!$J$2:$N84,5,FALSE),IF(G25="DGR300_2023",VLOOKUP(H25,TettiDGR300!$J$2:$N84,2,FALSE),IF(AND(G25="DGR1233_2021",J25=1,K25=1),VLOOKUP(H25,TettiDGR1233!$J$2:$N84,5,FALSE),IF(AND(G25="DGR1233_2021",J25=1),VLOOKUP(H25,TettiDGR1233!$J$2:$N83,4,FALSE),IF(AND(G25="DGR1233_2021",K25=1),VLOOKUP(H25,TettiDGR1233!$J$2:$N84,5,FALSE),VLOOKUP(H25,TettiDGR1233!$J$2:$L84,2,FALSE))))))))) -> 0 | S25: 0 | U25: 11
Q26: =IFERROR(VLOOKUP(H26,TettiDGR300!$J$2:$L85,3,FALSE), "") ->  | R26: =IF(H26="",0,IF(AND(G26="DGR300_2023",J26=1,K26=1),VLOOKUP(H26,TettiDGR300!$J$2:$N85,5,FALSE),IF(AND(G26="DGR300_2023",J26=1),VLOOKUP(H26,TettiDGR300!$J$2:$N84,4,FALSE),IF(AND(G26="DGR300_2023",K26=1),VLOOKUP(H26,TettiDGR300!$J$2:$N85,5,FALSE),IF(G26="DGR300_2023",VLOOKUP(H26,TettiDGR300!$J$2:$N85,2,FALSE),IF(AND(G26="DGR1233_2021",J26=1,K26=1),VLOOKUP(H26,TettiDGR1233!$J$2:$N85,5,FALSE),IF(AND(G26="DGR1233_2021",J26=1),VLOOKUP(H26,TettiDGR1233!$J$2:$N84,4,FALSE),IF(AND(G26="DGR1233_2021",K26=1),VLOOKUP(H26,TettiDGR1233!$J$2:$N85,5,FALSE),VLOOKUP(H26,TettiDGR1233!$J$2:$L85,2,FALSE))))))))) -> 0 | S26: 0 | U26: 12
Q27: =IFERROR(VLOOKUP(H27,TettiDGR300!$J$2:$L86,3,FALSE), "") ->  | R27: =IF(H27="",0,IF(AND(G27="DGR300_2023",J27=1,K27=1),VLOOKUP(H27,TettiDGR300!$J$2:$N86,5,FALSE),IF(AND(G27="DGR300_2023",J27=1),VLOOKUP(H27,TettiDGR300!$J$2:$N85,4,FALSE),IF(AND(G27="DGR300_2023",K27=1),VLOOKUP(H27,TettiDGR300!$J$2:$N86,5,FALSE),IF(G27="DGR300_2023",VLOOKUP(H27,TettiDGR300!$J$2:$N86,2,FALSE),IF(AND(G27="DGR1233_2021",J27=1,K27=1),VLOOKUP(H27,TettiDGR1233!$J$2:$N86,5,FALSE),IF(AND(G27="DGR1233_2021",J27=1),VLOOKUP(H27,TettiDGR1233!$J$2:$N85,4,FALSE),IF(AND(G27="DGR1233_2021",K27=1),VLOOKUP(H27,TettiDGR1233!$J$2:$N86,5,FALSE),VLOOKUP(H27,TettiDGR1233!$J$2:$L86,2,FALSE))))))))) -> 0 | S27: 0 | U27: 13
Q28: =IFERROR(VLOOKUP(H28,TettiDGR300!$J$2:$L87,3,FALSE), "") ->  | R28: =IF(H28="",0,IF(AND(G28="DGR300_2023",J28=1,K28=1),VLOOKUP(H28,TettiDGR300!$J$2:$N87,5,FALSE),IF(AND(G28="DGR300_2023",J28=1),VLOOKUP(H28,TettiDGR300!$J$2:$N86,4,FALSE),IF(AND(G28="DGR300_2023",K28=1),VLOOKUP(H28,TettiDGR300!$J$2:$N87,5,FALSE),IF(G28="DGR300_2023",VLOOKUP(H28,TettiDGR300!$J$2:$N87,2,FALSE),IF(AND(G28="DGR1233_2021",J28=1,K28=1),VLOOKUP(H28,TettiDGR1233!$J$2:$N87,5,FALSE),IF(AND(G28="DGR1233_2021",J28=1),VLOOKUP(H28,TettiDGR1233!$J$2:$N86,4,FALSE),IF(AND(G28="DGR1233_2021",K28=1),VLOOKUP(H28,TettiDGR1233!$J$2:$N87,5,FALSE),VLOOKUP(H28,TettiDGR1233!$J$2:$L87,2,FALSE))))))))) -> 0 | S28: 0 | U28: 14
Q29: =IFERROR(VLOOKUP(H29,TettiDGR300!$J$2:$L88,3,FALSE), "") ->  | R29: =IF(H29="",0,IF(AND(G29="DGR300_2023",J29=1,K29=1),VLOOKUP(H29,TettiDGR300!$J$2:$N88,5,FALSE),IF(AND(G29="DGR300_2023",J29=1),VLOOKUP(H29,TettiDGR300!$J$2:$N87,4,FALSE),IF(AND(G29="DGR300_2023",K29=1),VLOOKUP(H29,TettiDGR300!$J$2:$N88,5,FALSE),IF(G29="DGR300_2023",VLOOKUP(H29,TettiDGR300!$J$2:$N88,2,FALSE),IF(AND(G29="DGR1233_2021",J29=1,K29=1),VLOOKUP(H29,TettiDGR1233!$J$2:$N88,5,FALSE),IF(AND(G29="DGR1233_2021",J29=1),VLOOKUP(H29,TettiDGR1233!$J$2:$N87,4,FALSE),IF(AND(G29="DGR1233_2021",K29=1),VLOOKUP(H29,TettiDGR1233!$J$2:$N88,5,FALSE),VLOOKUP(H29,TettiDGR1233!$J$2:$L88,2,FALSE))))))))) -> 0 | S29: 0 | U29: 15
A30: DATI RIEPILOGATIVI PER LE INFRASTRUTTURE DI RIFORNIMENTO/RICARICA Azienda beneficiaria | B30: Id intervento (inserire il codice indentif. già inserito nella scheda dedicata) | C30: Nuova realizzazione (0) - Ristrutturazione e/o ampliamento (1) | D30: Comune | E30: Località | F30: Investimento già parzialmente finanziato da altra misura pubblica | H30: Tipologia intervento | I30: N. colonnine ricarica bus per sito | J30: Utilizzo infrastruttura da più operatori (1=si;0=no) | K30: Intervento allocato su più annualità (1=si;0=no) | L30: Importo complessivo dell'intervento [€] | M30: CIG e note particolari | N30: DATA STIPULA CONTRATTO | O30: Investimento sul cratere sisma 2016 (1=si;0=no) | P30: intervento liquidato (1=si;0=no) | Q30: Alimentaz. | R30: Costo allocato sull'anno in esame [€] | S30: Quota contributo sull'anno [€] | U30: Indicare il cronoprogramma delle attività per ogni intervento secondo le tre tipologie in legenda
B31: =IF(OR($B$4="DM 223/2020 - MIT",$B$4="FSC (D.Cipe 98/2017)"),"XXXX","") ->  | Q31: =IFERROR(VLOOKUP(H31,Infrastrutture!$A$2:$B$9,2,FALSE), "") ->  | S31: =IF(L31<R31,"ERRORE",R31*PERCCONTRIB) -> 0 | U31: 20
B32: =IF(OR($B$4="DM 223/2020 - MIT",$B$4="FSC (D.Cipe 98/2017)"),"XXXX","") ->  | L32: =IF(OR($B$4="DM 223/2020 - MIT",$B$4="FSC (D.Cipe 98/2017)"),"XXXX","") ->  | M32: =IF(OR($B$4="DM 223/2020 - MIT",$B$4="FSC (D.Cipe 98/2017)"),"Il fondo prescelto non ammette infrastrutture","") ->  | Q32: =IFERROR(VLOOKUP(H32,Infrastrutture!$A$2:$B$9,2,FALSE), "") ->  | S32: 0 | U32: 21
Q33: =IFERROR(VLOOKUP(H33,Infrastrutture!$A$2:$B$9,2,FALSE), "") ->  | S33: 0 | U33: 22
Q34: =IFERROR(VLOOKUP(H34,Infrastrutture!$A$2:$B$9,2,FALSE), "") ->  | S34: 0 | U34: 23
Q35: =IFERROR(VLOOKUP(H35,Infrastrutture!$A$2:$B$9,2,FALSE), "") ->  | S35: 0 | U35: 24
Q36: =IFERROR(VLOOKUP(H36,Infrastrutture!$A$2:$B$9,2,FALSE), "") ->  | S36: 0 | U36: 25
Q37: =IFERROR(VLOOKUP(H37,Infrastrutture!$A$2:$B$9,2,FALSE), "") ->  | S37: 0 | U37: 26
Q38: =IFERROR(VLOOKUP(H38,Infrastrutture!$A$2:$B$9,2,FALSE), "") ->  | S38: 0 | U38: 27
Q39: =IFERROR(VLOOKUP(H39,Infrastrutture!$A$2:$B$9,2,FALSE), "") ->  | S39: 0 | U39: 28
Q40: =IFERROR(VLOOKUP(H40,Infrastrutture!$A$2:$B$9,2,FALSE), "") ->  | S40: 0 | U40: 29
A41: TOTALI AUTOBUS | B41: =SUM(B15:B29) -> 0 | C41: =SUM(C15:C29) -> 0 | O41: =+SUM(O15:O29) -> 0 | R41: =SUM(R15:R29) -> 0 | S41: =SUM(S15:S29) -> 0
A42: TOTALI INFRASTRUTTURE | O42: =+SUM(O31:O40) -> 0 | R42: =+SUM(R31:R40) -> 0 | S42: =+SUM(S31:S40) -> 0
A43: TOTALI GENERALE | R43: =+R41+R42 -> 0 | S43: =+S41+S42 -> 0

Sheet DM 315_2023
A1: Piano investimenti di bacino - D.G.R. 647 del 30 maggio 2022 - REGIONE MARCHE - Assessorato trasporti e reti regionali di trasporto. | U1: CRONOPROGRAMMA DEGLI INVESTIMENTI
A3: Ambito territoriale | B3: FM | F3: celle a fondo bianco da compilare obbligatoriamente direttamente o con menu a tendina | I3: Data compilazione | V3: Legenda:
A4: Fonte di finanziamento | B4: DM 315/2021 - fondo compl. PNRR | F4: celle a fondo arancio compilate automaticamente | I4: Referente compilaz. | V4: 1 | W4: Espletamento gara
A5: Annualità | B5: 2023 | F5: Valori economici al netto dell'IVA | I5: Telefono di contatto | V5: 2 | W5: Stipula contratto
A6: K2 | B6: =B4&"_"&B5&"_"&B3 -> DM 315/2021 - fondo compl. PNRR_2023_FM
A7: Contributo max assegnabile | B7: =VLOOKUP($B$6,'Assegnazione fondi'!$D$2:$G$208,3,FALSE) -> 207387.496 | D7: Contributo tot. assegnato | F7: =+S43 -> 0 | I7: e-mail | V7: 3 | W7: Completamento fornitura
A8: % contribuzione sul costo d'acquisto | B8: =VLOOKUP($B$6,'Assegnazione fondi'!$D$2:$G$201,4,FALSE) -> 0.8 | D8: N. mezzi tot. da acquisire | F8: =B41+C41 -> 0
A9: Residuo annualità precedenti | B9: ='DM 315_2022'!F10 -> 159560.4565
A10: =+IF(B4="DM 81/2020 - PSNMS", "Importo da utilizzare per infrastrutture (di cui del contributo max)","Contributo max assegnabile per eventuali infrastrutture (di cui del contributo max)") -> Contributo max assegnabile per eventuali infrastrutture (di cui del contributo max) | B10: =VLOOKUP($B$6,'Assegnazione fondi'!$D$2:$G$208,2,FALSE) -> 103693.748 | D10: Residuo sull'anno | F10: =+TOTIMP-F7+B9 -> 366947.9525
A12: DATI RIEPILOGATIVI SUGLI AUTOBUS DA ACQUISIRE | B12: Per complet. organico n. | C12: Per rinnovo parco n. | D12: Compilare un foglio per ogni fondo di finanziamento, per ogni annualità | U12: Indicare il cronoprogramma delle attività per ogni mezzo secondo le tre tipologie in legenda
B13: =B41 -> 0 | C13: =C41 -> 0 | U13: Anno | V13: 2018 | AH13: 2019 | AT13: 2020 | BF13: 2021 | BR13: 2022 | CD13: 2023 | CP13: 2024 | DB13: 2025 | DN13: 2026
A14: Azienda beneficiaria | B14: Completamento organico (1=si;0=no) | C14: Sostituzione mezzo (1=si;0=no) | D14: Targa mezzo da sostituire | E14: Impiego (URBANO / EXTRAURBANO) | F14: Data prima immatricolazione mezzo sostituito | G14: DGR tetti di spesa | H14: Tipologia nuovo mezzo (selezionare dall'elenco) | I14: Rastrelliera per biciclette (1=si;0=no) | J14: Metano LNG (1=si;0=no) | K14: Mezzo Myld hybrid (1=si;0=no) | L14: Costo preventivato unitario [€] | M14: CIG e note particolari | N14: DATA STIPULA CONTRATTO entro 31/12/2022 | O14: Investimento sul cratere sisma 2016 (1=si;0=no) | P14: intervento liquidato (1=si;0=no) | Q14: Alimentaz. | R14: Spesa max ammissibile unitaria | S14: Contributo unitario | U14: Id / Mese | V14: 1 | W14: 2 | X14: 3 | Y14: 4 | Z14: 5 | AA14: 6 | AB14: 7 | AC14: 8 | AD14: 9 | AE14: 10 | AF14: 11 | AG14: 12 | AH14: 1 | AI14: 2 | AJ14: 3 | AK14: 4 | AL14: 5 | AM14: 6 | AN14: 7 | AO14: 8 | AP14: 9 | AQ14: 10 | AR14: 11 | AS14: 12 | AT14: 1 | AU14: 2 | AV14: 3 | AW14: 4 | AX14: 5 | AY14: 6 | AZ14: 7 | BA14: 8 | BB14: 9 | BC14: 10 | BD14: 11 | BE14: 12 | BF14: 1 | BG14: 2 | BH14: 3 | BI14: 4 | BJ14: 5 | BK14: 6 | BL14: 7 | BM14: 8 | BN14: 9 | BO14: 10 | BP14: 11 | BQ14: 12 | BR14: 1 | BS14: 2 | BT14: 3 | BU14: 4 | BV14: 5 | BW14: 6 | BX14: 7 | BY14: 8 | BZ14: 9 | CA14: 10 | CB14: 11 | CC14: 12 | CD14: 1 | CE14: 2 | CF14: 3 | CG14: 4 | CH14: 5 | CI14: 6 | CJ14: 7 | CK14: 8 | CL14: 9 | CM14: 10 | CN14: 11 | CO14: 12 | CP14: 1 | CQ14: 2 | CR14: 3 | CS14: 4 | CT14: 5 | CU14: 6 | CV14: 7 | CW14: 8 | CX14: 9 | CY14: 10 | CZ14: 11 | DA14: 12 | DB14: 1 | DC14: 2 | DD14: 3 | DE14: 4 | DF14: 5 | DG14: 6 | DH14: 7 | DI14: 8 | DJ14: 9 | DK14: 10 | DL14: 11 | DM14: 12 | DN14: 1 | DO14: 2 | DP14: 3 | DQ14: 4 | DR14: 5 | DS14: 6 | DT14: 7 | DU14: 8 | DV14: 9 | DW14: 10 | DX14: 11 | DY14: 12
M15: =IF(L15<>0,"COMPILARE","") ->  | Q15: =IFERROR(VLOOKUP(H15,TettiDGR300!$J$2:$L74,3,FALSE), "") ->  | R15: =IF(H15="",0,IF(AND(G15="DGR300_2023",J15=1,K15=1),VLOOKUP(H15,TettiDGR300!$J$2:$N74,5,FALSE),IF(AND(G15="DGR300_2023",J15=1),VLOOKUP(H15,TettiDGR300!$J$2:$N73,4,FALSE),IF(AND(G15="DGR300_2023",K15=1),VLOOKUP(H15,TettiDGR300!$J$2:$N74,5,FALSE),IF(G15="DGR300_2023",VLOOKUP(H15,TettiDGR300!$J$2:$N74,2,FALSE),IF(AND(G15="DGR1233_2021",J15=1,K15=1),VLOOKUP(H15,TettiDGR1233!$J$2:$N74,5,FALSE),IF(AND(G15="DGR1233_2021",J15=1),VLOOKUP(H15,TettiDGR1233!$J$2:$N73,4,FALSE),IF(AND(G15="DGR1233_2021",K15=1),VLOOKUP(H15,TettiDGR1233!$J$2:$N74,5,FALSE),VLOOKUP(H15,TettiDGR1233!$J$2:$L74,2,FALSE))))))))) -> 0 | S15: =IF(L15<R15,L15*PERCCONTRIB,R15*PERCCONTRIB) -> 0 | U15: 1
Q16: =IFERROR(VLOOKUP(H16,TettiDGR300!$J$2:$L75,3,FALSE), "") ->  | R16: =IF(H16="",0,IF(AND(G16="DGR300_2023",J16=1,K16=1),VLOOKUP(H16,TettiDGR300!$J$2:$N75,5,FALSE),IF(AND(G16="DGR300_2023",J16=1),VLOOKUP(H16,TettiDGR300!$J$2:$N74,4,FALSE),IF(AND(G16="DGR300_2023",K16=1),VLOOKUP(H16,TettiDGR300!$J$2:$N75,5,FALSE),IF(G16="DGR300_2023",VLOOKUP(H16,TettiDGR300!$J$2:$N75,2,FALSE),IF(AND(G16="DGR1233_2021",J16=1,K16=1),VLOOKUP(H16,TettiDGR1233!$J$2:$N75,5,FALSE),IF(AND(G16="DGR1233_2021",J16=1),VLOOKUP(H16,TettiDGR1233!$J$2:$N74,4,FALSE),IF(AND(G16="DGR1233_2021",K16=1),VLOOKUP(H16,TettiDGR1233!$J$2:$N75,5,FALSE),VLOOKUP(H16,TettiDGR1233!$J$2:$L75,2,FALSE))))))))) -> 0 | S16: 0 | U16: 2
Q17: =IFERROR(VLOOKUP(H17,TettiDGR300!$J$2:$L76,3,FALSE), "") ->  | R17: =IF(H17="",0,IF(AND(G17="DGR300_2023",J17=1,K17=1),VLOOKUP(H17,TettiDGR300!$J$2:$N76,5,FALSE),IF(AND(G17="DGR300_2023",J17=1),VLOOKUP(H17,TettiDGR300!$J$2:$N75,4,FALSE),IF(AND(G17="DGR300_2023",K17=1),VLOOKUP(H17,TettiDGR300!$J$2:$N76,5,FALSE),IF(G17="DGR300_2023",VLOOKUP(H17,TettiDGR300!$J$2:$N76,2,FALSE),IF(AND(G17="DGR1233_2021",J17=1,K17=1),VLOOKUP(H17,TettiDGR1233!$J$2:$N76,5,FALSE),IF(AND(G17="DGR1233_2021",J17=1),VLOOKUP(H17,TettiDGR1233!$J$2:$N75,4,FALSE),IF(AND(G17="DGR1233_2021",K17=1),VLOOKUP(H17,TettiDGR1233!$J$2:$N76,5,FALSE),VLOOKUP(H17,TettiDGR1233!$J$2:$L76,2,FALSE))))))))) -> 0 | S17: 0 | U17: 3
Q18: =IFERROR(VLOOKUP(H18,TettiDGR300!$J$2:$L77,3,FALSE), "") ->  | R18: =IF(H18="",0,IF(AND(G18="DGR300_2023",J18=1,K18=1),VLOOKUP(H18,TettiDGR300!$J$2:$N77,5,FALSE),IF(AND(G18="DGR300_2023",J18=1),VLOOKUP(H18,TettiDGR300!$J$2:$N76,4,FALSE),IF(AND(G18="DGR300_2023",K18=1),VLOOKUP(H18,TettiDGR300!$J$2:$N77,5,FALSE),IF(G18="DGR300_2023",VLOOKUP(H18,TettiDGR300!$J$2:$N77,2,FALSE),IF(AND(G18="DGR1233_2021",J18=1,K18=1),VLOOKUP(H18,TettiDGR1233!$J$2:$N77,5,FALSE),IF(AND(G18="DGR1233_2021",J18=1),VLOOKUP(H18,TettiDGR1233!$J$2:$N76,4,FALSE),IF(AND(G18="DGR1233_2021",K18=1),VLOOKUP(H18,TettiDGR1233!$J$2:$N77,5,FALSE),VLOOKUP(H18,TettiDGR1233!$J$2:$L77,2,FALSE))))))))) -> 0 | S18: 0 | U18: 4
Q19: =IFERROR(VLOOKUP(H19,TettiDGR300!$J$2:$L78,3,FALSE), "") ->  | R19: =IF(H19="",0,IF(AND(G19="DGR300_2023",J19=1,K19=1),VLOOKUP(H19,TettiDGR300!$J$2:$N78,5,FALSE),IF(AND(G19="DGR300_2023",J19=1),VLOOKUP(H19,TettiDGR300!$J$2:$N77,4,FALSE),IF(AND(G19="DGR300_2023",K19=1),VLOOKUP(H19,TettiDGR300!$J$2:$N78,5,FALSE),IF(G19="DGR300_2023",VLOOKUP(H19,TettiDGR300!$J$2:$N78,2,FALSE),IF(AND(G19="DGR1233_2021",J19=1,K19=1),VLOOKUP(H19,TettiDGR1233!$J$2:$N78,5,FALSE),IF(AND(G19="DGR1233_2021",J19=1),VLOOKUP(H19,TettiDGR1233!$J$2:$N77,4,FALSE),IF(AND(G19="DGR1233_2021",K19=1),VLOOKUP(H19,TettiDGR1233!$J$2:$N78,5,FALSE),VLOOKUP(H19,TettiDGR1233!$J$2:$L78,2,FALSE))))))))) -> 0 | S19: 0 | U19: 5
Q20: =IFERROR(VLOOKUP(H20,TettiDGR300!$J$2:$L79,3,FALSE), "") ->  | R20: =IF(H20="",0,IF(AND(G20="DGR300_2023",J20=1,K20=1),VLOOKUP(H20,TettiDGR300!$J$2:$N79,5,FALSE),IF(AND(G20="DGR300_2023",J20=1),VLOOKUP(H20,TettiDGR300!$J$2:$N78,4,FALSE),IF(AND(G20="DGR300_2023",K20=1),VLOOKUP(H20,TettiDGR300!$J$2:$N79,5,FALSE),IF(G20="DGR300_2023",VLOOKUP(H20,TettiDGR300!$J$2:$N79,2,FALSE),IF(AND(G20="DGR1233_2021",J20=1,K20=1),VLOOKUP(H20,TettiDGR1233!$J$2:$N79,5,FALSE),IF(AND(G20="DGR1233_2021",J20=1),VLOOKUP(H20,TettiDGR1233!$J$2:$N78,4,FALSE),IF(AND(G20="DGR1233_2021",K20=1),VLOOKUP(H20,TettiDGR1233!$J$2:$N79,5,FALSE),VLOOKUP(H20,TettiDGR1233!$J$2:$L79,2,FALSE))))))))) -> 0 | S20: 0 | U20: 6
Q21: =IFERROR(VLOOKUP(H21,TettiDGR300!$J$2:$L80,3,FALSE), "") ->  | R21: =IF(H21="",0,IF(AND(G21="DGR300_2023",J21=1,K21=1),VLOOKUP(H21,TettiDGR300!$J$2:$N80,5,FALSE),IF(AND(G21="DGR300_2023",J21=1),VLOOKUP(H21,TettiDGR300!$J$2:$N79,4,FALSE),IF(AND(G21="DGR300_2023",K21=1),VLOOKUP(H21,TettiDGR300!$J$2:$N80,5,FALSE),IF(G21="DGR300_2023",VLOOKUP(H21,TettiDGR300!$J$2:$N80,2,FALSE),IF(AND(G21="DGR1233_2021",J21=1,K21=1),VLOOKUP(H21,TettiDGR1233!$J$2:$N80,5,FALSE),IF(AND(G21="DGR1233_2021",J21=1),VLOOKUP(H21,TettiDGR1233!$J$2:$N79,4,FALSE),IF(AND(G21="DGR1233_2021",K21=1),VLOOKUP(H21,TettiDGR1233!$J$2:$N80,5,FALSE),VLOOKUP(H21,TettiDGR1233!$J$2:$L80,2,FALSE))))))))) -> 0 | S21: 0 | U21: 7
Q22: =IFERROR(VLOOKUP(H22,TettiDGR300!$J$2:$L81,3,FALSE), "") ->  | R22: =IF(H22="",0,IF(AND(G22="DGR300_2023",J22=1,K22=1),VLOOKUP(H22,TettiDGR300!$J$2:$N81,5,FALSE),IF(AND(G22="DGR300_2023",J22=1),VLOOKUP(H22,TettiDGR300!$J$2:$N80,4,FALSE),IF(AND(G22="DGR300_2023",K22=1),VLOOKUP(H22,TettiDGR300!$J$2:$N81,5,FALSE),IF(G22="DGR300_2023",VLOOKUP(H22,TettiDGR300!$J$2:$N81,2,FALSE),IF(AND(G22="DGR1233_2021",J22=1,K22=1),VLOOKUP(H22,TettiDGR1233!$J$2:$N81,5,FALSE),IF(AND(G22="DGR1233_2021",J22=1),VLOOKUP(H22,TettiDGR1233!$J$2:$N80,4,FALSE),IF(AND(G22="DGR1233_2021",K22=1),VLOOKUP(H22,TettiDGR1233!$J$2:$N81,5,FALSE),VLOOKUP(H22,TettiDGR1233!$J$2:$L81,2,FALSE))))))))) -> 0 | S22: 0 | U22: 8
Q23: =IFERROR(VLOOKUP(H23,TettiDGR300!$J$2:$L82,3,FALSE), "") ->  | R23: =IF(H23="",0,IF(AND(G23="DGR300_2023",J23=1,K23=1),VLOOKUP(H23,TettiDGR300!$J$2:$N82,5,FALSE),IF(AND(G23="DGR300_2023",J23=1),VLOOKUP(H23,TettiDGR300!$J$2:$N81,4,FALSE),IF(AND(G23="DGR300_2023",K23=1),VLOOKUP(H23,TettiDGR300!$J$2:$N82,5,FALSE),IF(G23="DGR300_2023",VLOOKUP(H23,TettiDGR300!$J$2:$N82,2,FALSE),IF(AND(G23="DGR1233_2021",J23=1,K23=1),VLOOKUP(H23,TettiDGR1233!$J$2:$N82,5,FALSE),IF(AND(G23="DGR1233_2021",J23=1),VLOOKUP(H23,TettiDGR1233!$J$2:$N81,4,FALSE),IF(AND(G23="DGR1233_2021",K23=1),VLOOKUP(H23,TettiDGR1233!$J$2:$N82,5,FALSE),VLOOKUP(H23,TettiDGR1233!$J$2:$L82,2,FALSE))))))))) -> 0 | S23: 0 | U23: 9
Q24: =IFERROR(VLOOKUP(H24,TettiDGR300!$J$2:$L83,3,FALSE), "") ->  | R24: =IF(H24="",0,IF(AND(G24="DGR300_2023",J24=1,K24=1),VLOOKUP(H24,TettiDGR300!$J$2:$N83,5,FALSE),IF(AND(G24="DGR300_2023",J24=1),VLOOKUP(H24,TettiDGR300!$J$2:$N82,4,FALSE),IF(AND(G24="DGR300_2023",K24=1),VLOOKUP(H24,TettiDGR300!$J$2:$N83,5,FALSE),IF(G24="DGR300_2023",VLOOKUP(H24,TettiDGR300!$J$2:$N83,2,FALSE),IF(AND(G24="DGR1233_2021",J24=1,K24=1),VLOOKUP(H24,TettiDGR1233!$J$2:$N83,5,FALSE),IF(AND(G24="DGR1233_2021",J24=1),VLOOKUP(H24,TettiDGR1233!$J$2:$N82,4,FALSE),IF(AND(G24="DGR1233_2021",K24=1),VLOOKUP(H24,TettiDGR1233!$J$2:$N83,5,FALSE),VLOOKUP(H24,TettiDGR1233!$J$2:$L83,2,FALSE))))))))) -> 0 | S24: 0 | U24: 10
Q25: =IFERROR(VLOOKUP(H25,TettiDGR300!$J$2:$L84,3,FALSE), "") ->  | R25: =IF(H25="",0,IF(AND(G25="DGR300_2023",J25=1,K25=1),VLOOKUP(H25,TettiDGR300!$J$2:$N84,5,FALSE),IF(AND(G25="DGR300_2023",J25=1),VLOOKUP(H25,TettiDGR300!$J$2:$N83,4,FALSE),IF(AND(G25="DGR300_2023",K25=1),VLOOKUP(H25,TettiDGR300!$J$2:$N84,5,FALSE),IF(G25="DGR300_2023",VLOOKUP(H25,TettiDGR300!$J$2:$N84,2,FALSE),IF(AND(G25="DGR1233_2021",J25=1,K25=1),VLOOKUP(H25,TettiDGR1233!$J$2:$N84,5,FALSE),IF(AND(G25="DGR1233_2021",J25=1),VLOOKUP(H25,TettiDGR1233!$J$2:$N83,4,FALSE),IF(AND(G25="DGR1233_2021",K25=1),VLOOKUP(H25,TettiDGR1233!$J$2:$N84,5,FALSE),VLOOKUP(H25,TettiDGR1233!$J$2:$L84,2,FALSE))))))))) -> 0 | S25: 0 | U25: 11
Q26: =IFERROR(VLOOKUP(H26,TettiDGR300!$J$2:$L85,3,FALSE), "") ->  | R26: =IF(H26="",0,IF(AND(G26="DGR300_2023",J26=1,K26=1),VLOOKUP(H26,TettiDGR300!$J$2:$N85,5,FALSE),IF(AND(G26="DGR300_2023",J26=1),VLOOKUP(H26,TettiDGR300!$J$2:$N84,4,FALSE),IF(AND(G26="DGR300_2023",K26=1),VLOOKUP(H26,TettiDGR300!$J$2:$N85,5,FALSE),IF(G26="DGR300_2023",VLOOKUP(H26,TettiDGR300!$J$2:$N85,2,FALSE),IF(AND(G26="DGR1233_2021",J26=1,K26=1),VLOOKUP(H26,TettiDGR1233!$J$2:$N85,5,FALSE),IF(AND(G26="DGR1233_2021",J26=1),VLOOKUP(H26,TettiDGR1233!$J$2:$N84,4,FALSE),IF(AND(G26="DGR1233_2021",K26=1),VLOOKUP(H26,TettiDGR1233!$J$2:$N85,5,FALSE),VLOOKUP(H26,TettiDGR1233!$J$2:$L85,2,FALSE))))))))) -> 0 | S26: 0 | U26: 12
Q27: =IFERROR(VLOOKUP(H27,TettiDGR300!$J$2:$L86,3,FALSE), "") ->  | R27: =IF(H27="",0,IF(AND(G27="DGR300_2023",J27=1,K27=1),VLOOKUP(H27,TettiDGR300!$J$2:$N86,5,FALSE),IF(AND(G27="DGR300_2023",J27=1),VLOOKUP(H27,TettiDGR300!$J$2:$N85,4,FALSE),IF(AND(G27="DGR300_2023",K27=1),VLOOKUP(H27,TettiDGR300!$J$2:$N86,5,FALSE),IF(G27="DGR300_2023",VLOOKUP(H27,TettiDGR300!$J$2:$N86,2,FALSE),IF(AND(G27="DGR1233_2021",J27=1,K27=1),VLOOKUP(H27,TettiDGR1233!$J$2:$N86,5,FALSE),IF(AND(G27="DGR1233_2021",J27=1),VLOOKUP(H27,TettiDGR1233!$J$2:$N85,4,FALSE),IF(AND(G27="DGR1233_2021",K27=1),VLOOKUP(H27,TettiDGR1233!$J$2:$N86,5,FALSE),VLOOKUP(H27,TettiDGR1233!$J$2:$L86,2,FALSE))))))))) -> 0 | S27: 0 | U27: 13
Q28: =IFERROR(VLOOKUP(H28,TettiDGR300!$J$2:$L87,3,FALSE), "") ->  | R28: =IF(H28="",0,IF(AND(G28="DGR300_2023",J28=1,K28=1),VLOOKUP(H28,TettiDGR300!$J$2:$N87,5,FALSE),IF(AND(G28="DGR300_2023",J28=1),VLOOKUP(H28,TettiDGR300!$J$2:$N86,4,FALSE),IF(AND(G28="DGR300_2023",K28=1),VLOOKUP(H28,TettiDGR300!$J$2:$N87,5,FALSE),IF(G28="DGR300_2023",VLOOKUP(H28,TettiDGR300!$J$2:$N87,2,FALSE),IF(AND(G28="DGR1233_2021",J28=1,K28=1),VLOOKUP(H28,TettiDGR1233!$J$2:$N87,5,FALSE),IF(AND(G28="DGR1233_2021",J28=1),VLOOKUP(H28,TettiDGR1233!$J$2:$N86,4,FALSE),IF(AND(G28="DGR1233_2021",K28=1),VLOOKUP(H28,TettiDGR1233!$J$2:$N87,5,FALSE),VLOOKUP(H28,TettiDGR1233!$J$2:$L87,2,FALSE))))))))) -> 0 | S28: 0 | U28: 14
Q29: =IFERROR(VLOOKUP(H29,TettiDGR300!$J$2:$L88,3,FALSE), "") ->  | R29: =IF(H29="",0,IF(AND(G29="DGR300_2023",J29=1,K29=1),VLOOKUP(H29,TettiDGR300!$J$2:$N88,5,FALSE),IF(AND(G29="DGR300_2023",J29=1),VLOOKUP(H29,TettiDGR300!$J$2:$N87,4,FALSE),IF(AND(G29="DGR300_2023",K29=1),VLOOKUP(H29,TettiDGR300!$J$2:$N88,5,FALSE),IF(G29="DGR300_2023",VLOOKUP(H29,TettiDGR300!$J$2:$N88,2,FALSE),IF(AND(G29="DGR1233_2021",J29=1,K29=1),VLOOKUP(H29,TettiDGR1233!$J$2:$N88,5,FALSE),IF(AND(G29="DGR1233_2021",J29=1),VLOOKUP(H29,TettiDGR1233!$J$2:$N87,4,FALSE),IF(AND(G29="DGR1233_2021",K29=1),VLOOKUP(H29,TettiDGR1233!$J$2:$N88,5,FALSE),VLOOKUP(H29,TettiDGR1233!$J$2:$L88,2,FALSE))))))))) -> 0 | S29: 0 | U29: 15
